Workbook

Sheet rahnama
A1: جهت استفاده از بخش ابزار Data گزینه Refresh All را کلیک کنید و منتظر بمانید تا بروز رسانی کامل شود
A2: سهام مور توجه | B2: شامل سهم هایی است تقاضا خرید یا فروش بروی آنها وجود دارد
A3: نوسان پذیری تاریخی | B3: نوسان تاریخی سهم محاسبه شده - باید هر روز آپدیت گردد
A4: بازده انتظاری | B4: این ستون بر اساس رفتار پیشرفت سهم طی دو سال گذشته محاسبه گردیده و در واقع انتظار از میزان پیشرفت سهم تا سر رسید را نمایش می دهد-بطور متوسط رشد 0.5 درصدی در نظر گرفته شده
A5: درصد تغییر قیمت پایانی | B5: نشان دهنده تغییر قیمت پایانی نماد در مقایسه با قیمت پایانی روز قبل است
A6: درصد تغییر از اولین معالمه روز | B6: نشان دهنده میزان تغییر از اولین معامله تا آخرین معامله در روز جاری
A7: تعداد معاملات | B7: نشان دهنده تعداد معاملات صورت گرفته تا لحظه بروز رسانی است
A8: حجم | B8: نمایش حجم معاملات در روز - هرچه حجم معاملات بیشتر باشد نقد شوندگی بهتری دارد
A9: آخرین معامله | B9: مبلغ آخرین معامله
A10: ارزش مفهومی معاملات | B10: نشان دهنده ارزش معاملات صورت گرفته طی روز جاری
A11: خرید | B11: بیشترین قیمت پیشنهادی سفارش خرید
A12: فروش | B12: کمترین قیمت پیشنهادی سفارش فروش
A13: سهم پایه | B13: قیمت پایانی سهم پایه
A14: درصد آخربن قیمت سهم پایه | B14: میزان تغییرات سهم پایه نسبت به قیمت پایانی روز قبل
A15: قیمت اعمال | B15: قیمت اعمال در سر رسید
A16: مانده تا سررسید | B16: تعداد روز مانده تا سر رسید
A17: تمام شده | B17: جمع هزینه خرید و اعمال
A18: در سود بی تفاوت در ضرر | B18: این ستون وضعیت اختیار را بررسی می کند و با علامت √ به معنی در سود - X به معنی در ضرر - ḷ به معنی بی تفاوت
A19: بلک شولز | B19: قیمت منصفانه جهت خرید
A20: تفاوت با بلک شولز | B20: درصد تفاوت کمترین سفارش فروش با قیمت منصفانه
A21: دلتا | B21: تعیین کننده تاثیر تغییرات قیمت سهم پایه بر قیمت پرمیوم - از نظر دیگر احتمال امکان اعمال را نیز نشان میدهد
A22: اهرم تقریبی | B22: از تقسیم قیمت سهم بر کمترین سفارش فروش به دست می آید
A23: اهرم با دلتا | B23: فرمول محاسبه اهرم با توجه به زمان مانده تا سر رسید
A24: اهرم بلک شولز | B24: محاسبه اهرم با در نظر گرفتن زمان سررسید و قیمت منصفانه (در صورتی که با قیمت منصفانه خرید کنیم)
A25: درصد بی تفاوتی | B25: نشان دهنده درصد قیمت تمام شده به سهم پایه است
A26: درصد سر به سری | B26: نشان دهنده میزان رشد مورد نیاز سهم تا سر به سر شدن با قیمت تمام شده
A27: رتبه | B27: این ستون با وزن دهی به حجم معاملات،اهرم با دلتا ، تفاوت با بلک شولز ،زمان باقی مانده تا سر رسید و درصد سربه سری ایجاد شده و باعث جلوگیری از سر در گمی ما می شود

Sheet استراتژی
A1: شاخص | B1: وزن | C1: اعمال | D1: نوسانگیری | E1: فروش اختیار خرید | F1: آربیتراژ
A2: حجم معاملات | B2: =IF($D$12=$M$84,C2,IF($D$12=$M$85,D2,IF($D$12=$M$83,F2,E2))) -> 10 | C2: 2 | D2: 10 | E2: 8 | F2: 0
A3: اهرم با دلتا | B3: =IF($D$12=$M$84,C3,IF($D$12=$M$85,D3,IF($D$12=$M$83,F3,E3))) -> 4 | C3: 6 | D3: 4 | E3: 4 | F3: 0 | G3: در این شیت تاثیر هر یک از شاخص های ذکر شده بر رتبه نماد را نمایش می دهد
A4: تفاوت با بلک شولز | B4: 6 | C4: 3 | D4: 6 | E4: 0 | F4: 0
A5: سر به سری | B5: 2 | C5: 3 | D5: 2 | E5: 0 | F5: 1 | G5: در صورتی که شما بخواهید تاثیر هر یک را کمتر یا بیشتر نمایید کافیست
A6: مانده تا سر رسید | B6: 9 | C6: 2 | D6: 9 | E6: 0 | F6: 0 | G6: عدد روبروی آن را تغییر دهید تا تاثیر خود را بر رتبه بندی بگذارد
A7: تعداد معاملات | B7: 9 | C7: 2 | D7: 9 | E7: 9 | F7: 0
A8: بی تفاوتی | B8: 2 | C8: 3 | D8: 2 | E8: 0 | F8: 1
A9: تفاوت با بلک شولز خریدار | B9: 0 | C9: 0 | D9: 0 | E9: 9 | F9: 0
A10: نرخ بازدهی مورد انتظار را انتخاب کنید← | D10: ثابت
A12: استراتژی اعمال ، نوسانگیری و یا فروش اختیار خرید | D12: خرید اختیار خرید برای نوسانگیری | F12: → | G12: استراتژی خود را این قسمت انتخاب کنید
K78: بی فیلتر
K79: اخابر | M79: ثابت 35 درصد
K80: خودرو | M80: بازدهی تا سر رسید
K81: كچاد
K82: وتجارت
K83: تاپيكو | M83: خرید اختیار خرید برای آربیتراژ
K84: رمپنا | M84: خرید اختیار خرید برای اعمال
K85: فخوز | M85: خرید اختیار خرید برای نوسانگیری
K86: شپنا | M86: فروش اختیار خرید در ریزش بازار
K87: وپارس
K88: فارس
K89: فملي
K90: شتران
K91: وبصادر
K92: پارسان
K93: شبندر
K94: وغدير
K95: كگل
K96: خساپا
K97: فولاد
K98: وبملت

Sheet constant
A1: نماد | B1: نماد اصلی | C1: توضیح | D1: اعمال | E1: تاریخ سر رسید | F1: تاریخ امروز | G1: مانده | H1: نوسان پذیری | I1: انتظار بازدهی | J1: قیمت آخرین معامله سهم پایه | K1: قیمت بلک شولز | L1: نوع اختیار | M1: اندازه قرارداد | N1: تغییرات سهم پایه | O1: درصد بازدهی مورد نظر معامله گر
A2: ضبدر3000 | B2: شبندر | C2: اختيارخ شبندر-14000-1400/03/30 | D2: 14000 | E2: 14000330 | F2: =Shamsi() -> 14000327 | G2: =Diff(F2,E2) -> 3 | H2: =VLOOKUP(B:B,volatility!A:C,3,0) -> 0.4038478723 | I2: =$O$2 -> 0.1 | J2: =IFERROR(VLOOKUP(B:B,moamelat!A:K,8,0),"") ->  | K2: =IFERROR(IF((LEFT(A2,1))="ض",CallPrice(J2,D2,G2/365,H2,I2,0),BSMertonPut(J2,D2,G2/365,I2,0,H2)),"") ->  | L2: =IF(LEFT(A2,1)="ض","اختیار خرید","اختیار فروش") -> اختیار خرید | M2: 1000 | N2: =VLOOKUP(B2,moamelat!A:J,10,0) ->  | O2: 0.1
A3: ضبدر3001 | B3: شبندر | C3: اختيارخ شبندر-16000-1400/03/30 | D3: 16000 | E3: 14000330 | F3: 14000327 | G3: 3 | H3: =VLOOKUP(B:B,volatility!A:C,3,0) -> 0.4038478723 | I3: =$O$2 -> 0.1 | J3: =IFERROR(VLOOKUP(B:B,moamelat!A:K,8,0),"") ->  | K3: =IFERROR(IF((LEFT(A3,1))="ض",CallPrice(J3,D3,G3/365,H3,I3,0),BSMertonPut(J3,D3,G3/365,I3,0,H3)),"") ->  | L3: اختیار خرید | M3: 1000 | N3: =VLOOKUP(B3,moamelat!A:J,10,0) -> 
A4: ضبدر3002 | B4: شبندر | C4: اختيارخ شبندر-18000-1400/03/30 | D4: 18000 | E4: 14000330 | F4: 14000327 | G4: 3 | H4: =VLOOKUP(B:B,volatility!A:C,3,0) -> 0.4038478723 | I4: 0.1 | J4: =IFERROR(VLOOKUP(B:B,moamelat!A:K,8,0),"") ->  | K4: =IFERROR(IF((LEFT(A4,1))="ض",CallPrice(J4,D4,G4/365,H4,I4,0),BSMertonPut(J4,D4,G4/365,I4,0,H4)),"") ->  | L4: اختیار خرید | M4: 1000 | N4: =VLOOKUP(B4,moamelat!A:J,10,0) -> 
A5: ضبدر3003 | B5: شبندر | C5: اختيارخ شبندر-20000-1400/03/30 | D5: 20000 | E5: 14000330 | F5: 14000327 | G5: 3 | H5: =VLOOKUP(B:B,volatility!A:C,3,0) -> 0.4038478723 | I5: 0.1 | J5: =IFERROR(VLOOKUP(B:B,moamelat!A:K,8,0),"") ->  | K5: =IFERROR(IF((LEFT(A5,1))="ض",CallPrice(J5,D5,G5/365,H5,I5,0),BSMertonPut(J5,D5,G5/365,I5,0,H5)),"") ->  | L5: اختیار خرید | M5: 1000 | N5: =VLOOKUP(B5,moamelat!A:J,10,0) -> 
A6: ضبدر3004 | B6: شبندر | C6: اختيارخ شبندر-24000-1400/03/30 | D6: 24000 | E6: 14000330 | F6: 14000327 | G6: 3 | H6: =VLOOKUP(B:B,volatility!A:C,3,0) -> 0.4038478723 | I6: 0.1 | J6: =IFERROR(VLOOKUP(B:B,moamelat!A:K,8,0),"") ->  | K6: =IFERROR(IF((LEFT(A6,1))="ض",CallPrice(J6,D6,G6/365,H6,I6,0),BSMertonPut(J6,D6,G6/365,I6,0,H6)),"") ->  | L6: اختیار خرید | M6: 1000 | N6: =VLOOKUP(B6,moamelat!A:J,10,0) -> 
A7: ضبدر3005 | B7: شبندر | C7: اختيارخ شبندر-28000-1400/03/30 | D7: 28000 | E7: 14000330 | F7: 14000327 | G7: 3 | H7: =VLOOKUP(B:B,volatility!A:C,3,0) -> 0.4038478723 | I7: 0.1 | J7: =IFERROR(VLOOKUP(B:B,moamelat!A:K,8,0),"") ->  | K7: =IFERROR(IF((LEFT(A7,1))="ض",CallPrice(J7,D7,G7/365,H7,I7,0),BSMertonPut(J7,D7,G7/365,I7,0,H7)),"") ->  | L7: اختیار خرید | M7: 1000 | N7: =VLOOKUP(B7,moamelat!A:J,10,0) -> 
A8: ضبدر3006 | B8: شبندر | C8: اختيارخ شبندر-32000-1400/03/30 | D8: 32000 | E8: 14000330 | F8: 14000327 | G8: 3 | H8: =VLOOKUP(B:B,volatility!A:C,3,0) -> 0.4038478723 | I8: 0.1 | J8: =IFERROR(VLOOKUP(B:B,moamelat!A:K,8,0),"") ->  | K8: =IFERROR(IF((LEFT(A8,1))="ض",CallPrice(J8,D8,G8/365,H8,I8,0),BSMertonPut(J8,D8,G8/365,I8,0,H8)),"") ->  | L8: اختیار خرید | M8: 1000 | N8: =VLOOKUP(B8,moamelat!A:J,10,0) -> 
A9: ضبدر3007 | B9: شبندر | C9: اختيارخ شبندر-36000-1400/03/30 | D9: 36000 | E9: 14000330 | F9: 14000327 | G9: 3 | H9: =VLOOKUP(B:B,volatility!A:C,3,0) -> 0.4038478723 | I9: 0.1 | J9: =IFERROR(VLOOKUP(B:B,moamelat!A:K,8,0),"") ->  | K9: =IFERROR(IF((LEFT(A9,1))="ض",CallPrice(J9,D9,G9/365,H9,I9,0),BSMertonPut(J9,D9,G9/365,I9,0,H9)),"") ->  | L9: اختیار خرید | M9: 1000 | N9: =VLOOKUP(B9,moamelat!A:J,10,0) -> 
A10: ضبدر3008 | B10: شبندر | C10: اختيارخ شبندر-40000-1400/03/30 | D10: 40000 | E10: 14000330 | F10: 14000327 | G10: 3 | H10: =VLOOKUP(B:B,volatility!A:C,3,0) -> 0.4038478723 | I10: 0.1 | J10: =IFERROR(VLOOKUP(B:B,moamelat!A:K,8,0),"") ->  | K10: =IFERROR(IF((LEFT(A10,1))="ض",CallPrice(J10,D10,G10/365,H10,I10,0),BSMertonPut(J10,D10,G10/365,I10,0,H10)),"") ->  | L10: اختیار خرید | M10: 1000 | N10: =VLOOKUP(B10,moamelat!A:J,10,0) -> 
A11: طبدر3000 | B11: شبندر | C11: اختيارف شبندر-14000-1400/03/30 | D11: 14000 | E11: 14000330 | F11: =Shamsi() -> 14000327 | G11: =Diff(F11,E11) -> 3 | H11: =VLOOKUP(B:B,volatility!A:C,3,0) -> 0.4038478723 | I11: 0.1 | J11: =IFERROR(VLOOKUP(B:B,moamelat!A:K,8,0),"") ->  | K11: =IFERROR(IF((LEFT(A11,1))="ض",CallPrice(J11,D11,G11/365,H11,I11,0),BSMertonPut(J11,D11,G11/365,I11,0,H11)),"") ->  | L11: =IF(LEFT(A11,1)="ض","اختیار خرید","اختیار فروش") -> اختیار فروش | M11: 1000 | N11: =VLOOKUP(B11,moamelat!A:J,10,0) -> 
A12: طبدر3001 | B12: شبندر | C12: اختيارف شبندر-16000-1400/03/30 | D12: 16000 | E12: 14000330 | F12: 14000327 | G12: 3 | H12: =VLOOKUP(B:B,volatility!A:C,3,0) -> 0.4038478723 | I12: 0.1 | J12: =IFERROR(VLOOKUP(B:B,moamelat!A:K,8,0),"") ->  | K12: =IFERROR(IF((LEFT(A12,1))="ض",CallPrice(J12,D12,G12/365,H12,I12,0),BSMertonPut(J12,D12,G12/365,I12,0,H12)),"") ->  | L12: اختیار فروش | M12: 1000 | N12: =VLOOKUP(B12,moamelat!A:J,10,0) -> 
A13: طبدر3002 | B13: شبندر | C13: اختيارف شبندر-18000-1400/03/30 | D13: 18000 | E13: 14000330 | F13: 14000327 | G13: 3 | H13: =VLOOKUP(B:B,volatility!A:C,3,0) -> 0.4038478723 | I13: 0.1 | J13: =IFERROR(VLOOKUP(B:B,moamelat!A:K,8,0),"") ->  | K13: =IFERROR(IF((LEFT(A13,1))="ض",CallPrice(J13,D13,G13/365,H13,I13,0),BSMertonPut(J13,D13,G13/365,I13,0,H13)),"") ->  | L13: اختیار فروش | M13: 1000 | N13: =VLOOKUP(B13,moamelat!A:J,10,0) -> 
A14: طبدر3003 | B14: شبندر | C14: اختيارف شبندر-20000-1400/03/30 | D14: 20000 | E14: 14000330 | F14: 14000327 | G14: 3 | H14: =VLOOKUP(B:B,volatility!A:C,3,0) -> 0.4038478723 | I14: 0.1 | J14: =IFERROR(VLOOKUP(B:B,moamelat!A:K,8,0),"") ->  | K14: =IFERROR(IF((LEFT(A14,1))="ض",CallPrice(J14,D14,G14/365,H14,I14,0),BSMertonPut(J14,D14,G14/365,I14,0,H14)),"") ->  | L14: اختیار فروش | M14: 1000 | N14: =VLOOKUP(B14,moamelat!A:J,10,0) -> 
A15: طبدر3004 | B15: شبندر | C15: اختيارف شبندر-24000-1400/03/30 | D15: 24000 | E15: 14000330 | F15: 14000327 | G15: 3 | H15: =VLOOKUP(B:B,volatility!A:C,3,0) -> 0.4038478723 | I15: 0.1 | J15: =IFERROR(VLOOKUP(B:B,moamelat!A:K,8,0),"") ->  | K15: =IFERROR(IF((LEFT(A15,1))="ض",CallPrice(J15,D15,G15/365,H15,I15,0),BSMertonPut(J15,D15,G15/365,I15,0,H15)),"") ->  | L15: اختیار فروش | M15: 1000 | N15: =VLOOKUP(B15,moamelat!A:J,10,0) -> 
A16: طبدر3005 | B16: شبندر | C16: اختيارف شبندر-28000-1400/03/30 | D16: 28000 | E16: 14000330 | F16: 14000327 | G16: 3 | H16: =VLOOKUP(B:B,volatility!A:C,3,0) -> 0.4038478723 | I16: 0.1 | J16: =IFERROR(VLOOKUP(B:B,moamelat!A:K,8,0),"") ->  | K16: =IFERROR(IF((LEFT(A16,1))="ض",CallPrice(J16,D16,G16/365,H16,I16,0),BSMertonPut(J16,D16,G16/365,I16,0,H16)),"") ->  | L16: اختیار فروش | M16: 1000 | N16: =VLOOKUP(B16,moamelat!A:J,10,0) -> 
A17: طبدر3006 | B17: شبندر | C17: اختيارف شبندر-32000-1400/03/30 | D17: 32000 | E17: 14000330 | F17: 14000327 | G17: 3 | H17: =VLOOKUP(B:B,volatility!A:C,3,0) -> 0.4038478723 | I17: 0.1 | J17: =IFERROR(VLOOKUP(B:B,moamelat!A:K,8,0),"") ->  | K17: =IFERROR(IF((LEFT(A17,1))="ض",CallPrice(J17,D17,G17/365,H17,I17,0),BSMertonPut(J17,D17,G17/365,I17,0,H17)),"") ->  | L17: اختیار فروش | M17: 1000 | N17: =VLOOKUP(B17,moamelat!A:J,10,0) -> 
A18: طبدر3007 | B18: شبندر | C18: اختيارف شبندر-36000-1400/03/30 | D18: 36000 | E18: 14000330 | F18: 14000327 | G18: 3 | H18: =VLOOKUP(B:B,volatility!A:C,3,0) -> 0.4038478723 | I18: 0.1 | J18: =IFERROR(VLOOKUP(B:B,moamelat!A:K,8,0),"") ->  | K18: =IFERROR(IF((LEFT(A18,1))="ض",CallPrice(J18,D18,G18/365,H18,I18,0),BSMertonPut(J18,D18,G18/365,I18,0,H18)),"") ->  | L18: اختیار فروش | M18: 1000 | N18: =VLOOKUP(B18,moamelat!A:J,10,0) -> 
A19: طبدر3008 | B19: شبندر | C19: اختيارف شبندر-40000-1400/03/30 | D19: 40000 | E19: 14000330 | F19: 14000327 | G19: 3 | H19: =VLOOKUP(B:B,volatility!A:C,3,0) -> 0.4038478723 | I19: 0.1 | J19: =IFERROR(VLOOKUP(B:B,moamelat!A:K,8,0),"") ->  | K19: =IFERROR(IF((LEFT(A19,1))="ض",CallPrice(J19,D19,G19/365,H19,I19,0),BSMertonPut(J19,D19,G19/365,I19,0,H19)),"") ->  | L19: اختیار فروش | M19: 1000 | N19: =VLOOKUP(B19,moamelat!A:J,10,0) -> 
A20: ضملي7000 | B20: فملي | C20: اختيارخ فملي-8000-1400/07/11 | D20: 8000 | E20: 14000711 | F20: =Shamsi() -> 14000327 | G20: =Diff(F20,E20) -> 108 | H20: =VLOOKUP(B:B,volatility!A:C,3,0) -> 0.3866872211 | I20: =$O$2 -> 0.1 | J20: =IFERROR(VLOOKUP(B:B,moamelat!A:K,8,0),"") -> 11950 | K20: =IFERROR(IF((LEFT(A20,1))="ض",CallPrice(J20,D20,G20/365,H20,I20,0),BSMertonPut(J20,D20,G20/365,I20,0,H20)),"") -> 4198.274232 | L20: =IF(LEFT(A20,1)="ض","اختیار خرید","اختیار فروش") -> اختیار خرید | M20: 1000 | N20: =VLOOKUP(B20,moamelat!A:J,10,0) -> -1.65
A21: ضملي7001 | B21: فملي | C21: اختيارخ فملي-9000-1400/07/11 | D21: 9000 | E21: 14000711 | F21: 14000327 | G21: 108 | H21: =VLOOKUP(B:B,volatility!A:C,3,0) -> 0.3866872211 | I21: 0.1 | J21: =IFERROR(VLOOKUP(B:B,moamelat!A:K,8,0),"") -> 11950 | K21: =IFERROR(IF((LEFT(A21,1))="ض",CallPrice(J21,D21,G21/365,H21,I21,0),BSMertonPut(J21,D21,G21/365,I21,0,H21)),"") -> 3276.801287 | L21: اختیار خرید | M21: 1000 | N21: =VLOOKUP(B21,moamelat!A:J,10,0) -> -1.65
A22: ضملي7002 | B22: فملي | C22: اختيارخ فملي-10000-1400/07/11 | D22: 10000 | E22: 14000711 | F22: 14000327 | G22: 108 | H22: =VLOOKUP(B:B,volatility!A:C,3,0) -> 0.3866872211 | I22: 0.1 | J22: =IFERROR(VLOOKUP(B:B,moamelat!A:K,8,0),"") -> 11950 | K22: =IFERROR(IF((LEFT(A22,1))="ض",CallPrice(J22,D22,G22/365,H22,I22,0),BSMertonPut(J22,D22,G22/365,I22,0,H22)),"") -> 2434.13761 | L22: اختیار خرید | M22: 1000 | N22: =VLOOKUP(B22,moamelat!A:J,10,0) -> -1.65
A23: ضملي7003 | B23: فملي | C23: اختيارخ فملي-12000-1400/07/11 | D23: 12000 | E23: 14000711 | F23: 14000327 | G23: 108 | H23: =VLOOKUP(B:B,volatility!A:C,3,0) -> 0.3866872211 | I23: 0.1 | J23: =IFERROR(VLOOKUP(B:B,moamelat!A:K,8,0),"") -> 11950 | K23: =IFERROR(IF((LEFT(A23,1))="ض",CallPrice(J23,D23,G23/365,H23,I23,0),BSMertonPut(J23,D23,G23/365,I23,0,H23)),"") -> 1145.482097 | L23: اختیار خرید | M23: 1000 | N23: =VLOOKUP(B23,moamelat!A:J,10,0) -> -1.65
A24: ضملي7004 | B24: فملي | C24: اختيارخ فملي-14000-1400/07/11 | D24: 14000 | E24: 14000711 | F24: 14000327 | G24: 108 | H24: =VLOOKUP(B:B,volatility!A:C,3,0) -> 0.3866872211 | I24: 0.1 | J24: =IFERROR(VLOOKUP(B:B,moamelat!A:K,8,0),"") -> 11950 | K24: =IFERROR(IF((LEFT(A24,1))="ض",CallPrice(J24,D24,G24/365,H24,I24,0),BSMertonPut(J24,D24,G24/365,I24,0,H24)),"") -> 442.0492574 | L24: اختیار خرید | M24: 1000 | N24: =VLOOKUP(B24,moamelat!A:J,10,0) -> -1.65
A25: ضملي7005 | B25: فملي | C25: اختيارخ فملي-16000-1400/07/11 | D25: 16000 | E25: 14000711 | F25: 14000327 | G25: 108 | H25: =VLOOKUP(B:B,volatility!A:C,3,0) -> 0.3866872211 | I25: 0.1 | J25: =IFERROR(VLOOKUP(B:B,moamelat!A:K,8,0),"") -> 11950 | K25: =IFERROR(IF((LEFT(A25,1))="ض",CallPrice(J25,D25,G25/365,H25,I25,0),BSMertonPut(J25,D25,G25/365,I25,0,H25)),"") -> 145.3725063 | L25: اختیار خرید | M25: 1000 | N25: =VLOOKUP(B25,moamelat!A:J,10,0) -> -1.65
A26: ضملي7006 | B26: فملي | C26: اختيارخ فملي-18000-1400/07/11 | D26: 18000 | E26: 14000711 | F26: 14000327 | G26: 108 | H26: =VLOOKUP(B:B,volatility!A:C,3,0) -> 0.3866872211 | I26: 0.1 | J26: =IFERROR(VLOOKUP(B:B,moamelat!A:K,8,0),"") -> 11950 | K26: =IFERROR(IF((LEFT(A26,1))="ض",CallPrice(J26,D26,G26/365,H26,I26,0),BSMertonPut(J26,D26,G26/365,I26,0,H26)),"") -> 42.47227734 | L26: اختیار خرید | M26: 1000 | N26: =VLOOKUP(B26,moamelat!A:J,10,0) -> -1.65
A27: ضملي7007 | B27: فملي | C27: اختيارخ فملي-20000-1400/07/11 | D27: 20000 | E27: 14000711 | F27: 14000327 | G27: 108 | H27: =VLOOKUP(B:B,volatility!A:C,3,0) -> 0.3866872211 | I27: 0.1 | J27: =IFERROR(VLOOKUP(B:B,moamelat!A:K,8,0),"") -> 11950 | K27: =IFERROR(IF((LEFT(A27,1))="ض",CallPrice(J27,D27,G27/365,H27,I27,0),BSMertonPut(J27,D27,G27/365,I27,0,H27)),"") -> 11.41730105 | L27: اختیار خرید | M27: 1000 | N27: =VLOOKUP(B27,moamelat!A:J,10,0) -> -1.65
A28: ضچاد7030 | B28: كچاد | C28: اختيارخ كچاد-14000-1400/07/04 | D28: 14000 | E28: 14000704 | F28: 14000327 | G28: 101 | H28: =VLOOKUP(B:B,volatility!A:C,3,0) -> 0.3096173598 | I28: 0.1 | J28: =IFERROR(VLOOKUP(B:B,moamelat!A:K,8,0),"") -> 23130 | K28: =IFERROR(IF((LEFT(A28,1))="ض",CallPrice(J28,D28,G28/365,H28,I28,0),BSMertonPut(J28,D28,G28/365,I28,0,H28)),"") -> 9512.525256 | L28: اختیار خرید | M28: 1000 | N28: =VLOOKUP(B28,moamelat!A:J,10,0) -> -0.56
A29: ضچاد7031 | B29: كچاد | C29: اختيارخ كچاد-16000-1400/07/04 | D29: 16000 | E29: 14000704 | F29: 14000327 | G29: 101 | H29: =VLOOKUP(B:B,volatility!A:C,3,0) -> 0.3096173598 | I29: 0.1 | J29: =IFERROR(VLOOKUP(B:B,moamelat!A:K,8,0),"") -> 23130 | K29: =IFERROR(IF((LEFT(A29,1))="ض",CallPrice(J29,D29,G29/365,H29,I29,0),BSMertonPut(J29,D29,G29/365,I29,0,H29)),"") -> 7574.263609 | L29: اختیار خرید | M29: 1000 | N29: =VLOOKUP(B29,moamelat!A:J,10,0) -> -0.56
A30: ضچاد7032 | B30: كچاد | C30: اختيارخ كچاد-18000-1400/07/04 | D30: 18000 | E30: 14000704 | F30: 14000327 | G30: 101 | H30: =VLOOKUP(B:B,volatility!A:C,3,0) -> 0.3096173598 | I30: 0.1 | J30: =IFERROR(VLOOKUP(B:B,moamelat!A:K,8,0),"") -> 23130 | K30: =IFERROR(IF((LEFT(A30,1))="ض",CallPrice(J30,D30,G30/365,H30,I30,0),BSMertonPut(J30,D30,G30/365,I30,0,H30)),"") -> 5679.670189 | L30: اختیار خرید | M30: 1000 | N30: =VLOOKUP(B30,moamelat!A:J,10,0) -> -0.56
A31: ضچاد7033 | B31: كچاد | C31: اختيارخ كچاد-20000-1400/07/04 | D31: 20000 | E31: 14000704 | F31: 14000327 | G31: 101 | H31: =VLOOKUP(B:B,volatility!A:C,3,0) -> 0.3096173598 | I31: 0.1 | J31: =IFERROR(VLOOKUP(B:B,moamelat!A:K,8,0),"") -> 23130 | K31: =IFERROR(IF((LEFT(A31,1))="ض",CallPrice(J31,D31,G31/365,H31,I31,0),BSMertonPut(J31,D31,G31/365,I31,0,H31)),"") -> 3930.413238 | L31: اختیار خرید | M31: 1000 | N31: =VLOOKUP(B31,moamelat!A:J,10,0) -> -0.56
A32: ضچاد7034 | B32: كچاد | C32: اختيارخ كچاد-24000-1400/07/04 | D32: 24000 | E32: 14000704 | F32: 14000327 | G32: 101 | H32: =VLOOKUP(B:B,volatility!A:C,3,0) -> 0.3096173598 | I32: 0.1 | J32: =IFERROR(VLOOKUP(B:B,moamelat!A:K,8,0),"") -> 23130 | K32: =IFERROR(IF((LEFT(A32,1))="ض",CallPrice(J32,D32,G32/365,H32,I32,0),BSMertonPut(J32,D32,G32/365,I32,0,H32)),"") -> 1403.130986 | L32: اختیار خرید | M32: 1000 | N32: =VLOOKUP(B32,moamelat!A:J,10,0) -> -0.56
A33: ضچاد7035 | B33: كچاد | C33: اختيارخ كچاد-28000-1400/07/04 | D33: 28000 | E33: 14000704 | F33: 14000327 | G33: 101 | H33: =VLOOKUP(B:B,volatility!A:C,3,0) -> 0.3096173598 | I33: 0.1 | J33: =IFERROR(VLOOKUP(B:B,moamelat!A:K,8,0),"") -> 23130 | K33: =IFERROR(IF((LEFT(A33,1))="ض",CallPrice(J33,D33,G33/365,H33,I33,0),BSMertonPut(J33,D33,G33/365,I33,0,H33)),"") -> 337.7523021 | L33: اختیار خرید | M33: 1000 | N33: =VLOOKUP(B33,moamelat!A:J,10,0) -> -0.56
A34: ضچاد7036 | B34: كچاد | C34: اختيارخ كچاد-32000-1400/07/04 | D34: 32000 | E34: 14000704 | F34: 14000327 | G34: 101 | H34: =VLOOKUP(B:B,volatility!A:C,3,0) -> 0.3096173598 | I34: 0.1 | J34: =IFERROR(VLOOKUP(B:B,moamelat!A:K,8,0),"") -> 23130 | K34: =IFERROR(IF((LEFT(A34,1))="ض",CallPrice(J34,D34,G34/365,H34,I34,0),BSMertonPut(J34,D34,G34/365,I34,0,H34)),"") -> 58.69400399 | L34: اختیار خرید | M34: 1000 | N34: =VLOOKUP(B34,moamelat!A:J,10,0) -> -0.56
A35: ضچاد7037 | B35: كچاد | C35: اختيارخ كچاد-36000-1400/07/04 | D35: 36000 | E35: 14000704 | F35: 14000327 | G35: 101 | H35: =VLOOKUP(B:B,volatility!A:C,3,0) -> 0.3096173598 | I35: 0.1 | J35: =IFERROR(VLOOKUP(B:B,moamelat!A:K,8,0),"") -> 23130 | K35: =IFERROR(IF((LEFT(A35,1))="ض",CallPrice(J35,D35,G35/365,H35,I35,0),BSMertonPut(J35,D35,G35/365,I35,0,H35)),"") -> 8.018071327 | L35: اختیار خرید | M35: 1000 | N35: =VLOOKUP(B35,moamelat!A:J,10,0) -> -0.56
A36: طملي7000 | B36: فملي | C36: اختيارف فملي-8000-1400/07/11 | D36: 8000 | E36: 14000711 | F36: 14000327 | G36: 108 | H36: =VLOOKUP(B:B,volatility!A:C,3,0) -> 0.3866872211 | I36: 0.1 | J36: =IFERROR(VLOOKUP(B:B,moamelat!A:K,8,0),"") -> 11950 | K36: =IFERROR(IF((LEFT(A36,1))="ض",CallPrice(J36,D36,G36/365,H36,I36,0),BSMertonPut(J36,D36,G36/365,I36,0,H36)),"") -> 15.02966157 | L36: اختیار فروش | M36: 1000 | N36: =VLOOKUP(B36,moamelat!A:J,10,0) -> -1.65
A37: طملي7001 | B37: فملي | C37: اختيارف فملي-9000-1400/07/11 | D37: 9000 | E37: 14000711 | F37: 14000327 | G37: 108 | H37: =VLOOKUP(B:B,volatility!A:C,3,0) -> 0.3866872211 | I37: 0.1 | J37: =IFERROR(VLOOKUP(B:B,moamelat!A:K,8,0),"") -> 11950 | K37: =IFERROR(IF((LEFT(A37,1))="ض",CallPrice(J37,D37,G37/365,H37,I37,0),BSMertonPut(J37,D37,G37/365,I37,0,H37)),"") -> 64.40114527 | L37: اختیار فروش | M37: 1000 | N37: =VLOOKUP(B37,moamelat!A:J,10,0) -> -1.65
A38: طملي7002 | B38: فملي | C38: اختيارف فملي-10000-1400/07/11 | D38: 10000 | E38: 14000711 | F38: 14000327 | G38: 108 | H38: =VLOOKUP(B:B,volatility!A:C,3,0) -> 0.3866872211 | I38: 0.1 | J38: =IFERROR(VLOOKUP(B:B,moamelat!A:K,8,0),"") -> 11950 | K38: =IFERROR(IF((LEFT(A38,1))="ض",CallPrice(J38,D38,G38/365,H38,I38,0),BSMertonPut(J38,D38,G38/365,I38,0,H38)),"") -> 192.5818973 | L38: اختیار فروش | M38: 1000 | N38: =VLOOKUP(B38,moamelat!A:J,10,0) -> -1.65
A39: طملي7003 | B39: فملي | C39: اختيارف فملي-12000-1400/07/11 | D39: 12000 | E39: 14000711 | F39: 14000327 | G39: 108 | H39: =VLOOKUP(B:B,volatility!A:C,3,0) -> 0.3866872211 | I39: 0.1 | J39: =IFERROR(VLOOKUP(B:B,moamelat!A:K,8,0),"") -> 11950 | K39: =IFERROR(IF((LEFT(A39,1))="ض",CallPrice(J39,D39,G39/365,H39,I39,0),BSMertonPut(J39,D39,G39/365,I39,0,H39)),"") -> 845.615242 | L39: اختیار فروش | M39: 1000 | N39: =VLOOKUP(B39,moamelat!A:J,10,0) -> -1.65
A40: طملي7004 | B40: فملي | C40: اختيارف فملي-14000-1400/07/11 | D40: 14000 | E40: 14000711 | F40: 14000327 | G40: 108 | H40: =VLOOKUP(B:B,volatility!A:C,3,0) -> 0.3866872211 | I40: 0.1 | J40: =IFERROR(VLOOKUP(B:B,moamelat!A:K,8,0),"") -> 11950 | K40: =IFERROR(IF((LEFT(A40,1))="ض",CallPrice(J40,D40,G40/365,H40,I40,0),BSMertonPut(J40,D40,G40/365,I40,0,H40)),"") -> 2083.87126 | L40: اختیار فروش | M40: 1000 | N40: =VLOOKUP(B40,moamelat!A:J,10,0) -> -1.65
A41: طملي7005 | B41: فملي | C41: اختيارف فملي-16000-1400/07/11 | D41: 16000 | E41: 14000711 | F41: 14000327 | G41: 108 | H41: =VLOOKUP(B:B,volatility!A:C,3,0) -> 0.3866872211 | I41: 0.1 | J41: =IFERROR(VLOOKUP(B:B,moamelat!A:K,8,0),"") -> 11950 | K41: =IFERROR(IF((LEFT(A41,1))="ض",CallPrice(J41,D41,G41/365,H41,I41,0),BSMertonPut(J41,D41,G41/365,I41,0,H41)),"") -> 3728.883366 | L41: اختیار فروش | M41: 1000 | N41: =VLOOKUP(B41,moamelat!A:J,10,0) -> -1.65
A42: طملي7006 | B42: فملي | C42: اختيارف فملي-18000-1400/07/11 | D42: 18000 | E42: 14000711 | F42: 14000327 | G42: 108 | H42: =VLOOKUP(B:B,volatility!A:C,3,0) -> 0.3866872211 | I42: 0.1 | J42: =IFERROR(VLOOKUP(B:B,moamelat!A:K,8,0),"") -> 11950 | K42: =IFERROR(IF((LEFT(A42,1))="ض",CallPrice(J42,D42,G42/365,H42,I42,0),BSMertonPut(J42,D42,G42/365,I42,0,H42)),"") -> 5567.671995 | L42: اختیار فروش | M42: 1000 | N42: =VLOOKUP(B42,moamelat!A:J,10,0) -> -1.65
A43: طملي7007 | B43: فملي | C43: اختيارف فملي-20000-1400/07/11 | D43: 20000 | E43: 14000711 | F43: 14000327 | G43: 108 | H43: =VLOOKUP(B:B,volatility!A:C,3,0) -> 0.3866872211 | I43: 0.1 | J43: =IFERROR(VLOOKUP(B:B,moamelat!A:K,8,0),"") -> 11950 | K43: =IFERROR(IF((LEFT(A43,1))="ض",CallPrice(J43,D43,G43/365,H43,I43,0),BSMertonPut(J43,D43,G43/365,I43,0,H43)),"") -> 7478.305876 | L43: اختیار فروش | M43: 1000 | N43: =VLOOKUP(B43,moamelat!A:J,10,0) -> -1.65
A44: طچاد7030 | B44: كچاد | C44: اختيارف كچاد-14000-1400/07/04 | D44: 14000 | E44: 14000704 | F44: =Shamsi() -> 14000327 | G44: 101 | H44: =VLOOKUP(B:B,volatility!A:C,3,0) -> 0.3096173598 | I44: 0.1 | J44: =IFERROR(VLOOKUP(B:B,moamelat!A:K,8,0),"") -> 23130 | K44: =IFERROR(IF((LEFT(A44,1))="ض",CallPrice(J44,D44,G44/365,H44,I44,0),BSMertonPut(J44,D44,G44/365,I44,0,H44)),"") -> 0.438777757 | L44: اختیار فروش | M44: 1000 | N44: =VLOOKUP(B44,moamelat!A:J,10,0) -> -0.56
A45: طچاد7031 | B45: كچاد | C45: اختيارف كچاد-16000-1400/07/04 | D45: 16000 | E45: 14000704 | F45: 14000327 | G45: 101 | H45: =VLOOKUP(B:B,volatility!A:C,3,0) -> 0.3096173598 | I45: 0.1 | J45: =IFERROR(VLOOKUP(B:B,moamelat!A:K,8,0),"") -> 23130 | K45: =IFERROR(IF((LEFT(A45,1))="ض",CallPrice(J45,D45,G45/365,H45,I45,0),BSMertonPut(J45,D45,G45/365,I45,0,H45)),"") -> 7.593347951 | L45: اختیار فروش | M45: 1000 | N45: =VLOOKUP(B45,moamelat!A:J,10,0) -> -0.56
A46: طچاد7032 | B46: كچاد | C46: اختيارف كچاد-18000-1400/07/04 | D46: 18000 | E46: 14000704 | F46: 14000327 | G46: 101 | H46: =VLOOKUP(B:B,volatility!A:C,3,0) -> 0.3096173598 | I46: 0.1 | J46: =IFERROR(VLOOKUP(B:B,moamelat!A:K,8,0),"") -> 23130 | K46: =IFERROR(IF((LEFT(A46,1))="ض",CallPrice(J46,D46,G46/365,H46,I46,0),BSMertonPut(J46,D46,G46/365,I46,0,H46)),"") -> 58.41614531 | L46: اختیار فروش | M46: 1000 | N46: =VLOOKUP(B46,moamelat!A:J,10,0) -> -0.56
A47: طچاد7033 | B47: كچاد | C47: اختيارف كچاد-20000-1400/07/04 | D47: 20000 | E47: 14000704 | F47: 14000327 | G47: 101 | H47: =VLOOKUP(B:B,volatility!A:C,3,0) -> 0.3096173598 | I47: 0.1 | J47: =IFERROR(VLOOKUP(B:B,moamelat!A:K,8,0),"") -> 23130 | K47: =IFERROR(IF((LEFT(A47,1))="ض",CallPrice(J47,D47,G47/365,H47,I47,0),BSMertonPut(J47,D47,G47/365,I47,0,H47)),"") -> 254.5754114 | L47: اختیار فروش | M47: 1000 | N47: =VLOOKUP(B47,moamelat!A:J,10,0) -> -0.56
A48: طچاد7034 | B48: كچاد | C48: اختيارف كچاد-24000-1400/07/04 | D48: 24000 | E48: 14000704 | F48: 14000327 | G48: 101 | H48: =VLOOKUP(B:B,volatility!A:C,3,0) -> 0.3096173598 | I48: 0.1 | J48: =IFERROR(VLOOKUP(B:B,moamelat!A:K,8,0),"") -> 23130 | K48: =IFERROR(IF((LEFT(A48,1))="ض",CallPrice(J48,D48,G48/365,H48,I48,0),BSMertonPut(J48,D48,G48/365,I48,0,H48)),"") -> 1618.125594 | L48: اختیار فروش | M48: 1000 | N48: =VLOOKUP(B48,moamelat!A:J,10,0) -> -0.56
A49: طچاد7035 | B49: كچاد | C49: اختيارف كچاد-28000-1400/07/04 | D49: 28000 | E49: 14000704 | F49: 14000327 | G49: 101 | H49: =VLOOKUP(B:B,volatility!A:C,3,0) -> 0.3096173598 | I49: 0.1 | J49: =IFERROR(VLOOKUP(B:B,moamelat!A:K,8,0),"") -> 23130 | K49: =IFERROR(IF((LEFT(A49,1))="ض",CallPrice(J49,D49,G49/365,H49,I49,0),BSMertonPut(J49,D49,G49/365,I49,0,H49)),"") -> 4443.579345 | L49: اختیار فروش | M49: 1000 | N49: =VLOOKUP(B49,moamelat!A:J,10,0) -> -0.56
A50: طچاد7036 | B50: كچاد | C50: اختيارف كچاد-32000-1400/07/04 | D50: 32000 | E50: 14000704 | F50: 14000327 | G50: 101 | H50: =VLOOKUP(B:B,volatility!A:C,3,0) -> 0.3096173598 | I50: 0.1 | J50: =IFERROR(VLOOKUP(B:B,moamelat!A:K,8,0),"") -> 23130 | K50: =IFERROR(IF((LEFT(A50,1))="ض",CallPrice(J50,D50,G50/365,H50,I50,0),BSMertonPut(J50,D50,G50/365,I50,0,H50)),"") -> 8055.353482 | L50: اختیار فروش | M50: 1000 | N50: =VLOOKUP(B50,moamelat!A:J,10,0) -> -0.56
A51: طچاد7037 | B51: كچاد | C51: اختيارف كچاد-36000-1400/07/04 | D51: 36000 | E51: 14000704 | F51: 14000327 | G51: 101 | H51: =VLOOKUP(B:B,volatility!A:C,3,0) -> 0.3096173598 | I51: 0.1 | J51: =IFERROR(VLOOKUP(B:B,moamelat!A:K,8,0),"") -> 23130 | K51: =IFERROR(IF((LEFT(A51,1))="ض",CallPrice(J51,D51,G51/365,H51,I51,0),BSMertonPut(J51,D51,G51/365,I51,0,H51)),"") -> 11895.50998 | L51: اختیار فروش | M51: 1000 | N51: =VLOOKUP(B51,moamelat!A:J,10,0) -> -0.56
A52: ضپنا8000 | B52: رمپنا | C52: اختيارخ رمپنا-10000-1400/08/05 | D52: 10000 | E52: 14000805 | F52: 14000327 | G52: =Diff(F52,E52) -> 132 | H52: =VLOOKUP(B:B,volatility!A:C,3,0) -> 0.3320959658 | I52: 0.1 | J52: =IFERROR(VLOOKUP(B:B,moamelat!A:K,8,0),"") -> 12010 | K52: =IFERROR(IF((LEFT(A52,1))="ض",CallPrice(J52,D52,G52/365,H52,I52,0),BSMertonPut(J52,D52,G52/365,I52,0,H52)),"") -> 2512.725698 | L52: =IF(LEFT(A52,1)="ض","اختیار خرید","اختیار فروش") -> اختیار خرید | M52: 1000 | N52: =VLOOKUP(B52,moamelat!A:J,10,0) -> -1.07
A53: ضپنا8001 | B53: رمپنا | C53: اختيارخ رمپنا-12000-1400/08/05 | D53: 12000 | E53: 14000805 | F53: 14000327 | G53: 132 | H53: =VLOOKUP(B:B,volatility!A:C,3,0) -> 0.3320959658 | I53: 0.1 | J53: =IFERROR(VLOOKUP(B:B,moamelat!A:K,8,0),"") -> 12010 | K53: =IFERROR(IF((LEFT(A53,1))="ض",CallPrice(J53,D53,G53/365,H53,I53,0),BSMertonPut(J53,D53,G53/365,I53,0,H53)),"") -> 1172.045591 | L53: اختیار خرید | M53: 1000 | N53: =VLOOKUP(B53,moamelat!A:J,10,0) -> -1.07
A54: ضپنا8002 | B54: رمپنا | C54: اختيارخ رمپنا-14000-1400/08/05 | D54: 14000 | E54: 14000805 | F54: 14000327 | G54: 132 | H54: =VLOOKUP(B:B,volatility!A:C,3,0) -> 0.3320959658 | I54: 0.1 | J54: =IFERROR(VLOOKUP(B:B,moamelat!A:K,8,0),"") -> 12010 | K54: =IFERROR(IF((LEFT(A54,1))="ض",CallPrice(J54,D54,G54/365,H54,I54,0),BSMertonPut(J54,D54,G54/365,I54,0,H54)),"") -> 437.2222132 | L54: اختیار خرید | M54: 1000 | N54: =VLOOKUP(B54,moamelat!A:J,10,0) -> -1.07
A55: ضپنا8003 | B55: رمپنا | C55: اختيارخ رمپنا-16000-1400/08/05 | D55: 16000 | E55: 14000805 | F55: 14000327 | G55: 132 | H55: =VLOOKUP(B:B,volatility!A:C,3,0) -> 0.3320959658 | I55: 0.1 | J55: =IFERROR(VLOOKUP(B:B,moamelat!A:K,8,0),"") -> 12010 | K55: =IFERROR(IF((LEFT(A55,1))="ض",CallPrice(J55,D55,G55/365,H55,I55,0),BSMertonPut(J55,D55,G55/365,I55,0,H55)),"") -> 135.5786448 | L55: اختیار خرید | M55: 1000 | N55: =VLOOKUP(B55,moamelat!A:J,10,0) -> -1.07
A56: ضپنا8004 | B56: رمپنا | C56: اختيارخ رمپنا-18000-1400/08/05 | D56: 18000 | E56: 14000805 | F56: 14000327 | G56: 132 | H56: =VLOOKUP(B:B,volatility!A:C,3,0) -> 0.3320959658 | I56: 0.1 | J56: =IFERROR(VLOOKUP(B:B,moamelat!A:K,8,0),"") -> 12010 | K56: =IFERROR(IF((LEFT(A56,1))="ض",CallPrice(J56,D56,G56/365,H56,I56,0),BSMertonPut(J56,D56,G56/365,I56,0,H56)),"") -> 36.58897262 | L56: اختیار خرید | M56: 1000 | N56: =VLOOKUP(B56,moamelat!A:J,10,0) -> -1.07
A57: ضپنا8005 | B57: رمپنا | C57: اختيارخ رمپنا-20000-1400/08/05 | D57: 20000 | E57: 14000805 | F57: 14000327 | G57: 132 | H57: =VLOOKUP(B:B,volatility!A:C,3,0) -> 0.3320959658 | I57: 0.1 | J57: =IFERROR(VLOOKUP(B:B,moamelat!A:K,8,0),"") -> 12010 | K57: =IFERROR(IF((LEFT(A57,1))="ض",CallPrice(J57,D57,G57/365,H57,I57,0),BSMertonPut(J57,D57,G57/365,I57,0,H57)),"") -> 8.942774445 | L57: اختیار خرید | M57: 1000 | N57: =VLOOKUP(B57,moamelat!A:J,10,0) -> -1.07
A58: ضپنا8006 | B58: رمپنا | C58: اختيارخ رمپنا-24000-1400/08/05 | D58: 24000 | E58: 14000805 | F58: 14000327 | G58: 132 | H58: =VLOOKUP(B:B,volatility!A:C,3,0) -> 0.3320959658 | I58: 0.1 | J58: =IFERROR(VLOOKUP(B:B,moamelat!A:K,8,0),"") -> 12010 | K58: =IFERROR(IF((LEFT(A58,1))="ض",CallPrice(J58,D58,G58/365,H58,I58,0),BSMertonPut(J58,D58,G58/365,I58,0,H58)),"") -> 0.44581617 | L58: اختیار خرید | M58: 1000 | N58: =VLOOKUP(B58,moamelat!A:J,10,0) -> -1.07
A59: ضپنا8007 | B59: رمپنا | C59: اختيارخ رمپنا-28000-1400/08/05 | D59: 28000 | E59: 14000805 | F59: 14000327 | G59: 132 | H59: =VLOOKUP(B:B,volatility!A:C,3,0) -> 0.3320959658 | I59: 0.1 | J59: =IFERROR(VLOOKUP(B:B,moamelat!A:K,8,0),"") -> 12010 | K59: =IFERROR(IF((LEFT(A59,1))="ض",CallPrice(J59,D59,G59/365,H59,I59,0),BSMertonPut(J59,D59,G59/365,I59,0,H59)),"") -> 0.01981071635 | L59: اختیار خرید | M59: 1000 | N59: =VLOOKUP(B59,moamelat!A:J,10,0) -> -1.07
A60: ضپنا8008 | B60: رمپنا | C60: اختيارخ رمپنا-32000-1400/08/05 | D60: 32000 | E60: 14000805 | F60: 14000327 | G60: 132 | H60: =VLOOKUP(B:B,volatility!A:C,3,0) -> 0.3320959658 | I60: 0.1 | J60: =IFERROR(VLOOKUP(B:B,moamelat!A:K,8,0),"") -> 12010 | K60: =IFERROR(IF((LEFT(A60,1))="ض",CallPrice(J60,D60,G60/365,H60,I60,0),BSMertonPut(J60,D60,G60/365,I60,0,H60)),"") -> 0.0008585098173 | L60: اختیار خرید | M60: 1000 | N60: =VLOOKUP(B60,moamelat!A:J,10,0) -> -1.07
A61: ضخود7072 | B61: خودرو | C61: اختيارخ خودرو-1400-1400/07/07 | D61: 1400 | E61: 14000707 | F61: 14000327 | G61: 104 | H61: =VLOOKUP(B:B,volatility!A:C,3,0) -> 0.4059111695 | I61: 0.1 | J61: =IFERROR(VLOOKUP(B:B,moamelat!A:K,8,0),"") -> 2034 | K61: =IFERROR(IF((LEFT(A61,1))="ض",CallPrice(J61,D61,G61/365,H61,I61,0),BSMertonPut(J61,D61,G61/365,I61,0,H61)),"") -> 677.7770827 | L61: اختیار خرید | M61: 1000 | N61: =VLOOKUP(B61,moamelat!A:J,10,0) -> -2.35
A62: ضخود7073 | B62: خودرو | C62: اختيارخ خودرو-1600-1400/07/07 | D62: 1600 | E62: 14000707 | F62: 14000327 | G62: 104 | H62: =VLOOKUP(B:B,volatility!A:C,3,0) -> 0.4059111695 | I62: 0.1 | J62: =IFERROR(VLOOKUP(B:B,moamelat!A:K,8,0),"") -> 2034 | K62: =IFERROR(IF((LEFT(A62,1))="ض",CallPrice(J62,D62,G62/365,H62,I62,0),BSMertonPut(J62,D62,G62/365,I62,0,H62)),"") -> 498.8043804 | L62: اختیار خرید | M62: 1000 | N62: =VLOOKUP(B62,moamelat!A:J,10,0) -> -2.35
A63: ضخود7074 | B63: خودرو | C63: اختيارخ خودرو-1800-1400/07/07 | D63: 1800 | E63: 14000707 | F63: 14000327 | G63: 104 | H63: =VLOOKUP(B:B,volatility!A:C,3,0) -> 0.4059111695 | I63: 0.1 | J63: =IFERROR(VLOOKUP(B:B,moamelat!A:K,8,0),"") -> 2034 | K63: =IFERROR(IF((LEFT(A63,1))="ض",CallPrice(J63,D63,G63/365,H63,I63,0),BSMertonPut(J63,D63,G63/365,I63,0,H63)),"") -> 343.2061815 | L63: اختیار خرید | M63: 1000 | N63: =VLOOKUP(B63,moamelat!A:J,10,0) -> -2.35
A64: ضخود7075 | B64: خودرو | C64: اختيارخ خودرو-2000-1400/07/07 | D64: 2000 | E64: 14000707 | F64: 14000327 | G64: 104 | H64: =VLOOKUP(B:B,volatility!A:C,3,0) -> 0.4059111695 | I64: 0.1 | J64: =IFERROR(VLOOKUP(B:B,moamelat!A:K,8,0),"") -> 2034 | K64: =IFERROR(IF((LEFT(A64,1))="ض",CallPrice(J64,D64,G64/365,H64,I64,0),BSMertonPut(J64,D64,G64/365,I64,0,H64)),"") -> 220.4045971 | L64: اختیار خرید | M64: 1000 | N64: =VLOOKUP(B64,moamelat!A:J,10,0) -> -2.35
A65: ضخود7076 | B65: خودرو | C65: اختيارخ خودرو-2500-1400/07/07 | D65: 2500 | E65: 14000707 | F65: 14000327 | G65: 104 | H65: =VLOOKUP(B:B,volatility!A:C,3,0) -> 0.4059111695 | I65: 0.1 | J65: =IFERROR(VLOOKUP(B:B,moamelat!A:K,8,0),"") -> 2034 | K65: =IFERROR(IF((LEFT(A65,1))="ض",CallPrice(J65,D65,G65/365,H65,I65,0),BSMertonPut(J65,D65,G65/365,I65,0,H65)),"") -> 55.63757369 | L65: اختیار خرید | M65: 1000 | N65: =VLOOKUP(B65,moamelat!A:J,10,0) -> -2.35
A66: ضخود7077 | B66: خودرو | C66: اختيارخ خودرو-3000-1400/07/07 | D66: 3000 | E66: 14000707 | F66: 14000327 | G66: 104 | H66: =VLOOKUP(B:B,volatility!A:C,3,0) -> 0.4059111695 | I66: 0.1 | J66: =IFERROR(VLOOKUP(B:B,moamelat!A:K,8,0),"") -> 2034 | K66: =IFERROR(IF((LEFT(A66,1))="ض",CallPrice(J66,D66,G66/365,H66,I66,0),BSMertonPut(J66,D66,G66/365,I66,0,H66)),"") -> 10.53277892 | L66: اختیار خرید | M66: 1000 | N66: =VLOOKUP(B66,moamelat!A:J,10,0) -> -2.35
A67: ضخود7078 | B67: خودرو | C67: اختيارخ خودرو-3500-1400/07/07 | D67: 3500 | E67: 14000707 | F67: 14000327 | G67: 104 | H67: =VLOOKUP(B:B,volatility!A:C,3,0) -> 0.4059111695 | I67: 0.1 | J67: =IFERROR(VLOOKUP(B:B,moamelat!A:K,8,0),"") -> 2034 | K67: =IFERROR(IF((LEFT(A67,1))="ض",CallPrice(J67,D67,G67/365,H67,I67,0),BSMertonPut(J67,D67,G67/365,I67,0,H67)),"") -> 1.67086459 | L67: اختیار خرید | M67: 1000 | N67: =VLOOKUP(B67,moamelat!A:J,10,0) -> -2.35
A68: ضخود7079 | B68: خودرو | C68: اختيارخ خودرو-4000-1400/07/07 | D68: 4000 | E68: 14000707 | F68: 14000327 | G68: 104 | H68: =VLOOKUP(B:B,volatility!A:C,3,0) -> 0.4059111695 | I68: 0.1 | J68: =IFERROR(VLOOKUP(B:B,moamelat!A:K,8,0),"") -> 2034 | K68: =IFERROR(IF((LEFT(A68,1))="ض",CallPrice(J68,D68,G68/365,H68,I68,0),BSMertonPut(J68,D68,G68/365,I68,0,H68)),"") -> 0.2401755303 | L68: اختیار خرید | M68: 1000 | N68: =VLOOKUP(B68,moamelat!A:J,10,0) -> -2.35
A69: ضخود7080 | B69: خودرو | C69: اختيارخ خودرو-4500-1400/07/07 | D69: 4500 | E69: 14000707 | F69: 14000327 | G69: 104 | H69: =VLOOKUP(B:B,volatility!A:C,3,0) -> 0.4059111695 | I69: 0.1 | J69: =IFERROR(VLOOKUP(B:B,moamelat!A:K,8,0),"") -> 2034 | K69: =IFERROR(IF((LEFT(A69,1))="ض",CallPrice(J69,D69,G69/365,H69,I69,0),BSMertonPut(J69,D69,G69/365,I69,0,H69)),"") -> 0.03290534729 | L69: اختیار خرید | M69: 1000 | N69: =VLOOKUP(B69,moamelat!A:J,10,0) -> -2.35
A70: طپنا8000 | B70: رمپنا | C70: اختيارف رمپنا-10000-1400/08/05 | D70: 10000 | E70: 14000805 | F70: 14000327 | G70: 132 | H70: =VLOOKUP(B:B,volatility!A:C,3,0) -> 0.3320959658 | I70: 0.1 | J70: =IFERROR(VLOOKUP(B:B,moamelat!A:K,8,0),"") -> 12010 | K70: =IFERROR(IF((LEFT(A70,1))="ض",CallPrice(J70,D70,G70/365,H70,I70,0),BSMertonPut(J70,D70,G70/365,I70,0,H70)),"") -> 147.5430533 | L70: اختیار فروش | M70: 1000 | N70: =VLOOKUP(B70,moamelat!A:J,10,0) -> -1.07
A71: طپنا8001 | B71: رمپنا | C71: اختيارف رمپنا-12000-1400/08/05 | D71: 12000 | E71: 14000805 | F71: 14000327 | G71: 132 | H71: =VLOOKUP(B:B,volatility!A:C,3,0) -> 0.3320959658 | I71: 0.1 | J71: =IFERROR(VLOOKUP(B:B,moamelat!A:K,8,0),"") -> 12010 | K71: =IFERROR(IF((LEFT(A71,1))="ض",CallPrice(J71,D71,G71/365,H71,I71,0),BSMertonPut(J71,D71,G71/365,I71,0,H71)),"") -> 735.8264169 | L71: اختیار فروش | M71: 1000 | N71: =VLOOKUP(B71,moamelat!A:J,10,0) -> -1.07
A72: طپنا8002 | B72: رمپنا | C72: اختيارف رمپنا-14000-1400/08/05 | D72: 14000 | E72: 14000805 | F72: 14000327 | G72: 132 | H72: =VLOOKUP(B:B,volatility!A:C,3,0) -> 0.3320959658 | I72: 0.1 | J72: =IFERROR(VLOOKUP(B:B,moamelat!A:K,8,0),"") -> 12010 | K72: =IFERROR(IF((LEFT(A72,1))="ض",CallPrice(J72,D72,G72/365,H72,I72,0),BSMertonPut(J72,D72,G72/365,I72,0,H72)),"") -> 1929.96651 | L72: اختیار فروش | M72: 1000 | N72: =VLOOKUP(B72,moamelat!A:J,10,0) -> -1.07
A73: طپنا8003 | B73: رمپنا | C73: اختيارف رمپنا-16000-1400/08/05 | D73: 16000 | E73: 14000805 | F73: 14000327 | G73: 132 | H73: =VLOOKUP(B:B,volatility!A:C,3,0) -> 0.3320959658 | I73: 0.1 | J73: =IFERROR(VLOOKUP(B:B,moamelat!A:K,8,0),"") -> 12010 | K73: =IFERROR(IF((LEFT(A73,1))="ض",CallPrice(J73,D73,G73/365,H73,I73,0),BSMertonPut(J73,D73,G73/365,I73,0,H73)),"") -> 3557.286413 | L73: اختیار فروش | M73: 1000 | N73: =VLOOKUP(B73,moamelat!A:J,10,0) -> -1.07
A74: طپنا8004 | B74: رمپنا | C74: اختيارف رمپنا-18000-1400/08/05 | D74: 18000 | E74: 14000805 | F74: 14000327 | G74: 132 | H74: =VLOOKUP(B:B,volatility!A:C,3,0) -> 0.3320959658 | I74: 0.1 | J74: =IFERROR(VLOOKUP(B:B,moamelat!A:K,8,0),"") -> 12010 | K74: =IFERROR(IF((LEFT(A74,1))="ض",CallPrice(J74,D74,G74/365,H74,I74,0),BSMertonPut(J74,D74,G74/365,I74,0,H74)),"") -> 5387.260212 | L74: اختیار فروش | M74: 1000 | N74: =VLOOKUP(B74,moamelat!A:J,10,0) -> -1.07
A75: طپنا8005 | B75: رمپنا | C75: اختيارف رمپنا-20000-1400/08/05 | D75: 20000 | E75: 14000805 | F75: 14000327 | G75: 132 | H75: =VLOOKUP(B:B,volatility!A:C,3,0) -> 0.3320959658 | I75: 0.1 | J75: =IFERROR(VLOOKUP(B:B,moamelat!A:K,8,0),"") -> 12010 | K75: =IFERROR(IF((LEFT(A75,1))="ض",CallPrice(J75,D75,G75/365,H75,I75,0),BSMertonPut(J75,D75,G75/365,I75,0,H75)),"") -> 7288.577485 | L75: اختیار فروش | M75: 1000 | N75: =VLOOKUP(B75,moamelat!A:J,10,0) -> -1.07
A76: طپنا8006 | B76: رمپنا | C76: اختيارف رمپنا-24000-1400/08/05 | D76: 24000 | E76: 14000805 | F76: 14000327 | G76: 132 | H76: =VLOOKUP(B:B,volatility!A:C,3,0) -> 0.3320959658 | I76: 0.1 | J76: =IFERROR(VLOOKUP(B:B,moamelat!A:K,8,0),"") -> 12010 | K76: =IFERROR(IF((LEFT(A76,1))="ض",CallPrice(J76,D76,G76/365,H76,I76,0),BSMertonPut(J76,D76,G76/365,I76,0,H76)),"") -> 11138.00747 | L76: اختیار فروش | M76: 1000 | N76: =VLOOKUP(B76,moamelat!A:J,10,0) -> -1.07
A77: طپنا8007 | B77: رمپنا | C77: اختيارف رمپنا-28000-1400/08/05 | D77: 28000 | E77: 14000805 | F77: 14000327 | G77: 132 | H77: =VLOOKUP(B:B,volatility!A:C,3,0) -> 0.3320959658 | I77: =$O$2 -> 0.1 | J77: =IFERROR(VLOOKUP(B:B,moamelat!A:K,8,0),"") -> 12010 | K77: =IFERROR(IF((LEFT(A77,1))="ض",CallPrice(J77,D77,G77/365,H77,I77,0),BSMertonPut(J77,D77,G77/365,I77,0,H77)),"") -> 14995.5084 | L77: اختیار فروش | M77: 1000 | N77: =VLOOKUP(B77,moamelat!A:J,10,0) -> -1.07
A78: طپنا8008 | B78: رمپنا | C78: اختيارف رمپنا-32000-1400/08/05 | D78: 32000 | E78: 14000805 | F78: 14000327 | G78: 132 | H78: =VLOOKUP(B:B,volatility!A:C,3,0) -> 0.3320959658 | I78: 0.1 | J78: =IFERROR(VLOOKUP(B:B,moamelat!A:K,8,0),"") -> 12010 | K78: =IFERROR(IF((LEFT(A78,1))="ض",CallPrice(J78,D78,G78/365,H78,I78,0),BSMertonPut(J78,D78,G78/365,I78,0,H78)),"") -> 18853.41639 | L78: اختیار فروش | M78: 1000 | N78: =VLOOKUP(B78,moamelat!A:J,10,0) -> -1.07
A79: طخود7072 | B79: خودرو | C79: اختيارف خودرو-1400-1400/07/07 | D79: 1400 | E79: 14000707 | F79: 14000327 | G79: 104 | H79: =VLOOKUP(B:B,volatility!A:C,3,0) -> 0.4059111695 | I79: 0.1 | J79: =IFERROR(VLOOKUP(B:B,moamelat!A:K,8,0),"") -> 2034 | K79: =IFERROR(IF((LEFT(A79,1))="ض",CallPrice(J79,D79,G79/365,H79,I79,0),BSMertonPut(J79,D79,G79/365,I79,0,H79)),"") -> 4.449614133 | L79: اختیار فروش | M79: 1000 | N79: =VLOOKUP(B79,moamelat!A:J,10,0) -> -2.35
A80: طخود7073 | B80: خودرو | C80: اختيارف خودرو-1600-1400/07/07 | D80: 1600 | E80: 14000707 | F80: 14000327 | G80: 104 | H80: =VLOOKUP(B:B,volatility!A:C,3,0) -> 0.4059111695 | I80: 0.1 | J80: =IFERROR(VLOOKUP(B:B,moamelat!A:K,8,0),"") -> 2034 | K80: =IFERROR(IF((LEFT(A80,1))="ض",CallPrice(J80,D80,G80/365,H80,I80,0),BSMertonPut(J80,D80,G80/365,I80,0,H80)),"") -> 19.85870202 | L80: اختیار فروش | M80: 1000 | N80: =VLOOKUP(B80,moamelat!A:J,10,0) -> -2.35
A81: طخود7074 | B81: خودرو | C81: اختيارف خودرو-1800-1400/07/07 | D81: 1800 | E81: 14000707 | F81: 14000327 | G81: 104 | H81: =VLOOKUP(B:B,volatility!A:C,3,0) -> 0.4059111695 | I81: 0.1 | J81: =IFERROR(VLOOKUP(B:B,moamelat!A:K,8,0),"") -> 2034 | K81: =IFERROR(IF((LEFT(A81,1))="ض",CallPrice(J81,D81,G81/365,H81,I81,0),BSMertonPut(J81,D81,G81/365,I81,0,H81)),"") -> 58.64229332 | L81: اختیار فروش | M81: 1000 | N81: =VLOOKUP(B81,moamelat!A:J,10,0) -> -2.35
A82: طخود7075 | B82: خودرو | C82: اختيارف خودرو-2000-1400/07/07 | D82: 2000 | E82: 14000707 | F82: 14000327 | G82: 104 | H82: =VLOOKUP(B:B,volatility!A:C,3,0) -> 0.4059111695 | I82: 0.1 | J82: =IFERROR(VLOOKUP(B:B,moamelat!A:K,8,0),"") -> 2034 | K82: =IFERROR(IF((LEFT(A82,1))="ض",CallPrice(J82,D82,G82/365,H82,I82,0),BSMertonPut(J82,D82,G82/365,I82,0,H82)),"") -> 130.2224992 | L82: اختیار فروش | M82: 1000 | N82: =VLOOKUP(B82,moamelat!A:J,10,0) -> -2.35
A83: طخود7076 | B83: خودرو | C83: اختيارف خودرو-2500-1400/07/07 | D83: 2500 | E83: 14000707 | F83: 14000327 | G83: 104 | H83: =VLOOKUP(B:B,volatility!A:C,3,0) -> 0.4059111695 | I83: 0.1 | J83: =IFERROR(VLOOKUP(B:B,moamelat!A:K,8,0),"") -> 2034 | K83: =IFERROR(IF((LEFT(A83,1))="ض",CallPrice(J83,D83,G83/365,H83,I83,0),BSMertonPut(J83,D83,G83/365,I83,0,H83)),"") -> 451.4099513 | L83: اختیار فروش | M83: 1000 | N83: =VLOOKUP(B83,moamelat!A:J,10,0) -> -2.35
A84: طخود7077 | B84: خودرو | C84: اختيارف خودرو-3000-1400/07/07 | D84: 3000 | E84: 14000707 | F84: 14000327 | G84: 104 | H84: =VLOOKUP(B:B,volatility!A:C,3,0) -> 0.4059111695 | I84: 0.1 | J84: =IFERROR(VLOOKUP(B:B,moamelat!A:K,8,0),"") -> 2034 | K84: =IFERROR(IF((LEFT(A84,1))="ض",CallPrice(J84,D84,G84/365,H84,I84,0),BSMertonPut(J84,D84,G84/365,I84,0,H84)),"") -> 892.259632 | L84: اختیار فروش | M84: 1000 | N84: =VLOOKUP(B84,moamelat!A:J,10,0) -> -2.35
A85: طخود7078 | B85: خودرو | C85: اختيارف خودرو-3500-1400/07/07 | D85: 3500 | E85: 14000707 | F85: 14000327 | G85: 104 | H85: =VLOOKUP(B:B,volatility!A:C,3,0) -> 0.4059111695 | I85: 0.1 | J85: =IFERROR(VLOOKUP(B:B,moamelat!A:K,8,0),"") -> 2034 | K85: =IFERROR(IF((LEFT(A85,1))="ض",CallPrice(J85,D85,G85/365,H85,I85,0),BSMertonPut(J85,D85,G85/365,I85,0,H85)),"") -> 1369.352193 | L85: اختیار فروش | M85: 1000 | N85: =VLOOKUP(B85,moamelat!A:J,10,0) -> -2.35
A86: طخود7079 | B86: خودرو | C86: اختيارف خودرو-4000-1400/07/07 | D86: 4000 | E86: 14000707 | F86: 14000327 | G86: 104 | H86: =VLOOKUP(B:B,volatility!A:C,3,0) -> 0.4059111695 | I86: 0.1 | J86: =IFERROR(VLOOKUP(B:B,moamelat!A:K,8,0),"") -> 2034 | K86: =IFERROR(IF((LEFT(A86,1))="ض",CallPrice(J86,D86,G86/365,H86,I86,0),BSMertonPut(J86,D86,G86/365,I86,0,H86)),"") -> 1853.87598 | L86: اختیار فروش | M86: 1000 | N86: =VLOOKUP(B86,moamelat!A:J,10,0) -> -2.35
A87: طخود7080 | B87: خودرو | C87: اختيارف خودرو-4500-1400/07/07 | D87: 4500 | E87: 14000707 | F87: 14000327 | G87: 104 | H87: =VLOOKUP(B:B,volatility!A:C,3,0) -> 0.4059111695 | I87: 0.1 | J87: =IFERROR(VLOOKUP(B:B,moamelat!A:K,8,0),"") -> 2034 | K87: =IFERROR(IF((LEFT(A87,1))="ض",CallPrice(J87,D87,G87/365,H87,I87,0),BSMertonPut(J87,D87,G87/365,I87,0,H87)),"") -> 2339.623185 | L87: اختیار فروش | M87: 1000 | N87: =VLOOKUP(B87,moamelat!A:J,10,0) -> -2.35
A88: ضخوز7035 | B88: فخوز | C88: اختيارخ فخوز-9000-1400/07/14 | D88: 9000 | E88: 14000714 | F88: 14000327 | G88: =Diff(F88,E88) -> 111 | H88: =VLOOKUP(B:B,volatility!A:C,3,0) -> 0.3526206062 | I88: 0.1 | J88: =IFERROR(VLOOKUP(B:B,moamelat!A:K,8,0),"") -> 14970 | K88: =IFERROR(IF((LEFT(A88,1))="ض",CallPrice(J88,D88,G88/365,H88,I88,0),BSMertonPut(J88,D88,G88/365,I88,0,H88)),"") -> 6241.423025 | L88: =IF(LEFT(A88,1)="ض","اختیار خرید","اختیار فروش") -> اختیار خرید | M88: 1000 | N88: =VLOOKUP(B88,moamelat!A:J,10,0) -> -0.86
A89: ضخوز7036 | B89: فخوز | C89: اختيارخ فخوز-10000-1400/07/14 | D89: 10000 | E89: 14000714 | F89: 14000327 | G89: 111 | H89: =VLOOKUP(B:B,volatility!A:C,3,0) -> 0.3526206062 | I89: 0.1 | J89: =IFERROR(VLOOKUP(B:B,moamelat!A:K,8,0),"") -> 14970 | K89: =IFERROR(IF((LEFT(A89,1))="ض",CallPrice(J89,D89,G89/365,H89,I89,0),BSMertonPut(J89,D89,G89/365,I89,0,H89)),"") -> 5279.966444 | L89: اختیار خرید | M89: 1000 | N89: =VLOOKUP(B89,moamelat!A:J,10,0) -> -0.86
A90: ضخوز7037 | B90: فخوز | C90: اختيارخ فخوز-12000-1400/07/14 | D90: 12000 | E90: 14000714 | F90: 14000327 | G90: 111 | H90: =VLOOKUP(B:B,volatility!A:C,3,0) -> 0.3526206062 | I90: 0.1 | J90: =IFERROR(VLOOKUP(B:B,moamelat!A:K,8,0),"") -> 14970 | K90: =IFERROR(IF((LEFT(A90,1))="ض",CallPrice(J90,D90,G90/365,H90,I90,0),BSMertonPut(J90,D90,G90/365,I90,0,H90)),"") -> 3447.516335 | L90: اختیار خرید | M90: 1000 | N90: =VLOOKUP(B90,moamelat!A:J,10,0) -> -0.86
A91: ضخوز7038 | B91: فخوز | C91: اختيارخ فخوز-14000-1400/07/14 | D91: 14000 | E91: 14000714 | F91: 14000327 | G91: 111 | H91: =VLOOKUP(B:B,volatility!A:C,3,0) -> 0.3526206062 | I91: 0.1 | J91: =IFERROR(VLOOKUP(B:B,moamelat!A:K,8,0),"") -> 14970 | K91: =IFERROR(IF((LEFT(A91,1))="ض",CallPrice(J91,D91,G91/365,H91,I91,0),BSMertonPut(J91,D91,G91/365,I91,0,H91)),"") -> 1935.682338 | L91: اختیار خرید | M91: 1000 | N91: =VLOOKUP(B91,moamelat!A:J,10,0) -> -0.86
A92: ضخوز7039 | B92: فخوز | C92: اختيارخ فخوز-16000-1400/07/14 | D92: 16000 | E92: 14000714 | F92: 14000327 | G92: 111 | H92: =VLOOKUP(B:B,volatility!A:C,3,0) -> 0.3526206062 | I92: 0.1 | J92: =IFERROR(VLOOKUP(B:B,moamelat!A:K,8,0),"") -> 14970 | K92: =IFERROR(IF((LEFT(A92,1))="ض",CallPrice(J92,D92,G92/365,H92,I92,0),BSMertonPut(J92,D92,G92/365,I92,0,H92)),"") -> 925.7111724 | L92: اختیار خرید | M92: 1000 | N92: =VLOOKUP(B92,moamelat!A:J,10,0) -> -0.86
A93: ضخوز7040 | B93: فخوز | C93: اختيارخ فخوز-18000-1400/07/14 | D93: 18000 | E93: 14000714 | F93: 14000327 | G93: 111 | H93: =VLOOKUP(B:B,volatility!A:C,3,0) -> 0.3526206062 | I93: 0.1 | J93: =IFERROR(VLOOKUP(B:B,moamelat!A:K,8,0),"") -> 14970 | K93: =IFERROR(IF((LEFT(A93,1))="ض",CallPrice(J93,D93,G93/365,H93,I93,0),BSMertonPut(J93,D93,G93/365,I93,0,H93)),"") -> 382.5468069 | L93: اختیار خرید | M93: 1000 | N93: =VLOOKUP(B93,moamelat!A:J,10,0) -> -0.86
A94: ضخوز7041 | B94: فخوز | C94: اختيارخ فخوز-20000-1400/07/14 | D94: 20000 | E94: 14000714 | F94: 14000327 | G94: 111 | H94: =VLOOKUP(B:B,volatility!A:C,3,0) -> 0.3526206062 | I94: 0.1 | J94: =IFERROR(VLOOKUP(B:B,moamelat!A:K,8,0),"") -> 14970 | K94: =IFERROR(IF((LEFT(A94,1))="ض",CallPrice(J94,D94,G94/365,H94,I94,0),BSMertonPut(J94,D94,G94/365,I94,0,H94)),"") -> 140.0366775 | L94: اختیار خرید | M94: 1000 | N94: =VLOOKUP(B94,moamelat!A:J,10,0) -> -0.86
A95: ضخوز7042 | B95: فخوز | C95: اختيارخ فخوز-24000-1400/07/14 | D95: 24000 | E95: 14000714 | F95: 14000327 | G95: 111 | H95: =VLOOKUP(B:B,volatility!A:C,3,0) -> 0.3526206062 | I95: 0.1 | J95: =IFERROR(VLOOKUP(B:B,moamelat!A:K,8,0),"") -> 14970 | K95: =IFERROR(IF((LEFT(A95,1))="ض",CallPrice(J95,D95,G95/365,H95,I95,0),BSMertonPut(J95,D95,G95/365,I95,0,H95)),"") -> 14.4137045 | L95: اختیار خرید | M95: 1000 | N95: =VLOOKUP(B95,moamelat!A:J,10,0) -> -0.86
A96: ضخوز7043 | B96: فخوز | C96: اختيارخ فخوز-28000-1400/07/14 | D96: 28000 | E96: 14000714 | F96: 14000327 | G96: 111 | H96: =VLOOKUP(B:B,volatility!A:C,3,0) -> 0.3526206062 | I96: 0.1 | J96: =IFERROR(VLOOKUP(B:B,moamelat!A:K,8,0),"") -> 14970 | K96: =IFERROR(IF((LEFT(A96,1))="ض",CallPrice(J96,D96,G96/365,H96,I96,0),BSMertonPut(J96,D96,G96/365,I96,0,H96)),"") -> 1.18975542 | L96: اختیار خرید | M96: 1000 | N96: =VLOOKUP(B96,moamelat!A:J,10,0) -> -0.86
A97: ضسان7075 | B97: پارسان | C97: اختيارخ پارسان-12000-1400/07/14 | D97: 12000 | E97: 14000714 | F97: 14000327 | G97: 111 | H97: =VLOOKUP(B:B,volatility!A:C,3,0) -> 0.285833215 | I97: 0.1 | J97: =IFERROR(VLOOKUP(B:B,moamelat!A:K,8,0),"") -> 19590 | K97: =IFERROR(IF((LEFT(A97,1))="ض",CallPrice(J97,D97,G97/365,H97,I97,0),BSMertonPut(J97,D97,G97/365,I97,0,H97)),"") -> 7949.737889 | L97: اختیار خرید | M97: 1000 | N97: =VLOOKUP(B97,moamelat!A:J,10,0) -> 2.73
A98: ضسان7076 | B98: پارسان | C98: اختيارخ پارسان-14000-1400/07/14 | D98: 14000 | E98: 14000714 | F98: 14000327 | G98: 111 | H98: =VLOOKUP(B:B,volatility!A:C,3,0) -> 0.285833215 | I98: 0.1 | J98: =IFERROR(VLOOKUP(B:B,moamelat!A:K,8,0),"") -> 19590 | K98: =IFERROR(IF((LEFT(A98,1))="ض",CallPrice(J98,D98,G98/365,H98,I98,0),BSMertonPut(J98,D98,G98/365,I98,0,H98)),"") -> 6018.087192 | L98: اختیار خرید | M98: 1000 | N98: =VLOOKUP(B98,moamelat!A:J,10,0) -> 2.73
A99: ضسان7077 | B99: پارسان | C99: اختيارخ پارسان-16000-1400/07/14 | D99: 16000 | E99: 14000714 | F99: 14000327 | G99: 111 | H99: =VLOOKUP(B:B,volatility!A:C,3,0) -> 0.285833215 | I99: 0.1 | J99: =IFERROR(VLOOKUP(B:B,moamelat!A:K,8,0),"") -> 19590 | K99: =IFERROR(IF((LEFT(A99,1))="ض",CallPrice(J99,D99,G99/365,H99,I99,0),BSMertonPut(J99,D99,G99/365,I99,0,H99)),"") -> 4153.897072 | L99: اختیار خرید | M99: 1000 | N99: =VLOOKUP(B99,moamelat!A:J,10,0) -> 2.73
A100: ضسان7078 | B100: پارسان | C100: اختيارخ پارسان-18000-1400/07/14 | D100: 18000 | E100: 14000714 | F100: 14000327 | G100: 111 | H100: =VLOOKUP(B:B,volatility!A:C,3,0) -> 0.285833215 | I100: 0.1 | J100: =IFERROR(VLOOKUP(B:B,moamelat!A:K,8,0),"") -> 19590 | K100: =IFERROR(IF((LEFT(A100,1))="ض",CallPrice(J100,D100,G100/365,H100,I100,0),BSMertonPut(J100,D100,G100/365,I100,0,H100)),"") -> 2524.266799 | L100: اختیار خرید | M100: 1000 | N100: =VLOOKUP(B100,moamelat!A:J,10,0) -> 2.73
A101: ضسان7079 | B101: پارسان | C101: اختيارخ پارسان-20000-1400/07/14 | D101: 20000 | E101: 14000714 | F101: 14000327 | G101: 111 | H101: =VLOOKUP(B:B,volatility!A:C,3,0) -> 0.285833215 | I101: 0.1 | J101: =IFERROR(VLOOKUP(B:B,moamelat!A:K,8,0),"") -> 19590 | K101: =IFERROR(IF((LEFT(A101,1))="ض",CallPrice(J101,D101,G101/365,H101,I101,0),BSMertonPut(J101,D101,G101/365,I101,0,H101)),"") -> 1321.522748 | L101: اختیار خرید | M101: 1000 | N101: =VLOOKUP(B101,moamelat!A:J,10,0) -> 2.73
A102: ضسان7080 | B102: پارسان | C102: اختيارخ پارسان-24000-1400/07/14 | D102: 24000 | E102: 14000714 | F102: 14000327 | G102: 111 | H102: =VLOOKUP(B:B,volatility!A:C,3,0) -> 0.285833215 | I102: 0.1 | J102: =IFERROR(VLOOKUP(B:B,moamelat!A:K,8,0),"") -> 19590 | K102: =IFERROR(IF((LEFT(A102,1))="ض",CallPrice(J102,D102,G102/365,H102,I102,0),BSMertonPut(J102,D102,G102/365,I102,0,H102)),"") -> 232.7424134 | L102: اختیار خرید | M102: 1000 | N102: =VLOOKUP(B102,moamelat!A:J,10,0) -> 2.73
A103: ضسان7081 | B103: پارسان | C103: اختيارخ پارسان-28000-1400/07/14 | D103: 28000 | E103: 14000714 | F103: 14000327 | G103: 111 | H103: =VLOOKUP(B:B,volatility!A:C,3,0) -> 0.285833215 | I103: 0.1 | J103: =IFERROR(VLOOKUP(B:B,moamelat!A:K,8,0),"") -> 19590 | K103: =IFERROR(IF((LEFT(A103,1))="ض",CallPrice(J103,D103,G103/365,H103,I103,0),BSMertonPut(J103,D103,G103/365,I103,0,H103)),"") -> 25.26249722 | L103: اختیار خرید | M103: 1000 | N103: =VLOOKUP(B103,moamelat!A:J,10,0) -> 2.73
A104: ضسان7082 | B104: پارسان | C104: اختيارخ پارسان-32000-1400/07/14 | D104: 32000 | E104: 14000714 | F104: 14000327 | G104: 111 | H104: =VLOOKUP(B:B,volatility!A:C,3,0) -> 0.285833215 | I104: 0.1 | J104: =IFERROR(VLOOKUP(B:B,moamelat!A:K,8,0),"") -> 19590 | K104: =IFERROR(IF((LEFT(A104,1))="ض",CallPrice(J104,D104,G104/365,H104,I104,0),BSMertonPut(J104,D104,G104/365,I104,0,H104)),"") -> 1.958107281 | L104: اختیار خرید | M104: 1000 | N104: =VLOOKUP(B104,moamelat!A:J,10,0) -> 2.73
A105: ضسان7083 | B105: پارسان | C105: اختيارخ پارسان-36000-1400/07/14 | D105: 36000 | E105: 14000714 | F105: 14000327 | G105: 111 | H105: =VLOOKUP(B:B,volatility!A:C,3,0) -> 0.285833215 | I105: 0.1 | J105: =IFERROR(VLOOKUP(B:B,moamelat!A:K,8,0),"") -> 19590 | K105: =IFERROR(IF((LEFT(A105,1))="ض",CallPrice(J105,D105,G105/365,H105,I105,0),BSMertonPut(J105,D105,G105/365,I105,0,H105)),"") -> 0.1219492616 | L105: اختیار خرید | M105: 1000 | N105: =VLOOKUP(B105,moamelat!A:J,10,0) -> 2.73
A106: طخوز7035 | B106: فخوز | C106: اختيارف فخوز-9000-1400/07/14 | D106: 9000 | E106: 14000714 | F106: 14000327 | G106: 111 | H106: =VLOOKUP(B:B,volatility!A:C,3,0) -> 0.3526206062 | I106: 0.1 | J106: =IFERROR(VLOOKUP(B:B,moamelat!A:K,8,0),"") -> 14970 | K106: =IFERROR(IF((LEFT(A106,1))="ض",CallPrice(J106,D106,G106/365,H106,I106,0),BSMertonPut(J106,D106,G106/365,I106,0,H106)),"") -> 1.844245135 | L106: اختیار فروش | M106: 1000 | N106: =VLOOKUP(B106,moamelat!A:J,10,0) -> -0.86
A107: طخوز7036 | B107: فخوز | C107: اختيارف فخوز-10000-1400/07/14 | D107: 10000 | E107: 14000714 | F107: 14000327 | G107: 111 | H107: =VLOOKUP(B:B,volatility!A:C,3,0) -> 0.3526206062 | I107: 0.1 | J107: =IFERROR(VLOOKUP(B:B,moamelat!A:K,8,0),"") -> 14970 | K107: =IFERROR(IF((LEFT(A107,1))="ض",CallPrice(J107,D107,G107/365,H107,I107,0),BSMertonPut(J107,D107,G107/365,I107,0,H107)),"") -> 10.43446664 | L107: اختیار فروش | M107: 1000 | N107: =VLOOKUP(B107,moamelat!A:J,10,0) -> -0.86
A108: طخوز7037 | B108: فخوز | C108: اختيارف فخوز-12000-1400/07/14 | D108: 12000 | E108: 14000714 | F108: =Shamsi() -> 14000327 | G108: 111 | H108: =VLOOKUP(B:B,volatility!A:C,3,0) -> 0.3526206062 | I108: 0.1 | J108: =IFERROR(VLOOKUP(B:B,moamelat!A:K,8,0),"") -> 14970 | K108: =IFERROR(IF((LEFT(A108,1))="ض",CallPrice(J108,D108,G108/365,H108,I108,0),BSMertonPut(J108,D108,G108/365,I108,0,H108)),"") -> 118.0779616 | L108: اختیار فروش | M108: 1000 | N108: =VLOOKUP(B108,moamelat!A:J,10,0) -> -0.86
A109: طخوز7038 | B109: فخوز | C109: اختيارف فخوز-14000-1400/07/14 | D109: 14000 | E109: 14000714 | F109: 14000327 | G109: 111 | H109: =VLOOKUP(B:B,volatility!A:C,3,0) -> 0.3526206062 | I109: 0.1 | J109: =IFERROR(VLOOKUP(B:B,moamelat!A:K,8,0),"") -> 14970 | K109: =IFERROR(IF((LEFT(A109,1))="ض",CallPrice(J109,D109,G109/365,H109,I109,0),BSMertonPut(J109,D109,G109/365,I109,0,H109)),"") -> 546.3375697 | L109: اختیار فروش | M109: 1000 | N109: =VLOOKUP(B109,moamelat!A:J,10,0) -> -0.86
A110: طخوز7039 | B110: فخوز | C110: اختيارف فخوز-16000-1400/07/14 | D110: 16000 | E110: 14000714 | F110: 14000327 | G110: 111 | H110: =VLOOKUP(B:B,volatility!A:C,3,0) -> 0.3526206062 | I110: 0.1 | J110: =IFERROR(VLOOKUP(B:B,moamelat!A:K,8,0),"") -> 14970 | K110: =IFERROR(IF((LEFT(A110,1))="ض",CallPrice(J110,D110,G110/365,H110,I110,0),BSMertonPut(J110,D110,G110/365,I110,0,H110)),"") -> 1476.460008 | L110: اختیار فروش | M110: 1000 | N110: =VLOOKUP(B110,moamelat!A:J,10,0) -> -0.86
A111: طخوز7040 | B111: فخوز | C111: اختيارف فخوز-18000-1400/07/14 | D111: 18000 | E111: 14000714 | F111: 14000327 | G111: 111 | H111: =VLOOKUP(B:B,volatility!A:C,3,0) -> 0.3526206062 | I111: 0.1 | J111: =IFERROR(VLOOKUP(B:B,moamelat!A:K,8,0),"") -> 14970 | K111: =IFERROR(IF((LEFT(A111,1))="ض",CallPrice(J111,D111,G111/365,H111,I111,0),BSMertonPut(J111,D111,G111/365,I111,0,H111)),"") -> 2873.389247 | L111: اختیار فروش | M111: 1000 | N111: =VLOOKUP(B111,moamelat!A:J,10,0) -> -0.86
A112: طخوز7041 | B112: فخوز | C112: اختيارف فخوز-20000-1400/07/14 | D112: 20000 | E112: 14000714 | F112: 14000327 | G112: 111 | H112: =VLOOKUP(B:B,volatility!A:C,3,0) -> 0.3526206062 | I112: 0.1 | J112: =IFERROR(VLOOKUP(B:B,moamelat!A:K,8,0),"") -> 14970 | K112: =IFERROR(IF((LEFT(A112,1))="ض",CallPrice(J112,D112,G112/365,H112,I112,0),BSMertonPut(J112,D112,G112/365,I112,0,H112)),"") -> 4570.972723 | L112: اختیار فروش | M112: 1000 | N112: =VLOOKUP(B112,moamelat!A:J,10,0) -> -0.86
A113: طخوز7042 | B113: فخوز | C113: اختيارف فخوز-24000-1400/07/14 | D113: 24000 | E113: 14000714 | F113: 14000327 | G113: 111 | H113: =VLOOKUP(B:B,volatility!A:C,3,0) -> 0.3526206062 | I113: 0.1 | J113: =IFERROR(VLOOKUP(B:B,moamelat!A:K,8,0),"") -> 14970 | K113: =IFERROR(IF((LEFT(A113,1))="ض",CallPrice(J113,D113,G113/365,H113,I113,0),BSMertonPut(J113,D113,G113/365,I113,0,H113)),"") -> 8325.536959 | L113: اختیار فروش | M113: 1000 | N113: =VLOOKUP(B113,moamelat!A:J,10,0) -> -0.86
A114: طخوز7043 | B114: فخوز | C114: اختيارف فخوز-28000-1400/07/14 | D114: 28000 | E114: 14000714 | F114: 14000327 | G114: 111 | H114: =VLOOKUP(B:B,volatility!A:C,3,0) -> 0.3526206062 | I114: 0.1 | J114: =IFERROR(VLOOKUP(B:B,moamelat!A:K,8,0),"") -> 14970 | K114: =IFERROR(IF((LEFT(A114,1))="ض",CallPrice(J114,D114,G114/365,H114,I114,0),BSMertonPut(J114,D114,G114/365,I114,0,H114)),"") -> 12192.50022 | L114: اختیار فروش | M114: 1000 | N114: =VLOOKUP(B114,moamelat!A:J,10,0) -> -0.86
A115: طسان7075 | B115: پارسان | C115: اختيارف پارسان-12000-1400/07/14 | D115: 12000 | E115: 14000714 | F115: 14000327 | G115: 111 | H115: =VLOOKUP(B:B,volatility!A:C,3,0) -> 0.285833215 | I115: 0.1 | J115: =IFERROR(VLOOKUP(B:B,moamelat!A:K,8,0),"") -> 19590 | K115: =IFERROR(IF((LEFT(A115,1))="ض",CallPrice(J115,D115,G115/365,H115,I115,0),BSMertonPut(J115,D115,G115/365,I115,0,H115)),"") -> 0.2995159711 | L115: اختیار فروش | M115: 1000 | N115: =VLOOKUP(B115,moamelat!A:J,10,0) -> 2.73
A116: طسان7076 | B116: پارسان | C116: اختيارف پارسان-14000-1400/07/14 | D116: 14000 | E116: 14000714 | F116: 14000327 | G116: 111 | H116: =VLOOKUP(B:B,volatility!A:C,3,0) -> 0.285833215 | I116: 0.1 | J116: =IFERROR(VLOOKUP(B:B,moamelat!A:K,8,0),"") -> 19590 | K116: =IFERROR(IF((LEFT(A116,1))="ض",CallPrice(J116,D116,G116/365,H116,I116,0),BSMertonPut(J116,D116,G116/365,I116,0,H116)),"") -> 8.742423568 | L116: اختیار فروش | M116: 1000 | N116: =VLOOKUP(B116,moamelat!A:J,10,0) -> 2.73
A117: طسان7077 | B117: پارسان | C117: اختيارف پارسان-16000-1400/07/14 | D117: 16000 | E117: 14000714 | F117: 14000327 | G117: 111 | H117: =VLOOKUP(B:B,volatility!A:C,3,0) -> 0.285833215 | I117: 0.1 | J117: =IFERROR(VLOOKUP(B:B,moamelat!A:K,8,0),"") -> 19590 | K117: =IFERROR(IF((LEFT(A117,1))="ض",CallPrice(J117,D117,G117/365,H117,I117,0),BSMertonPut(J117,D117,G117/365,I117,0,H117)),"") -> 84.64590785 | L117: اختیار فروش | M117: 1000 | N117: =VLOOKUP(B117,moamelat!A:J,10,0) -> 2.73
A118: طسان7078 | B118: پارسان | C118: اختيارف پارسان-18000-1400/07/14 | D118: 18000 | E118: 14000714 | F118: 14000327 | G118: 111 | H118: =VLOOKUP(B:B,volatility!A:C,3,0) -> 0.285833215 | I118: 0.1 | J118: =IFERROR(VLOOKUP(B:B,moamelat!A:K,8,0),"") -> 19590 | K118: =IFERROR(IF((LEFT(A118,1))="ض",CallPrice(J118,D118,G118/365,H118,I118,0),BSMertonPut(J118,D118,G118/365,I118,0,H118)),"") -> 395.1092391 | L118: اختیار فروش | M118: 1000 | N118: =VLOOKUP(B118,moamelat!A:J,10,0) -> 2.73
A119: طسان7079 | B119: پارسان | C119: اختيارف پارسان-20000-1400/07/14 | D119: 20000 | E119: 14000714 | F119: 14000327 | G119: 111 | H119: =VLOOKUP(B:B,volatility!A:C,3,0) -> 0.285833215 | I119: 0.1 | J119: =IFERROR(VLOOKUP(B:B,moamelat!A:K,8,0),"") -> 19590 | K119: =IFERROR(IF((LEFT(A119,1))="ض",CallPrice(J119,D119,G119/365,H119,I119,0),BSMertonPut(J119,D119,G119/365,I119,0,H119)),"") -> 1132.458793 | L119: اختیار فروش | M119: 1000 | N119: =VLOOKUP(B119,moamelat!A:J,10,0) -> 2.73
A120: طسان7080 | B120: پارسان | C120: اختيارف پارسان-24000-1400/07/14 | D120: 24000 | E120: 14000714 | F120: 14000327 | G120: 111 | H120: =VLOOKUP(B:B,volatility!A:C,3,0) -> 0.285833215 | I120: 0.1 | J120: =IFERROR(VLOOKUP(B:B,moamelat!A:K,8,0),"") -> 19590 | K120: =IFERROR(IF((LEFT(A120,1))="ض",CallPrice(J120,D120,G120/365,H120,I120,0),BSMertonPut(J120,D120,G120/365,I120,0,H120)),"") -> 3923.865667 | L120: اختیار فروش | M120: 1000 | N120: =VLOOKUP(B120,moamelat!A:J,10,0) -> 2.73
A121: طسان7081 | B121: پارسان | C121: اختيارف پارسان-28000-1400/07/14 | D121: 28000 | E121: 14000714 | F121: 14000327 | G121: 111 | H121: =VLOOKUP(B:B,volatility!A:C,3,0) -> 0.285833215 | I121: 0.1 | J121: =IFERROR(VLOOKUP(B:B,moamelat!A:K,8,0),"") -> 19590 | K121: =IFERROR(IF((LEFT(A121,1))="ض",CallPrice(J121,D121,G121/365,H121,I121,0),BSMertonPut(J121,D121,G121/365,I121,0,H121)),"") -> 7596.57296 | L121: اختیار فروش | M121: 1000 | N121: =VLOOKUP(B121,moamelat!A:J,10,0) -> 2.73
A122: طسان7082 | B122: پارسان | C122: اختيارف پارسان-32000-1400/07/14 | D122: 32000 | E122: 14000714 | F122: 14000327 | G122: 111 | H122: =VLOOKUP(B:B,volatility!A:C,3,0) -> 0.285833215 | I122: 0.1 | J122: =IFERROR(VLOOKUP(B:B,moamelat!A:K,8,0),"") -> 19590 | K122: =IFERROR(IF((LEFT(A122,1))="ض",CallPrice(J122,D122,G122/365,H122,I122,0),BSMertonPut(J122,D122,G122/365,I122,0,H122)),"") -> 11453.45578 | L122: اختیار فروش | M122: 1000 | N122: =VLOOKUP(B122,moamelat!A:J,10,0) -> 2.73
A123: طسان7083 | B123: پارسان | C123: اختيارف پارسان-36000-1400/07/14 | D123: 36000 | E123: 14000714 | F123: 14000327 | G123: 111 | H123: =VLOOKUP(B:B,volatility!A:C,3,0) -> 0.285833215 | I123: 0.1 | J123: =IFERROR(VLOOKUP(B:B,moamelat!A:K,8,0),"") -> 19590 | K123: =IFERROR(IF((LEFT(A123,1))="ض",CallPrice(J123,D123,G123/365,H123,I123,0),BSMertonPut(J123,D123,G123/365,I123,0,H123)),"") -> 15331.80683 | L123: اختیار فروش | M123: 1000 | N123: =VLOOKUP(B123,moamelat!A:J,10,0) -> 2.73
A124: ضپاس7026 | B124: وپارس | C124: اختيارخ وپارس-1600-1400/07/28 | D124: 1600 | E124: 14000728 | F124: 14000327 | G124: =Diff(F124,E124) -> 125 | H124: =VLOOKUP(B:B,volatility!A:C,3,0) -> 0.2974307748 | I124: 0.1 | J124: =IFERROR(VLOOKUP(B:B,moamelat!A:K,8,0),"") -> 2650 | K124: =IFERROR(IF((LEFT(A124,1))="ض",CallPrice(J124,D124,G124/365,H124,I124,0),BSMertonPut(J124,D124,G124/365,I124,0,H124)),"") -> 1103.962256 | L124: =IF(LEFT(A124,1)="ض","اختیار خرید","اختیار فروش") -> اختیار خرید | M124: 1000 | N124: =VLOOKUP(B124,moamelat!A:J,10,0) -> -2.03
A125: ضپاس7027 | B125: وپارس | C125: اختيارخ وپارس-1800-1400/07/28 | D125: 1800 | E125: 14000728 | F125: 14000327 | G125: 125 | H125: =VLOOKUP(B:B,volatility!A:C,3,0) -> 0.2974307748 | I125: 0.1 | J125: =IFERROR(VLOOKUP(B:B,moamelat!A:K,8,0),"") -> 2650 | K125: =IFERROR(IF((LEFT(A125,1))="ض",CallPrice(J125,D125,G125/365,H125,I125,0),BSMertonPut(J125,D125,G125/365,I125,0,H125)),"") -> 911.5575946 | L125: اختیار خرید | M125: 1000 | N125: =VLOOKUP(B125,moamelat!A:J,10,0) -> -2.03
A126: ضپاس7028 | B126: وپارس | C126: اختيارخ وپارس-2000-1400/07/28 | D126: 2000 | E126: 14000728 | F126: 14000327 | G126: 125 | H126: =VLOOKUP(B:B,volatility!A:C,3,0) -> 0.2974307748 | I126: 0.1 | J126: =IFERROR(VLOOKUP(B:B,moamelat!A:K,8,0),"") -> 2650 | K126: =IFERROR(IF((LEFT(A126,1))="ض",CallPrice(J126,D126,G126/365,H126,I126,0),BSMertonPut(J126,D126,G126/365,I126,0,H126)),"") -> 722.7525415 | L126: اختیار خرید | M126: 1000 | N126: =VLOOKUP(B126,moamelat!A:J,10,0) -> -2.03
A127: ضپاس7029 | B127: وپارس | C127: اختيارخ وپارس-2500-1400/07/28 | D127: 2500 | E127: 14000728 | F127: 14000327 | G127: 125 | H127: =VLOOKUP(B:B,volatility!A:C,3,0) -> 0.2974307748 | I127: 0.1 | J127: =IFERROR(VLOOKUP(B:B,moamelat!A:K,8,0),"") -> 2650 | K127: =IFERROR(IF((LEFT(A127,1))="ض",CallPrice(J127,D127,G127/365,H127,I127,0),BSMertonPut(J127,D127,G127/365,I127,0,H127)),"") -> 316.9080989 | L127: اختیار خرید | M127: 1000 | N127: =VLOOKUP(B127,moamelat!A:J,10,0) -> -2.03
A128: ضپاس7030 | B128: وپارس | C128: اختيارخ وپارس-3000-1400/07/28 | D128: 3000 | E128: 14000728 | F128: 14000327 | G128: 125 | H128: =VLOOKUP(B:B,volatility!A:C,3,0) -> 0.2974307748 | I128: 0.1 | J128: =IFERROR(VLOOKUP(B:B,moamelat!A:K,8,0),"") -> 2650 | K128: =IFERROR(IF((LEFT(A128,1))="ض",CallPrice(J128,D128,G128/365,H128,I128,0),BSMertonPut(J128,D128,G128/365,I128,0,H128)),"") -> 92.89015195 | L128: اختیار خرید | M128: 1000 | N128: =VLOOKUP(B128,moamelat!A:J,10,0) -> -2.03
A129: ضپاس7031 | B129: وپارس | C129: اختيارخ وپارس-3500-1400/07/28 | D129: 3500 | E129: 14000728 | F129: 14000327 | G129: 125 | H129: =VLOOKUP(B:B,volatility!A:C,3,0) -> 0.2974307748 | I129: 0.1 | J129: =IFERROR(VLOOKUP(B:B,moamelat!A:K,8,0),"") -> 2650 | K129: =IFERROR(IF((LEFT(A129,1))="ض",CallPrice(J129,D129,G129/365,H129,I129,0),BSMertonPut(J129,D129,G129/365,I129,0,H129)),"") -> 18.99005956 | L129: اختیار خرید | M129: 1000 | N129: =VLOOKUP(B129,moamelat!A:J,10,0) -> -2.03
A130: ضپاس7032 | B130: وپارس | C130: اختيارخ وپارس-4000-1400/07/28 | D130: 4000 | E130: 14000728 | F130: 14000327 | G130: 125 | H130: =VLOOKUP(B:B,volatility!A:C,3,0) -> 0.2974307748 | I130: 0.1 | J130: =IFERROR(VLOOKUP(B:B,moamelat!A:K,8,0),"") -> 2650 | K130: =IFERROR(IF((LEFT(A130,1))="ض",CallPrice(J130,D130,G130/365,H130,I130,0),BSMertonPut(J130,D130,G130/365,I130,0,H130)),"") -> 2.96531649 | L130: اختیار خرید | M130: 1000 | N130: =VLOOKUP(B130,moamelat!A:J,10,0) -> -2.03
A131: ضپاس7033 | B131: وپارس | C131: اختيارخ وپارس-4500-1400/07/28 | D131: 4500 | E131: 14000728 | F131: 14000327 | G131: 125 | H131: =VLOOKUP(B:B,volatility!A:C,3,0) -> 0.2974307748 | I131: 0.1 | J131: =IFERROR(VLOOKUP(B:B,moamelat!A:K,8,0),"") -> 2650 | K131: =IFERROR(IF((LEFT(A131,1))="ض",CallPrice(J131,D131,G131/365,H131,I131,0),BSMertonPut(J131,D131,G131/365,I131,0,H131)),"") -> 0.384483761 | L131: اختیار خرید | M131: 1000 | N131: =VLOOKUP(B131,moamelat!A:J,10,0) -> -2.03
A132: ضپاس7034 | B132: وپارس | C132: اختيارخ وپارس-5000-1400/07/28 | D132: 5000 | E132: 14000728 | F132: 14000327 | G132: 125 | H132: =VLOOKUP(B:B,volatility!A:C,3,0) -> 0.2974307748 | I132: 0.1 | J132: =IFERROR(VLOOKUP(B:B,moamelat!A:K,8,0),"") -> 2650 | K132: =IFERROR(IF((LEFT(A132,1))="ض",CallPrice(J132,D132,G132/365,H132,I132,0),BSMertonPut(J132,D132,G132/365,I132,0,H132)),"") -> 0.04410858567 | L132: اختیار خرید | M132: 1000 | N132: =VLOOKUP(B132,moamelat!A:J,10,0) -> -2.03
A133: ضشنا8000 | B133: شپنا | C133: اختيارخ شپنا-7000-1400/08/16 | D133: 7000 | E133: 14000816 | F133: 14000327 | G133: 143 | H133: =VLOOKUP(B:B,volatility!A:C,3,0) -> 0.4382346705 | I133: 0.1 | J133: =IFERROR(VLOOKUP(B:B,moamelat!A:K,8,0),"") -> 12340 | K133: =IFERROR(IF((LEFT(A133,1))="ض",CallPrice(J133,D133,G133/365,H133,I133,0),BSMertonPut(J133,D133,G133/365,I133,0,H133)),"") -> 5620.739373 | L133: اختیار خرید | M133: 1000 | N133: =VLOOKUP(B133,moamelat!A:J,10,0) -> 2.07
A134: ضشنا8001 | B134: شپنا | C134: اختيارخ شپنا-8000-1400/08/16 | D134: 8000 | E134: 14000816 | F134: 14000327 | G134: 143 | H134: =VLOOKUP(B:B,volatility!A:C,3,0) -> 0.4382346705 | I134: 0.1 | J134: =IFERROR(VLOOKUP(B:B,moamelat!A:K,8,0),"") -> 12340 | K134: =IFERROR(IF((LEFT(A134,1))="ض",CallPrice(J134,D134,G134/365,H134,I134,0),BSMertonPut(J134,D134,G134/365,I134,0,H134)),"") -> 4693.255092 | L134: اختیار خرید | M134: 1000 | N134: =VLOOKUP(B134,moamelat!A:J,10,0) -> 2.07
A135: ضشنا8002 | B135: شپنا | C135: اختيارخ شپنا-9000-1400/08/16 | D135: 9000 | E135: 14000816 | F135: 14000327 | G135: 143 | H135: =VLOOKUP(B:B,volatility!A:C,3,0) -> 0.4382346705 | I135: 0.1 | J135: =IFERROR(VLOOKUP(B:B,moamelat!A:K,8,0),"") -> 12340 | K135: =IFERROR(IF((LEFT(A135,1))="ض",CallPrice(J135,D135,G135/365,H135,I135,0),BSMertonPut(J135,D135,G135/365,I135,0,H135)),"") -> 3815.797884 | L135: اختیار خرید | M135: 1000 | N135: =VLOOKUP(B135,moamelat!A:J,10,0) -> 2.07
A136: ضشنا8003 | B136: شپنا | C136: اختيارخ شپنا-10000-1400/08/16 | D136: 10000 | E136: 14000816 | F136: 14000327 | G136: 143 | H136: =VLOOKUP(B:B,volatility!A:C,3,0) -> 0.4382346705 | I136: 0.1 | J136: =IFERROR(VLOOKUP(B:B,moamelat!A:K,8,0),"") -> 12340 | K136: =IFERROR(IF((LEFT(A136,1))="ض",CallPrice(J136,D136,G136/365,H136,I136,0),BSMertonPut(J136,D136,G136/365,I136,0,H136)),"") -> 3017.477847 | L136: اختیار خرید | M136: 1000 | N136: =VLOOKUP(B136,moamelat!A:J,10,0) -> 2.07
A137: ضشنا8004 | B137: شپنا | C137: اختيارخ شپنا-12000-1400/08/16 | D137: 12000 | E137: 14000816 | F137: 14000327 | G137: 143 | H137: =VLOOKUP(B:B,volatility!A:C,3,0) -> 0.4382346705 | I137: 0.1 | J137: =IFERROR(VLOOKUP(B:B,moamelat!A:K,8,0),"") -> 12340 | K137: =IFERROR(IF((LEFT(A137,1))="ض",CallPrice(J137,D137,G137/365,H137,I137,0),BSMertonPut(J137,D137,G137/365,I137,0,H137)),"") -> 1741.51709 | L137: اختیار خرید | M137: 1000 | N137: =VLOOKUP(B137,moamelat!A:J,10,0) -> 2.07
A138: ضشنا8005 | B138: شپنا | C138: اختيارخ شپنا-14000-1400/08/16 | D138: 14000 | E138: 14000816 | F138: 14000327 | G138: 143 | H138: =VLOOKUP(B:B,volatility!A:C,3,0) -> 0.4382346705 | I138: 0.1 | J138: =IFERROR(VLOOKUP(B:B,moamelat!A:K,8,0),"") -> 12340 | K138: =IFERROR(IF((LEFT(A138,1))="ض",CallPrice(J138,D138,G138/365,H138,I138,0),BSMertonPut(J138,D138,G138/365,I138,0,H138)),"") -> 916.0580141 | L138: اختیار خرید | M138: 1000 | N138: =VLOOKUP(B138,moamelat!A:J,10,0) -> 2.07
A139: ضشنا8006 | B139: شپنا | C139: اختيارخ شپنا-16000-1400/08/16 | D139: 16000 | E139: 14000816 | F139: 14000327 | G139: 143 | H139: =VLOOKUP(B:B,volatility!A:C,3,0) -> 0.4382346705 | I139: 0.1 | J139: =IFERROR(VLOOKUP(B:B,moamelat!A:K,8,0),"") -> 12340 | K139: =IFERROR(IF((LEFT(A139,1))="ض",CallPrice(J139,D139,G139/365,H139,I139,0),BSMertonPut(J139,D139,G139/365,I139,0,H139)),"") -> 448.5586499 | L139: اختیار خرید | M139: 1000 | N139: =VLOOKUP(B139,moamelat!A:J,10,0) -> 2.07
A140: ضشنا8007 | B140: شپنا | C140: اختيارخ شپنا-18000-1400/08/16 | D140: 18000 | E140: 14000816 | F140: 14000327 | G140: 143 | H140: =VLOOKUP(B:B,volatility!A:C,3,0) -> 0.4382346705 | I140: 0.1 | J140: =IFERROR(VLOOKUP(B:B,moamelat!A:K,8,0),"") -> 12340 | K140: =IFERROR(IF((LEFT(A140,1))="ض",CallPrice(J140,D140,G140/365,H140,I140,0),BSMertonPut(J140,D140,G140/365,I140,0,H140)),"") -> 208.5494884 | L140: اختیار خرید | M140: 1000 | N140: =VLOOKUP(B140,moamelat!A:J,10,0) -> 2.07
A141: ضشنا8008 | B141: شپنا | C141: اختيارخ شپنا-20000-1400/08/16 | D141: 20000 | E141: 14000816 | F141: 14000327 | G141: 143 | H141: =VLOOKUP(B:B,volatility!A:C,3,0) -> 0.4382346705 | I141: =$O$2 -> 0.1 | J141: =IFERROR(VLOOKUP(B:B,moamelat!A:K,8,0),"") -> 12340 | K141: =IFERROR(IF((LEFT(A141,1))="ض",CallPrice(J141,D141,G141/365,H141,I141,0),BSMertonPut(J141,D141,G141/365,I141,0,H141)),"") -> 93.557321 | L141: اختیار خرید | M141: 1000 | N141: =VLOOKUP(B141,moamelat!A:J,10,0) -> 2.07
A142: طپاس7026 | B142: وپارس | C142: اختيارف وپارس-1600-1400/07/28 | D142: 1600 | E142: 14000728 | F142: 14000327 | G142: 125 | H142: =VLOOKUP(B:B,volatility!A:C,3,0) -> 0.2974307748 | I142: 0.1 | J142: =IFERROR(VLOOKUP(B:B,moamelat!A:K,8,0),"") -> 2650 | K142: =IFERROR(IF((LEFT(A142,1))="ض",CallPrice(J142,D142,G142/365,H142,I142,0),BSMertonPut(J142,D142,G142/365,I142,0,H142)),"") -> 0.09537781608 | L142: اختیار فروش | M142: 1000 | N142: =VLOOKUP(B142,moamelat!A:J,10,0) -> -2.03
A143: طپاس7027 | B143: وپارس | C143: اختيارف وپارس-1800-1400/07/28 | D143: 1800 | E143: 14000728 | F143: 14000327 | G143: 125 | H143: =VLOOKUP(B:B,volatility!A:C,3,0) -> 0.2974307748 | I143: 0.1 | J143: =IFERROR(VLOOKUP(B:B,moamelat!A:K,8,0),"") -> 2650 | K143: =IFERROR(IF((LEFT(A143,1))="ض",CallPrice(J143,D143,G143/365,H143,I143,0),BSMertonPut(J143,D143,G143/365,I143,0,H143)),"") -> 0.9573569642 | L143: اختیار فروش | M143: 1000 | N143: =VLOOKUP(B143,moamelat!A:J,10,0) -> -2.03
A144: طپاس7028 | B144: وپارس | C144: اختيارف وپارس-2000-1400/07/28 | D144: 2000 | E144: 14000728 | F144: 14000327 | G144: 125 | H144: =VLOOKUP(B:B,volatility!A:C,3,0) -> 0.2974307748 | I144: 0.1 | J144: =IFERROR(VLOOKUP(B:B,moamelat!A:K,8,0),"") -> 2650 | K144: =IFERROR(IF((LEFT(A144,1))="ض",CallPrice(J144,D144,G144/365,H144,I144,0),BSMertonPut(J144,D144,G144/365,I144,0,H144)),"") -> 5.41894418 | L144: اختیار فروش | M144: 1000 | N144: =VLOOKUP(B144,moamelat!A:J,10,0) -> -2.03
A145: طپاس7029 | B145: وپارس | C145: اختيارف وپارس-2500-1400/07/28 | D145: 2500 | E145: 14000728 | F145: 14000327 | G145: 125 | H145: =VLOOKUP(B:B,volatility!A:C,3,0) -> 0.2974307748 | I145: 0.1 | J145: =IFERROR(VLOOKUP(B:B,moamelat!A:K,8,0),"") -> 2650 | K145: =IFERROR(IF((LEFT(A145,1))="ض",CallPrice(J145,D145,G145/365,H145,I145,0),BSMertonPut(J145,D145,G145/365,I145,0,H145)),"") -> 82.74110216 | L145: اختیار فروش | M145: 1000 | N145: =VLOOKUP(B145,moamelat!A:J,10,0) -> -2.03
A146: طپاس7030 | B146: وپارس | C146: اختيارف وپارس-3000-1400/07/28 | D146: 3000 | E146: 14000728 | F146: 14000327 | G146: 125 | H146: =VLOOKUP(B:B,volatility!A:C,3,0) -> 0.2974307748 | I146: 0.1 | J146: =IFERROR(VLOOKUP(B:B,moamelat!A:K,8,0),"") -> 2650 | K146: =IFERROR(IF((LEFT(A146,1))="ض",CallPrice(J146,D146,G146/365,H146,I146,0),BSMertonPut(J146,D146,G146/365,I146,0,H146)),"") -> 341.8897559 | L146: اختیار فروش | M146: 1000 | N146: =VLOOKUP(B146,moamelat!A:J,10,0) -> -2.03
A147: طپاس7031 | B147: وپارس | C147: اختيارف وپارس-3500-1400/07/28 | D147: 3500 | E147: 14000728 | F147: 14000327 | G147: 125 | H147: =VLOOKUP(B:B,volatility!A:C,3,0) -> 0.2974307748 | I147: 0.1 | J147: =IFERROR(VLOOKUP(B:B,moamelat!A:K,8,0),"") -> 2650 | K147: =IFERROR(IF((LEFT(A147,1))="ض",CallPrice(J147,D147,G147/365,H147,I147,0),BSMertonPut(J147,D147,G147/365,I147,0,H147)),"") -> 751.1562642 | L147: اختیار فروش | M147: 1000 | N147: =VLOOKUP(B147,moamelat!A:J,10,0) -> -2.03
A148: طپاس7032 | B148: وپارس | C148: اختيارف وپارس-4000-1400/07/28 | D148: 4000 | E148: 14000728 | F148: 14000327 | G148: 125 | H148: =VLOOKUP(B:B,volatility!A:C,3,0) -> 0.2974307748 | I148: 0.1 | J148: =IFERROR(VLOOKUP(B:B,moamelat!A:K,8,0),"") -> 2650 | K148: =IFERROR(IF((LEFT(A148,1))="ض",CallPrice(J148,D148,G148/365,H148,I148,0),BSMertonPut(J148,D148,G148/365,I148,0,H148)),"") -> 1218.298122 | L148: اختیار فروش | M148: 1000 | N148: =VLOOKUP(B148,moamelat!A:J,10,0) -> -2.03
A149: طپاس7033 | B149: وپارس | C149: اختيارف وپارس-4500-1400/07/28 | D149: 4500 | E149: 14000728 | F149: 14000327 | G149: 125 | H149: =VLOOKUP(B:B,volatility!A:C,3,0) -> 0.2974307748 | I149: 0.1 | J149: =IFERROR(VLOOKUP(B:B,moamelat!A:K,8,0),"") -> 2650 | K149: =IFERROR(IF((LEFT(A149,1))="ض",CallPrice(J149,D149,G149/365,H149,I149,0),BSMertonPut(J149,D149,G149/365,I149,0,H149)),"") -> 1698.88389 | L149: اختیار فروش | M149: 1000 | N149: =VLOOKUP(B149,moamelat!A:J,10,0) -> -2.03
A150: طپاس7034 | B150: وپارس | C150: اختيارف وپارس-5000-1400/07/28 | D150: 5000 | E150: 14000728 | F150: 14000327 | G150: 125 | H150: =VLOOKUP(B:B,volatility!A:C,3,0) -> 0.2974307748 | I150: 0.1 | J150: =IFERROR(VLOOKUP(B:B,moamelat!A:K,8,0),"") -> 2650 | K150: =IFERROR(IF((LEFT(A150,1))="ض",CallPrice(J150,D150,G150/365,H150,I150,0),BSMertonPut(J150,D150,G150/365,I150,0,H150)),"") -> 2181.710115 | L150: اختیار فروش | M150: 1000 | N150: =VLOOKUP(B150,moamelat!A:J,10,0) -> -2.03
A151: طشنا8000 | B151: شپنا | C151: اختيارف شپنا-7000-1400/08/16 | D151: 7000 | E151: 14000816 | F151: 14000327 | G151: 143 | H151: =VLOOKUP(B:B,volatility!A:C,3,0) -> 0.4382346705 | I151: 0.1 | J151: =IFERROR(VLOOKUP(B:B,moamelat!A:K,8,0),"") -> 12340 | K151: =IFERROR(IF((LEFT(A151,1))="ض",CallPrice(J151,D151,G151/365,H151,I151,0),BSMertonPut(J151,D151,G151/365,I151,0,H151)),"") -> 11.79554905 | L151: اختیار فروش | M151: 1000 | N151: =VLOOKUP(B151,moamelat!A:J,10,0) -> 2.07
A152: طشنا8001 | B152: شپنا | C152: اختيارف شپنا-8000-1400/08/16 | D152: 8000 | E152: 14000816 | F152: 14000327 | G152: 143 | H152: =VLOOKUP(B:B,volatility!A:C,3,0) -> 0.4382346705 | I152: 0.1 | J152: =IFERROR(VLOOKUP(B:B,moamelat!A:K,8,0),"") -> 12340 | K152: =IFERROR(IF((LEFT(A152,1))="ض",CallPrice(J152,D152,G152/365,H152,I152,0),BSMertonPut(J152,D152,G152/365,I152,0,H152)),"") -> 45.89072211 | L152: اختیار فروش | M152: 1000 | N152: =VLOOKUP(B152,moamelat!A:J,10,0) -> 2.07
A153: طشنا8002 | B153: شپنا | C153: اختيارف شپنا-9000-1400/08/16 | D153: 9000 | E153: 14000816 | F153: 14000327 | G153: 143 | H153: =VLOOKUP(B:B,volatility!A:C,3,0) -> 0.4382346705 | I153: 0.1 | J153: =IFERROR(VLOOKUP(B:B,moamelat!A:K,8,0),"") -> 12340 | K153: =IFERROR(IF((LEFT(A153,1))="ض",CallPrice(J153,D153,G153/365,H153,I153,0),BSMertonPut(J153,D153,G153/365,I153,0,H153)),"") -> 130.0129672 | L153: اختیار فروش | M153: 1000 | N153: =VLOOKUP(B153,moamelat!A:J,10,0) -> 2.07
A154: طشنا8003 | B154: شپنا | C154: اختيارف شپنا-10000-1400/08/16 | D154: 10000 | E154: 14000816 | F154: 14000327 | G154: 143 | H154: =VLOOKUP(B:B,volatility!A:C,3,0) -> 0.4382346705 | I154: 0.1 | J154: =IFERROR(VLOOKUP(B:B,moamelat!A:K,8,0),"") -> 12340 | K154: =IFERROR(IF((LEFT(A154,1))="ض",CallPrice(J154,D154,G154/365,H154,I154,0),BSMertonPut(J154,D154,G154/365,I154,0,H154)),"") -> 293.2723843 | L154: اختیار فروش | M154: 1000 | N154: =VLOOKUP(B154,moamelat!A:J,10,0) -> 2.07
A155: طشنا8004 | B155: شپنا | C155: اختيارف شپنا-12000-1400/08/16 | D155: 12000 | E155: 14000816 | F155: 14000327 | G155: 143 | H155: =VLOOKUP(B:B,volatility!A:C,3,0) -> 0.4382346705 | I155: 0.1 | J155: =IFERROR(VLOOKUP(B:B,moamelat!A:K,8,0),"") -> 12340 | K155: =IFERROR(IF((LEFT(A155,1))="ض",CallPrice(J155,D155,G155/365,H155,I155,0),BSMertonPut(J155,D155,G155/365,I155,0,H155)),"") -> 940.4705342 | L155: اختیار فروش | M155: 1000 | N155: =VLOOKUP(B155,moamelat!A:J,10,0) -> 2.07
A156: طشنا8005 | B156: شپنا | C156: اختيارف شپنا-14000-1400/08/16 | D156: 14000 | E156: 14000816 | F156: 14000327 | G156: 143 | H156: =VLOOKUP(B:B,volatility!A:C,3,0) -> 0.4382346705 | I156: 0.1 | J156: =IFERROR(VLOOKUP(B:B,moamelat!A:K,8,0),"") -> 12340 | K156: =IFERROR(IF((LEFT(A156,1))="ض",CallPrice(J156,D156,G156/365,H156,I156,0),BSMertonPut(J156,D156,G156/365,I156,0,H156)),"") -> 2038.170366 | L156: اختیار فروش | M156: 1000 | N156: =VLOOKUP(B156,moamelat!A:J,10,0) -> 2.07
A157: طشنا8006 | B157: شپنا | C157: اختيارف شپنا-16000-1400/08/16 | D157: 16000 | E157: 14000816 | F157: 14000327 | G157: 143 | H157: =VLOOKUP(B:B,volatility!A:C,3,0) -> 0.4382346705 | I157: 0.1 | J157: =IFERROR(VLOOKUP(B:B,moamelat!A:K,8,0),"") -> 12340 | K157: =IFERROR(IF((LEFT(A157,1))="ض",CallPrice(J157,D157,G157/365,H157,I157,0),BSMertonPut(J157,D157,G157/365,I157,0,H157)),"") -> 3493.829909 | L157: اختیار فروش | M157: 1000 | N157: =VLOOKUP(B157,moamelat!A:J,10,0) -> 2.07
A158: طشنا8007 | B158: شپنا | C158: اختيارف شپنا-18000-1400/08/16 | D158: 18000 | E158: 14000816 | F158: 14000327 | G158: 143 | H158: =VLOOKUP(B:B,volatility!A:C,3,0) -> 0.4382346705 | I158: 0.1 | J158: =IFERROR(VLOOKUP(B:B,moamelat!A:K,8,0),"") -> 12340 | K158: =IFERROR(IF((LEFT(A158,1))="ض",CallPrice(J158,D158,G158/365,H158,I158,0),BSMertonPut(J158,D158,G158/365,I158,0,H158)),"") -> 5176.979655 | L158: اختیار فروش | M158: 1000 | N158: =VLOOKUP(B158,moamelat!A:J,10,0) -> 2.07
A159: طشنا8008 | B159: شپنا | C159: اختيارف شپنا-20000-1400/08/16 | D159: 20000 | E159: 14000816 | F159: 14000327 | G159: 143 | H159: =VLOOKUP(B:B,volatility!A:C,3,0) -> 0.4382346705 | I159: 0.1 | J159: =IFERROR(VLOOKUP(B:B,moamelat!A:K,8,0),"") -> 12340 | K159: =IFERROR(IF((LEFT(A159,1))="ض",CallPrice(J159,D159,G159/365,H159,I159,0),BSMertonPut(J159,D159,G159/365,I159,0,H159)),"") -> 6985.146395 | L159: اختیار فروش | M159: 1000 | N159: =VLOOKUP(B159,moamelat!A:J,10,0) -> 2.07
A160: ضپيك7039 | B160: تاپيكو | C160: اختيارخ تاپيكو-7000-1400/07/18 | D160: 7000 | E160: 14000718 | F160: 14000327 | G160: =Diff(F160,E160) -> 115 | H160: =VLOOKUP(B:B,volatility!A:C,3,0) -> 0.3463657114 | I160: 0.1 | J160: =IFERROR(VLOOKUP(B:B,moamelat!A:K,8,0),"") -> 10350 | K160: =IFERROR(IF((LEFT(A160,1))="ض",CallPrice(J160,D160,G160/365,H160,I160,0),BSMertonPut(J160,D160,G160/365,I160,0,H160)),"") -> 3575.657092 | L160: =IF(LEFT(A160,1)="ض","اختیار خرید","اختیار فروش") -> اختیار خرید | M160: 1000 | N160: =VLOOKUP(B160,moamelat!A:J,10,0) -> 0.78
A161: ضپيك7040 | B161: تاپيكو | C161: اختيارخ تاپيكو-8000-1400/07/18 | D161: 8000 | E161: 14000718 | F161: 14000327 | G161: 115 | H161: =VLOOKUP(B:B,volatility!A:C,3,0) -> 0.3463657114 | I161: 0.1 | J161: =IFERROR(VLOOKUP(B:B,moamelat!A:K,8,0),"") -> 10350 | K161: =IFERROR(IF((LEFT(A161,1))="ض",CallPrice(J161,D161,G161/365,H161,I161,0),BSMertonPut(J161,D161,G161/365,I161,0,H161)),"") -> 2650.544154 | L161: اختیار خرید | M161: 1000 | N161: =VLOOKUP(B161,moamelat!A:J,10,0) -> 0.78
A162: ضپيك7041 | B162: تاپيكو | C162: اختيارخ تاپيكو-9000-1400/07/18 | D162: 9000 | E162: 14000718 | F162: 14000327 | G162: 115 | H162: =VLOOKUP(B:B,volatility!A:C,3,0) -> 0.3463657114 | I162: 0.1 | J162: =IFERROR(VLOOKUP(B:B,moamelat!A:K,8,0),"") -> 10350 | K162: =IFERROR(IF((LEFT(A162,1))="ض",CallPrice(J162,D162,G162/365,H162,I162,0),BSMertonPut(J162,D162,G162/365,I162,0,H162)),"") -> 1820.668048 | L162: اختیار خرید | M162: 1000 | N162: =VLOOKUP(B162,moamelat!A:J,10,0) -> 0.78
A163: ضپيك7042 | B163: تاپيكو | C163: اختيارخ تاپيكو-10000-1400/07/18 | D163: 10000 | E163: 14000718 | F163: 14000327 | G163: 115 | H163: =VLOOKUP(B:B,volatility!A:C,3,0) -> 0.3463657114 | I163: 0.1 | J163: =IFERROR(VLOOKUP(B:B,moamelat!A:K,8,0),"") -> 10350 | K163: =IFERROR(IF((LEFT(A163,1))="ض",CallPrice(J163,D163,G163/365,H163,I163,0),BSMertonPut(J163,D163,G163/365,I163,0,H163)),"") -> 1150.024061 | L163: اختیار خرید | M163: 1000 | N163: =VLOOKUP(B163,moamelat!A:J,10,0) -> 0.78
A164: ضپيك7043 | B164: تاپيكو | C164: اختيارخ تاپيكو-12000-1400/07/18 | D164: 12000 | E164: 14000718 | F164: 14000327 | G164: 115 | H164: =VLOOKUP(B:B,volatility!A:C,3,0) -> 0.3463657114 | I164: 0.1 | J164: =IFERROR(VLOOKUP(B:B,moamelat!A:K,8,0),"") -> 10350 | K164: =IFERROR(IF((LEFT(A164,1))="ض",CallPrice(J164,D164,G164/365,H164,I164,0),BSMertonPut(J164,D164,G164/365,I164,0,H164)),"") -> 359.5512257 | L164: اختیار خرید | M164: 1000 | N164: =VLOOKUP(B164,moamelat!A:J,10,0) -> 0.78
A165: ضپيك7044 | B165: تاپيكو | C165: اختيارخ تاپيكو-14000-1400/07/18 | D165: 14000 | E165: 14000718 | F165: 14000327 | G165: 115 | H165: =VLOOKUP(B:B,volatility!A:C,3,0) -> 0.3463657114 | I165: 0.1 | J165: =IFERROR(VLOOKUP(B:B,moamelat!A:K,8,0),"") -> 10350 | K165: =IFERROR(IF((LEFT(A165,1))="ض",CallPrice(J165,D165,G165/365,H165,I165,0),BSMertonPut(J165,D165,G165/365,I165,0,H165)),"") -> 85.75049603 | L165: اختیار خرید | M165: 1000 | N165: =VLOOKUP(B165,moamelat!A:J,10,0) -> 0.78
A166: ضپيك7045 | B166: تاپيكو | C166: اختيارخ تاپيكو-16000-1400/07/18 | D166: 16000 | E166: 14000718 | F166: 14000327 | G166: 115 | H166: =VLOOKUP(B:B,volatility!A:C,3,0) -> 0.3463657114 | I166: 0.1 | J166: =IFERROR(VLOOKUP(B:B,moamelat!A:K,8,0),"") -> 10350 | K166: =IFERROR(IF((LEFT(A166,1))="ض",CallPrice(J166,D166,G166/365,H166,I166,0),BSMertonPut(J166,D166,G166/365,I166,0,H166)),"") -> 16.83884359 | L166: اختیار خرید | M166: 1000 | N166: =VLOOKUP(B166,moamelat!A:J,10,0) -> 0.78
A167: ضپيك7046 | B167: تاپيكو | C167: اختيارخ تاپيكو-18000-1400/07/18 | D167: 18000 | E167: 14000718 | F167: 14000327 | G167: 115 | H167: =VLOOKUP(B:B,volatility!A:C,3,0) -> 0.3463657114 | I167: 0.1 | J167: =IFERROR(VLOOKUP(B:B,moamelat!A:K,8,0),"") -> 10350 | K167: =IFERROR(IF((LEFT(A167,1))="ض",CallPrice(J167,D167,G167/365,H167,I167,0),BSMertonPut(J167,D167,G167/365,I167,0,H167)),"") -> 2.903094639 | L167: اختیار خرید | M167: 1000 | N167: =VLOOKUP(B167,moamelat!A:J,10,0) -> 0.78
A168: ضپيك7047 | B168: تاپيكو | C168: اختيارخ تاپيكو-20000-1400/07/18 | D168: 20000 | E168: 14000718 | F168: 14000327 | G168: 115 | H168: =VLOOKUP(B:B,volatility!A:C,3,0) -> 0.3463657114 | I168: 0.1 | J168: =IFERROR(VLOOKUP(B:B,moamelat!A:K,8,0),"") -> 10350 | K168: =IFERROR(IF((LEFT(A168,1))="ض",CallPrice(J168,D168,G168/365,H168,I168,0),BSMertonPut(J168,D168,G168/365,I168,0,H168)),"") -> 0.4607221761 | L168: اختیار خرید | M168: 1000 | N168: =VLOOKUP(B168,moamelat!A:J,10,0) -> 0.78
A169: ضترا8055 | B169: شتران | C169: اختيارخ شتران-5000-1400/08/09 | D169: 5000 | E169: 14000809 | F169: 14000327 | G169: 136 | H169: =VLOOKUP(B:B,volatility!A:C,3,0) -> 0.4045122317 | I169: 0.1 | J169: =IFERROR(VLOOKUP(B:B,moamelat!A:K,8,0),"") -> 8340 | K169: =IFERROR(IF((LEFT(A169,1))="ض",CallPrice(J169,D169,G169/365,H169,I169,0),BSMertonPut(J169,D169,G169/365,I169,0,H169)),"") -> 3529.992994 | L169: اختیار خرید | M169: 1000 | N169: =VLOOKUP(B169,moamelat!A:J,10,0) -> 0.36
A170: ضترا8056 | B170: شتران | C170: اختيارخ شتران-6000-1400/08/09 | D170: 6000 | E170: 14000809 | F170: 14000327 | G170: 136 | H170: =VLOOKUP(B:B,volatility!A:C,3,0) -> 0.4045122317 | I170: 0.1 | J170: =IFERROR(VLOOKUP(B:B,moamelat!A:K,8,0),"") -> 8340 | K170: =IFERROR(IF((LEFT(A170,1))="ض",CallPrice(J170,D170,G170/365,H170,I170,0),BSMertonPut(J170,D170,G170/365,I170,0,H170)),"") -> 2611.203784 | L170: اختیار خرید | M170: 1000 | N170: =VLOOKUP(B170,moamelat!A:J,10,0) -> 0.36
A171: ضترا8057 | B171: شتران | C171: اختيارخ شتران-7000-1400/08/09 | D171: 7000 | E171: 14000809 | F171: 14000327 | G171: 136 | H171: =VLOOKUP(B:B,volatility!A:C,3,0) -> 0.4045122317 | I171: 0.1 | J171: =IFERROR(VLOOKUP(B:B,moamelat!A:K,8,0),"") -> 8340 | K171: =IFERROR(IF((LEFT(A171,1))="ض",CallPrice(J171,D171,G171/365,H171,I171,0),BSMertonPut(J171,D171,G171/365,I171,0,H171)),"") -> 1795.024361 | L171: اختیار خرید | M171: 1000 | N171: =VLOOKUP(B171,moamelat!A:J,10,0) -> 0.36
A172: ضترا8058 | B172: شتران | C172: اختيارخ شتران-8000-1400/08/09 | D172: 8000 | E172: 14000809 | F172: =Shamsi() -> 14000327 | G172: 136 | H172: =VLOOKUP(B:B,volatility!A:C,3,0) -> 0.4045122317 | I172: 0.1 | J172: =IFERROR(VLOOKUP(B:B,moamelat!A:K,8,0),"") -> 8340 | K172: =IFERROR(IF((LEFT(A172,1))="ض",CallPrice(J172,D172,G172/365,H172,I172,0),BSMertonPut(J172,D172,G172/365,I172,0,H172)),"") -> 1144.34545 | L172: اختیار خرید | M172: 1000 | N172: =VLOOKUP(B172,moamelat!A:J,10,0) -> 0.36
A173: ضترا8059 | B173: شتران | C173: اختيارخ شتران-9000-1400/08/09 | D173: 9000 | E173: 14000809 | F173: 14000327 | G173: 136 | H173: =VLOOKUP(B:B,volatility!A:C,3,0) -> 0.4045122317 | I173: 0.1 | J173: =IFERROR(VLOOKUP(B:B,moamelat!A:K,8,0),"") -> 8340 | K173: =IFERROR(IF((LEFT(A173,1))="ض",CallPrice(J173,D173,G173/365,H173,I173,0),BSMertonPut(J173,D173,G173/365,I173,0,H173)),"") -> 680.5966749 | L173: اختیار خرید | M173: 1000 | N173: =VLOOKUP(B173,moamelat!A:J,10,0) -> 0.36
A174: ضترا8060 | B174: شتران | C174: اختيارخ شتران-10000-1400/08/09 | D174: 10000 | E174: 14000809 | F174: 14000327 | G174: 136 | H174: =VLOOKUP(B:B,volatility!A:C,3,0) -> 0.4045122317 | I174: 0.1 | J174: =IFERROR(VLOOKUP(B:B,moamelat!A:K,8,0),"") -> 8340 | K174: =IFERROR(IF((LEFT(A174,1))="ض",CallPrice(J174,D174,G174/365,H174,I174,0),BSMertonPut(J174,D174,G174/365,I174,0,H174)),"") -> 381.4281701 | L174: اختیار خرید | M174: 1000 | N174: =VLOOKUP(B174,moamelat!A:J,10,0) -> 0.36
A175: ضترا8061 | B175: شتران | C175: اختيارخ شتران-12000-1400/08/09 | D175: 12000 | E175: 14000809 | F175: 14000327 | G175: 136 | H175: =VLOOKUP(B:B,volatility!A:C,3,0) -> 0.4045122317 | I175: 0.1 | J175: =IFERROR(VLOOKUP(B:B,moamelat!A:K,8,0),"") -> 8340 | K175: =IFERROR(IF((LEFT(A175,1))="ض",CallPrice(J175,D175,G175/365,H175,I175,0),BSMertonPut(J175,D175,G175/365,I175,0,H175)),"") -> 104.6243274 | L175: اختیار خرید | M175: 1000 | N175: =VLOOKUP(B175,moamelat!A:J,10,0) -> 0.36
A176: ضترا8062 | B176: شتران | C176: اختيارخ شتران-14000-1400/08/09 | D176: 14000 | E176: 14000809 | F176: 14000327 | G176: 136 | H176: =VLOOKUP(B:B,volatility!A:C,3,0) -> 0.4045122317 | I176: 0.1 | J176: =IFERROR(VLOOKUP(B:B,moamelat!A:K,8,0),"") -> 8340 | K176: =IFERROR(IF((LEFT(A176,1))="ض",CallPrice(J176,D176,G176/365,H176,I176,0),BSMertonPut(J176,D176,G176/365,I176,0,H176)),"") -> 25.45231598 | L176: اختیار خرید | M176: 1000 | N176: =VLOOKUP(B176,moamelat!A:J,10,0) -> 0.36
A177: ضترا8063 | B177: شتران | C177: اختيارخ شتران-16000-1400/08/09 | D177: 16000 | E177: 14000809 | F177: 14000327 | G177: 136 | H177: =VLOOKUP(B:B,volatility!A:C,3,0) -> 0.4045122317 | I177: 0.1 | J177: =IFERROR(VLOOKUP(B:B,moamelat!A:K,8,0),"") -> 8340 | K177: =IFERROR(IF((LEFT(A177,1))="ض",CallPrice(J177,D177,G177/365,H177,I177,0),BSMertonPut(J177,D177,G177/365,I177,0,H177)),"") -> 5.791378703 | L177: اختیار خرید | M177: 1000 | N177: =VLOOKUP(B177,moamelat!A:J,10,0) -> 0.36
A178: ضجار7037 | B178: وتجارت | C178: اختيارخ وتجارت-1600-1400/07/21 | D178: 1600 | E178: 14000721 | F178: 14000327 | G178: 118 | H178: =VLOOKUP(B:B,volatility!A:C,3,0) -> 0.3668468069 | I178: 0.1 | J178: =IFERROR(VLOOKUP(B:B,moamelat!A:K,8,0),"") -> 2172 | K178: =IFERROR(IF((LEFT(A178,1))="ض",CallPrice(J178,D178,G178/365,H178,I178,0),BSMertonPut(J178,D178,G178/365,I178,0,H178)),"") -> 631.3396961 | L178: اختیار خرید | M178: 1000 | N178: =VLOOKUP(B178,moamelat!A:J,10,0) -> -1.85
A179: ضجار7038 | B179: وتجارت | C179: اختيارخ وتجارت-1800-1400/07/21 | D179: 1800 | E179: 14000721 | F179: 14000327 | G179: 118 | H179: =VLOOKUP(B:B,volatility!A:C,3,0) -> 0.3668468069 | I179: 0.1 | J179: =IFERROR(VLOOKUP(B:B,moamelat!A:K,8,0),"") -> 2172 | K179: =IFERROR(IF((LEFT(A179,1))="ض",CallPrice(J179,D179,G179/365,H179,I179,0),BSMertonPut(J179,D179,G179/365,I179,0,H179)),"") -> 459.5314659 | L179: اختیار خرید | M179: 1000 | N179: =VLOOKUP(B179,moamelat!A:J,10,0) -> -1.85
A180: ضجار7039 | B180: وتجارت | C180: اختيارخ وتجارت-2000-1400/07/21 | D180: 2000 | E180: 14000721 | F180: 14000327 | G180: 118 | H180: =VLOOKUP(B:B,volatility!A:C,3,0) -> 0.3668468069 | I180: 0.1 | J180: =IFERROR(VLOOKUP(B:B,moamelat!A:K,8,0),"") -> 2172 | K180: =IFERROR(IF((LEFT(A180,1))="ض",CallPrice(J180,D180,G180/365,H180,I180,0),BSMertonPut(J180,D180,G180/365,I180,0,H180)),"") -> 313.5336371 | L180: اختیار خرید | M180: 1000 | N180: =VLOOKUP(B180,moamelat!A:J,10,0) -> -1.85
A181: ضجار7040 | B181: وتجارت | C181: اختيارخ وتجارت-2500-1400/07/21 | D181: 2500 | E181: 14000721 | F181: 14000327 | G181: 118 | H181: =VLOOKUP(B:B,volatility!A:C,3,0) -> 0.3668468069 | I181: 0.1 | J181: =IFERROR(VLOOKUP(B:B,moamelat!A:K,8,0),"") -> 2172 | K181: =IFERROR(IF((LEFT(A181,1))="ض",CallPrice(J181,D181,G181/365,H181,I181,0),BSMertonPut(J181,D181,G181/365,I181,0,H181)),"") -> 91.52609396 | L181: اختیار خرید | M181: 1000 | N181: =VLOOKUP(B181,moamelat!A:J,10,0) -> -1.85
A182: ضجار7041 | B182: وتجارت | C182: اختيارخ وتجارت-3000-1400/07/21 | D182: 3000 | E182: 14000721 | F182: 14000327 | G182: 118 | H182: =VLOOKUP(B:B,volatility!A:C,3,0) -> 0.3668468069 | I182: 0.1 | J182: =IFERROR(VLOOKUP(B:B,moamelat!A:K,8,0),"") -> 2172 | K182: =IFERROR(IF((LEFT(A182,1))="ض",CallPrice(J182,D182,G182/365,H182,I182,0),BSMertonPut(J182,D182,G182/365,I182,0,H182)),"") -> 19.4176537 | L182: اختیار خرید | M182: 1000 | N182: =VLOOKUP(B182,moamelat!A:J,10,0) -> -1.85
A183: ضجار7042 | B183: وتجارت | C183: اختيارخ وتجارت-3500-1400/07/21 | D183: 3500 | E183: 14000721 | F183: 14000327 | G183: 118 | H183: =VLOOKUP(B:B,volatility!A:C,3,0) -> 0.3668468069 | I183: 0.1 | J183: =IFERROR(VLOOKUP(B:B,moamelat!A:K,8,0),"") -> 2172 | K183: =IFERROR(IF((LEFT(A183,1))="ض",CallPrice(J183,D183,G183/365,H183,I183,0),BSMertonPut(J183,D183,G183/365,I183,0,H183)),"") -> 3.330862788 | L183: اختیار خرید | M183: 1000 | N183: =VLOOKUP(B183,moamelat!A:J,10,0) -> -1.85
A184: ضجار7043 | B184: وتجارت | C184: اختيارخ وتجارت-4000-1400/07/21 | D184: 4000 | E184: 14000721 | F184: 14000327 | G184: 118 | H184: =VLOOKUP(B:B,volatility!A:C,3,0) -> 0.3668468069 | I184: 0.1 | J184: =IFERROR(VLOOKUP(B:B,moamelat!A:K,8,0),"") -> 2172 | K184: =IFERROR(IF((LEFT(A184,1))="ض",CallPrice(J184,D184,G184/365,H184,I184,0),BSMertonPut(J184,D184,G184/365,I184,0,H184)),"") -> 0.5022891486 | L184: اختیار خرید | M184: 1000 | N184: =VLOOKUP(B184,moamelat!A:J,10,0) -> -1.85
A185: ضجار7044 | B185: وتجارت | C185: اختيارخ وتجارت-4500-1400/07/21 | D185: 4500 | E185: 14000721 | F185: 14000327 | G185: 118 | H185: =VLOOKUP(B:B,volatility!A:C,3,0) -> 0.3668468069 | I185: 0.1 | J185: =IFERROR(VLOOKUP(B:B,moamelat!A:K,8,0),"") -> 2172 | K185: =IFERROR(IF((LEFT(A185,1))="ض",CallPrice(J185,D185,G185/365,H185,I185,0),BSMertonPut(J185,D185,G185/365,I185,0,H185)),"") -> 0.07049633912 | L185: اختیار خرید | M185: 1000 | N185: =VLOOKUP(B185,moamelat!A:J,10,0) -> -1.85
A186: ضفار8047 | B186: فارس | C186: اختيارخ فارس-5000-1400/08/05 | D186: 5000 | E186: 14000805 | F186: 14000327 | G186: 132 | H186: =VLOOKUP(B:B,volatility!A:C,3,0) -> 0.3366926529 | I186: 0.1 | J186: =IFERROR(VLOOKUP(B:B,moamelat!A:K,8,0),"") -> 9460 | K186: =IFERROR(IF((LEFT(A186,1))="ض",CallPrice(J186,D186,G186/365,H186,I186,0),BSMertonPut(J186,D186,G186/365,I186,0,H186)),"") -> 4637.747175 | L186: اختیار خرید | M186: 1000 | N186: =VLOOKUP(B186,moamelat!A:J,10,0) -> -0.73
A187: ضفار8048 | B187: فارس | C187: اختيارخ فارس-6000-1400/08/05 | D187: 6000 | E187: 14000805 | F187: 14000327 | G187: 132 | H187: =VLOOKUP(B:B,volatility!A:C,3,0) -> 0.3366926529 | I187: 0.1 | J187: =IFERROR(VLOOKUP(B:B,moamelat!A:K,8,0),"") -> 9460 | K187: =IFERROR(IF((LEFT(A187,1))="ض",CallPrice(J187,D187,G187/365,H187,I187,0),BSMertonPut(J187,D187,G187/365,I187,0,H187)),"") -> 3676.845843 | L187: اختیار خرید | M187: 1000 | N187: =VLOOKUP(B187,moamelat!A:J,10,0) -> -0.73
A188: ضفار8049 | B188: فارس | C188: اختيارخ فارس-7000-1400/08/05 | D188: 7000 | E188: 14000805 | F188: 14000327 | G188: 132 | H188: =VLOOKUP(B:B,volatility!A:C,3,0) -> 0.3366926529 | I188: 0.1 | J188: =IFERROR(VLOOKUP(B:B,moamelat!A:K,8,0),"") -> 9460 | K188: =IFERROR(IF((LEFT(A188,1))="ض",CallPrice(J188,D188,G188/365,H188,I188,0),BSMertonPut(J188,D188,G188/365,I188,0,H188)),"") -> 2740.638457 | L188: اختیار خرید | M188: 1000 | N188: =VLOOKUP(B188,moamelat!A:J,10,0) -> -0.73
A189: ضفار8050 | B189: فارس | C189: اختيارخ فارس-8000-1400/08/05 | D189: 8000 | E189: 14000805 | F189: 14000327 | G189: 132 | H189: =VLOOKUP(B:B,volatility!A:C,3,0) -> 0.3366926529 | I189: 0.1 | J189: =IFERROR(VLOOKUP(B:B,moamelat!A:K,8,0),"") -> 9460 | K189: =IFERROR(IF((LEFT(A189,1))="ض",CallPrice(J189,D189,G189/365,H189,I189,0),BSMertonPut(J189,D189,G189/365,I189,0,H189)),"") -> 1886.02838 | L189: اختیار خرید | M189: 1000 | N189: =VLOOKUP(B189,moamelat!A:J,10,0) -> -0.73
A190: ضفار8051 | B190: فارس | C190: اختيارخ فارس-9000-1400/08/05 | D190: 9000 | E190: 14000805 | F190: 14000327 | G190: 132 | H190: =VLOOKUP(B:B,volatility!A:C,3,0) -> 0.3366926529 | I190: 0.1 | J190: =IFERROR(VLOOKUP(B:B,moamelat!A:K,8,0),"") -> 9460 | K190: =IFERROR(IF((LEFT(A190,1))="ض",CallPrice(J190,D190,G190/365,H190,I190,0),BSMertonPut(J190,D190,G190/365,I190,0,H190)),"") -> 1185.984555 | L190: اختیار خرید | M190: 1000 | N190: =VLOOKUP(B190,moamelat!A:J,10,0) -> -0.73
A191: ضفار8052 | B191: فارس | C191: اختيارخ فارس-10000-1400/08/05 | D191: 10000 | E191: 14000805 | F191: 14000327 | G191: 132 | H191: =VLOOKUP(B:B,volatility!A:C,3,0) -> 0.3366926529 | I191: 0.1 | J191: =IFERROR(VLOOKUP(B:B,moamelat!A:K,8,0),"") -> 9460 | K191: =IFERROR(IF((LEFT(A191,1))="ض",CallPrice(J191,D191,G191/365,H191,I191,0),BSMertonPut(J191,D191,G191/365,I191,0,H191)),"") -> 681.3861545 | L191: اختیار خرید | M191: 1000 | N191: =VLOOKUP(B191,moamelat!A:J,10,0) -> -0.73
A192: ضفار8053 | B192: فارس | C192: اختيارخ فارس-12000-1400/08/05 | D192: 12000 | E192: 14000805 | F192: 14000327 | G192: 132 | H192: =VLOOKUP(B:B,volatility!A:C,3,0) -> 0.3366926529 | I192: 0.1 | J192: =IFERROR(VLOOKUP(B:B,moamelat!A:K,8,0),"") -> 9460 | K192: =IFERROR(IF((LEFT(A192,1))="ض",CallPrice(J192,D192,G192/365,H192,I192,0),BSMertonPut(J192,D192,G192/365,I192,0,H192)),"") -> 177.2816328 | L192: اختیار خرید | M192: 1000 | N192: =VLOOKUP(B192,moamelat!A:J,10,0) -> -0.73
A193: ضفار8054 | B193: فارس | C193: اختيارخ فارس-14000-1400/08/05 | D193: 14000 | E193: 14000805 | F193: 14000327 | G193: 132 | H193: =VLOOKUP(B:B,volatility!A:C,3,0) -> 0.3366926529 | I193: 0.1 | J193: =IFERROR(VLOOKUP(B:B,moamelat!A:K,8,0),"") -> 9460 | K193: =IFERROR(IF((LEFT(A193,1))="ض",CallPrice(J193,D193,G193/365,H193,I193,0),BSMertonPut(J193,D193,G193/365,I193,0,H193)),"") -> 36.20311934 | L193: اختیار خرید | M193: 1000 | N193: =VLOOKUP(B193,moamelat!A:J,10,0) -> -0.73
A194: ضفار8055 | B194: فارس | C194: اختيارخ فارس-16000-1400/08/05 | D194: 16000 | E194: 14000805 | F194: 14000327 | G194: 132 | H194: =VLOOKUP(B:B,volatility!A:C,3,0) -> 0.3366926529 | I194: 0.1 | J194: =IFERROR(VLOOKUP(B:B,moamelat!A:K,8,0),"") -> 9460 | K194: =IFERROR(IF((LEFT(A194,1))="ض",CallPrice(J194,D194,G194/365,H194,I194,0),BSMertonPut(J194,D194,G194/365,I194,0,H194)),"") -> 6.298614645 | L194: اختیار خرید | M194: 1000 | N194: =VLOOKUP(B194,moamelat!A:J,10,0) -> -0.73
A195: طپيك7039 | B195: تاپيكو | C195: اختيارف تاپيكو-7000-1400/07/18 | D195: 7000 | E195: 14000718 | F195: 14000327 | G195: 115 | H195: =VLOOKUP(B:B,volatility!A:C,3,0) -> 0.3463657114 | I195: 0.1 | J195: =IFERROR(VLOOKUP(B:B,moamelat!A:K,8,0),"") -> 10350 | K195: =IFERROR(IF((LEFT(A195,1))="ض",CallPrice(J195,D195,G195/365,H195,I195,0),BSMertonPut(J195,D195,G195/365,I195,0,H195)),"") -> 8.547329165 | L195: اختیار فروش | M195: 1000 | N195: =VLOOKUP(B195,moamelat!A:J,10,0) -> 0.78
A196: طپيك7040 | B196: تاپيكو | C196: اختيارف تاپيكو-8000-1400/07/18 | D196: 8000 | E196: 14000718 | F196: 14000327 | G196: 115 | H196: =VLOOKUP(B:B,volatility!A:C,3,0) -> 0.3463657114 | I196: 0.1 | J196: =IFERROR(VLOOKUP(B:B,moamelat!A:K,8,0),"") -> 10350 | K196: =IFERROR(IF((LEFT(A196,1))="ض",CallPrice(J196,D196,G196/365,H196,I196,0),BSMertonPut(J196,D196,G196/365,I196,0,H196)),"") -> 52.41870998 | L196: اختیار فروش | M196: 1000 | N196: =VLOOKUP(B196,moamelat!A:J,10,0) -> 0.78
A197: طپيك7041 | B197: تاپيكو | C197: اختيارف تاپيكو-9000-1400/07/18 | D197: 9000 | E197: 14000718 | F197: 14000327 | G197: 115 | H197: =VLOOKUP(B:B,volatility!A:C,3,0) -> 0.3463657114 | I197: 0.1 | J197: =IFERROR(VLOOKUP(B:B,moamelat!A:K,8,0),"") -> 10350 | K197: =IFERROR(IF((LEFT(A197,1))="ض",CallPrice(J197,D197,G197/365,H197,I197,0),BSMertonPut(J197,D197,G197/365,I197,0,H197)),"") -> 191.5269244 | L197: اختیار فروش | M197: 1000 | N197: =VLOOKUP(B197,moamelat!A:J,10,0) -> 0.78
A198: طپيك7042 | B198: تاپيكو | C198: اختيارف تاپيكو-10000-1400/07/18 | D198: 10000 | E198: 14000718 | F198: 14000327 | G198: 115 | H198: =VLOOKUP(B:B,volatility!A:C,3,0) -> 0.3463657114 | I198: 0.1 | J198: =IFERROR(VLOOKUP(B:B,moamelat!A:K,8,0),"") -> 10350 | K198: =IFERROR(IF((LEFT(A198,1))="ض",CallPrice(J198,D198,G198/365,H198,I198,0),BSMertonPut(J198,D198,G198/365,I198,0,H198)),"") -> 489.8672569 | L198: اختیار فروش | M198: 1000 | N198: =VLOOKUP(B198,moamelat!A:J,10,0) -> 0.78
A199: طپيك7043 | B199: تاپيكو | C199: اختيارف تاپيكو-12000-1400/07/18 | D199: 12000 | E199: 14000718 | F199: 14000327 | G199: 115 | H199: =VLOOKUP(B:B,volatility!A:C,3,0) -> 0.3463657114 | I199: 0.1 | J199: =IFERROR(VLOOKUP(B:B,moamelat!A:K,8,0),"") -> 10350 | K199: =IFERROR(IF((LEFT(A199,1))="ض",CallPrice(J199,D199,G199/365,H199,I199,0),BSMertonPut(J199,D199,G199/365,I199,0,H199)),"") -> 1637.36306 | L199: اختیار فروش | M199: 1000 | N199: =VLOOKUP(B199,moamelat!A:J,10,0) -> 0.78
A200: طپيك7044 | B200: تاپيكو | C200: اختيارف تاپيكو-14000-1400/07/18 | D200: 14000 | E200: 14000718 | F200: 14000327 | G200: 115 | H200: =VLOOKUP(B:B,volatility!A:C,3,0) -> 0.3463657114 | I200: 0.1 | J200: =IFERROR(VLOOKUP(B:B,moamelat!A:K,8,0),"") -> 10350 | K200: =IFERROR(IF((LEFT(A200,1))="ض",CallPrice(J200,D200,G200/365,H200,I200,0),BSMertonPut(J200,D200,G200/365,I200,0,H200)),"") -> 3301.53097 | L200: اختیار فروش | M200: 1000 | N200: =VLOOKUP(B200,moamelat!A:J,10,0) -> 0.78
... 199 more rows

Sheet volatility (hidden)
A1: نماد | B1: یک ماهه | C1: سه ماهه | D1: شش ماهه
A2: اخابر | B2: 0.3776455325 | C2: 0.3028954317 | D2: 0.3991399796
A3: پارسان | B3: 0.2797840457 | C3: 0.285833215 | D3: 0.4058988325
A4: تاپيكو | B4: 0.3690911943 | C4: 0.3463657114 | D4: 0.4484846044
A5: خپارس | B5: 5.636515319 | C5: 3.265280644 | D5: 2.347217031
A6: خساپا | B6: 0.5578847409 | C6: 0.3836740544 | D6: 0.4603334308 | G6: تاریخ بروز رسانی | H6: 1400/03/28
A7: خودرو | B7: 0.5493888181 | C7: 0.4059111695 | D7: 0.4469192717
A8: شبندر | B8: 0.5338081424 | C8: 0.4038478723 | D8: 0.5047191837
A9: شپنا | B9: 0.4956210693 | C9: 0.4382346705 | D9: 0.4982256634
A10: شتران | B10: 0.4506230236 | C10: 0.4045122317 | D10: 0.4644689095
A11: فارس | B11: 0.3247259471 | C11: 0.3366926529 | D11: 0.4075625698
A12: فخوز | B12: 0.2961084259 | C12: 0.3526206062 | D12: 1.290635305
A13: فملي | B13: 0.3695300248 | C13: 0.3866872211 | D13: 0.8694419027
A14: فولاد | B14: 0.3131779301 | C14: 0.3612922532 | D14: 0.4334358494
A15: كچاد | B15: 0.2601930715 | C15: 0.3096173598 | D15: 0.3691543369
A16: كگل | B16: 0.3315651855 | C16: 0.6177046897 | D16: 0.553798464
A17: وبصادر | B17: 0.5118157336 | C17: 0.401016805 | D17: 0.4439508828
A18: وبملت | B18: 0.8648679334 | C18: 0.5490669117 | D18: 0.5170213593
A19: وپارس | B19: 0.2895355866 | C19: 0.2974307748 | D19: 0.4343901143
A20: وتجارت | B20: 0.4564657928 | C20: 0.3668468069 | D20: 0.4378778407
A21: وغدير | B21: 0.3707277826 | C21: 0.3716089828 | D21: 0.4583135221
A22: ومعادن | B22: 0.3344798209 | C22: 0.8507797342 | D22: 0.6985653653
A23: رمپنا | B23: 0.4060968905 | C23: 0.3320959658 | D23: 0.4212303881
A24: اپال | C24: 0.2397

Sheet moamelat (hidden)
B1: 1 | C1: 2 | D1: 3 | E1: 4 | F1: 5 | G1: 6 | H1: 7 | I1: 8 | J1: 9 | K1: 10 | L1: 11 | M1: 12 | N1: 13 | O1: 14 | P1: 15 | Q1: 16 | R1: 17 | S1: 18 | T1: 19 | U1: 20 | V1: 21 | W1: 22
A2: دیده بان بازار : 1400/3/27 - زمان آخرین معامله : 17:34:28
A3: نماد | B3: نام
A4: ضسپا8039 | B4: اختيارخ خساپا-1200-1400/08/26 | C4: 1 | D4: 2 | E4: 1200000 | F4: 557 | G4: 600 | H4: 600 | I4: 43 | J4: 7.72 | K4: 600 | L4: 43 | M4: 7.72 | N4: 600 | O4: 600 | R4: 1 | S4: 100 | T4: 460 | U4: 568 | V4: 5 | W4: 1
A5: دمعيار | B5: صندوق س. توازن معيار-د | C5: 236 | D5: 21376415 | E5: 216462574935 | F5: 10125 | G5: 10130 | H5: 10130 | I5: 5 | J5: 0.05 | K5: 10126 | L5: 1 | M5: 0.01 | N5: 10126 | O5: 10135 | R5: 1 | S5: 94726 | T5: 10130 | U5: 10135 | V5: 100000 | W5: 2
A6: وتوكا | B6: سرمايه‌گذاري‌توكافولاد(هلدينگ | C6: 963 | D6: 3919639 | E6: 32505934010 | F6: 8460 | G6: 8160 | H6: 8320 | I6: -140 | J6: -1.65 | K6: 8290 | L6: -170 | M6: -2.01 | N6: 8150 | O6: 8460 | P6: 934 | Q6: 8.88 | R6: 3 | S6: 5604 | T6: 8310 | U6: 8320 | V6: 3840 | W6: 1
A7: ونوين | B7: بانك‌اقتصادنوين‌ | C7: 1529 | D7: 28366796 | E7: 122770022351 | F7: 4305 | G7: 4298 | H7: 4348 | I7: 43 | J7: 1 | K7: 4328 | L7: 23 | M7: 0.53 | N7: 4220 | O7: 4380 | P7: 839 | Q7: 5.16 | R7: 2 | S7: 220483 | T7: 4340 | U7: 4356 | V7: 11200 | W7: 3
A8: وخاور | B8: بانك خاورميانه | C8: 223 | D8: 7623404 | E8: 63312810380 | F8: 8290 | G8: 8410 | H8: 8360 | I8: 70 | J8: 0.84 | K8: 8310 | L8: 20 | M8: 0.24 | N8: 8270 | O8: 8410 | P8: 868 | Q8: 9.57 | R8: 2 | S8: 241227 | T8: 8300 | U8: 8360 | V8: 6989 | W8: 1
A9: دسانكو | B9: داروسازي سبحان انكولوژي | C9: 8 | D9: 13612 | E9: 169142712 | F9: 13080 | G9: 12426 | H9: 12426 | I9: -654 | J9: -5 | K9: 13072 | L9: -8 | M9: -0.06 | N9: 12426 | O9: 12426 | P9: 445 | Q9: 29.38 | R9: 0 | S9: 0 | T9: 0 | U9: 12426 | V9: 3450363 | W9: 213
A10: وسخراش | B10: شركت س استان خراسان شمالي | C10: 0 | D10: 0 | E10: 0 | F10: 1369 | G10: 0 | H10: 1302 | I10: -67 | J10: -4.89 | K10: 1369 | L10: 0 | M10: 0 | N10: 0 | O10: 0 | P10: 54 | Q10: 25.35 | R10: 0 | S10: 0 | T10: 0 | U10: 1301 | V10: 18152980 | W10: 288
A11: بسويچ | B11: پارس‌سويچ‌ | C11: 2 | D11: 805 | E11: 20857550 | F11: 27270 | G11: 25910 | H11: 25910 | I11: -1360 | J11: -4.99 | K11: 27270 | L11: 0 | M11: 0 | N11: 25910 | O11: 25910 | P11: 1192 | Q11: 22.88 | R11: 0 | S11: 0 | T11: 0 | U11: 25910 | V11: 1123389 | W11: 136
A12: ضپال2000 | B12: اختيارخ اپال-12000-1401/02/12 | C12: 0 | D12: 0 | E12: 0 | F12: 9700 | G12: 0 | H12: 9700 | I12: 0 | J12: 0 | K12: 9700 | L12: 0 | M12: 0 | N12: 0 | O12: 0 | R12: 0 | S12: 0 | T12: 0 | U12: 9700 | V12: 10 | W12: 1
A13: اراد40 | B13: مرابحه عام دولت4-ش.خ 0207 | C13: 0 | D13: 0 | E13: 0 | F13: 1000000 | G13: 0 | H13: 1000000 | I13: 0 | J13: 0 | K13: 1000000 | L13: 0 | M13: 0 | N13: 0 | O13: 0 | R13: 0 | S13: 0 | T13: 0 | U13: 999700 | V13: 5000 | W13: 1
A14: ضسپا8042 | B14: اختيارخ خساپا-1800-1400/08/26 | C14: 14 | D14: 750 | E14: 152250000 | F14: 200 | G14: 202 | H14: 215 | I14: 15 | J14: 7.5 | K14: 203 | L14: 3 | M14: 1.5 | N14: 202 | O14: 215 | R14: 1 | S14: 2 | T14: 131 | U14: 190 | V14: 200 | W14: 2
A15: ثتوسا | B15: س.توسعه و عمران استان اردبيل | C15: 0 | D15: 0 | E15: 0 | F15: 38840 | G15: 0 | H15: 37678 | I15: -1162 | J15: -2.99 | K15: 38840 | L15: 0 | M15: 0 | N15: 0 | O15: 0 | P15: 348 | Q15: 111.61 | R15: 0 | S15: 0 | T15: 0 | U15: 37675 | V15: 3484235 | W15: 296
A16: ضفلا7001 | B16: اختيارخ فولاد-6420-1400/07/25 | C16: 0 | D16: 0 | E16: 0 | F16: 4033 | G16: 0 | H16: 4050 | I16: 17 | J16: 0.42 | K16: 4033 | L16: 0 | M16: 0 | N16: 0 | O16: 0 | R16: 1 | S16: 5 | T16: 3400 | U16: 4200 | V16: 15 | W16: 1
A17: واعتبار | B17: سرمايه گذاري اعتبار ايران | C17: 225 | D17: 1237289 | E17: 9134831070 | F17: 7520 | G17: 7290 | H17: 7290 | I17: -230 | J17: -3.06 | K17: 7430 | L17: -90 | M17: -1.2 | N17: 7160 | O17: 7600 | P17: 1342 | Q17: 5.54 | R17: 1 | S17: 34350 | T17: 7280 | U17: 7350 | V17: 689 | W17: 1
A18: اراد43 | B18: مرابحه عام دولت4-ش.خ 0205 | C18: 2 | D18: 35000 | E18: 32515000000 | F18: 930000 | G18: 929000 | H18: 929000 | I18: -1000 | J18: -0.11 | K18: 929000 | L18: -1000 | M18: -0.11 | N18: 929000 | O18: 929000 | R18: 2 | S18: 50000 | T18: 924500 | U18: 950000 | V18: 5000 | W18: 1
A19: صفارس307 | B19: صكوك اجاره فارس307- 3ماهه18% | C19: 0 | D19: 0 | E19: 0 | F19: 994700 | G19: 0 | H19: 994700 | I19: 0 | J19: 0 | K19: 994700 | L19: 0 | M19: 0 | N19: 0 | O19: 0 | R19: 4 | S19: 35000 | T19: 994700 | U19: 0 | V19: 0 | W19: 0
A20: وكار | B20: بانك‌ كارآفرين‌ | C20: 442 | D20: 15688917 | E20: 43253182696 | F20: 2761 | G20: 2801 | H20: 2750 | I20: -11 | J20: -0.4 | K20: 2757 | L20: -4 | M20: -0.14 | N20: 2651 | O20: 2801 | P20: 209 | Q20: 13.19 | R20: 1 | S20: 2000 | T20: 2730 | U20: 2775 | V20: 205000 | W20: 2
A21: وبانك | B21: سرمايه گذاري گروه توسعه ملي | C21: 828 | D21: 5660221 | E21: 38700360070 | F21: 6900 | G21: 6800 | H21: 6780 | I21: -120 | J21: -1.74 | K21: 6870 | L21: -30 | M21: -0.43 | N21: 6720 | O21: 6910 | P21: 1561 | Q21: 4.4 | R21: 4 | S21: 16778 | T21: 6770 | U21: 6800 | V21: 50000 | W21: 1
A22: تملي709 | B22: تسهيلات مسكن ب. ملي-آذر97 | C22: 1 | D22: 6 | E22: 5343636 | F22: 937479 | G22: 890606 | H22: 890606 | I22: -46873 | J22: -5 | K22: 890606 | L22: -46873 | M22: -5 | N22: 890606 | O22: 890606 | R22: 0 | S22: 0 | T22: 0 | U22: 890606 | V22: 55 | W22: 3
A23: صايپا412 | B23: صكوك مرابحه سايپا412-3ماهه 16% | C23: 0 | D23: 0 | E23: 0 | F23: 1020000 | G23: 0 | H23: 1020000 | I23: 0 | J23: 0 | K23: 1020000 | L23: 0 | M23: 0 | N23: 0 | O23: 0 | R23: 1 | S23: 1500 | T23: 1000000 | U23: 0 | V23: 0 | W23: 0
A24: ولپارس | B24: ليزينگ پارسيان | C24: 7464 | D24: 4066509 | E24: 15740449186 | F24: 3925 | G24: 3880 | H24: 3850 | I24: -75 | J24: -1.91 | K24: 3871 | L24: -54 | M24: -1.38 | N24: 3825 | O24: 3958 | P24: 368 | Q24: 10.52 | R24: 2 | S24: 104230 | T24: 3850 | U24: 3850 | V24: 74 | W24: 1
A25: ولبهمن | B25: شركت بهمن ليزينگ | C25: 666 | D25: 4340645 | E25: 26471386725 | F25: 5845 | G25: 5940 | H25: 6137 | I25: 292 | J25: 5 | K25: 6098 | L25: 253 | M25: 4.33 | N25: 5781 | O25: 6137 | P25: 1018 | Q25: 5.99 | R25: 7 | S25: 59871 | T25: 6137 | U25: 6199 | V25: 10000 | W25: 1
A26: دانا | B26: بيمه دانا | C26: 1184 | D26: 10103825 | E26: 41866866179 | F26: 4329 | G26: 4240 | H26: 4114 | I26: -215 | J26: -4.97 | K26: 4144 | L26: -185 | M26: -4.27 | N26: 4113 | O26: 4250 | P26: 250 | Q26: 16.58 | R26: 33 | S26: 4400150 | T26: 4113 | U26: 4114 | V26: 70000 | W26: 1
A27: غنوش | B27: نوش‌ مازندران‌ | C27: 8 | D27: 2518 | E27: 123382000 | F27: 51570 | G27: 49000 | H27: 49000 | I27: -2570 | J27: -4.98 | K27: 51550 | L27: -20 | M27: -0.04 | N27: 49000 | O27: 49000 | P27: 2612 | Q27: 19.74 | R27: 0 | S27: 0 | T27: 0 | U27: 49000 | V27: 8090965 | W27: 583
A28: فلوله | B28: لوله‌وماشين‌سازي‌ايران‌ | C28: 668 | D28: 1993567 | E28: 32742991200 | F28: 17240 | G28: 17040 | H28: 16380 | I28: -860 | J28: -4.99 | K28: 16420 | L28: -820 | M28: -4.76 | N28: 16380 | O28: 17470 | P28: 26 | Q28: 631.54 | R28: 0 | S28: 0 | T28: 0 | U28: 16380 | V28: 587530 | W28: 83
A29: صخود041 | B29: ص مرابحه خودرو041- 3ماهه 18% | C29: 0 | D29: 0 | E29: 0 | F29: 1000000 | G29: 0 | H29: 1000000 | I29: 0 | J29: 0 | K29: 1000000 | L29: 0 | M29: 0 | N29: 0 | O29: 0 | R29: 2 | S29: 14995 | T29: 1000000 | U29: 1010000 | V29: 14995 | W29: 2
A30: شبريز | B30: پالايش نفت تبريز | C30: 1471 | D30: 8012733 | E30: 216435039710 | F30: 25920 | G30: 25010 | H30: 27210 | I30: 1290 | J30: 4.98 | K30: 27010 | L30: 1090 | M30: 4.21 | N30: 25010 | O30: 27210 | P30: 2008 | Q30: 13.45 | R30: 294 | S30: 14994300 | T30: 27210 | U30: 27440 | V30: 962 | W30: 1
A31: اخزا907 | B31: اسنادخزانه-م7بودجه99-020704 | C31: 10 | D31: 20568 | E31: 13002091862 | F31: 632890 | G31: 627001 | H31: 634000 | I31: 1110 | J31: 0.18 | K31: 632151 | L31: -739 | M31: -0.12 | N31: 627001 | O31: 634000 | R31: 1 | S31: 8 | T31: 629510 | U31: 634000 | V31: 492 | W31: 1
A32: ضگل8072 | B32: اختيار خ كگل-10000-1400/08/23 | C32: 0 | D32: 0 | E32: 0 | F32: 5750 | G32: 0 | H32: 5750 | I32: 0 | J32: 0 | K32: 5750 | L32: 0 | M32: 0 | N32: 0 | O32: 0 | R32: 1 | S32: 30 | T32: 6200 | U32: 7440 | V32: 10 | W32: 1
A33: خگستر | B33: گسترش‌سرمايه‌گذاري‌ايران‌خودرو | C33: 18035 | D33: 577782038 | E33: 1454684292121 | F33: 2435 | G33: 2390 | H33: 2556 | I33: 121 | J33: 4.97 | K33: 2518 | L33: 83 | M33: 3.41 | N33: 2344 | O33: 2556 | P33: 396 | Q33: 6.36 | R33: 195 | S33: 18017590 | T33: 2556 | U33: 2560 | V33: 7329 | W33: 2
A34: دعبيد | B34: لابراتوارداروسازي‌ دكترعبيدي‌ | C34: 249 | D34: 497880 | E34: 11422571060 | F34: 23280 | G34: 23000 | H34: 23000 | I34: -280 | J34: -1.2 | K34: 23190 | L34: -90 | M34: -0.39 | N34: 22200 | O34: 23190 | P34: 1070 | Q34: 21.67 | R34: 1 | S34: 900 | T34: 22960 | U34: 23180 | V34: 123 | W34: 1
A35: نشار | B35: كارخانجات پشمبافي افشار يزد | C35: 0 | D35: 0 | E35: 0 | F35: 1 | G35: 0 | H35: 1 | I35: 0 | J35: 0 | K35: 1 | L35: 0 | M35: 0 | N35: 0 | O35: 0 | P35: 3676 | Q35: 0 | R35: 2 | S35: 200000 | T35: 1 | U35: 0 | V35: 0 | W35: 0
A36: دومينو4 | B36: اجاره دومينو14040208 | C36: 0 | D36: 0 | E36: 0 | F36: 938400 | G36: 0 | H36: 938400 | I36: 0 | J36: 0 | K36: 938400 | L36: 0 | M36: 0 | N36: 0 | O36: 0 | R36: 1 | S36: 2500 | T36: 938400 | U36: 957167 | V36: 2500 | W36: 1
A37: شسپا | B37: نفت سپاهان | C37: 720 | D37: 2811915 | E37: 42782332580 | F37: 15020 | G37: 14700 | H37: 15240 | I37: 220 | J37: 1.46 | K37: 15160 | L37: 140 | M37: 0.93 | N37: 14700 | O37: 15370 | P37: 1785 | Q37: 8.49 | R37: 1 | S37: 4390 | T37: 15230 | U37: 15250 | V37: 19586 | W37: 3
A38: اراد45 | B38: مرابحه عام دولت4-ش.خ 0107 | C38: 2 | D38: 28000 | E38: 26663000000 | F38: 999999 | G38: 971000 | H38: 950000 | I38: -49999 | J38: -5 | K38: 952250 | L38: -47749 | M38: -4.77 | N38: 950000 | O38: 971000 | R38: 0 | S38: 0 | T38: 0 | U38: 999999 | V38: 10000 | W38: 1
A39: شجم | B39: صنايع پتروشيمي تخت جمشيد | C39: 300 | D39: 2534406 | E39: 22371074458 | F39: 9026 | G39: 8810 | H39: 9097 | I39: 71 | J39: 0.79 | K39: 8832 | L39: -194 | M39: -2.15 | N39: 8756 | O39: 9250 | P39: 916 | Q39: 9.64 | R39: 1 | S39: 5000 | T39: 8950 | U39: 8950 | V39: 545 | W39: 1
A40: كاذر | B40: فرآورده‌هاي‌نسوزآذر | C40: 1874 | D40: 8767956 | E40: 115617098690 | F40: 13120 | G40: 13000 | H40: 13340 | I40: 220 | J40: 1.68 | K40: 13190 | L40: 70 | M40: 0.53 | N40: 12700 | O40: 13540 | P40: 1074 | Q40: 12.28 | R40: 1 | S40: 9622 | T40: 13340 | U40: 13420 | V40: 33084 | W40: 2
A41: فبيرا | B41: بسته‌ بندي‌ ايران‌ | C41: 1 | D41: 2374 | E41: 6972438 | F41: 3091 | G41: 2937 | H41: 2937 | I41: -154 | J41: -4.98 | K41: 3091 | L41: 0 | M41: 0 | N41: 2937 | O41: 2937 | P41: -64 | Q41: -48.3 | R41: 0 | S41: 0 | T41: 0 | U41: 2937 | V41: 10065170 | W41: 200
A42: افق | B42: فروشگاههاي زنجيره اي افق كوروش | C42: 328 | D42: 243433 | E42: 15586543350 | F42: 64330 | G42: 63030 | H42: 64420 | I42: 90 | J42: 0.14 | K42: 64270 | L42: -60 | M42: -0.09 | N42: 63030 | O42: 64500 | P42: 5354 | Q42: 12 | R42: 1 | S42: 507 | T42: 64430 | U42: 64450 | V42: 21438 | W42: 1
A43: كفرآور | B43: فرآورده هاي سيمان شرق | C43: 0 | D43: 0 | E43: 0 | F43: 23563 | G43: 0 | H43: 22386 | I43: -1177 | J43: -5 | K43: 23563 | L43: 0 | M43: 0 | N43: 0 | O43: 0 | P43: 544 | Q43: 43.31 | R43: 0 | S43: 0 | T43: 0 | U43: 22385 | V43: 3891654 | W43: 151
A44: انرژي3 | B44: سايراشخاص بورس انرژي | C44: 41 | D44: 6015 | E44: 1167090450 | F44: 204240 | G44: 194030 | H44: 194030 | I44: -10210 | J44: -5 | K44: 203980 | L44: -260 | M44: -0.13 | N44: 194030 | O44: 194030 | P44: 890 | Q44: 229.19 | R44: 0 | S44: 0 | T44: 0 | U44: 194030 | V44: 998745 | W44: 851
A45: جهرم | B45: پتروشيمي جهرم | C45: 0 | D45: 0 | E45: 0 | F45: 1766 | G45: 0 | H45: 1714 | I45: -52 | J45: -2.94 | K45: 1766 | L45: 0 | M45: 0 | N45: 0 | O45: 0 | P45: 10 | Q45: 176.6 | R45: 0 | S45: 0 | T45: 0 | U45: 1714 | V45: 22117034 | W45: 213
A46: ضمخا7080 | B46: اختيارخ اخابر-5700-1400/07/28 | C46: 0 | D46: 0 | E46: 0 | F46: 1700 | G46: 0 | H46: 1700 | I46: 0 | J46: 0 | K46: 1700 | L46: 0 | M46: 0 | N46: 0 | O46: 0 | R46: 1 | S46: 50 | T46: 700 | U46: 1800 | V46: 15 | W46: 1
A47: تسه9905 | B47: امتياز تسهيلات مسكن مرداد99 | C47: 123 | D47: 1424 | E47: 867280057 | F47: 602785 | G47: 585800 | H47: 610000 | I47: 7215 | J47: 1.2 | K47: 609045 | L47: 6260 | M47: 1.04 | N47: 585800 | O47: 632923 | R47: 1 | S47: 200 | T47: 591011 | U47: 620000 | V47: 2 | W47: 2
A48: كيسون | B48: شركت كيسون | C48: 18 | D48: 27945 | E48: 305187345 | F48: 11376 | G48: 10921 | H48: 10921 | I48: -455 | J48: -4 | K48: 11370 | L48: -6 | M48: -0.05 | N48: 10921 | O48: 10921 | P48: 2233 | Q48: 5.09 | R48: 0 | S48: 0 | T48: 0 | U48: 10921 | V48: 22645197 | W48: 727
A49: تاپكيش | B49: تجارت الكترونيك پارسيان كيش | C49: 43 | D49: 189031 | E49: 2259298512 | F49: 12581 | G49: 11952 | H49: 11952 | I49: -629 | J49: -5 | K49: 12476 | L49: -105 | M49: -0.83 | N49: 11952 | O49: 11952 | P49: 503 | Q49: 24.8 | R49: 0 | S49: 0 | T49: 0 | U49: 11952 | V49: 1341941 | W49: 129
A50: دامين | B50: داروسازي‌ امين‌ | C50: 635 | D50: 5727340 | E50: 20400786639 | F50: 3745 | G50: 3599 | H50: 3558 | I50: -187 | J50: -4.99 | K50: 3562 | L50: -183 | M50: -4.89 | N50: 3558 | O50: 3620 | P50: 303 | Q50: 11.76 | R50: 0 | S50: 0 | T50: 0 | U50: 3558 | V50: 898526 | W50: 36
A51: اراد834 | B51: مرابحه عام دولت83-ش.خ041220 | C51: 2 | D51: 15700000 | E51: 14374450500000 | F51: 1000000 | G51: 915585 | H51: 915540 | I51: -84460 | J51: -8.45 | K51: 915570 | L51: -84430 | M51: -8.44 | N51: 915540 | O51: 915585 | R51: 0 | S51: 0 | T51: 0 | U51: 0 | V51: 0 | W51: 0
A52: زرين | B52: صندوق س. سهام زرين كوروش-س | C52: 68 | D52: 79564 | E52: 737591428 | F52: 9323 | G52: 9230 | H52: 9260 | I52: -63 | J52: -0.68 | K52: 9270 | L52: -53 | M52: -0.57 | N52: 9230 | O52: 9327 | R52: 1 | S52: 100000 | T52: 9270 | U52: 9290 | V52: 15000 | W52: 1
A53: ختور | B53: رادياتور ايران‌ | C53: 10 | D53: 30962 | E53: 518613500 | F53: 17630 | G53: 16750 | H53: 16750 | I53: -880 | J53: -4.99 | K53: 17600 | L53: -30 | M53: -0.17 | N53: 16750 | O53: 16750 | P53: 437 | Q53: 40.27 | R53: 0 | S53: 0 | T53: 0 | U53: 16750 | V53: 7404797 | W53: 706
A54: بوعلي | B54: پتروشيمي بوعلي سينا | C54: 7977 | D54: 1882827 | E54: 81372627570 | F54: 42800 | G54: 42400 | H54: 43620 | I54: 820 | J54: 1.92 | K54: 43220 | L54: 420 | M54: 0.98 | N54: 42400 | O54: 43700 | P54: 5600 | Q54: 7.72 | R54: 1 | S54: 2617 | T54: 43620 | U54: 43630 | V54: 671 | W54: 9
A55: تهران412 | B55: مشاركت ش تهران412-3ماهه18% | C55: 0 | D55: 0 | E55: 0 | F55: 954500 | G55: 0 | H55: 954500 | I55: 0 | J55: 0 | K55: 954500 | L55: 0 | M55: 0 | N55: 0 | O55: 0 | R55: 1 | S55: 100 | T55: 915001 | U55: 0 | V55: 0 | W55: 0
A56: كمنگنز | B56: معادن‌منگنزايران‌ | C56: 348 | D56: 370875 | E56: 22409204130 | F56: 60920 | G56: 60150 | H56: 59700 | I56: -1220 | J56: -2 | K56: 60420 | L56: -500 | M56: -0.82 | N56: 59530 | O56: 61000 | P56: 5829 | Q56: 10.37 | R56: 1 | S56: 500 | T56: 59630 | U56: 59700 | V56: 5447 | W56: 1
A57: لازما | B57: كارخانه هاي صنعتي آزمايش | C57: 0 | D57: 0 | E57: 0 | F57: 33942 | G57: 0 | H57: 32927 | I57: -1015 | J57: -2.99 | K57: 33942 | L57: 0 | M57: 0 | N57: 0 | O57: 0 | P57: 351 | Q57: 96.7 | R57: 0 | S57: 0 | T57: 0 | U57: 32924 | V57: 6831299 | W57: 349
A58: ضغدر8059 | B58: اختيارخ وغدير-12000-1400/08/26 | C58: 0 | D58: 0 | E58: 0 | F58: 900 | G58: 0 | H58: 900 | I58: 0 | J58: 0 | K58: 900 | L58: 0 | M58: 0 | N58: 0 | O58: 0 | R58: 2 | S58: 15 | T58: 620 | U58: 765 | V58: 1 | W58: 1
A59: معيار | B59: سرمايه گذاري معيار صنعت پارس | C59: 341 | D59: 472943 | E59: 23344385090 | F59: 50642 | G59: 51360 | H59: 49123 | I59: -1519 | J59: -3 | K59: 49360 | L59: -1282 | M59: -2.53 | N59: 49123 | O59: 51360 | P59: -80 | Q59: -617 | R59: 0 | S59: 0 | T59: 0 | U59: 49123 | V59: 17931 | W59: 9
A60: كمرجان | B60: بازرگاني و توليدي مرجان كار | C60: 1 | D60: 37 | E60: 5125388 | F60: 145814 | G60: 138524 | H60: 138524 | I60: -7290 | J60: -5 | K60: 145811 | L60: -3 | M60: 0 | N60: 138524 | O60: 138524 | P60: 1754 | Q60: 83.13 | R60: 0 | S60: 0 | T60: 0 | U60: 138524 | V60: 2634539 | W60: 770
A61: غيوان | B61: كيوان | C61: 0 | D61: 0 | E61: 0 | F61: 15350 | G61: 0 | H61: 15657 | I61: 307 | J61: 2 | K61: 15350 | L61: 0 | M61: 0 | N61: 0 | O61: 0 | P61: -473 | Q61: -32.45 | R61: 3 | S61: 16296 | T61: 15657 | U61: 0 | V61: 0 | W61: 0
A62: اراد504 | B62: مرابحه عام دولت5-ش.خ0302 | C62: 1 | D62: 1000000 | E62: 1000000000000 | F62: 1000000 | G62: 1000000 | H62: 1000000 | I62: 0 | J62: 0 | K62: 1000000 | L62: 0 | M62: 0 | N62: 1000000 | O62: 1000000 | R62: 0 | S62: 0 | T62: 0 | U62: 0 | V62: 0 | W62: 0
A63: كرمان | B63: س. توسعه و عمران استان كرمان | C63: 9520 | D63: 309079909 | E63: 363295994644 | F63: 1144 | G63: 1126 | H63: 1194 | I63: 50 | J63: 4.37 | K63: 1175 | L63: 31 | M63: 2.71 | N63: 1126 | O63: 1196 | P63: 29 | Q63: 40.52 | R63: 6 | S63: 267640 | T63: 1193 | U63: 1194 | V63: 94500 | W63: 1
A64: ضمخا7078 | B64: اختيارخ اخابر-7700-1400/07/28 | C64: 2 | D64: 33 | E64: 13266000 | F64: 380 | G64: 402 | H64: 402 | I64: 22 | J64: 5.79 | K64: 402 | L64: 22 | M64: 5.79 | N64: 402 | O64: 402 | R64: 1 | S64: 50 | T64: 401 | U64: 650 | V64: 10 | W64: 1
A65: آسيا | B65: بيمه آسيا | C65: 829 | D65: 17657799 | E65: 30286654359 | F65: 1716 | G65: 1745 | H65: 1735 | I65: 19 | J65: 1.11 | K65: 1715 | L65: -1 | M65: -0.06 | N65: 1671 | O65: 1750 | P65: 311 | Q65: 5.51 | R65: 2 | S65: 5786 | T65: 1734 | U65: 1737 | V65: 5753 | W65: 2
A66: اراد624 | B66: مرابحه عام دولت62-ش.خ0309 | C66: 1 | D66: 500000 | E66: 500000000000 | F66: 1035714 | G66: 1000000 | H66: 1000000 | I66: -35714 | J66: -3.45 | K66: 1000000 | L66: -35714 | M66: -3.45 | N66: 1000000 | O66: 1000000 | R66: 0 | S66: 0 | T66: 0 | U66: 0 | V66: 0 | W66: 0
A67: ضخود7075 | B67: اختيارخ خودرو-2000-1400/07/07 | C67: 914 | D67: 42060 | E67: 10518382000 | F67: 257 | G67: 221 | H67: 259 | I67: 2 | J67: 0.78 | K67: 250 | L67: -7 | M67: -2.72 | N67: 220 | O67: 289 | R67: 1 | S67: 70 | T67: 259 | U67: 259 | V67: 100 | W67: 1
A68: وسرضوي | B68: س.سهام عدالت استان خراسان رضوي | C68: 0 | D68: 0 | E68: 0 | F68: 1030 | G68: 0 | H68: 979 | I68: -51 | J68: -4.95 | K68: 1030 | L68: 0 | M68: 0 | N68: 0 | O68: 0 | P68: 84 | Q68: 12.26 | R68: 0 | S68: 0 | T68: 0 | U68: 979 | V68: 73489190 | W68: 1029
A69: سحرخيز | B69: صندوق س. گروه زعفران سحرخيز | C69: 156 | D69: 713035 | E69: 6141007052 | F69: 8582 | G69: 8597 | H69: 8733 | I69: 151 | J69: 1.76 | K69: 8612 | L69: 30 | M69: 0.35 | N69: 8560 | O69: 8790 | R69: 1 | S69: 700 | T69: 8587 | U69: 8743 | V69: 28890 | W69: 1
A70: غشوكو | B70: شوكو پارس | C70: 119 | D70: 200130 | E70: 4891796270 | F70: 25195 | G70: 24450 | H70: 24440 | I70: -755 | J70: -3 | K70: 24812 | L70: -383 | M70: -1.52 | N70: 24440 | O70: 25090 | P70: 763 | Q70: 32.52 | R70: 0 | S70: 0 | T70: 0 | U70: 24440 | V70: 291004 | W70: 26
A71: ضپنا8008 | B71: اختيارخ رمپنا-32000-1400/08/05 | C71: 0 | D71: 0 | E71: 0 | F71: 1 | G71: 0 | H71: 1 | I71: 0 | J71: 0 | K71: 1 | L71: 0 | M71: 0 | N71: 0 | O71: 0 | R71: 1 | S71: 100 | T71: 1 | U71: 0 | V71: 0 | W71: 0
A72: اروند02 | B72: منفعت صبا اروند امين14001113 | C72: 0 | D72: 0 | E72: 0 | F72: 945000 | G72: 0 | H72: 945000 | I72: 0 | J72: 0 | K72: 945000 | L72: 0 | M72: 0 | N72: 0 | O72: 0 | R72: 1 | S72: 625 | T72: 900000 | U72: 0 | V72: 0 | W72: 0
A73: تابا | B73: تابان نيرو سپاهان | C73: 3 | D73: 595 | E73: 32262685 | F73: 55900 | G73: 54223 | H73: 54223 | I73: -1677 | J73: -3 | K73: 55894 | L73: -6 | M73: -0.01 | N73: 54223 | O73: 54223 | P73: 21 | Q73: 2661.62 | R73: 0 | S73: 0 | T73: 0 | U73: 54223 | V73: 1858548 | W73: 291
A74: ضگل8071 | B74: اختيار خ كگل-9000-1400/08/23 | C74: 0 | D74: 0 | E74: 0 | F74: 6500 | G74: 0 | H74: 6500 | I74: 0 | J74: 0 | K74: 6500 | L74: 0 | M74: 0 | N74: 0 | O74: 0 | R74: 1 | S74: 20 | T74: 6900 | U74: 8000 | V74: 15 | W74: 1
A75: شتران | B75: پالايش نفت تهران | C75: 8719 | D75: 81090228 | E75: 678840402610 | F75: 8310 | G75: 8100 | H75: 8340 | I75: 30 | J75: 0.36 | K75: 8370 | L75: 60 | M75: 0.72 | N75: 8030 | O75: 8590 | P75: 1049 | Q75: 7.98 | R75: 4 | S75: 4331 | T75: 8290 | U75: 8340 | V75: 45000 | W75: 1
A76: اراد47 | B76: مرابحه عام دولت4-ش.خ 0008 | C76: 7 | D76: 70000 | E76: 68949300000 | F76: 982000 | G76: 984990 | H76: 984990 | I76: 2990 | J76: 0.3 | K76: 984990 | L76: 2990 | M76: 0.3 | N76: 984990 | O76: 984990 | R76: 0 | S76: 0 | T76: 0 | U76: 984990 | V76: 16600 | W76: 1
A77: بپاس | B77: بيمه پاسارگاد | C77: 484 | D77: 360164 | E77: 36077279509 | F77: 100010 | G77: 100010 | H77: 100045 | I77: 35 | J77: 0.03 | K77: 100066 | L77: 56 | M77: 0.06 | N77: 100010 | O77: 100900 | P77: 2508 | Q77: 39.9 | R77: 5 | S77: 1044 | T77: 100030 | U77: 100045 | V77: 5718 | W77: 1
A78: تسه9809 | B78: امتياز تسهيلات مسكن آذر98 | C78: 55 | D78: 539 | E78: 333453857 | F78: 596974 | G78: 580299 | H78: 619000 | I78: 22026 | J78: 3.69 | K78: 618653 | L78: 21679 | M78: 3.63 | N78: 580299 | O78: 626822 | R78: 1 | S78: 200 | T78: 591000 | U78: 626822 | V78: 65 | W78: 1
A79: سغرب | B79: سيمان‌غرب‌ | C79: 1138 | D79: 2454510 | E79: 54459760640 | F79: 21650 | G79: 20620 | H79: 22560 | I79: 910 | J79: 4.2 | K79: 22190 | L79: 540 | M79: 2.49 | N79: 20620 | O79: 22700 | P79: 1487 | Q79: 14.92 | R79: 1 | S79: 384 | T79: 22560 | U79: 22570 | V79: 4259 | W79: 2
A80: واميد | B80: گروه مديريت سرمايه گذاري اميد | C80: 264 | D80: 1345763 | E80: 12269438500 | F80: 9560 | G80: 9140 | H80: 9120 | I80: -440 | J80: -4.6 | K80: 9510 | L80: -50 | M80: -0.52 | N80: 9090 | O80: 9300 | P80: 806 | Q80: 11.8 | R80: 3 | S80: 73928 | T80: 9090 | U80: 9180 | V80: 10000 | W80: 1
A81: صخود412 | B81: ص مرابحه خودرو412- 3ماهه 18% | C81: 0 | D81: 0 | E81: 0 | F81: 999286 | G81: 0 | H81: 995000 | I81: -4286 | J81: -0.43 | K81: 999286 | L81: 0 | M81: 0 | N81: 0 | O81: 0 | R81: 2 | S81: 10070 | T81: 995000 | U81: 1000000 | V81: 43 | W81: 2
A82: دكپسول | B82: توليد ژلاتين كپسول ايران | C82: 281 | D82: 295463 | E82: 7471592314 | F82: 25426 | G82: 25000 | H82: 25000 | I82: -426 | J82: -1.68 | K82: 25358 | L82: -68 | M82: -0.27 | N82: 24590 | O82: 25800 | P82: 2529 | Q82: 10.03 | R82: 1 | S82: 5000 | T82: 24627 | U82: 25000 | V82: 5979 | W82: 1
A83: مبين011 | B83: اجاره اعتماد مبين لوتوس010710 | C83: 0 | D83: 0 | E83: 0 | F83: 961000 | G83: 0 | H83: 961000 | I83: 0 | J83: 0 | K83: 961000 | L83: 0 | M83: 0 | N83: 0 | O83: 0 | R83: 1 | S83: 8771 | T83: 961000 | U83: 0 | V83: 0 | W83: 0
A84: پلاست | B84: كارخانجات توليدي پلاستيران | C84: 0 | D84: 0 | E84: 0 | F84: 71597 | G84: 0 | H84: 69452 | I84: -2145 | J84: -3 | K84: 71597 | L84: 0 | M84: 0 | N84: 0 | O84: 0 | P84: 1538 | Q84: 46.55 | R84: 0 | S84: 0 | T84: 0 | U84: 68018 | V84: 1464319 | W84: 256
A85: تسه9810 | B85: امتياز تسهيلات مسكن دي98 | C85: 130 | D85: 2595 | E85: 1582080088 | F85: 597130 | G85: 600000 | H85: 619000 | I85: 21870 | J85: 3.66 | K85: 609665 | L85: 12535 | M85: 2.1 | N85: 591630 | O85: 619000 | R85: 2 | S85: 216 | T85: 603200 | U85: 619998 | V85: 3 | W85: 1
A86: افرا | B86: افرانت | C86: 32 | D86: 18931 | E86: 494004445 | F86: 28994 | G86: 26095 | H86: 26095 | I86: -2899 | J86: -10 | K86: 28888 | L86: -106 | M86: -0.37 | N86: 26095 | O86: 26095 | P86: 1039 | Q86: 27.8 | R86: 0 | S86: 0 | T86: 0 | U86: 0 | V86: 0 | W86: 0
A87: غمارگ | B87: مارگارين‌ | C87: 318 | D87: 584164 | E87: 11116629930 | F87: 19440 | G87: 18820 | H87: 19030 | I87: -410 | J87: -2.11 | K87: 19140 | L87: -300 | M87: -1.54 | N87: 18800 | O87: 19490 | P87: 688 | Q87: 27.82 | R87: 1 | S87: 3450 | T87: 19030 | U87: 19280 | V87: 2859 | W87: 2
A88: حرم03 | B88: منفعت حرم تا حرم 14030714 | C88: 0 | D88: 0 | E88: 0 | F88: 1000000 | G88: 0 | H88: 1000000 | I88: 0 | J88: 0 | K88: 1000000 | L88: 0 | M88: 0 | N88: 0 | O88: 0 | R88: 1 | S88: 2500 | T88: 1000000 | U88: 0 | V88: 0 | W88: 0
A89: چكارن | B89: كارتن‌ ايران‌ | C89: 1047 | D89: 13986396 | E89: 35178830694 | F89: 2631 | G89: 2590 | H89: 2539 | I89: -92 | J89: -3.5 | K89: 2515 | L89: -116 | M89: -4.41 | N89: 2500 | O89: 2610 | P89: 64 | Q89: 39.3 | R89: 1 | S89: 45930 | T89: 2520 | U89: 2539 | V89: 3523 | W89: 1
A90: تبرك | B90: گروه كارخانجات صنعتي تبرك | C90: 4 | D90: 5742 | E90: 95495202 | F90: 17506 | G90: 16631 | H90: 16631 | I90: -875 | J90: -5 | K90: 17500 | L90: -6 | M90: -0.03 | N90: 16631 | O90: 16631 | P90: 476 | Q90: 36.76 | R90: 0 | S90: 0 | T90: 0 | U90: 16631 | V90: 7677448 | W90: 551
A91: كيان | B91: صندوق س. با درآمد ثابت كيان | C91: 2041 | D91: 23855022 | E91: 689544982960 | F91: 28886 | G91: 28905 | H91: 28906 | I91: 20 | J91: 0.07 | K91: 28906 | L91: 20 | M91: 0.07 | N91: 28905 | O91: 28910 | R91: 11 | S91: 378667 | T91: 28905 | U91: 28905 | V91: 100000 | W91: 1
A92: كيان2 | B92: صندوق س. با درآمد ثابت كيان | C92: 134 | D92: 13400000 | E92: 13400000 | F92: 28886 | G92: 1 | H92: 1 | I92: -28885 | J92: -100 | K92: 1 | L92: -28885 | M92: -100 | N92: 1 | O92: 1 | R92: 0 | S92: 0 | T92: 0 | U92: 0 | V92: 0 | W92: 0
A93: تصميم | B93: صندوق س با درآمد ثابت تصميم | C93: 284 | D93: 554263 | E93: 9194251130 | F93: 16580 | G93: 16580 | H93: 16586 | I93: 6 | J93: 0.04 | K93: 16588 | L93: 8 | M93: 0.05 | N93: 16580 | O93: 16605 | R93: 5 | S93: 384572 | T93: 16584 | U93: 16591 | V93: 975 | W93: 3
A94: مارون | B94: پتروشيمي مارون | C94: 107 | D94: 190098 | E94: 26862362756 | F94: 141397 | G94: 140001 | H94: 143774 | I94: 2377 | J94: 1.68 | K94: 141373 | L94: -24 | M94: -0.02 | N94: 140000 | O94: 143776 | P94: 14597 | Q94: 9.69 | R94: 2 | S94: 10050 | T94: 141000 | U94: 144000 | V94: 579 | W94: 3
A95: ضسان7077 | B95: اختيارخ پارسان-16000-00/07/14 | C95: 0 | D95: 0 | E95: 0 | F95: 3600 | G95: 0 | H95: 3600 | I95: 0 | J95: 0 | K95: 3600 | L95: 0 | M95: 0 | N95: 0 | O95: 0 | R95: 1 | S95: 5 | T95: 495 | U95: 4950 | V95: 25 | W95: 1
A96: واحصا | B96: احياء صنايع خراسان | C96: 324 | D96: 2451799 | E96: 117668045603 | F96: 46974 | G96: 48300 | H96: 45565 | I96: -1409 | J96: -3 | K96: 47993 | L96: 1019 | M96: 2.17 | N96: 45565 | O96: 48300 | P96: 1001 | Q96: 47.95 | R96: 0 | S96: 0 | T96: 0 | U96: 45565 | V96: 1505358 | W96: 228
A97: وارس | B97: سرمايه گذاري ارس صبا | C97: 155 | D97: 779225 | E97: 9706785563 | F97: 12840 | G97: 12460 | H97: 12455 | I97: -385 | J97: -3 | K97: 12457 | L97: -383 | M97: -2.98 | N97: 12455 | O97: 12700 | P97: 335 | Q97: 37.19 | R97: 0 | S97: 0 | T97: 0 | U97: 12455 | V97: 1000 | W97: 1
A98: صمعاد212 | B98: صكوك اجاره معادن212-6ماهه21% | C98: 0 | D98: 0 | E98: 0 | F98: 1001006 | G98: 0 | H98: 1001006 | I98: 0 | J98: 0 | K98: 1001006 | L98: 0 | M98: 0 | N98: 0 | O98: 0 | R98: 2 | S98: 18000 | T98: 1000000 | U98: 0 | V98: 0 | W98: 0
A99: ضمخا7076 | B99: اختيارخ اخابر-9700-1400/07/28 | C99: 0 | D99: 0 | E99: 0 | F99: 500 | G99: 0 | H99: 500 | I99: 0 | J99: 0 | K99: 500 | L99: 0 | M99: 0 | N99: 0 | O99: 0 | R99: 1 | S99: 7 | T99: 88 | U99: 450 | V99: 2 | W99: 1
A100: زعف0008پ20 | B100: زعفران0008نگين وحدت جام(پ) | C100: 17 | D100: 9007 | E100: 1114067544 | F100: 121856 | G100: 122300 | H100: 123997 | I100: 2141 | J100: 1.76 | K100: 123689 | L100: 1833 | M100: 1.5 | N100: 122300 | O100: 123997 | R100: 1 | S100: 2000 | T100: 123000 | U100: 124895 | V100: 100 | W100: 1
A101: تملي807 | B101: تسهيلات مسكن ب. ملي-مهر98 | C101: 0 | D101: 0 | E101: 0 | F101: 822539 | G101: 863665 | H101: 822539 | I101: 0 | J101: 0 | K101: 822539 | L101: 0 | M101: 0 | N101: 0 | O101: 0 | R101: 0 | S101: 0 | T101: 0 | U101: 863665 | V101: 5 | W101: 1
A102: تملي702 | B102: تسهيلات مسكن ب. ملي-ارديبهشت97 | C102: 0 | D102: 0 | E102: 0 | F102: 427873 | G102: 449266 | H102: 427873 | I102: 0 | J102: 0 | K102: 427873 | L102: 0 | M102: 0 | N102: 0 | O102: 0 | R102: 5 | S102: 149 | T102: 449266 | U102: 536958 | V102: 160 | W102: 1
A103: ثپرديس | B103: سرمايه گذاري مسكن پرديس | C103: 0 | D103: 0 | E103: 0 | F103: 9806 | G103: 0 | H103: 9317 | I103: -489 | J103: -4.99 | K103: 9806 | L103: 0 | M103: 0 | N103: 0 | O103: 0 | P103: 143 | Q103: 68.57 | R103: 0 | S103: 0 | T103: 0 | U103: 9316 | V103: 22301394 | W103: 483
A104: عكاوه2 | B104: اوراق سلف شمش فولاد كاوه كيش | C104: 0 | D104: 0 | E104: 0 | F104: 4329000 | G104: 0 | H104: 4329000 | I104: 0 | J104: 0 | K104: 4329000 | L104: 0 | M104: 0 | N104: 0 | O104: 0 | R104: 1 | S104: 10000 | T104: 4421537 | U104: 4509968 | V104: 10000 | W104: 1
A105: كمينا | B105: شيشه سازي مينا | C105: 9 | D105: 5883 | E105: 131043825 | F105: 23447 | G105: 22275 | H105: 22275 | I105: -1172 | J105: -5 | K105: 23431 | L105: -16 | M105: -0.07 | N105: 22275 | O105: 22275 | P105: 1588 | Q105: 14.76 | R105: 0 | S105: 0 | T105: 0 | U105: 22275 | V105: 1818247 | W105: 120
A106: فسرب | B106: ملي‌ سرب‌وروي‌ ايران‌ | C106: 671 | D106: 551753 | E106: 27690682130 | F106: 51790 | G106: 50600 | H106: 51000 | I106: -790 | J106: -1.53 | K106: 50190 | L106: -1600 | M106: -3.09 | N106: 49210 | O106: 52990 | P106: 4430 | Q106: 11.33 | R106: 1 | S106: 100 | T106: 50730 | U106: 51000 | V106: 200 | W106: 1
A107: وسپهح | B107: ح . سرمايه‌گذاري‌ سپه‌ | C107: 4 | D107: 18000 | E107: 93600000 | F107: 5200 | G107: 5200 | H107: 5200 | I107: 0 | J107: 0 | K107: 5200 | L107: 0 | M107: 0 | N107: 5200 | O107: 5200 | R107: 1 | S107: 20000 | T107: 4860 | U107: 5200 | V107: 482000 | W107: 4
A108: ضپنا8006 | B108: اختيارخ رمپنا-24000-1400/08/05 | C108: 0 | D108: 0 | E108: 0 | F108: 1 | G108: 0 | H108: 1 | I108: 0 | J108: 0 | K108: 1 | L108: 0 | M108: 0 | N108: 0 | O108: 0 | R108: 1 | S108: 100 | T108: 1 | U108: 0 | V108: 0 | W108: 0
A109: بتك | B109: كارخانجات كابل سازي‌ تك‌ | C109: 0 | D109: 0 | E109: 0 | F109: 34273 | G109: 0 | H109: 34949 | I109: 676 | J109: 1.97 | K109: 34273 | L109: 0 | M109: 0 | N109: 0 | O109: 0 | P109: 212 | Q109: 161.67 | R109: 3 | S109: 11073 | T109: 35643 | U109: 0 | V109: 0 | W109: 0
A110: فروس | B110: فروسيليس‌ ايران‌ | C110: 781 | D110: 9469792 | E110: 49784430050 | F110: 5370 | G110: 5150 | H110: 5400 | I110: 30 | J110: 0.56 | K110: 5260 | L110: -110 | M110: -2.05 | N110: 5150 | O110: 5470 | P110: 643 | Q110: 8.18 | R110: 3 | S110: 120000 | T110: 5450 | U110: 5450 | V110: 12176 | W110: 1
A111: زبينا | B111: كشاورزي و دامپروري بينالود | C111: 793 | D111: 13575341 | E111: 39162612020 | F111: 3031 | G111: 2880 | H111: 2880 | I111: -151 | J111: -4.98 | K111: 2885 | L111: -146 | M111: -4.82 | N111: 2880 | O111: 2940 | P111: 87 | Q111: 33.16 | R111: 0 | S111: 0 | T111: 0 | U111: 2880 | V111: 4412596 | W111: 114
A112: بنو | B112: بيمه تجارت نو | C112: 542 | D112: 2865743 | E112: 60868381320 | F112: 20229 | G112: 21240 | H112: 21240 | I112: 1011 | J112: 5 | K112: 21240 | L112: 1011 | M112: 5 | N112: 21240 | O112: 21240 | P112: 1207 | Q112: 17.6 | R112: 168 | S112: 1441682 | T112: 21240 | U112: 21766 | V112: 3000 | W112: 1
A113: تپكو | B113: توليدتجهيزات‌سنگين‌هپكو | C113: 4 | D113: 19701 | E113: 104257692 | F113: 5400 | G113: 5292 | H113: 5292 | I113: -108 | J113: -2 | K113: 5400 | L113: 0 | M113: 0 | N113: 5292 | O113: 5292 | P113: -64 | Q113: -84.38 | R113: 0 | S113: 0 | T113: 0 | U113: 5292 | V113: 448679788 | W113: 7792
A114: مشهد0212 | B114: مشاركت ش مشهد0212-3ماهه18% | C114: 6 | D114: 60000 | E114: 60000000000 | F114: 1000000 | G114: 1000000 | H114: 1000000 | I114: 0 | J114: 0 | K114: 1000000 | L114: 0 | M114: 0 | N114: 1000000 | O114: 1000000 | R114: 5 | S114: 50000 | T114: 995000 | U114: 0 | V114: 0 | W114: 0
A115: وتوشه | B115: سرمايه‌ گذاري‌ پارس‌ توشه‌ | C115: 473 | D115: 4855403 | E115: 26192854400 | F115: 5550 | G115: 5550 | H115: 5390 | I115: -160 | J115: -2.88 | K115: 5390 | L115: -160 | M115: -2.88 | N115: 5310 | O115: 5550 | P115: 618 | Q115: 8.72 | R115: 2 | S115: 17443 | T115: 5340 | U115: 5390 | V115: 5494 | W115: 2
A116: ضفار8050 | B116: اختيارخ فارس-8000-1400/08/05 | C116: 0 | D116: 0 | E116: 0 | F116: 2100 | G116: 0 | H116: 2100 | I116: 0 | J116: 0 | K116: 2100 | L116: 0 | M116: 0 | N116: 0 | O116: 0 | R116: 1 | S116: 30 | T116: 1250 | U116: 2200 | V116: 10 | W116: 1
A117: تملي810 | B117: تسهيلات مسكن ب. ملي-دي98 | C117: 0 | D117: 0 | E117: 0 | F117: 307937 | G117: 0 | H117: 307937 | I117: 0 | J117: 0 | K117: 307937 | L117: 0 | M117: 0 | N117: 0 | O117: 0 | R117: 2 | S117: 130 | T117: 323333 | U117: 0 | V117: 0 | W117: 0
A118: ضسان7076 | B118: اختيارخ پارسان-14000-00/07/14 | C118: 0 | D118: 0 | E118: 0 | F118: 1 | G118: 0 | H118: 1 | I118: 0 | J118: 0 | K118: 1 | L118: 0 | M118: 0 | N118: 0 | O118: 0 | R118: 1 | S118: 5 | T118: 710 | U118: 7110 | V118: 30 | W118: 1
A119: اروند07 | B119: منفعت صبا اروند نوين 14001113 | C119: 0 | D119: 0 | E119: 0 | F119: 965232 | G119: 0 | H119: 962000 | I119: -3232 | J119: -0.33 | K119: 965232 | L119: 0 | M119: 0 | N119: 0 | O119: 0 | R119: 1 | S119: 625 | T119: 961000 | U119: 0 | V119: 0 | W119: 0
A120: صگل1411 | B120: ص اجاره گل گهر 1411-3 ماهه 17% | C120: 0 | D120: 0 | E120: 0 | F120: 1007724 | G120: 960000 | H120: 1007724 | I120: 0 | J120: 0 | K120: 1007724 | L120: 0 | M120: 0 | N120: 0 | O120: 0 | R120: 1 | S120: 4618 | T120: 955010 | U120: 1200000 | V120: 10 | W120: 1
A121: ضشنا8002 | B121: اختيارخ شپنا-9000-1400/08/16 | C121: 13 | D121: 32 | E121: 117998000 | F121: 3513 | G121: 3300 | H121: 3800 | I121: 287 | J121: 8.17 | K121: 3687 | L121: 174 | M121: 4.95 | N121: 3300 | O121: 3800 | R121: 2 | S121: 7 | T121: 3100 | U121: 3900 | V121: 10 | W121: 1
A122: پست0008پ09 | B122: پسته بادامي30-28مه ولات0008(پ) | C122: 0 | D122: 0 | E122: 0 | F122: 1680000 | G122: 0 | H122: 1680000 | I122: 0 | J122: 0 | K122: 1680000 | L122: 0 | M122: 0 | N122: 0 | O122: 0 | R122: 0 | S122: 0 | T122: 0 | U122: 1764000 | V122: 3 | W122: 1
A123: آريا | B123: پليمر آريا ساسول | C123: 3762 | D123: 2263001 | E123: 188925287566 | F123: 83314 | G123: 82500 | H123: 83560 | I123: 246 | J123: 0.3 | K123: 83484 | L123: 170 | M123: 0.2 | N123: 82200 | O123: 84895 | P123: 12081 | Q123: 6.91 | R123: 1 | S123: 134 | T123: 83600 | U123: 83600 | V123: 15395 | W123: 3
A124: آپ | B124: آسان پرداخت پرشين | C124: 945 | D124: 3811007 | E124: 56077205540 | F124: 14210 | G124: 14470 | H124: 14920 | I124: 710 | J124: 5 | K124: 14710 | L124: 500 | M124: 3.52 | N124: 14000 | O124: 14920 | P124: 814 | Q124: 18.07 | R124: 35 | S124: 646802 | T124: 14920 | U124: 14960 | V124: 1800 | W124: 1
A125: كمند4 | B125: صندوق س. با درآمد ثابت كمند | C125: 1 | D125: 130000000 | E125: 1307800000000 | F125: 10056 | G125: 10060 | H125: 10060 | I125: 4 | J125: 0.04 | K125: 10060 | L125: 4 | M125: 0.04 | N125: 10060 | O125: 10060 | R125: 0 | S125: 0 | T125: 0 | U125: 0 | V125: 0 | W125: 0
A126: ضملي7004 | B126: اختيارخ فملي-14000-1400/07/11 | C126: 16 | D126: 49 | E126: 43445000 | F126: 860 | G126: 1000 | H126: 766 | I126: -94 | J126: -10.93 | K126: 887 | L126: 27 | M126: 3.14 | N126: 766 | O126: 1000 | R126: 1 | S126: 6 | T126: 700 | U126: 799 | V126: 1 | W126: 1
A127: فتوسا | B127: توليد و توسعه سرب روي ايرانيان | C127: 62796 | D127: 12257905 | E127: 170311332070 | F127: 13233 | G127: 13894 | H127: 13894 | I127: 661 | J127: 5 | K127: 13894 | L127: 661 | M127: 5 | N127: 13894 | O127: 13894 | P127: 1059 | Q127: 13.12 | R127: 1362 | S127: 15743310 | T127: 13894 | U127: 13894 | V127: 54 | W127: 2
A128: ضسپا3003 | B128: اختيارخ خساپا-2000-1400/03/26 | C128: 2 | D128: 200 | E128: 200000 | F128: 1 | G128: 1 | H128: 1 | I128: 0 | J128: 0 | K128: 1 | L128: 0 | M128: 0 | N128: 1 | O128: 1 | R128: 0 | S128: 0 | T128: 0 | U128: 1 | V128: 35092 | W128: 368
A129: صخود1404 | B129: صكوك رهني خودرو1404- 3ماهه 16% | C129: 0 | D129: 0 | E129: 0 | F129: 927000 | G129: 0 | H129: 927000 | I129: 0 | J129: 0 | K129: 927000 | L129: 0 | M129: 0 | N129: 0 | O129: 0 | R129: 1 | S129: 2380 | T129: 926800 | U129: 0 | V129: 0 | W129: 0
A130: زعف0008پ08 | B130: زعفران0008نگين روستا(پ) | C130: 6 | D130: 3000 | E130: 371000000 | F130: 123875 | G130: 123500 | H130: 123500 | I130: -375 | J130: -0.3 | K130: 123667 | L130: -208 | M130: -0.17 | N130: 123500 | O130: 124000 | R130: 1 | S130: 100 | T130: 123110 | U130: 125995 | V130: 100 | W130: 1
A131: وسقم | B131: شركت س استان قم | C131: 0 | D131: 0 | E131: 0 | F131: 1410 | G131: 0 | H131: 1340 | I131: -70 | J131: -4.96 | K131: 1410 | L131: 0 | M131: 0 | N131: 0 | O131: 0 | P131: 75 | Q131: 18.8 | R131: 0 | S131: 0 | T131: 0 | U131: 1340 | V131: 22806301 | W131: 425
A132: لسرما | B132: سرما آفرين‌ | C132: 558 | D132: 1405995 | E132: 28714110310 | F132: 20220 | G132: 20400 | H132: 20200 | I132: -20 | J132: -0.1 | K132: 20420 | L132: 200 | M132: 0.99 | N132: 20020 | O132: 20840 | P132: 1628 | Q132: 12.54 | R132: 1 | S132: 130 | T132: 20200 | U132: 20370 | V132: 12100 | W132: 2
A133: وسگيلا | B133: شركت س استان گيلان | C133: 287 | D133: 9551020 | E133: 6257157503 | F133: 684 | G133: 670 | H133: 658 | I133: -26 | J133: -3.8 | K133: 679 | L133: -5 | M133: -0.73 | N133: 650 | O133: 670 | P133: 55 | Q133: 12.35 | R133: 1 | S133: 8000 | T133: 654 | U133: 657 | V133: 53283 | W133: 1
A134: اراد60 | B134: مرابحه عام دولتي6-ش.خ0210 | C134: 0 | D134: 0 | E134: 0 | F134: 959864 | G134: 0 | H134: 970000 | I134: 10136 | J134: 1.06 | K134: 959864 | L134: 0 | M134: 0 | N134: 0 | O134: 0 | R134: 0 | S134: 0 | T134: 0 | U134: 969998 | V134: 24000 | W134: 1
A135: سخواف | B135: سيمان مجد خواف | C135: 2 | D135: 783 | E135: 12705741 | F135: 16728 | G135: 16227 | H135: 16227 | I135: -501 | J135: -2.99 | K135: 16727 | L135: -1 | M135: -0.01 | N135: 16227 | O135: 16227 | P135: -29 | Q135: -576.79 | R135: 0 | S135: 0 | T135: 0 | U135: 16227 | V135: 11488236 | W135: 389
A136: اخزا713 | B136: اسنادخزانه-م13بودجه97-000518 | C136: 7 | D136: 1524 | E136: 1477473482 | F136: 970101 | G136: 966020 | H136: 970101 | I136: 0 | J136: 0 | K136: 969471 | L136: -630 | M136: -0.06 | N136: 966020 | O136: 970500 | R136: 1 | S136: 11752 | T136: 970101 | U136: 977998 | V136: 3364 | W136: 1
A137: كباده | B137: توليد خاك نسوزاستقلال آباده | C137: 0 | D137: 0 | E137: 0 | F137: 8860 | G137: 0 | H137: 9286 | I137: 426 | J137: 4.81 | K137: 8860 | L137: 0 | M137: 0 | N137: 0 | O137: 0 | P137: 1206 | Q137: 7.35 | R137: 37 | S137: 2115927 | T137: 9125 | U137: 0 | V137: 0 | W137: 0
A138: ضغدر8058 | B138: اختيارخ وغدير-10000-1400/08/26 | C138: 9 | D138: 213 | E138: 366450000 | F138: 1775 | G138: 1600 | H138: 1800 | I138: 25 | J138: 1.41 | K138: 1720 | L138: -55 | M138: -3.1 | N138: 1600 | O138: 1800 | R138: 1 | S138: 3 | T138: 1710 | U138: 1800 | V138: 197 | W138: 2
A139: ضمخا7068 | B139: اختيارخ اخابر-15700-1400/07/28 | C139: 0 | D139: 0 | E139: 0 | F139: 251 | G139: 0 | H139: 251 | I139: 0 | J139: 0 | K139: 251 | L139: 0 | M139: 0 | N139: 0 | O139: 0 | R139: 1 | S139: 50 | T139: 12 | U139: 553 | V139: 20 | W139: 1
A140: فنورد | B140: نوردوقطعات‌ فولادي‌ | C140: 195 | D140: 46222 | E140: 7536059660 | F140: 164530 | G140: 162010 | H140: 162400 | I140: -2130 | J140: -1.29 | K140: 163760 | L140: -770 | M140: -0.47 | N140: 161000 | O140: 165800 | P140: 21022 | Q140: 7.79 | R140: 1 | S140: 90 | T140: 162200 | U140: 164500 | V140: 47 | W140: 1
A141: سكه0011پ02 | B141: سكه تمام بهارتحويلي 1روزه ملت | C141: 51 | D141: 12400 | E141: 13247527100 | F141: 1066223 | G141: 1064001 | H141: 1072700 | I141: 6477 | J141: 0.61 | K141: 1068349 | L141: 2126 | M141: 0.2 | N141: 1064001 | O141: 1073000 | R141: 3 | S141: 300 | T141: 1071200 | U141: 1072700 | V141: 900 | W141: 1
A142: شلرد | B142: كود شيميايي اوره لردگان | C142: 768 | D142: 7666778 | E142: 44513125283 | F142: 5671 | G142: 5650 | H142: 5841 | I142: 170 | J142: 3 | K142: 5806 | L142: 135 | M142: 2.38 | N142: 5611 | O142: 5841 | P142: -27 | Q142: -215.04 | R142: 29 | S142: 1142900 | T142: 5841 | U142: 5870 | V142: 50000 | W142: 1
A143: دفارا | B143: داروسازي‌ فارابي‌ | C143: 642 | D143: 903599 | E143: 32610565550 | F143: 37780 | G143: 37170 | H143: 35900 | I143: -1880 | J143: -4.98 | K143: 36090 | L143: -1690 | M143: -4.47 | N143: 35900 | O143: 37220 | P143: 5237 | Q143: 6.89 | R143: 1 | S143: 200 | T143: 26190 | U143: 35900 | V143: 108441 | W143: 11
A144: شكبير | B144: پتروشيمي اميركبير | C144: 235 | D144: 635199 | E144: 56857948167 | F144: 87715 | G144: 87715 | H144: 90100 | I144: 2385 | J144: 2.72 | K144: 88656 | L144: 941 | M144: 1.07 | N144: 86838 | O144: 90324 | P144: 10945 | Q144: 8.1 | R144: 1 | S144: 5438 | T144: 88720 | U144: 90100 | V144: 2934 | W144: 1
A145: وكادو | B145: تكادو | C145: 291 | D145: 871591 | E145: 11549368703 | F145: 13525 | G145: 13223 | H145: 13300 | I145: -225 | J145: -1.66 | K145: 13251 | L145: -274 | M145: -2.03 | N145: 13121 | O145: 13580 | P145: 709 | Q145: 18.69 | R145: 1 | S145: 90934 | T145: 13300 | U145: 13333 | V145: 400 | W145: 1
A146: تملي703 | B146: تسهيلات مسكن ب. ملي-خرداد97 | C146: 0 | D146: 0 | E146: 0 | F146: 785999 | G146: 0 | H146: 785999 | I146: 0 | J146: 0 | K146: 785999 | L146: 0 | M146: 0 | N146: 0 | O146: 0 | R146: 0 | S146: 0 | T146: 0 | U146: 746700 | V146: 280 | W146: 1
A147: هبساز112 | B147: اختيارف ت ثبهساز-2578-01/12/20 | C147: 1 | D147: 200000000 | E147: 200000000 | F147: 1000 | G147: 1 | H147: 1 | I147: -999 | J147: -99.9 | K147: 1 | L147: -999 | M147: -99.9 | N147: 1 | O147: 1 | R147: 0 | S147: 0 | T147: 0 | U147: 0 | V147: 0 | W147: 0
A148: ريل1401 | B148: اجاره ريل كوثر14010509 | C148: 0 | D148: 0 | E148: 0 | F148: 1032077 | G148: 0 | H148: 1032077 | I148: 0 | J148: 0 | K148: 1032077 | L148: 0 | M148: 0 | N148: 0 | O148: 0 | R148: 1 | S148: 375 | T148: 1011840 | U148: 1032077 | V148: 363 | W148: 1
A149: صايپا012 | B149: صكوك مرابحه سايپا012-3ماهه 16% | C149: 0 | D149: 0 | E149: 0 | F149: 1000002 | G149: 0 | H149: 1000002 | I149: 0 | J149: 0 | K149: 1000002 | L149: 0 | M149: 0 | N149: 0 | O149: 0 | R149: 1 | S149: 7846 | T149: 1000001 | U149: 1005000 | V149: 981 | W149: 1
A150: اخزا806 | B150: اسنادخزانه-م6بودجه98-000519 | C150: 8 | D150: 1654 | E150: 1603311991 | F150: 969081 | G150: 969052 | H150: 969201 | I150: 120 | J150: 0.01 | K150: 969354 | L150: 273 | M150: 0.03 | N150: 969052 | O150: 970000 | R150: 1 | S150: 25000 | T150: 969502 | U150: 970999 | V150: 26181 | W150: 2
A151: خموتور | B151: موتورسازان‌تراكتورسازي‌ايران‌ | C151: 696 | D151: 3198587 | E151: 29954153300 | F151: 9820 | G151: 9340 | H151: 9330 | I151: -490 | J151: -4.99 | K151: 9360 | L151: -460 | M151: -4.68 | N151: 9330 | O151: 9550 | P151: 451 | Q151: 20.75 | R151: 2 | S151: 1100 | T151: 9320 | U151: 9330 | V151: 726444 | W151: 80
A152: غگيلا | B152: شيرپاستوريزه پگاه گيلان | C152: 6920 | D152: 1472695 | E152: 23425973156 | F152: 16138 | G152: 15998 | H152: 15785 | I152: -353 | J152: -2.19 | K152: 15907 | L152: -231 | M152: -1.43 | N152: 15602 | O152: 16285 | P152: 369 | Q152: 43.11 | R152: 8 | S152: 11260 | T152: 15780 | U152: 15780 | V152: 7000 | W152: 1
A153: وصنعت | B153: سرمايه گذاري توسعه صنعت وتجارت | C153: 545 | D153: 6568973 | E153: 35546798700 | F153: 5500 | G153: 5420 | H153: 5410 | I153: -90 | J153: -1.64 | K153: 5410 | L153: -90 | M153: -1.64 | N153: 5390 | O153: 5510 | P153: 1178 | Q153: 4.59 | R153: 1 | S153: 10000 | T153: 5420 | U153: 5470 | V153: 795 | W153: 1
A154: كگل2 | B154: معدني و صنعتي گل گهر | C154: 1 | D154: 3000000 | E154: 48150000000 | F154: 15660 | G154: 16050 | H154: 16050 | I154: 390 | J154: 2.49 | K154: 16050 | L154: 390 | M154: 2.49 | N154: 16050 | O154: 16050 | P154: 1311 | Q154: 12.24 | R154: 0 | S154: 0 | T154: 0 | U154: 0 | V154: 0 | W154: 0
A155: كرونا2 | B155: تامين مالي جمعي صرفا اهداي سود | C155: 0 | D155: 0 | E155: 0 | F155: 10000 | G155: 0 | H155: 10000 | I155: 0 | J155: 0 | K155: 10000 | L155: 0 | M155: 0 | N155: 0 | O155: 0 | R155: 0 | S155: 0 | T155: 0 | U155: 10000 | V155: 1100 | W155: 2
A156: غگز | B156: گز سكه | C156: 0 | D156: 0 | E156: 0 | F156: 19300 | G156: 0 | H156: 19300 | I156: 0 | J156: 0 | K156: 19300 | L156: 0 | M156: 0 | N156: 0 | O156: 0 | P156: -589 | Q156: -32.77 | R156: 3 | S156: 122800 | T156: 18800 | U156: 0 | V156: 0 | W156: 0
A157: افاد83 | B157: منفعت دولت8-ش.خاص تمدن0205 | C157: 0 | D157: 0 | E157: 0 | F157: 660000 | G157: 0 | H157: 660000 | I157: 0 | J157: 0 | K157: 660000 | L157: 0 | M157: 0 | N157: 0 | O157: 0 | R157: 2 | S157: 2000 | T157: 693000 | U157: 0 | V157: 0 | W157: 0
A158: وجامي | B158: سرمايه گذاري جامي | C158: 4 | D158: 26985 | E158: 391768230 | F158: 14966 | G158: 14518 | H158: 14518 | I158: -448 | J158: -2.99 | K158: 14948 | L158: -18 | M158: -0.12 | N158: 14518 | O158: 14518 | P158: 746 | Q158: 20.04 | R158: 0 | S158: 0 | T158: 0 | U158: 14518 | V158: 3293072 | W158: 215
A159: كپشير | B159: پشم‌شيشه‌ايران‌ | C159: 13 | D159: 1827 | E159: 63342090 | F159: 36490 | G159: 34670 | H159: 34670 | I159: -1820 | J159: -4.99 | K159: 36480 | L159: -10 | M159: -0.03 | N159: 34670 | O159: 34670 | P159: 695 | Q159: 52.49 | R159: 0 | S159: 0 | T159: 0 | U159: 34670 | V159: 2137531 | W159: 196
A160: سكه0112پ03 | B160: سكه تمام بهارتحويلي1روزه سامان | C160: 49 | D160: 15800 | E160: 16861427000 | F160: 1062777 | G160: 1069999 | H160: 1073001 | I160: 10224 | J160: 0.96 | K160: 1067179 | L160: 4402 | M160: 0.41 | N160: 1064009 | O160: 1073001 | R160: 1 | S160: 900 | T160: 1072009 | U160: 1074995 | V160: 100 | W160: 1
A161: پلاسك | B161: پلاسكوكار | C161: 4 | D161: 4834 | E161: 30985940 | F161: 6740 | G161: 6410 | H161: 6410 | I161: -330 | J161: -4.9 | K161: 6740 | L161: 0 | M161: 0 | N161: 6410 | O161: 6410 | P161: 169 | Q161: 39.88 | R161: 0 | S161: 0 | T161: 0 | U161: 6410 | V161: 7198954 | W161: 218
A162: گنجين | B162: صندوق س. گنجينه يكم آويد-د | C162: 23 | D162: 205928 | E162: 2683937315 | F162: 13032 | G162: 13036 | H162: 13034 | I162: 2 | J162: 0.02 | K162: 13033 | L162: 1 | M162: 0.01 | N162: 13032 | O162: 13039 | R162: 3 | S162: 95185 | T162: 13034 | U162: 13039 | V162: 480 | W162: 1
A163: اوصتا | B163: صندوق انديشه ورزان صباتامين -د | C163: 382 | D163: 32361981 | E163: 612641923244 | F163: 18915 | G163: 18940 | H163: 18940 | I163: 25 | J163: 0.13 | K163: 18931 | L163: 16 | M163: 0.08 | N163: 18930 | O163: 18945 | R163: 1 | S163: 2077 | T163: 18911 | U163: 18944 | V163: 1840 | W163: 1
A164: فنوال | B164: نورد آلومينيوم‌ | C164: 550 | D164: 591930 | E164: 13705696190 | F164: 23770 | G164: 23970 | H164: 23160 | I164: -610 | J164: -2.57 | K164: 23180 | L164: -590 | M164: -2.48 | N164: 22810 | O164: 23980 | P164: 2456 | Q164: 9.44 | R164: 1 | S164: 990 | T164: 23110 | U164: 23160 | V164: 228 | W164: 1
A165: سمتاز | B165: سيمان ممتازان كرمان | C165: 89 | D165: 310424 | E165: 8359407896 | F165: 25647 | G165: 26929 | H165: 26929 | I165: 1282 | J165: 5 | K165: 26576 | L165: 929 | M165: 3.62 | N165: 26929 | O165: 26929 | P165: 1720 | Q165: 15.45 | R165: 43 | S165: 942732 | T165: 26929 | U165: 0 | V165: 0 | W165: 0
A166: اراد44 | B166: مرابحه عام دولت4-ش.خ 0007 | C166: 0 | D166: 0 | E166: 0 | F166: 1050000 | G166: 0 | H166: 1050000 | I166: 0 | J166: 0 | K166: 1050000 | L166: 0 | M166: 0 | N166: 0 | O166: 0 | R166: 0 | S166: 0 | T166: 0 | U166: 999999 | V166: 10000 | W166: 1
A167: خفناور | B167: مهندسي صنعتي روان فن آور | C167: 0 | D167: 0 | E167: 0 | F167: 48187 | G167: 0 | H167: 46743 | I167: -1444 | J167: -3 | K167: 48187 | L167: 0 | M167: 0 | N167: 0 | O167: 0 | P167: 6 | Q167: 8031.17 | R167: 0 | S167: 0 | T167: 0 | U167: 46742 | V167: 3431986 | W167: 361
A168: وسلرستا | B168: شركت س استان لرستان | C168: 1744 | D168: 79757634 | E168: 47173789071 | F168: 610 | G168: 590 | H168: 586 | I168: -24 | J168: -3.93 | K168: 591 | L168: -19 | M168: -3.11 | N168: 585 | O168: 605 | P168: 59 | Q168: 10.02 | R168: 3 | S168: 28600 | T168: 586 | U168: 589 | V168: 88069 | W168: 2
A169: اخزا9112 | B169: اسنادخزانه-م11بودجه99-020906 | C169: 2 | D169: 757150 | E169: 464666175000 | F169: 608039 | G169: 614500 | H169: 612000 | I169: 3961 | J169: 0.65 | K169: 613704 | L169: 5665 | M169: 0.93 | N169: 612000 | O169: 614500 | R169: 0 | S169: 0 | T169: 0 | U169: 0 | V169: 0 | W169: 0
A170: ضپنا8004 | B170: اختيارخ رمپنا-18000-1400/08/05 | C170: 0 | D170: 0 | E170: 0 | F170: 1 | G170: 0 | H170: 1 | I170: 0 | J170: 0 | K170: 1 | L170: 0 | M170: 0 | N170: 0 | O170: 0 | R170: 1 | S170: 100 | T170: 1 | U170: 0 | V170: 0 | W170: 0
A171: شكف | B171: كف | C171: 0 | D171: 0 | E171: 0 | F171: 99862 | G171: 0 | H171: 95891 | I171: -3971 | J171: -3.98 | K171: 99862 | L171: 0 | M171: 0 | N171: 0 | O171: 0 | P171: -4303 | Q171: -23.21 | R171: 0 | S171: 0 | T171: 0 | U171: 95891 | V171: 20056 | W171: 2
A172: ضمخا7067 | B172: اختيارخ اخابر-13700-1400/07/28 | C172: 0 | D172: 0 | E172: 0 | F172: 300 | G172: 0 | H172: 300 | I172: 0 | J172: 0 | K172: 300 | L172: 0 | M172: 0 | N172: 0 | O172: 0 | R172: 1 | S172: 20 | T172: 21 | U172: 222 | V172: 2 | W172: 1
A173: فرابورس | B173: فرابورس ايران | C173: 268 | D173: 4475521 | E173: 116600748613 | F173: 27424 | G173: 26053 | H173: 26053 | I173: -1371 | J173: -5 | K173: 26053 | L173: -1371 | M173: -5 | N173: 26053 | O173: 26053 | P173: 1986 | Q173: 13.12 | R173: 0 | S173: 0 | T173: 0 | U173: 26053 | V173: 13623693 | W173: 1049
A174: امين | B174: تامين سرمايه امين | C174: 3472 | D174: 1242073 | E174: 8844098140 | F174: 7120 | G174: 7120 | H174: 7120 | I174: 0 | J174: 0 | K174: 7120 | L174: 0 | M174: 0 | N174: 7120 | O174: 7130 | P174: 665 | Q174: 10.71 | R174: 6 | S174: 8154 | T174: 7120 | U174: 7130 | V174: 54422 | W174: 120
A175: ومعادن | B175: توسعه‌معادن‌وفلزات‌ | C175: 867 | D175: 6728842 | E175: 52973624220 | F175: 7920 | G175: 7850 | H175: 7880 | I175: -40 | J175: -0.51 | K175: 7900 | L175: -20 | M175: -0.25 | N175: 7800 | O175: 7970 | P175: 554 | Q175: 14.26 | R175: 1 | S175: 1000 | T175: 7880 | U175: 7890 | V175: 103154 | W175: 4
A176: ومهان | B176: گروه توسعه مالي مهر آيندگان | C176: 608 | D176: 1410295 | E176: 17257189190 | F176: 12432 | G176: 11851 | H176: 12250 | I176: -182 | J176: -1.46 | K176: 12363 | L176: -69 | M176: -0.56 | N176: 11851 | O176: 12450 | P176: 2388 | Q176: 5.18 | R176: 2 | S176: 11236 | T176: 12250 | U176: 12280 | V176: 248 | W176: 1
A177: لوتوس | B177: تامين سرمايه لوتوس پارسيان | C177: 182 | D177: 1751349 | E177: 12637994580 | F177: 7220 | G177: 7210 | H177: 7230 | I177: 10 | J177: 0.14 | K177: 7220 | L177: 0 | M177: 0 | N177: 7200 | O177: 7240 | P177: 1011 | Q177: 7.14 | R177: 2 | S177: 20796 | T177: 7220 | U177: 7230 | V177: 5988 | W177: 1
A178: رايان106 | B178: مشاركت رايان سايپا-3ماهه16% | C178: 0 | D178: 0 | E178: 0 | F178: 965392 | G178: 0 | H178: 965392 | I178: 0 | J178: 0 | K178: 965392 | L178: 0 | M178: 0 | N178: 0 | O178: 0 | R178: 1 | S178: 7500 | T178: 965392 | U178: 975046 | V178: 7500 | W178: 1
A179: خكار | B179: ايركا پارت صنعت | C179: 0 | D179: 0 | E179: 0 | F179: 20250 | G179: 0 | H179: 19240 | I179: -1010 | J179: -4.99 | K179: 20250 | L179: 0 | M179: 0 | N179: 0 | O179: 0 | P179: 514 | Q179: 39.4 | R179: 0 | S179: 0 | T179: 0 | U179: 19240 | V179: 16761749 | W179: 505
A180: ارفع | B180: شركت آهن و فولاد ارفع | C180: 488 | D180: 2087274 | E180: 27150326679 | F180: 13066 | G180: 12950 | H180: 12830 | I180: -236 | J180: -1.81 | K180: 13041 | L180: -25 | M180: -0.19 | N180: 12830 | O180: 13200 | P180: 2163 | Q180: 6.03 | R180: 2 | S180: 29500 | T180: 12800 | U180: 12900 | V180: 56450 | W180: 2
A181: فنفت | B181: صنايع تجهيزات نفت | C181: 0 | D181: 0 | E181: 0 | F181: 31324 | G181: 0 | H181: 30387 | I181: -937 | J181: -2.99 | K181: 31324 | L181: 0 | M181: 0 | N181: 0 | O181: 0 | P181: 1630 | Q181: 19.22 | R181: 0 | S181: 0 | T181: 0 | U181: 30385 | V181: 3872020 | W181: 100
A182: صفارس037 | B182: صكوك اجاره فارس037- 3ماهه18% | C182: 0 | D182: 0 | E182: 0 | F182: 1045000 | G182: 0 | H182: 1045000 | I182: 0 | J182: 0 | K182: 1045000 | L182: 0 | M182: 0 | N182: 0 | O182: 0 | R182: 1 | S182: 5000 | T182: 1039775 | U182: 1050225 | V182: 3190 | W182: 1
A183: وسكرشا | B183: س.سهام عدالت استان كرمانشاه | C183: 0 | D183: 0 | E183: 0 | F183: 1260 | G183: 0 | H183: 1197 | I183: -63 | J183: -5 | K183: 1260 | L183: 0 | M183: 0 | N183: 0 | O183: 0 | P183: -31 | Q183: -40.65 | R183: 0 | S183: 0 | T183: 0 | U183: 1197 | V183: 32417567 | W183: 508
A184: وپترو | B184: سرمايه‌گذاري صنايع پتروشيمي‌ | C184: 335 | D184: 657594 | E184: 8408789620 | F184: 12720 | G184: 13140 | H184: 12800 | I184: 80 | J184: 0.63 | K184: 12760 | L184: 40 | M184: 0.31 | N184: 12470 | O184: 13140 | P184: 1106 | Q184: 11.54 | R184: 1 | S184: 3250 | T184: 12700 | U184: 12800 | V184: 5305 | W184: 1
A185: سخند | B185: صندوق س.سپهرخبرگان نفت-د | C185: 9 | D185: 69150 | E185: 691112190 | F185: 10005 | G185: 9960 | H185: 10000 | I185: -5 | J185: -0.05 | K185: 9994 | L185: -11 | M185: -0.11 | N185: 9956 | O185: 10017 | P185: 2906 | Q185: 3.44 | R185: 3 | S185: 100000 | T185: 9999 | U185: 10032 | V185: 500000 | W185: 5
A186: پرداخت | B186: به پرداخت ملت | C186: 205 | D186: 311605 | E186: 7171051160 | F186: 23320 | G186: 23500 | H186: 23280 | I186: -40 | J186: -0.17 | K186: 23240 | L186: -80 | M186: -0.34 | N186: 22700 | O186: 23780 | P186: 1445 | Q186: 16.08 | R186: 1 | S186: 300 | T186: 22700 | U186: 23280 | V186: 440 | W186: 1
A187: ثاباد | B187: توريستي ورفاهي آبادگران ايران | C187: 0 | D187: 0 | E187: 0 | F187: 53890 | G187: 0 | H187: 51200 | I187: -2690 | J187: -4.99 | K187: 53890 | L187: 0 | M187: 0 | N187: 0 | O187: 0 | P187: 507 | Q187: 106.29 | R187: 0 | S187: 0 | T187: 0 | U187: 51200 | V187: 1829263 | W187: 299
A188: ضسپا3004 | B188: اختيارخ خساپا-2500-1400/03/26 | C188: 1 | D188: 6 | E188: 6000 | F188: 1 | G188: 1 | H188: 1 | I188: 0 | J188: 0 | K188: 1 | L188: 0 | M188: 0 | N188: 1 | O188: 1 | R188: 0 | S188: 0 | T188: 0 | U188: 1 | V188: 16413 | W188: 168
A189: شسم | B189: توليد سموم‌ علف‌ كش | C189: 0 | D189: 0 | E189: 0 | F189: 94825 | G189: 0 | H189: 98495 | I189: 3670 | J189: 3.87 | K189: 94825 | L189: 0 | M189: 0 | N189: 0 | O189: 0 | P189: 2345 | Q189: 40.44 | R189: 10 | S189: 32029 | T189: 96721 | U189: 0 | V189: 0 | W189: 0
A190: وثوق | B190: سرمايه گذاري وثوق امين | C190: 35 | D190: 119202 | E190: 1483707294 | F190: 12831 | G190: 12447 | H190: 12447 | I190: -384 | J190: -2.99 | K190: 12768 | L190: -63 | M190: -0.49 | N190: 12447 | O190: 12447 | P190: 298 | Q190: 42.85 | R190: 0 | S190: 0 | T190: 0 | U190: 12447 | V190: 948153 | W190: 56
A191: گپارس | B191: امور رفاهي كارگزاران پارس | C191: 0 | D191: 0 | E191: 0 | F191: 208579 | G191: 0 | H191: 202325 | I191: -6254 | J191: -3 | K191: 208579 | L191: 0 | M191: 0 | N191: 0 | O191: 0 | P191: 449 | Q191: 464.54 | R191: 0 | S191: 0 | T191: 0 | U191: 198151 | V191: 5993 | W191: 3
A192: غشاذر | B192: پگاه‌آذربايجان‌غربي‌ | C192: 10 | D192: 107784 | E192: 906463440 | F192: 8850 | G192: 8410 | H192: 8410 | I192: -440 | J192: -4.97 | K192: 8820 | L192: -30 | M192: -0.34 | N192: 8410 | O192: 8410 | P192: 130 | Q192: 67.85 | R192: 0 | S192: 0 | T192: 0 | U192: 8410 | V192: 8376924 | W192: 341
A193: عفولاد4 | B193: اوراق سلف ورق گرم فولاد اصفهان | C193: 0 | D193: 0 | E193: 0 | F193: 980220 | G193: 0 | H193: 980220 | I193: 0 | J193: 0 | K193: 980220 | L193: 0 | M193: 0 | N193: 0 | O193: 0 | R193: 1 | S193: 116555 | T193: 994577 | U193: 1014469 | V193: 8481 | W193: 1
A194: شاوان | B194: پالايش نفت لاوان | C194: 372 | D194: 344880 | E194: 25464021838 | F194: 72297 | G194: 71850 | H194: 74473 | I194: 2176 | J194: 3.01 | K194: 73456 | L194: 1159 | M194: 1.6 | N194: 70310 | O194: 75100 | P194: 8058 | Q194: 9.12 | R194: 1 | S194: 54255 | T194: 73600 | U194: 74479 | V194: 1950 | W194: 2
A195: اراد214 | B195: مرابحه عام دولت2ش.خ صادرات0212 | C195: 2 | D195: 50000000 | E195: 47456950000000 | F195: 1000000 | G195: 949172 | H195: 949106 | I195: -50894 | J195: -5.09 | K195: 949139 | L195: -50861 | M195: -5.09 | N195: 949106 | O195: 949172 | R195: 0 | S195: 0 | T195: 0 | U195: 0 | V195: 0 | W195: 0
A196: ضسان7079 | B196: اختيارخ پارسان-20000-00/07/14 | C196: 0 | D196: 0 | E196: 0 | F196: 2082 | G196: 0 | H196: 2100 | I196: 18 | J196: 0.86 | K196: 2082 | L196: 0 | M196: 0 | N196: 0 | O196: 0 | R196: 0 | S196: 0 | T196: 0 | U196: 2650 | V196: 10 | W196: 1
A197: اروند08 | B197: منفعت صبا اروند ملت 14001222 | C197: 0 | D197: 0 | E197: 0 | F197: 985000 | G197: 0 | H197: 985000 | I197: 0 | J197: 0 | K197: 985000 | L197: 0 | M197: 0 | N197: 0 | O197: 0 | R197: 1 | S197: 100 | T197: 960001 | U197: 0 | V197: 0 | W197: 0
A198: كاوه | B198: فولاد كاوه جنوب كيش | C198: 683 | D198: 2295830 | E198: 41326630680 | F198: 18030 | G198: 17710 | H198: 17920 | I198: -110 | J198: -0.61 | K198: 18020 | L198: -10 | M198: -0.06 | N198: 17710 | O198: 18230 | P198: 2135 | Q198: 8.44 | R198: 1 | S198: 3000 | T198: 17920 | U198: 17950 | V198: 5000 | W198: 1
A199: دالبر | B199: البرزدارو | C199: 108 | D199: 271530 | E199: 3070331660 | F199: 11710 | G199: 11200 | H199: 11260 | I199: -450 | J199: -3.84 | K199: 11620 | L199: -90 | M199: -0.77 | N199: 11140 | O199: 11690 | P199: 1102 | Q199: 10.54 | R199: 1 | S199: 2000 | T199: 11250 | U199: 11400 | V199: 10000 | W199: 1
A200: بورس | B200: بورس اوراق بهادار تهران | C200: 123 | D200: 540612 | E200: 12055647600 | F200: 23470 | G200: 22300 | H200: 22300 | I200: -1170 | J200: -4.99 | K200: 23070 | L200: -400 | M200: -1.7 | N200: 22300 | O200: 22300 | P200: 2991 | Q200: 7.71 | R200: 0 | S200: 0 | T200: 0 | U200: 22300 | V200: 6641840 | W200: 491
... 935 more rows

Sheet Put dideban (hidden)
A1: نماد | B1: نماداصلی | C1: توضیح | D1: اعمال | E1: تعداد | F1: حجم | G1: ارزش | H1: دیروز | I1: اولین | J1: آخرین معامله - مقدار | K1: آخرین معامله - تغییر | L1: آخرین معامله - درصد | M1: قیمت پایانی - مقدار | N1: قیمت پایانی - تغییر | O1: قیمت پایانی - درصد | P1: کمترین | Q1: بیشترین | R1: EPS | S1: P/E | T1: خرید - تعداد | U1: خرید - حجم | V1: خرید - قیمت | W1: فروش - قیمت | X1: فروش - حجم | Y1: فروش - تعداد | Z1: سهام مورد توجه
A2: طمخا7066 | B2: =IFERROR(VLOOKUP(A:A,constant!A:B,2,0),"") -> اخابر | C2: =IFERROR(VLOOKUP(A:A,constant!A:C,3,0),"") -> اختيارف اخابر-11700-1400/07/28 | D2: =IFERROR(VLOOKUP(A:A,constant!A:D,4,0),"") -> 11700 | E2: =IFERROR(VLOOKUP(A:A,moamelat!A:C,3,0),"") ->  | F2: =IFERROR(VLOOKUP(A:A,moamelat!A:D,4,0),"") ->  | G2: =IFERROR(VLOOKUP(A:A,moamelat!A:E,5,0),"") ->  | H2: =IFERROR(VLOOKUP(A:A,moamelat!A:F,6,0),"") ->  | I2: =IFERROR(VLOOKUP(A:A,moamelat!A:G,7,0),"") ->  | J2: =IFERROR(VLOOKUP(A:A,moamelat!A:H,8,0),"") ->  | K2: =IFERROR(VLOOKUP(A:A,moamelat!A:I,9,0),"") ->  | L2: =IFERROR(VLOOKUP(A:A,moamelat!A:J,10,0),"") ->  | M2: =IFERROR(VLOOKUP(A:A,moamelat!A:K,11,0),"") ->  | N2: =IFERROR(VLOOKUP(A:A,moamelat!A:L,12,0),"") ->  | O2: =IFERROR(VLOOKUP(A:A,moamelat!A:M,13,0),"") ->  | P2: =IFERROR(VLOOKUP(A:A,moamelat!A:N,14,0),"") ->  | Q2: =IFERROR(VLOOKUP(A:A,moamelat!A:O,15,0),"") ->  | R2: =IFERROR(VLOOKUP(A:A,moamelat!A:P,16,0),"") ->  | S2: =IFERROR(VLOOKUP(A:A,moamelat!A:Q,17,0),"") ->  | T2: =IFERROR(VLOOKUP(A:A,moamelat!A:R,18,0),"") ->  | U2: =IFERROR(VLOOKUP(A:A,moamelat!A:S,19,0),"") ->  | V2: =IFERROR(VLOOKUP(A:A,moamelat!A:T,20,0),"") ->  | W2: =VLOOKUP(A:A,moamelat!A:U,21,0) ->  | X2: =IFERROR(VLOOKUP(A:A,moamelat!A:V,22,0),"") ->  | Y2: =IFERROR(VLOOKUP(A:A,moamelat!A:W,23,0),"") ->  | Z2: =IFERROR(IF(W2>0,A2,IF(E2>0,A2,"")),"") -> 
A3: طمخا7067 | B3: =IFERROR(VLOOKUP(A:A,constant!A:B,2,0),"") -> اخابر | C3: =IFERROR(VLOOKUP(A:A,constant!A:C,3,0),"") -> اختيارف اخابر-13700-1400/07/28 | D3: =IFERROR(VLOOKUP(A:A,constant!A:D,4,0),"") -> 13700 | E3: =IFERROR(VLOOKUP(A:A,moamelat!A:C,3,0),"") ->  | F3: =IFERROR(VLOOKUP(A:A,moamelat!A:D,4,0),"") ->  | G3: =IFERROR(VLOOKUP(A:A,moamelat!A:E,5,0),"") ->  | H3: =IFERROR(VLOOKUP(A:A,moamelat!A:F,6,0),"") ->  | I3: =IFERROR(VLOOKUP(A:A,moamelat!A:G,7,0),"") ->  | J3: =IFERROR(VLOOKUP(A:A,moamelat!A:H,8,0),"") ->  | K3: =IFERROR(VLOOKUP(A:A,moamelat!A:I,9,0),"") ->  | L3: =IFERROR(VLOOKUP(A:A,moamelat!A:J,10,0),"") ->  | M3: =IFERROR(VLOOKUP(A:A,moamelat!A:K,11,0),"") ->  | N3: =IFERROR(VLOOKUP(A:A,moamelat!A:L,12,0),"") ->  | O3: =IFERROR(VLOOKUP(A:A,moamelat!A:M,13,0),"") ->  | P3: =IFERROR(VLOOKUP(A:A,moamelat!A:N,14,0),"") ->  | Q3: =IFERROR(VLOOKUP(A:A,moamelat!A:O,15,0),"") ->  | R3: =IFERROR(VLOOKUP(A:A,moamelat!A:P,16,0),"") ->  | S3: =IFERROR(VLOOKUP(A:A,moamelat!A:Q,17,0),"") ->  | T3: =IFERROR(VLOOKUP(A:A,moamelat!A:R,18,0),"") ->  | U3: =IFERROR(VLOOKUP(A:A,moamelat!A:S,19,0),"") ->  | V3: =IFERROR(VLOOKUP(A:A,moamelat!A:T,20,0),"") ->  | W3: =VLOOKUP(A:A,moamelat!A:U,21,0) ->  | X3: =IFERROR(VLOOKUP(A:A,moamelat!A:V,22,0),"") ->  | Y3: =IFERROR(VLOOKUP(A:A,moamelat!A:W,23,0),"") ->  | Z3: =IFERROR(IF(W3>0,A3,IF(E3>0,A3,"")),"") -> 
A4: طمخا7068 | B4: =IFERROR(VLOOKUP(A:A,constant!A:B,2,0),"") -> اخابر | C4: =IFERROR(VLOOKUP(A:A,constant!A:C,3,0),"") -> اختيارف اخابر-15700-1400/07/28 | D4: =IFERROR(VLOOKUP(A:A,constant!A:D,4,0),"") -> 15700 | E4: =IFERROR(VLOOKUP(A:A,moamelat!A:C,3,0),"") ->  | F4: =IFERROR(VLOOKUP(A:A,moamelat!A:D,4,0),"") ->  | G4: =IFERROR(VLOOKUP(A:A,moamelat!A:E,5,0),"") ->  | H4: =IFERROR(VLOOKUP(A:A,moamelat!A:F,6,0),"") ->  | I4: =IFERROR(VLOOKUP(A:A,moamelat!A:G,7,0),"") ->  | J4: =IFERROR(VLOOKUP(A:A,moamelat!A:H,8,0),"") ->  | K4: =IFERROR(VLOOKUP(A:A,moamelat!A:I,9,0),"") ->  | L4: =IFERROR(VLOOKUP(A:A,moamelat!A:J,10,0),"") ->  | M4: =IFERROR(VLOOKUP(A:A,moamelat!A:K,11,0),"") ->  | N4: =IFERROR(VLOOKUP(A:A,moamelat!A:L,12,0),"") ->  | O4: =IFERROR(VLOOKUP(A:A,moamelat!A:M,13,0),"") ->  | P4: =IFERROR(VLOOKUP(A:A,moamelat!A:N,14,0),"") ->  | Q4: =IFERROR(VLOOKUP(A:A,moamelat!A:O,15,0),"") ->  | R4: =IFERROR(VLOOKUP(A:A,moamelat!A:P,16,0),"") ->  | S4: =IFERROR(VLOOKUP(A:A,moamelat!A:Q,17,0),"") ->  | T4: =IFERROR(VLOOKUP(A:A,moamelat!A:R,18,0),"") ->  | U4: =IFERROR(VLOOKUP(A:A,moamelat!A:S,19,0),"") ->  | V4: =IFERROR(VLOOKUP(A:A,moamelat!A:T,20,0),"") ->  | W4: =VLOOKUP(A:A,moamelat!A:U,21,0) ->  | X4: =IFERROR(VLOOKUP(A:A,moamelat!A:V,22,0),"") ->  | Y4: =IFERROR(VLOOKUP(A:A,moamelat!A:W,23,0),"") -> 
A5: طمخا7069 | B5: =IFERROR(VLOOKUP(A:A,constant!A:B,2,0),"") -> اخابر | C5: =IFERROR(VLOOKUP(A:A,constant!A:C,3,0),"") -> اختيارف اخابر-17700-1400/07/28 | D5: =IFERROR(VLOOKUP(A:A,constant!A:D,4,0),"") -> 17700 | E5: =IFERROR(VLOOKUP(A:A,moamelat!A:C,3,0),"") ->  | F5: =IFERROR(VLOOKUP(A:A,moamelat!A:D,4,0),"") ->  | G5: =IFERROR(VLOOKUP(A:A,moamelat!A:E,5,0),"") ->  | H5: =IFERROR(VLOOKUP(A:A,moamelat!A:F,6,0),"") ->  | I5: =IFERROR(VLOOKUP(A:A,moamelat!A:G,7,0),"") ->  | J5: =IFERROR(VLOOKUP(A:A,moamelat!A:H,8,0),"") ->  | K5: =IFERROR(VLOOKUP(A:A,moamelat!A:I,9,0),"") ->  | L5: =IFERROR(VLOOKUP(A:A,moamelat!A:J,10,0),"") ->  | M5: =IFERROR(VLOOKUP(A:A,moamelat!A:K,11,0),"") ->  | N5: =IFERROR(VLOOKUP(A:A,moamelat!A:L,12,0),"") ->  | O5: =IFERROR(VLOOKUP(A:A,moamelat!A:M,13,0),"") ->  | P5: =IFERROR(VLOOKUP(A:A,moamelat!A:N,14,0),"") ->  | Q5: =IFERROR(VLOOKUP(A:A,moamelat!A:O,15,0),"") ->  | R5: =IFERROR(VLOOKUP(A:A,moamelat!A:P,16,0),"") ->  | S5: =IFERROR(VLOOKUP(A:A,moamelat!A:Q,17,0),"") ->  | T5: =IFERROR(VLOOKUP(A:A,moamelat!A:R,18,0),"") ->  | U5: =IFERROR(VLOOKUP(A:A,moamelat!A:S,19,0),"") ->  | V5: =IFERROR(VLOOKUP(A:A,moamelat!A:T,20,0),"") ->  | W5: =VLOOKUP(A:A,moamelat!A:U,21,0) ->  | X5: =IFERROR(VLOOKUP(A:A,moamelat!A:V,22,0),"") ->  | Y5: =IFERROR(VLOOKUP(A:A,moamelat!A:W,23,0),"") -> 
A6: طمخا7070 | B6: =IFERROR(VLOOKUP(A:A,constant!A:B,2,0),"") -> اخابر | C6: =IFERROR(VLOOKUP(A:A,constant!A:C,3,0),"") -> اختيارف اخابر-19700-1400/07/28 | D6: =IFERROR(VLOOKUP(A:A,constant!A:D,4,0),"") -> 19700 | E6: =IFERROR(VLOOKUP(A:A,moamelat!A:C,3,0),"") ->  | F6: =IFERROR(VLOOKUP(A:A,moamelat!A:D,4,0),"") ->  | G6: =IFERROR(VLOOKUP(A:A,moamelat!A:E,5,0),"") ->  | H6: =IFERROR(VLOOKUP(A:A,moamelat!A:F,6,0),"") ->  | I6: =IFERROR(VLOOKUP(A:A,moamelat!A:G,7,0),"") ->  | J6: =IFERROR(VLOOKUP(A:A,moamelat!A:H,8,0),"") ->  | K6: =IFERROR(VLOOKUP(A:A,moamelat!A:I,9,0),"") ->  | L6: =IFERROR(VLOOKUP(A:A,moamelat!A:J,10,0),"") ->  | M6: =IFERROR(VLOOKUP(A:A,moamelat!A:K,11,0),"") ->  | N6: =IFERROR(VLOOKUP(A:A,moamelat!A:L,12,0),"") ->  | O6: =IFERROR(VLOOKUP(A:A,moamelat!A:M,13,0),"") ->  | P6: =IFERROR(VLOOKUP(A:A,moamelat!A:N,14,0),"") ->  | Q6: =IFERROR(VLOOKUP(A:A,moamelat!A:O,15,0),"") ->  | R6: =IFERROR(VLOOKUP(A:A,moamelat!A:P,16,0),"") ->  | S6: =IFERROR(VLOOKUP(A:A,moamelat!A:Q,17,0),"") ->  | T6: =IFERROR(VLOOKUP(A:A,moamelat!A:R,18,0),"") ->  | U6: =IFERROR(VLOOKUP(A:A,moamelat!A:S,19,0),"") ->  | V6: =IFERROR(VLOOKUP(A:A,moamelat!A:T,20,0),"") ->  | W6: =VLOOKUP(A:A,moamelat!A:U,21,0) ->  | X6: =IFERROR(VLOOKUP(A:A,moamelat!A:V,22,0),"") ->  | Y6: =IFERROR(VLOOKUP(A:A,moamelat!A:W,23,0),"") -> 
A7: طمخا7071 | B7: =IFERROR(VLOOKUP(A:A,constant!A:B,2,0),"") -> اخابر | C7: =IFERROR(VLOOKUP(A:A,constant!A:C,3,0),"") -> اختيارف اخابر-23700-1400/07/28 | D7: =IFERROR(VLOOKUP(A:A,constant!A:D,4,0),"") -> 23700 | E7: =IFERROR(VLOOKUP(A:A,moamelat!A:C,3,0),"") -> 0 | F7: =IFERROR(VLOOKUP(A:A,moamelat!A:D,4,0),"") -> 0 | G7: =IFERROR(VLOOKUP(A:A,moamelat!A:E,5,0),"") -> 0 | H7: =IFERROR(VLOOKUP(A:A,moamelat!A:F,6,0),"") -> 17140 | I7: =IFERROR(VLOOKUP(A:A,moamelat!A:G,7,0),"") -> 0 | J7: =IFERROR(VLOOKUP(A:A,moamelat!A:H,8,0),"") -> 17140 | K7: =IFERROR(VLOOKUP(A:A,moamelat!A:I,9,0),"") -> 0 | L7: =IFERROR(VLOOKUP(A:A,moamelat!A:J,10,0),"") -> 0 | M7: =IFERROR(VLOOKUP(A:A,moamelat!A:K,11,0),"") -> 17140 | N7: =IFERROR(VLOOKUP(A:A,moamelat!A:L,12,0),"") -> 0 | O7: =IFERROR(VLOOKUP(A:A,moamelat!A:M,13,0),"") -> 0 | P7: =IFERROR(VLOOKUP(A:A,moamelat!A:N,14,0),"") -> 0 | Q7: =IFERROR(VLOOKUP(A:A,moamelat!A:O,15,0),"") -> 0 | R7: =IFERROR(VLOOKUP(A:A,moamelat!A:P,16,0),"") -> 0 | S7: =IFERROR(VLOOKUP(A:A,moamelat!A:Q,17,0),"") -> 0 | T7: =IFERROR(VLOOKUP(A:A,moamelat!A:R,18,0),"") -> 1 | U7: =IFERROR(VLOOKUP(A:A,moamelat!A:S,19,0),"") -> 10 | V7: =IFERROR(VLOOKUP(A:A,moamelat!A:T,20,0),"") -> 20 | W7: =VLOOKUP(A:A,moamelat!A:U,21,0) -> 0 | X7: =IFERROR(VLOOKUP(A:A,moamelat!A:V,22,0),"") -> 0 | Y7: =IFERROR(VLOOKUP(A:A,moamelat!A:W,23,0),"") -> 0
A8: طمخا7072 | B8: =IFERROR(VLOOKUP(A:A,constant!A:B,2,0),"") -> اخابر | C8: =IFERROR(VLOOKUP(A:A,constant!A:C,3,0),"") -> اختيارف اخابر-27700-1400/07/28 | D8: =IFERROR(VLOOKUP(A:A,constant!A:D,4,0),"") -> 27700 | E8: =IFERROR(VLOOKUP(A:A,moamelat!A:C,3,0),"") ->  | F8: =IFERROR(VLOOKUP(A:A,moamelat!A:D,4,0),"") ->  | G8: =IFERROR(VLOOKUP(A:A,moamelat!A:E,5,0),"") ->  | H8: =IFERROR(VLOOKUP(A:A,moamelat!A:F,6,0),"") ->  | I8: =IFERROR(VLOOKUP(A:A,moamelat!A:G,7,0),"") ->  | J8: =IFERROR(VLOOKUP(A:A,moamelat!A:H,8,0),"") ->  | K8: =IFERROR(VLOOKUP(A:A,moamelat!A:I,9,0),"") ->  | L8: =IFERROR(VLOOKUP(A:A,moamelat!A:J,10,0),"") ->  | M8: =IFERROR(VLOOKUP(A:A,moamelat!A:K,11,0),"") ->  | N8: =IFERROR(VLOOKUP(A:A,moamelat!A:L,12,0),"") ->  | O8: =IFERROR(VLOOKUP(A:A,moamelat!A:M,13,0),"") ->  | P8: =IFERROR(VLOOKUP(A:A,moamelat!A:N,14,0),"") ->  | Q8: =IFERROR(VLOOKUP(A:A,moamelat!A:O,15,0),"") ->  | R8: =IFERROR(VLOOKUP(A:A,moamelat!A:P,16,0),"") ->  | S8: =IFERROR(VLOOKUP(A:A,moamelat!A:Q,17,0),"") ->  | T8: =IFERROR(VLOOKUP(A:A,moamelat!A:R,18,0),"") ->  | U8: =IFERROR(VLOOKUP(A:A,moamelat!A:S,19,0),"") ->  | V8: =IFERROR(VLOOKUP(A:A,moamelat!A:T,20,0),"") ->  | W8: =VLOOKUP(A:A,moamelat!A:U,21,0) ->  | X8: =IFERROR(VLOOKUP(A:A,moamelat!A:V,22,0),"") ->  | Y8: =IFERROR(VLOOKUP(A:A,moamelat!A:W,23,0),"") -> 
A9: طمخا7073 | B9: =IFERROR(VLOOKUP(A:A,constant!A:B,2,0),"") -> اخابر | C9: =IFERROR(VLOOKUP(A:A,constant!A:C,3,0),"") -> اختيارف اخابر-31700-1400/07/28 | D9: =IFERROR(VLOOKUP(A:A,constant!A:D,4,0),"") -> 31700 | E9: =IFERROR(VLOOKUP(A:A,moamelat!A:C,3,0),"") ->  | F9: =IFERROR(VLOOKUP(A:A,moamelat!A:D,4,0),"") ->  | G9: =IFERROR(VLOOKUP(A:A,moamelat!A:E,5,0),"") ->  | H9: =IFERROR(VLOOKUP(A:A,moamelat!A:F,6,0),"") ->  | I9: =IFERROR(VLOOKUP(A:A,moamelat!A:G,7,0),"") ->  | J9: =IFERROR(VLOOKUP(A:A,moamelat!A:H,8,0),"") ->  | K9: =IFERROR(VLOOKUP(A:A,moamelat!A:I,9,0),"") ->  | L9: =IFERROR(VLOOKUP(A:A,moamelat!A:J,10,0),"") ->  | M9: =IFERROR(VLOOKUP(A:A,moamelat!A:K,11,0),"") ->  | N9: =IFERROR(VLOOKUP(A:A,moamelat!A:L,12,0),"") ->  | O9: =IFERROR(VLOOKUP(A:A,moamelat!A:M,13,0),"") ->  | P9: =IFERROR(VLOOKUP(A:A,moamelat!A:N,14,0),"") ->  | Q9: =IFERROR(VLOOKUP(A:A,moamelat!A:O,15,0),"") ->  | R9: =IFERROR(VLOOKUP(A:A,moamelat!A:P,16,0),"") ->  | S9: =IFERROR(VLOOKUP(A:A,moamelat!A:Q,17,0),"") ->  | T9: =IFERROR(VLOOKUP(A:A,moamelat!A:R,18,0),"") ->  | U9: =IFERROR(VLOOKUP(A:A,moamelat!A:S,19,0),"") ->  | V9: =IFERROR(VLOOKUP(A:A,moamelat!A:T,20,0),"") ->  | W9: =VLOOKUP(A:A,moamelat!A:U,21,0) ->  | X9: =IFERROR(VLOOKUP(A:A,moamelat!A:V,22,0),"") ->  | Y9: =IFERROR(VLOOKUP(A:A,moamelat!A:W,23,0),"") -> 
A10: طمخا7074 | B10: =IFERROR(VLOOKUP(A:A,constant!A:B,2,0),"") -> اخابر | C10: =IFERROR(VLOOKUP(A:A,constant!A:C,3,0),"") -> اختيارف اخابر-35700-1400/07/28 | D10: =IFERROR(VLOOKUP(A:A,constant!A:D,4,0),"") -> 35700 | E10: =IFERROR(VLOOKUP(A:A,moamelat!A:C,3,0),"") ->  | F10: =IFERROR(VLOOKUP(A:A,moamelat!A:D,4,0),"") ->  | G10: =IFERROR(VLOOKUP(A:A,moamelat!A:E,5,0),"") ->  | H10: =IFERROR(VLOOKUP(A:A,moamelat!A:F,6,0),"") ->  | I10: =IFERROR(VLOOKUP(A:A,moamelat!A:G,7,0),"") ->  | J10: =IFERROR(VLOOKUP(A:A,moamelat!A:H,8,0),"") ->  | K10: =IFERROR(VLOOKUP(A:A,moamelat!A:I,9,0),"") ->  | L10: =IFERROR(VLOOKUP(A:A,moamelat!A:J,10,0),"") ->  | M10: =IFERROR(VLOOKUP(A:A,moamelat!A:K,11,0),"") ->  | N10: =IFERROR(VLOOKUP(A:A,moamelat!A:L,12,0),"") ->  | O10: =IFERROR(VLOOKUP(A:A,moamelat!A:M,13,0),"") ->  | P10: =IFERROR(VLOOKUP(A:A,moamelat!A:N,14,0),"") ->  | Q10: =IFERROR(VLOOKUP(A:A,moamelat!A:O,15,0),"") ->  | R10: =IFERROR(VLOOKUP(A:A,moamelat!A:P,16,0),"") ->  | S10: =IFERROR(VLOOKUP(A:A,moamelat!A:Q,17,0),"") ->  | T10: =IFERROR(VLOOKUP(A:A,moamelat!A:R,18,0),"") ->  | U10: =IFERROR(VLOOKUP(A:A,moamelat!A:S,19,0),"") ->  | V10: =IFERROR(VLOOKUP(A:A,moamelat!A:T,20,0),"") ->  | W10: =VLOOKUP(A:A,moamelat!A:U,21,0) ->  | X10: =IFERROR(VLOOKUP(A:A,moamelat!A:V,22,0),"") ->  | Y10: =IFERROR(VLOOKUP(A:A,moamelat!A:W,23,0),"") -> 
A11: طمخا7075 | B11: =IFERROR(VLOOKUP(A:A,constant!A:B,2,0),"") -> اخابر | C11: =IFERROR(VLOOKUP(A:A,constant!A:C,3,0),"") -> اختيارف اخابر-8700-1400/07/28 | D11: =IFERROR(VLOOKUP(A:A,constant!A:D,4,0),"") -> 8700 | E11: =IFERROR(VLOOKUP(A:A,moamelat!A:C,3,0),"") ->  | F11: =IFERROR(VLOOKUP(A:A,moamelat!A:D,4,0),"") ->  | G11: =IFERROR(VLOOKUP(A:A,moamelat!A:E,5,0),"") ->  | H11: =IFERROR(VLOOKUP(A:A,moamelat!A:F,6,0),"") ->  | I11: =IFERROR(VLOOKUP(A:A,moamelat!A:G,7,0),"") ->  | J11: =IFERROR(VLOOKUP(A:A,moamelat!A:H,8,0),"") ->  | K11: =IFERROR(VLOOKUP(A:A,moamelat!A:I,9,0),"") ->  | L11: =IFERROR(VLOOKUP(A:A,moamelat!A:J,10,0),"") ->  | M11: =IFERROR(VLOOKUP(A:A,moamelat!A:K,11,0),"") ->  | N11: =IFERROR(VLOOKUP(A:A,moamelat!A:L,12,0),"") ->  | O11: =IFERROR(VLOOKUP(A:A,moamelat!A:M,13,0),"") ->  | P11: =IFERROR(VLOOKUP(A:A,moamelat!A:N,14,0),"") ->  | Q11: =IFERROR(VLOOKUP(A:A,moamelat!A:O,15,0),"") ->  | R11: =IFERROR(VLOOKUP(A:A,moamelat!A:P,16,0),"") ->  | S11: =IFERROR(VLOOKUP(A:A,moamelat!A:Q,17,0),"") ->  | T11: =IFERROR(VLOOKUP(A:A,moamelat!A:R,18,0),"") ->  | U11: =IFERROR(VLOOKUP(A:A,moamelat!A:S,19,0),"") ->  | V11: =IFERROR(VLOOKUP(A:A,moamelat!A:T,20,0),"") ->  | W11: =VLOOKUP(A:A,moamelat!A:U,21,0) ->  | X11: =IFERROR(VLOOKUP(A:A,moamelat!A:V,22,0),"") ->  | Y11: =IFERROR(VLOOKUP(A:A,moamelat!A:W,23,0),"") -> 
A12: طمخا7076 | B12: =IFERROR(VLOOKUP(A:A,constant!A:B,2,0),"") -> اخابر | C12: =IFERROR(VLOOKUP(A:A,constant!A:C,3,0),"") -> اختيارف اخابر-9700-1400/07/28 | D12: =IFERROR(VLOOKUP(A:A,constant!A:D,4,0),"") -> 9700 | E12: =IFERROR(VLOOKUP(A:A,moamelat!A:C,3,0),"") ->  | F12: =IFERROR(VLOOKUP(A:A,moamelat!A:D,4,0),"") ->  | G12: =IFERROR(VLOOKUP(A:A,moamelat!A:E,5,0),"") ->  | H12: =IFERROR(VLOOKUP(A:A,moamelat!A:F,6,0),"") ->  | I12: =IFERROR(VLOOKUP(A:A,moamelat!A:G,7,0),"") ->  | J12: =IFERROR(VLOOKUP(A:A,moamelat!A:H,8,0),"") ->  | K12: =IFERROR(VLOOKUP(A:A,moamelat!A:I,9,0),"") ->  | L12: =IFERROR(VLOOKUP(A:A,moamelat!A:J,10,0),"") ->  | M12: =IFERROR(VLOOKUP(A:A,moamelat!A:K,11,0),"") ->  | N12: =IFERROR(VLOOKUP(A:A,moamelat!A:L,12,0),"") ->  | O12: =IFERROR(VLOOKUP(A:A,moamelat!A:M,13,0),"") ->  | P12: =IFERROR(VLOOKUP(A:A,moamelat!A:N,14,0),"") ->  | Q12: =IFERROR(VLOOKUP(A:A,moamelat!A:O,15,0),"") ->  | R12: =IFERROR(VLOOKUP(A:A,moamelat!A:P,16,0),"") ->  | S12: =IFERROR(VLOOKUP(A:A,moamelat!A:Q,17,0),"") ->  | T12: =IFERROR(VLOOKUP(A:A,moamelat!A:R,18,0),"") ->  | U12: =IFERROR(VLOOKUP(A:A,moamelat!A:S,19,0),"") ->  | V12: =IFERROR(VLOOKUP(A:A,moamelat!A:T,20,0),"") ->  | W12: =VLOOKUP(A:A,moamelat!A:U,21,0) ->  | X12: =IFERROR(VLOOKUP(A:A,moamelat!A:V,22,0),"") ->  | Y12: =IFERROR(VLOOKUP(A:A,moamelat!A:W,23,0),"") -> 
A13: طمخا7077 | B13: =IFERROR(VLOOKUP(A:A,constant!A:B,2,0),"") -> اخابر | C13: =IFERROR(VLOOKUP(A:A,constant!A:C,3,0),"") -> اختيارف اخابر-6700-1400/07/28 | D13: =IFERROR(VLOOKUP(A:A,constant!A:D,4,0),"") -> 6700 | E13: =IFERROR(VLOOKUP(A:A,moamelat!A:C,3,0),"") ->  | F13: =IFERROR(VLOOKUP(A:A,moamelat!A:D,4,0),"") ->  | G13: =IFERROR(VLOOKUP(A:A,moamelat!A:E,5,0),"") ->  | H13: =IFERROR(VLOOKUP(A:A,moamelat!A:F,6,0),"") ->  | I13: =IFERROR(VLOOKUP(A:A,moamelat!A:G,7,0),"") ->  | J13: =IFERROR(VLOOKUP(A:A,moamelat!A:H,8,0),"") ->  | K13: =IFERROR(VLOOKUP(A:A,moamelat!A:I,9,0),"") ->  | L13: =IFERROR(VLOOKUP(A:A,moamelat!A:J,10,0),"") ->  | M13: =IFERROR(VLOOKUP(A:A,moamelat!A:K,11,0),"") ->  | N13: =IFERROR(VLOOKUP(A:A,moamelat!A:L,12,0),"") ->  | O13: =IFERROR(VLOOKUP(A:A,moamelat!A:M,13,0),"") ->  | P13: =IFERROR(VLOOKUP(A:A,moamelat!A:N,14,0),"") ->  | Q13: =IFERROR(VLOOKUP(A:A,moamelat!A:O,15,0),"") ->  | R13: =IFERROR(VLOOKUP(A:A,moamelat!A:P,16,0),"") ->  | S13: =IFERROR(VLOOKUP(A:A,moamelat!A:Q,17,0),"") ->  | T13: =IFERROR(VLOOKUP(A:A,moamelat!A:R,18,0),"") ->  | U13: =IFERROR(VLOOKUP(A:A,moamelat!A:S,19,0),"") ->  | V13: =IFERROR(VLOOKUP(A:A,moamelat!A:T,20,0),"") ->  | W13: =VLOOKUP(A:A,moamelat!A:U,21,0) ->  | X13: =IFERROR(VLOOKUP(A:A,moamelat!A:V,22,0),"") ->  | Y13: =IFERROR(VLOOKUP(A:A,moamelat!A:W,23,0),"") -> 
A14: طمخا7078 | B14: =IFERROR(VLOOKUP(A:A,constant!A:B,2,0),"") -> اخابر | C14: =IFERROR(VLOOKUP(A:A,constant!A:C,3,0),"") -> اختيارف اخابر-7700-1400/07/28 | D14: =IFERROR(VLOOKUP(A:A,constant!A:D,4,0),"") -> 7700 | E14: =IFERROR(VLOOKUP(A:A,moamelat!A:C,3,0),"") ->  | F14: =IFERROR(VLOOKUP(A:A,moamelat!A:D,4,0),"") ->  | G14: =IFERROR(VLOOKUP(A:A,moamelat!A:E,5,0),"") ->  | H14: =IFERROR(VLOOKUP(A:A,moamelat!A:F,6,0),"") ->  | I14: =IFERROR(VLOOKUP(A:A,moamelat!A:G,7,0),"") ->  | J14: =IFERROR(VLOOKUP(A:A,moamelat!A:H,8,0),"") ->  | K14: =IFERROR(VLOOKUP(A:A,moamelat!A:I,9,0),"") ->  | L14: =IFERROR(VLOOKUP(A:A,moamelat!A:J,10,0),"") ->  | M14: =IFERROR(VLOOKUP(A:A,moamelat!A:K,11,0),"") ->  | N14: =IFERROR(VLOOKUP(A:A,moamelat!A:L,12,0),"") ->  | O14: =IFERROR(VLOOKUP(A:A,moamelat!A:M,13,0),"") ->  | P14: =IFERROR(VLOOKUP(A:A,moamelat!A:N,14,0),"") ->  | Q14: =IFERROR(VLOOKUP(A:A,moamelat!A:O,15,0),"") ->  | R14: =IFERROR(VLOOKUP(A:A,moamelat!A:P,16,0),"") ->  | S14: =IFERROR(VLOOKUP(A:A,moamelat!A:Q,17,0),"") ->  | T14: =IFERROR(VLOOKUP(A:A,moamelat!A:R,18,0),"") ->  | U14: =IFERROR(VLOOKUP(A:A,moamelat!A:S,19,0),"") ->  | V14: =IFERROR(VLOOKUP(A:A,moamelat!A:T,20,0),"") ->  | W14: =VLOOKUP(A:A,moamelat!A:U,21,0) ->  | X14: =IFERROR(VLOOKUP(A:A,moamelat!A:V,22,0),"") ->  | Y14: =IFERROR(VLOOKUP(A:A,moamelat!A:W,23,0),"") -> 
A15: طچاد7030 | B15: =IFERROR(VLOOKUP(A:A,constant!A:B,2,0),"") -> كچاد | C15: =IFERROR(VLOOKUP(A:A,constant!A:C,3,0),"") -> اختيارف كچاد-14000-1400/07/04 | D15: =IFERROR(VLOOKUP(A:A,constant!A:D,4,0),"") -> 14000 | E15: =IFERROR(VLOOKUP(A:A,moamelat!A:C,3,0),"") ->  | F15: =IFERROR(VLOOKUP(A:A,moamelat!A:D,4,0),"") ->  | G15: =IFERROR(VLOOKUP(A:A,moamelat!A:E,5,0),"") ->  | H15: =IFERROR(VLOOKUP(A:A,moamelat!A:F,6,0),"") ->  | I15: =IFERROR(VLOOKUP(A:A,moamelat!A:G,7,0),"") ->  | J15: =IFERROR(VLOOKUP(A:A,moamelat!A:H,8,0),"") ->  | K15: =IFERROR(VLOOKUP(A:A,moamelat!A:I,9,0),"") ->  | L15: =IFERROR(VLOOKUP(A:A,moamelat!A:J,10,0),"") ->  | M15: =IFERROR(VLOOKUP(A:A,moamelat!A:K,11,0),"") ->  | N15: =IFERROR(VLOOKUP(A:A,moamelat!A:L,12,0),"") ->  | O15: =IFERROR(VLOOKUP(A:A,moamelat!A:M,13,0),"") ->  | P15: =IFERROR(VLOOKUP(A:A,moamelat!A:N,14,0),"") ->  | Q15: =IFERROR(VLOOKUP(A:A,moamelat!A:O,15,0),"") ->  | R15: =IFERROR(VLOOKUP(A:A,moamelat!A:P,16,0),"") ->  | S15: =IFERROR(VLOOKUP(A:A,moamelat!A:Q,17,0),"") ->  | T15: =IFERROR(VLOOKUP(A:A,moamelat!A:R,18,0),"") ->  | U15: =IFERROR(VLOOKUP(A:A,moamelat!A:S,19,0),"") ->  | V15: =IFERROR(VLOOKUP(A:A,moamelat!A:T,20,0),"") ->  | W15: =VLOOKUP(A:A,moamelat!A:U,21,0) ->  | X15: =IFERROR(VLOOKUP(A:A,moamelat!A:V,22,0),"") ->  | Y15: =IFERROR(VLOOKUP(A:A,moamelat!A:W,23,0),"") -> 
A16: طچاد7031 | B16: =IFERROR(VLOOKUP(A:A,constant!A:B,2,0),"") -> كچاد | C16: =IFERROR(VLOOKUP(A:A,constant!A:C,3,0),"") -> اختيارف كچاد-16000-1400/07/04 | D16: =IFERROR(VLOOKUP(A:A,constant!A:D,4,0),"") -> 16000 | E16: =IFERROR(VLOOKUP(A:A,moamelat!A:C,3,0),"") ->  | F16: =IFERROR(VLOOKUP(A:A,moamelat!A:D,4,0),"") ->  | G16: =IFERROR(VLOOKUP(A:A,moamelat!A:E,5,0),"") ->  | H16: =IFERROR(VLOOKUP(A:A,moamelat!A:F,6,0),"") ->  | I16: =IFERROR(VLOOKUP(A:A,moamelat!A:G,7,0),"") ->  | J16: =IFERROR(VLOOKUP(A:A,moamelat!A:H,8,0),"") ->  | K16: =IFERROR(VLOOKUP(A:A,moamelat!A:I,9,0),"") ->  | L16: =IFERROR(VLOOKUP(A:A,moamelat!A:J,10,0),"") ->  | M16: =IFERROR(VLOOKUP(A:A,moamelat!A:K,11,0),"") ->  | N16: =IFERROR(VLOOKUP(A:A,moamelat!A:L,12,0),"") ->  | O16: =IFERROR(VLOOKUP(A:A,moamelat!A:M,13,0),"") ->  | P16: =IFERROR(VLOOKUP(A:A,moamelat!A:N,14,0),"") ->  | Q16: =IFERROR(VLOOKUP(A:A,moamelat!A:O,15,0),"") ->  | R16: =IFERROR(VLOOKUP(A:A,moamelat!A:P,16,0),"") ->  | S16: =IFERROR(VLOOKUP(A:A,moamelat!A:Q,17,0),"") ->  | T16: =IFERROR(VLOOKUP(A:A,moamelat!A:R,18,0),"") ->  | U16: =IFERROR(VLOOKUP(A:A,moamelat!A:S,19,0),"") ->  | V16: =IFERROR(VLOOKUP(A:A,moamelat!A:T,20,0),"") ->  | W16: =VLOOKUP(A:A,moamelat!A:U,21,0) ->  | X16: =IFERROR(VLOOKUP(A:A,moamelat!A:V,22,0),"") ->  | Y16: =IFERROR(VLOOKUP(A:A,moamelat!A:W,23,0),"") -> 
A17: طچاد7032 | B17: =IFERROR(VLOOKUP(A:A,constant!A:B,2,0),"") -> كچاد | C17: =IFERROR(VLOOKUP(A:A,constant!A:C,3,0),"") -> اختيارف كچاد-18000-1400/07/04 | D17: =IFERROR(VLOOKUP(A:A,constant!A:D,4,0),"") -> 18000 | E17: =IFERROR(VLOOKUP(A:A,moamelat!A:C,3,0),"") ->  | F17: =IFERROR(VLOOKUP(A:A,moamelat!A:D,4,0),"") ->  | G17: =IFERROR(VLOOKUP(A:A,moamelat!A:E,5,0),"") ->  | H17: =IFERROR(VLOOKUP(A:A,moamelat!A:F,6,0),"") ->  | I17: =IFERROR(VLOOKUP(A:A,moamelat!A:G,7,0),"") ->  | J17: =IFERROR(VLOOKUP(A:A,moamelat!A:H,8,0),"") ->  | K17: =IFERROR(VLOOKUP(A:A,moamelat!A:I,9,0),"") ->  | L17: =IFERROR(VLOOKUP(A:A,moamelat!A:J,10,0),"") ->  | M17: =IFERROR(VLOOKUP(A:A,moamelat!A:K,11,0),"") ->  | N17: =IFERROR(VLOOKUP(A:A,moamelat!A:L,12,0),"") ->  | O17: =IFERROR(VLOOKUP(A:A,moamelat!A:M,13,0),"") ->  | P17: =IFERROR(VLOOKUP(A:A,moamelat!A:N,14,0),"") ->  | Q17: =IFERROR(VLOOKUP(A:A,moamelat!A:O,15,0),"") ->  | R17: =IFERROR(VLOOKUP(A:A,moamelat!A:P,16,0),"") ->  | S17: =IFERROR(VLOOKUP(A:A,moamelat!A:Q,17,0),"") ->  | T17: =IFERROR(VLOOKUP(A:A,moamelat!A:R,18,0),"") ->  | U17: =IFERROR(VLOOKUP(A:A,moamelat!A:S,19,0),"") ->  | V17: =IFERROR(VLOOKUP(A:A,moamelat!A:T,20,0),"") ->  | W17: =VLOOKUP(A:A,moamelat!A:U,21,0) ->  | X17: =IFERROR(VLOOKUP(A:A,moamelat!A:V,22,0),"") ->  | Y17: =IFERROR(VLOOKUP(A:A,moamelat!A:W,23,0),"") -> 
A18: طچاد7033 | B18: =IFERROR(VLOOKUP(A:A,constant!A:B,2,0),"") -> كچاد | C18: =IFERROR(VLOOKUP(A:A,constant!A:C,3,0),"") -> اختيارف كچاد-20000-1400/07/04 | D18: =IFERROR(VLOOKUP(A:A,constant!A:D,4,0),"") -> 20000 | E18: =IFERROR(VLOOKUP(A:A,moamelat!A:C,3,0),"") ->  | F18: =IFERROR(VLOOKUP(A:A,moamelat!A:D,4,0),"") ->  | G18: =IFERROR(VLOOKUP(A:A,moamelat!A:E,5,0),"") ->  | H18: =IFERROR(VLOOKUP(A:A,moamelat!A:F,6,0),"") ->  | I18: =IFERROR(VLOOKUP(A:A,moamelat!A:G,7,0),"") ->  | J18: =IFERROR(VLOOKUP(A:A,moamelat!A:H,8,0),"") ->  | K18: =IFERROR(VLOOKUP(A:A,moamelat!A:I,9,0),"") ->  | L18: =IFERROR(VLOOKUP(A:A,moamelat!A:J,10,0),"") ->  | M18: =IFERROR(VLOOKUP(A:A,moamelat!A:K,11,0),"") ->  | N18: =IFERROR(VLOOKUP(A:A,moamelat!A:L,12,0),"") ->  | O18: =IFERROR(VLOOKUP(A:A,moamelat!A:M,13,0),"") ->  | P18: =IFERROR(VLOOKUP(A:A,moamelat!A:N,14,0),"") ->  | Q18: =IFERROR(VLOOKUP(A:A,moamelat!A:O,15,0),"") ->  | R18: =IFERROR(VLOOKUP(A:A,moamelat!A:P,16,0),"") ->  | S18: =IFERROR(VLOOKUP(A:A,moamelat!A:Q,17,0),"") ->  | T18: =IFERROR(VLOOKUP(A:A,moamelat!A:R,18,0),"") ->  | U18: =IFERROR(VLOOKUP(A:A,moamelat!A:S,19,0),"") ->  | V18: =IFERROR(VLOOKUP(A:A,moamelat!A:T,20,0),"") ->  | W18: =VLOOKUP(A:A,moamelat!A:U,21,0) ->  | X18: =IFERROR(VLOOKUP(A:A,moamelat!A:V,22,0),"") ->  | Y18: =IFERROR(VLOOKUP(A:A,moamelat!A:W,23,0),"") -> 
A19: طچاد7034 | B19: =IFERROR(VLOOKUP(A:A,constant!A:B,2,0),"") -> كچاد | C19: =IFERROR(VLOOKUP(A:A,constant!A:C,3,0),"") -> اختيارف كچاد-24000-1400/07/04 | D19: =IFERROR(VLOOKUP(A:A,constant!A:D,4,0),"") -> 24000 | E19: =IFERROR(VLOOKUP(A:A,moamelat!A:C,3,0),"") ->  | F19: =IFERROR(VLOOKUP(A:A,moamelat!A:D,4,0),"") ->  | G19: =IFERROR(VLOOKUP(A:A,moamelat!A:E,5,0),"") ->  | H19: =IFERROR(VLOOKUP(A:A,moamelat!A:F,6,0),"") ->  | I19: =IFERROR(VLOOKUP(A:A,moamelat!A:G,7,0),"") ->  | J19: =IFERROR(VLOOKUP(A:A,moamelat!A:H,8,0),"") ->  | K19: =IFERROR(VLOOKUP(A:A,moamelat!A:I,9,0),"") ->  | L19: =IFERROR(VLOOKUP(A:A,moamelat!A:J,10,0),"") ->  | M19: =IFERROR(VLOOKUP(A:A,moamelat!A:K,11,0),"") ->  | N19: =IFERROR(VLOOKUP(A:A,moamelat!A:L,12,0),"") ->  | O19: =IFERROR(VLOOKUP(A:A,moamelat!A:M,13,0),"") ->  | P19: =IFERROR(VLOOKUP(A:A,moamelat!A:N,14,0),"") ->  | Q19: =IFERROR(VLOOKUP(A:A,moamelat!A:O,15,0),"") ->  | R19: =IFERROR(VLOOKUP(A:A,moamelat!A:P,16,0),"") ->  | S19: =IFERROR(VLOOKUP(A:A,moamelat!A:Q,17,0),"") ->  | T19: =IFERROR(VLOOKUP(A:A,moamelat!A:R,18,0),"") ->  | U19: =IFERROR(VLOOKUP(A:A,moamelat!A:S,19,0),"") ->  | V19: =IFERROR(VLOOKUP(A:A,moamelat!A:T,20,0),"") ->  | W19: =VLOOKUP(A:A,moamelat!A:U,21,0) ->  | X19: =IFERROR(VLOOKUP(A:A,moamelat!A:V,22,0),"") ->  | Y19: =IFERROR(VLOOKUP(A:A,moamelat!A:W,23,0),"") -> 
A20: طچاد7035 | B20: =IFERROR(VLOOKUP(A:A,constant!A:B,2,0),"") -> كچاد | C20: =IFERROR(VLOOKUP(A:A,constant!A:C,3,0),"") -> اختيارف كچاد-28000-1400/07/04 | D20: =IFERROR(VLOOKUP(A:A,constant!A:D,4,0),"") -> 28000 | E20: =IFERROR(VLOOKUP(A:A,moamelat!A:C,3,0),"") ->  | F20: =IFERROR(VLOOKUP(A:A,moamelat!A:D,4,0),"") ->  | G20: =IFERROR(VLOOKUP(A:A,moamelat!A:E,5,0),"") ->  | H20: =IFERROR(VLOOKUP(A:A,moamelat!A:F,6,0),"") ->  | I20: =IFERROR(VLOOKUP(A:A,moamelat!A:G,7,0),"") ->  | J20: =IFERROR(VLOOKUP(A:A,moamelat!A:H,8,0),"") ->  | K20: =IFERROR(VLOOKUP(A:A,moamelat!A:I,9,0),"") ->  | L20: =IFERROR(VLOOKUP(A:A,moamelat!A:J,10,0),"") ->  | M20: =IFERROR(VLOOKUP(A:A,moamelat!A:K,11,0),"") ->  | N20: =IFERROR(VLOOKUP(A:A,moamelat!A:L,12,0),"") ->  | O20: =IFERROR(VLOOKUP(A:A,moamelat!A:M,13,0),"") ->  | P20: =IFERROR(VLOOKUP(A:A,moamelat!A:N,14,0),"") ->  | Q20: =IFERROR(VLOOKUP(A:A,moamelat!A:O,15,0),"") ->  | R20: =IFERROR(VLOOKUP(A:A,moamelat!A:P,16,0),"") ->  | S20: =IFERROR(VLOOKUP(A:A,moamelat!A:Q,17,0),"") ->  | T20: =IFERROR(VLOOKUP(A:A,moamelat!A:R,18,0),"") ->  | U20: =IFERROR(VLOOKUP(A:A,moamelat!A:S,19,0),"") ->  | V20: =IFERROR(VLOOKUP(A:A,moamelat!A:T,20,0),"") ->  | W20: =VLOOKUP(A:A,moamelat!A:U,21,0) ->  | X20: =IFERROR(VLOOKUP(A:A,moamelat!A:V,22,0),"") ->  | Y20: =IFERROR(VLOOKUP(A:A,moamelat!A:W,23,0),"") -> 
A21: طچاد7036 | B21: =IFERROR(VLOOKUP(A:A,constant!A:B,2,0),"") -> كچاد | C21: =IFERROR(VLOOKUP(A:A,constant!A:C,3,0),"") -> اختيارف كچاد-32000-1400/07/04 | D21: =IFERROR(VLOOKUP(A:A,constant!A:D,4,0),"") -> 32000 | E21: =IFERROR(VLOOKUP(A:A,moamelat!A:C,3,0),"") ->  | F21: =IFERROR(VLOOKUP(A:A,moamelat!A:D,4,0),"") ->  | G21: =IFERROR(VLOOKUP(A:A,moamelat!A:E,5,0),"") ->  | H21: =IFERROR(VLOOKUP(A:A,moamelat!A:F,6,0),"") ->  | I21: =IFERROR(VLOOKUP(A:A,moamelat!A:G,7,0),"") ->  | J21: =IFERROR(VLOOKUP(A:A,moamelat!A:H,8,0),"") ->  | K21: =IFERROR(VLOOKUP(A:A,moamelat!A:I,9,0),"") ->  | L21: =IFERROR(VLOOKUP(A:A,moamelat!A:J,10,0),"") ->  | M21: =IFERROR(VLOOKUP(A:A,moamelat!A:K,11,0),"") ->  | N21: =IFERROR(VLOOKUP(A:A,moamelat!A:L,12,0),"") ->  | O21: =IFERROR(VLOOKUP(A:A,moamelat!A:M,13,0),"") ->  | P21: =IFERROR(VLOOKUP(A:A,moamelat!A:N,14,0),"") ->  | Q21: =IFERROR(VLOOKUP(A:A,moamelat!A:O,15,0),"") ->  | R21: =IFERROR(VLOOKUP(A:A,moamelat!A:P,16,0),"") ->  | S21: =IFERROR(VLOOKUP(A:A,moamelat!A:Q,17,0),"") ->  | T21: =IFERROR(VLOOKUP(A:A,moamelat!A:R,18,0),"") ->  | U21: =IFERROR(VLOOKUP(A:A,moamelat!A:S,19,0),"") ->  | V21: =IFERROR(VLOOKUP(A:A,moamelat!A:T,20,0),"") ->  | W21: =VLOOKUP(A:A,moamelat!A:U,21,0) ->  | X21: =IFERROR(VLOOKUP(A:A,moamelat!A:V,22,0),"") ->  | Y21: =IFERROR(VLOOKUP(A:A,moamelat!A:W,23,0),"") -> 
A22: طچاد7037 | B22: =IFERROR(VLOOKUP(A:A,constant!A:B,2,0),"") -> كچاد | C22: =IFERROR(VLOOKUP(A:A,constant!A:C,3,0),"") -> اختيارف كچاد-36000-1400/07/04 | D22: =IFERROR(VLOOKUP(A:A,constant!A:D,4,0),"") -> 36000 | E22: =IFERROR(VLOOKUP(A:A,moamelat!A:C,3,0),"") ->  | F22: =IFERROR(VLOOKUP(A:A,moamelat!A:D,4,0),"") ->  | G22: =IFERROR(VLOOKUP(A:A,moamelat!A:E,5,0),"") ->  | H22: =IFERROR(VLOOKUP(A:A,moamelat!A:F,6,0),"") ->  | I22: =IFERROR(VLOOKUP(A:A,moamelat!A:G,7,0),"") ->  | J22: =IFERROR(VLOOKUP(A:A,moamelat!A:H,8,0),"") ->  | K22: =IFERROR(VLOOKUP(A:A,moamelat!A:I,9,0),"") ->  | L22: =IFERROR(VLOOKUP(A:A,moamelat!A:J,10,0),"") ->  | M22: =IFERROR(VLOOKUP(A:A,moamelat!A:K,11,0),"") ->  | N22: =IFERROR(VLOOKUP(A:A,moamelat!A:L,12,0),"") ->  | O22: =IFERROR(VLOOKUP(A:A,moamelat!A:M,13,0),"") ->  | P22: =IFERROR(VLOOKUP(A:A,moamelat!A:N,14,0),"") ->  | Q22: =IFERROR(VLOOKUP(A:A,moamelat!A:O,15,0),"") ->  | R22: =IFERROR(VLOOKUP(A:A,moamelat!A:P,16,0),"") ->  | S22: =IFERROR(VLOOKUP(A:A,moamelat!A:Q,17,0),"") ->  | T22: =IFERROR(VLOOKUP(A:A,moamelat!A:R,18,0),"") ->  | U22: =IFERROR(VLOOKUP(A:A,moamelat!A:S,19,0),"") ->  | V22: =IFERROR(VLOOKUP(A:A,moamelat!A:T,20,0),"") ->  | W22: =VLOOKUP(A:A,moamelat!A:U,21,0) ->  | X22: =IFERROR(VLOOKUP(A:A,moamelat!A:V,22,0),"") ->  | Y22: =IFERROR(VLOOKUP(A:A,moamelat!A:W,23,0),"") -> 
A23: طملي7000 | B23: =IFERROR(VLOOKUP(A:A,constant!A:B,2,0),"") -> فملي | C23: =IFERROR(VLOOKUP(A:A,constant!A:C,3,0),"") -> اختيارف فملي-8000-1400/07/11 | D23: =IFERROR(VLOOKUP(A:A,constant!A:D,4,0),"") -> 8000 | E23: =IFERROR(VLOOKUP(A:A,moamelat!A:C,3,0),"") ->  | F23: =IFERROR(VLOOKUP(A:A,moamelat!A:D,4,0),"") ->  | G23: =IFERROR(VLOOKUP(A:A,moamelat!A:E,5,0),"") ->  | H23: =IFERROR(VLOOKUP(A:A,moamelat!A:F,6,0),"") ->  | I23: =IFERROR(VLOOKUP(A:A,moamelat!A:G,7,0),"") ->  | J23: =IFERROR(VLOOKUP(A:A,moamelat!A:H,8,0),"") ->  | K23: =IFERROR(VLOOKUP(A:A,moamelat!A:I,9,0),"") ->  | L23: =IFERROR(VLOOKUP(A:A,moamelat!A:J,10,0),"") ->  | M23: =IFERROR(VLOOKUP(A:A,moamelat!A:K,11,0),"") ->  | N23: =IFERROR(VLOOKUP(A:A,moamelat!A:L,12,0),"") ->  | O23: =IFERROR(VLOOKUP(A:A,moamelat!A:M,13,0),"") ->  | P23: =IFERROR(VLOOKUP(A:A,moamelat!A:N,14,0),"") ->  | Q23: =IFERROR(VLOOKUP(A:A,moamelat!A:O,15,0),"") ->  | R23: =IFERROR(VLOOKUP(A:A,moamelat!A:P,16,0),"") ->  | S23: =IFERROR(VLOOKUP(A:A,moamelat!A:Q,17,0),"") ->  | T23: =IFERROR(VLOOKUP(A:A,moamelat!A:R,18,0),"") ->  | U23: =IFERROR(VLOOKUP(A:A,moamelat!A:S,19,0),"") ->  | V23: =IFERROR(VLOOKUP(A:A,moamelat!A:T,20,0),"") ->  | W23: =VLOOKUP(A:A,moamelat!A:U,21,0) ->  | X23: =IFERROR(VLOOKUP(A:A,moamelat!A:V,22,0),"") ->  | Y23: =IFERROR(VLOOKUP(A:A,moamelat!A:W,23,0),"") -> 
A24: طملي7001 | B24: =IFERROR(VLOOKUP(A:A,constant!A:B,2,0),"") -> فملي | C24: =IFERROR(VLOOKUP(A:A,constant!A:C,3,0),"") -> اختيارف فملي-9000-1400/07/11 | D24: =IFERROR(VLOOKUP(A:A,constant!A:D,4,0),"") -> 9000 | E24: =IFERROR(VLOOKUP(A:A,moamelat!A:C,3,0),"") ->  | F24: =IFERROR(VLOOKUP(A:A,moamelat!A:D,4,0),"") ->  | G24: =IFERROR(VLOOKUP(A:A,moamelat!A:E,5,0),"") ->  | H24: =IFERROR(VLOOKUP(A:A,moamelat!A:F,6,0),"") ->  | I24: =IFERROR(VLOOKUP(A:A,moamelat!A:G,7,0),"") ->  | J24: =IFERROR(VLOOKUP(A:A,moamelat!A:H,8,0),"") ->  | K24: =IFERROR(VLOOKUP(A:A,moamelat!A:I,9,0),"") ->  | L24: =IFERROR(VLOOKUP(A:A,moamelat!A:J,10,0),"") ->  | M24: =IFERROR(VLOOKUP(A:A,moamelat!A:K,11,0),"") ->  | N24: =IFERROR(VLOOKUP(A:A,moamelat!A:L,12,0),"") ->  | O24: =IFERROR(VLOOKUP(A:A,moamelat!A:M,13,0),"") ->  | P24: =IFERROR(VLOOKUP(A:A,moamelat!A:N,14,0),"") ->  | Q24: =IFERROR(VLOOKUP(A:A,moamelat!A:O,15,0),"") ->  | R24: =IFERROR(VLOOKUP(A:A,moamelat!A:P,16,0),"") ->  | S24: =IFERROR(VLOOKUP(A:A,moamelat!A:Q,17,0),"") ->  | T24: =IFERROR(VLOOKUP(A:A,moamelat!A:R,18,0),"") ->  | U24: =IFERROR(VLOOKUP(A:A,moamelat!A:S,19,0),"") ->  | V24: =IFERROR(VLOOKUP(A:A,moamelat!A:T,20,0),"") ->  | W24: =VLOOKUP(A:A,moamelat!A:U,21,0) ->  | X24: =IFERROR(VLOOKUP(A:A,moamelat!A:V,22,0),"") ->  | Y24: =IFERROR(VLOOKUP(A:A,moamelat!A:W,23,0),"") -> 
A25: طملي7002 | B25: =IFERROR(VLOOKUP(A:A,constant!A:B,2,0),"") -> فملي | C25: =IFERROR(VLOOKUP(A:A,constant!A:C,3,0),"") -> اختيارف فملي-10000-1400/07/11 | D25: =IFERROR(VLOOKUP(A:A,constant!A:D,4,0),"") -> 10000 | E25: =IFERROR(VLOOKUP(A:A,moamelat!A:C,3,0),"") ->  | F25: =IFERROR(VLOOKUP(A:A,moamelat!A:D,4,0),"") ->  | G25: =IFERROR(VLOOKUP(A:A,moamelat!A:E,5,0),"") ->  | H25: =IFERROR(VLOOKUP(A:A,moamelat!A:F,6,0),"") ->  | I25: =IFERROR(VLOOKUP(A:A,moamelat!A:G,7,0),"") ->  | J25: =IFERROR(VLOOKUP(A:A,moamelat!A:H,8,0),"") ->  | K25: =IFERROR(VLOOKUP(A:A,moamelat!A:I,9,0),"") ->  | L25: =IFERROR(VLOOKUP(A:A,moamelat!A:J,10,0),"") ->  | M25: =IFERROR(VLOOKUP(A:A,moamelat!A:K,11,0),"") ->  | N25: =IFERROR(VLOOKUP(A:A,moamelat!A:L,12,0),"") ->  | O25: =IFERROR(VLOOKUP(A:A,moamelat!A:M,13,0),"") ->  | P25: =IFERROR(VLOOKUP(A:A,moamelat!A:N,14,0),"") ->  | Q25: =IFERROR(VLOOKUP(A:A,moamelat!A:O,15,0),"") ->  | R25: =IFERROR(VLOOKUP(A:A,moamelat!A:P,16,0),"") ->  | S25: =IFERROR(VLOOKUP(A:A,moamelat!A:Q,17,0),"") ->  | T25: =IFERROR(VLOOKUP(A:A,moamelat!A:R,18,0),"") ->  | U25: =IFERROR(VLOOKUP(A:A,moamelat!A:S,19,0),"") ->  | V25: =IFERROR(VLOOKUP(A:A,moamelat!A:T,20,0),"") ->  | W25: =VLOOKUP(A:A,moamelat!A:U,21,0) ->  | X25: =IFERROR(VLOOKUP(A:A,moamelat!A:V,22,0),"") ->  | Y25: =IFERROR(VLOOKUP(A:A,moamelat!A:W,23,0),"") -> 
A26: طملي7003 | B26: =IFERROR(VLOOKUP(A:A,constant!A:B,2,0),"") -> فملي | C26: =IFERROR(VLOOKUP(A:A,constant!A:C,3,0),"") -> اختيارف فملي-12000-1400/07/11 | D26: =IFERROR(VLOOKUP(A:A,constant!A:D,4,0),"") -> 12000 | E26: =IFERROR(VLOOKUP(A:A,moamelat!A:C,3,0),"") ->  | F26: =IFERROR(VLOOKUP(A:A,moamelat!A:D,4,0),"") ->  | G26: =IFERROR(VLOOKUP(A:A,moamelat!A:E,5,0),"") ->  | H26: =IFERROR(VLOOKUP(A:A,moamelat!A:F,6,0),"") ->  | I26: =IFERROR(VLOOKUP(A:A,moamelat!A:G,7,0),"") ->  | J26: =IFERROR(VLOOKUP(A:A,moamelat!A:H,8,0),"") ->  | K26: =IFERROR(VLOOKUP(A:A,moamelat!A:I,9,0),"") ->  | L26: =IFERROR(VLOOKUP(A:A,moamelat!A:J,10,0),"") ->  | M26: =IFERROR(VLOOKUP(A:A,moamelat!A:K,11,0),"") ->  | N26: =IFERROR(VLOOKUP(A:A,moamelat!A:L,12,0),"") ->  | O26: =IFERROR(VLOOKUP(A:A,moamelat!A:M,13,0),"") ->  | P26: =IFERROR(VLOOKUP(A:A,moamelat!A:N,14,0),"") ->  | Q26: =IFERROR(VLOOKUP(A:A,moamelat!A:O,15,0),"") ->  | R26: =IFERROR(VLOOKUP(A:A,moamelat!A:P,16,0),"") ->  | S26: =IFERROR(VLOOKUP(A:A,moamelat!A:Q,17,0),"") ->  | T26: =IFERROR(VLOOKUP(A:A,moamelat!A:R,18,0),"") ->  | U26: =IFERROR(VLOOKUP(A:A,moamelat!A:S,19,0),"") ->  | V26: =IFERROR(VLOOKUP(A:A,moamelat!A:T,20,0),"") ->  | W26: =VLOOKUP(A:A,moamelat!A:U,21,0) ->  | X26: =IFERROR(VLOOKUP(A:A,moamelat!A:V,22,0),"") ->  | Y26: =IFERROR(VLOOKUP(A:A,moamelat!A:W,23,0),"") -> 
A27: طملي7004 | B27: =IFERROR(VLOOKUP(A:A,constant!A:B,2,0),"") -> فملي | C27: =IFERROR(VLOOKUP(A:A,constant!A:C,3,0),"") -> اختيارف فملي-14000-1400/07/11 | D27: =IFERROR(VLOOKUP(A:A,constant!A:D,4,0),"") -> 14000 | E27: =IFERROR(VLOOKUP(A:A,moamelat!A:C,3,0),"") ->  | F27: =IFERROR(VLOOKUP(A:A,moamelat!A:D,4,0),"") ->  | G27: =IFERROR(VLOOKUP(A:A,moamelat!A:E,5,0),"") ->  | H27: =IFERROR(VLOOKUP(A:A,moamelat!A:F,6,0),"") ->  | I27: =IFERROR(VLOOKUP(A:A,moamelat!A:G,7,0),"") ->  | J27: =IFERROR(VLOOKUP(A:A,moamelat!A:H,8,0),"") ->  | K27: =IFERROR(VLOOKUP(A:A,moamelat!A:I,9,0),"") ->  | L27: =IFERROR(VLOOKUP(A:A,moamelat!A:J,10,0),"") ->  | M27: =IFERROR(VLOOKUP(A:A,moamelat!A:K,11,0),"") ->  | N27: =IFERROR(VLOOKUP(A:A,moamelat!A:L,12,0),"") ->  | O27: =IFERROR(VLOOKUP(A:A,moamelat!A:M,13,0),"") ->  | P27: =IFERROR(VLOOKUP(A:A,moamelat!A:N,14,0),"") ->  | Q27: =IFERROR(VLOOKUP(A:A,moamelat!A:O,15,0),"") ->  | R27: =IFERROR(VLOOKUP(A:A,moamelat!A:P,16,0),"") ->  | S27: =IFERROR(VLOOKUP(A:A,moamelat!A:Q,17,0),"") ->  | T27: =IFERROR(VLOOKUP(A:A,moamelat!A:R,18,0),"") ->  | U27: =IFERROR(VLOOKUP(A:A,moamelat!A:S,19,0),"") ->  | V27: =IFERROR(VLOOKUP(A:A,moamelat!A:T,20,0),"") ->  | W27: =VLOOKUP(A:A,moamelat!A:U,21,0) ->  | X27: =IFERROR(VLOOKUP(A:A,moamelat!A:V,22,0),"") ->  | Y27: =IFERROR(VLOOKUP(A:A,moamelat!A:W,23,0),"") -> 
A28: طملي7005 | B28: =IFERROR(VLOOKUP(A:A,constant!A:B,2,0),"") -> فملي | C28: =IFERROR(VLOOKUP(A:A,constant!A:C,3,0),"") -> اختيارف فملي-16000-1400/07/11 | D28: =IFERROR(VLOOKUP(A:A,constant!A:D,4,0),"") -> 16000 | E28: =IFERROR(VLOOKUP(A:A,moamelat!A:C,3,0),"") ->  | F28: =IFERROR(VLOOKUP(A:A,moamelat!A:D,4,0),"") ->  | G28: =IFERROR(VLOOKUP(A:A,moamelat!A:E,5,0),"") ->  | H28: =IFERROR(VLOOKUP(A:A,moamelat!A:F,6,0),"") ->  | I28: =IFERROR(VLOOKUP(A:A,moamelat!A:G,7,0),"") ->  | J28: =IFERROR(VLOOKUP(A:A,moamelat!A:H,8,0),"") ->  | K28: =IFERROR(VLOOKUP(A:A,moamelat!A:I,9,0),"") ->  | L28: =IFERROR(VLOOKUP(A:A,moamelat!A:J,10,0),"") ->  | M28: =IFERROR(VLOOKUP(A:A,moamelat!A:K,11,0),"") ->  | N28: =IFERROR(VLOOKUP(A:A,moamelat!A:L,12,0),"") ->  | O28: =IFERROR(VLOOKUP(A:A,moamelat!A:M,13,0),"") ->  | P28: =IFERROR(VLOOKUP(A:A,moamelat!A:N,14,0),"") ->  | Q28: =IFERROR(VLOOKUP(A:A,moamelat!A:O,15,0),"") ->  | R28: =IFERROR(VLOOKUP(A:A,moamelat!A:P,16,0),"") ->  | S28: =IFERROR(VLOOKUP(A:A,moamelat!A:Q,17,0),"") ->  | T28: =IFERROR(VLOOKUP(A:A,moamelat!A:R,18,0),"") ->  | U28: =IFERROR(VLOOKUP(A:A,moamelat!A:S,19,0),"") ->  | V28: =IFERROR(VLOOKUP(A:A,moamelat!A:T,20,0),"") ->  | W28: =VLOOKUP(A:A,moamelat!A:U,21,0) ->  | X28: =IFERROR(VLOOKUP(A:A,moamelat!A:V,22,0),"") ->  | Y28: =IFERROR(VLOOKUP(A:A,moamelat!A:W,23,0),"") -> 
A29: طملي7006 | B29: =IFERROR(VLOOKUP(A:A,constant!A:B,2,0),"") -> فملي | C29: =IFERROR(VLOOKUP(A:A,constant!A:C,3,0),"") -> اختيارف فملي-18000-1400/07/11 | D29: =IFERROR(VLOOKUP(A:A,constant!A:D,4,0),"") -> 18000 | E29: =IFERROR(VLOOKUP(A:A,moamelat!A:C,3,0),"") ->  | F29: =IFERROR(VLOOKUP(A:A,moamelat!A:D,4,0),"") ->  | G29: =IFERROR(VLOOKUP(A:A,moamelat!A:E,5,0),"") ->  | H29: =IFERROR(VLOOKUP(A:A,moamelat!A:F,6,0),"") ->  | I29: =IFERROR(VLOOKUP(A:A,moamelat!A:G,7,0),"") ->  | J29: =IFERROR(VLOOKUP(A:A,moamelat!A:H,8,0),"") ->  | K29: =IFERROR(VLOOKUP(A:A,moamelat!A:I,9,0),"") ->  | L29: =IFERROR(VLOOKUP(A:A,moamelat!A:J,10,0),"") ->  | M29: =IFERROR(VLOOKUP(A:A,moamelat!A:K,11,0),"") ->  | N29: =IFERROR(VLOOKUP(A:A,moamelat!A:L,12,0),"") ->  | O29: =IFERROR(VLOOKUP(A:A,moamelat!A:M,13,0),"") ->  | P29: =IFERROR(VLOOKUP(A:A,moamelat!A:N,14,0),"") ->  | Q29: =IFERROR(VLOOKUP(A:A,moamelat!A:O,15,0),"") ->  | R29: =IFERROR(VLOOKUP(A:A,moamelat!A:P,16,0),"") ->  | S29: =IFERROR(VLOOKUP(A:A,moamelat!A:Q,17,0),"") ->  | T29: =IFERROR(VLOOKUP(A:A,moamelat!A:R,18,0),"") ->  | U29: =IFERROR(VLOOKUP(A:A,moamelat!A:S,19,0),"") ->  | V29: =IFERROR(VLOOKUP(A:A,moamelat!A:T,20,0),"") ->  | W29: =VLOOKUP(A:A,moamelat!A:U,21,0) ->  | X29: =IFERROR(VLOOKUP(A:A,moamelat!A:V,22,0),"") ->  | Y29: =IFERROR(VLOOKUP(A:A,moamelat!A:W,23,0),"") -> 
A30: طملي7007 | B30: =IFERROR(VLOOKUP(A:A,constant!A:B,2,0),"") -> فملي | C30: =IFERROR(VLOOKUP(A:A,constant!A:C,3,0),"") -> اختيارف فملي-20000-1400/07/11 | D30: =IFERROR(VLOOKUP(A:A,constant!A:D,4,0),"") -> 20000 | E30: =IFERROR(VLOOKUP(A:A,moamelat!A:C,3,0),"") ->  | F30: =IFERROR(VLOOKUP(A:A,moamelat!A:D,4,0),"") ->  | G30: =IFERROR(VLOOKUP(A:A,moamelat!A:E,5,0),"") ->  | H30: =IFERROR(VLOOKUP(A:A,moamelat!A:F,6,0),"") ->  | I30: =IFERROR(VLOOKUP(A:A,moamelat!A:G,7,0),"") ->  | J30: =IFERROR(VLOOKUP(A:A,moamelat!A:H,8,0),"") ->  | K30: =IFERROR(VLOOKUP(A:A,moamelat!A:I,9,0),"") ->  | L30: =IFERROR(VLOOKUP(A:A,moamelat!A:J,10,0),"") ->  | M30: =IFERROR(VLOOKUP(A:A,moamelat!A:K,11,0),"") ->  | N30: =IFERROR(VLOOKUP(A:A,moamelat!A:L,12,0),"") ->  | O30: =IFERROR(VLOOKUP(A:A,moamelat!A:M,13,0),"") ->  | P30: =IFERROR(VLOOKUP(A:A,moamelat!A:N,14,0),"") ->  | Q30: =IFERROR(VLOOKUP(A:A,moamelat!A:O,15,0),"") ->  | R30: =IFERROR(VLOOKUP(A:A,moamelat!A:P,16,0),"") ->  | S30: =IFERROR(VLOOKUP(A:A,moamelat!A:Q,17,0),"") ->  | T30: =IFERROR(VLOOKUP(A:A,moamelat!A:R,18,0),"") ->  | U30: =IFERROR(VLOOKUP(A:A,moamelat!A:S,19,0),"") ->  | V30: =IFERROR(VLOOKUP(A:A,moamelat!A:T,20,0),"") ->  | W30: =VLOOKUP(A:A,moamelat!A:U,21,0) ->  | X30: =IFERROR(VLOOKUP(A:A,moamelat!A:V,22,0),"") ->  | Y30: =IFERROR(VLOOKUP(A:A,moamelat!A:W,23,0),"") -> 
A31: طپنا8000 | B31: =IFERROR(VLOOKUP(A:A,constant!A:B,2,0),"") -> رمپنا | C31: =IFERROR(VLOOKUP(A:A,constant!A:C,3,0),"") -> اختيارف رمپنا-10000-1400/08/05 | D31: =IFERROR(VLOOKUP(A:A,constant!A:D,4,0),"") -> 10000 | E31: =IFERROR(VLOOKUP(A:A,moamelat!A:C,3,0),"") ->  | F31: =IFERROR(VLOOKUP(A:A,moamelat!A:D,4,0),"") ->  | G31: =IFERROR(VLOOKUP(A:A,moamelat!A:E,5,0),"") ->  | H31: =IFERROR(VLOOKUP(A:A,moamelat!A:F,6,0),"") ->  | I31: =IFERROR(VLOOKUP(A:A,moamelat!A:G,7,0),"") ->  | J31: =IFERROR(VLOOKUP(A:A,moamelat!A:H,8,0),"") ->  | K31: =IFERROR(VLOOKUP(A:A,moamelat!A:I,9,0),"") ->  | L31: =IFERROR(VLOOKUP(A:A,moamelat!A:J,10,0),"") ->  | M31: =IFERROR(VLOOKUP(A:A,moamelat!A:K,11,0),"") ->  | N31: =IFERROR(VLOOKUP(A:A,moamelat!A:L,12,0),"") ->  | O31: =IFERROR(VLOOKUP(A:A,moamelat!A:M,13,0),"") ->  | P31: =IFERROR(VLOOKUP(A:A,moamelat!A:N,14,0),"") ->  | Q31: =IFERROR(VLOOKUP(A:A,moamelat!A:O,15,0),"") ->  | R31: =IFERROR(VLOOKUP(A:A,moamelat!A:P,16,0),"") ->  | S31: =IFERROR(VLOOKUP(A:A,moamelat!A:Q,17,0),"") ->  | T31: =IFERROR(VLOOKUP(A:A,moamelat!A:R,18,0),"") ->  | U31: =IFERROR(VLOOKUP(A:A,moamelat!A:S,19,0),"") ->  | V31: =IFERROR(VLOOKUP(A:A,moamelat!A:T,20,0),"") ->  | W31: =VLOOKUP(A:A,moamelat!A:U,21,0) ->  | X31: =IFERROR(VLOOKUP(A:A,moamelat!A:V,22,0),"") ->  | Y31: =IFERROR(VLOOKUP(A:A,moamelat!A:W,23,0),"") -> 
A32: طپنا8001 | B32: =IFERROR(VLOOKUP(A:A,constant!A:B,2,0),"") -> رمپنا | C32: =IFERROR(VLOOKUP(A:A,constant!A:C,3,0),"") -> اختيارف رمپنا-12000-1400/08/05 | D32: =IFERROR(VLOOKUP(A:A,constant!A:D,4,0),"") -> 12000 | E32: =IFERROR(VLOOKUP(A:A,moamelat!A:C,3,0),"") ->  | F32: =IFERROR(VLOOKUP(A:A,moamelat!A:D,4,0),"") ->  | G32: =IFERROR(VLOOKUP(A:A,moamelat!A:E,5,0),"") ->  | H32: =IFERROR(VLOOKUP(A:A,moamelat!A:F,6,0),"") ->  | I32: =IFERROR(VLOOKUP(A:A,moamelat!A:G,7,0),"") ->  | J32: =IFERROR(VLOOKUP(A:A,moamelat!A:H,8,0),"") ->  | K32: =IFERROR(VLOOKUP(A:A,moamelat!A:I,9,0),"") ->  | L32: =IFERROR(VLOOKUP(A:A,moamelat!A:J,10,0),"") ->  | M32: =IFERROR(VLOOKUP(A:A,moamelat!A:K,11,0),"") ->  | N32: =IFERROR(VLOOKUP(A:A,moamelat!A:L,12,0),"") ->  | O32: =IFERROR(VLOOKUP(A:A,moamelat!A:M,13,0),"") ->  | P32: =IFERROR(VLOOKUP(A:A,moamelat!A:N,14,0),"") ->  | Q32: =IFERROR(VLOOKUP(A:A,moamelat!A:O,15,0),"") ->  | R32: =IFERROR(VLOOKUP(A:A,moamelat!A:P,16,0),"") ->  | S32: =IFERROR(VLOOKUP(A:A,moamelat!A:Q,17,0),"") ->  | T32: =IFERROR(VLOOKUP(A:A,moamelat!A:R,18,0),"") ->  | U32: =IFERROR(VLOOKUP(A:A,moamelat!A:S,19,0),"") ->  | V32: =IFERROR(VLOOKUP(A:A,moamelat!A:T,20,0),"") ->  | W32: =VLOOKUP(A:A,moamelat!A:U,21,0) ->  | X32: =IFERROR(VLOOKUP(A:A,moamelat!A:V,22,0),"") ->  | Y32: =IFERROR(VLOOKUP(A:A,moamelat!A:W,23,0),"") -> 
A33: طپنا8002 | B33: =IFERROR(VLOOKUP(A:A,constant!A:B,2,0),"") -> رمپنا | C33: =IFERROR(VLOOKUP(A:A,constant!A:C,3,0),"") -> اختيارف رمپنا-14000-1400/08/05 | D33: =IFERROR(VLOOKUP(A:A,constant!A:D,4,0),"") -> 14000 | E33: =IFERROR(VLOOKUP(A:A,moamelat!A:C,3,0),"") ->  | F33: =IFERROR(VLOOKUP(A:A,moamelat!A:D,4,0),"") ->  | G33: =IFERROR(VLOOKUP(A:A,moamelat!A:E,5,0),"") ->  | H33: =IFERROR(VLOOKUP(A:A,moamelat!A:F,6,0),"") ->  | I33: =IFERROR(VLOOKUP(A:A,moamelat!A:G,7,0),"") ->  | J33: =IFERROR(VLOOKUP(A:A,moamelat!A:H,8,0),"") ->  | K33: =IFERROR(VLOOKUP(A:A,moamelat!A:I,9,0),"") ->  | L33: =IFERROR(VLOOKUP(A:A,moamelat!A:J,10,0),"") ->  | M33: =IFERROR(VLOOKUP(A:A,moamelat!A:K,11,0),"") ->  | N33: =IFERROR(VLOOKUP(A:A,moamelat!A:L,12,0),"") ->  | O33: =IFERROR(VLOOKUP(A:A,moamelat!A:M,13,0),"") ->  | P33: =IFERROR(VLOOKUP(A:A,moamelat!A:N,14,0),"") ->  | Q33: =IFERROR(VLOOKUP(A:A,moamelat!A:O,15,0),"") ->  | R33: =IFERROR(VLOOKUP(A:A,moamelat!A:P,16,0),"") ->  | S33: =IFERROR(VLOOKUP(A:A,moamelat!A:Q,17,0),"") ->  | T33: =IFERROR(VLOOKUP(A:A,moamelat!A:R,18,0),"") ->  | U33: =IFERROR(VLOOKUP(A:A,moamelat!A:S,19,0),"") ->  | V33: =IFERROR(VLOOKUP(A:A,moamelat!A:T,20,0),"") ->  | W33: =VLOOKUP(A:A,moamelat!A:U,21,0) ->  | X33: =IFERROR(VLOOKUP(A:A,moamelat!A:V,22,0),"") ->  | Y33: =IFERROR(VLOOKUP(A:A,moamelat!A:W,23,0),"") -> 
A34: طپنا8003 | B34: =IFERROR(VLOOKUP(A:A,constant!A:B,2,0),"") -> رمپنا | C34: =IFERROR(VLOOKUP(A:A,constant!A:C,3,0),"") -> اختيارف رمپنا-16000-1400/08/05 | D34: =IFERROR(VLOOKUP(A:A,constant!A:D,4,0),"") -> 16000 | E34: =IFERROR(VLOOKUP(A:A,moamelat!A:C,3,0),"") ->  | F34: =IFERROR(VLOOKUP(A:A,moamelat!A:D,4,0),"") ->  | G34: =IFERROR(VLOOKUP(A:A,moamelat!A:E,5,0),"") ->  | H34: =IFERROR(VLOOKUP(A:A,moamelat!A:F,6,0),"") ->  | I34: =IFERROR(VLOOKUP(A:A,moamelat!A:G,7,0),"") ->  | J34: =IFERROR(VLOOKUP(A:A,moamelat!A:H,8,0),"") ->  | K34: =IFERROR(VLOOKUP(A:A,moamelat!A:I,9,0),"") ->  | L34: =IFERROR(VLOOKUP(A:A,moamelat!A:J,10,0),"") ->  | M34: =IFERROR(VLOOKUP(A:A,moamelat!A:K,11,0),"") ->  | N34: =IFERROR(VLOOKUP(A:A,moamelat!A:L,12,0),"") ->  | O34: =IFERROR(VLOOKUP(A:A,moamelat!A:M,13,0),"") ->  | P34: =IFERROR(VLOOKUP(A:A,moamelat!A:N,14,0),"") ->  | Q34: =IFERROR(VLOOKUP(A:A,moamelat!A:O,15,0),"") ->  | R34: =IFERROR(VLOOKUP(A:A,moamelat!A:P,16,0),"") ->  | S34: =IFERROR(VLOOKUP(A:A,moamelat!A:Q,17,0),"") ->  | T34: =IFERROR(VLOOKUP(A:A,moamelat!A:R,18,0),"") ->  | U34: =IFERROR(VLOOKUP(A:A,moamelat!A:S,19,0),"") ->  | V34: =IFERROR(VLOOKUP(A:A,moamelat!A:T,20,0),"") ->  | W34: =VLOOKUP(A:A,moamelat!A:U,21,0) ->  | X34: =IFERROR(VLOOKUP(A:A,moamelat!A:V,22,0),"") ->  | Y34: =IFERROR(VLOOKUP(A:A,moamelat!A:W,23,0),"") -> 
A35: طپنا8004 | B35: =IFERROR(VLOOKUP(A:A,constant!A:B,2,0),"") -> رمپنا | C35: =IFERROR(VLOOKUP(A:A,constant!A:C,3,0),"") -> اختيارف رمپنا-18000-1400/08/05 | D35: =IFERROR(VLOOKUP(A:A,constant!A:D,4,0),"") -> 18000 | E35: =IFERROR(VLOOKUP(A:A,moamelat!A:C,3,0),"") ->  | F35: =IFERROR(VLOOKUP(A:A,moamelat!A:D,4,0),"") ->  | G35: =IFERROR(VLOOKUP(A:A,moamelat!A:E,5,0),"") ->  | H35: =IFERROR(VLOOKUP(A:A,moamelat!A:F,6,0),"") ->  | I35: =IFERROR(VLOOKUP(A:A,moamelat!A:G,7,0),"") ->  | J35: =IFERROR(VLOOKUP(A:A,moamelat!A:H,8,0),"") ->  | K35: =IFERROR(VLOOKUP(A:A,moamelat!A:I,9,0),"") ->  | L35: =IFERROR(VLOOKUP(A:A,moamelat!A:J,10,0),"") ->  | M35: =IFERROR(VLOOKUP(A:A,moamelat!A:K,11,0),"") ->  | N35: =IFERROR(VLOOKUP(A:A,moamelat!A:L,12,0),"") ->  | O35: =IFERROR(VLOOKUP(A:A,moamelat!A:M,13,0),"") ->  | P35: =IFERROR(VLOOKUP(A:A,moamelat!A:N,14,0),"") ->  | Q35: =IFERROR(VLOOKUP(A:A,moamelat!A:O,15,0),"") ->  | R35: =IFERROR(VLOOKUP(A:A,moamelat!A:P,16,0),"") ->  | S35: =IFERROR(VLOOKUP(A:A,moamelat!A:Q,17,0),"") ->  | T35: =IFERROR(VLOOKUP(A:A,moamelat!A:R,18,0),"") ->  | U35: =IFERROR(VLOOKUP(A:A,moamelat!A:S,19,0),"") ->  | V35: =IFERROR(VLOOKUP(A:A,moamelat!A:T,20,0),"") ->  | W35: =VLOOKUP(A:A,moamelat!A:U,21,0) ->  | X35: =IFERROR(VLOOKUP(A:A,moamelat!A:V,22,0),"") ->  | Y35: =IFERROR(VLOOKUP(A:A,moamelat!A:W,23,0),"") -> 
A36: طپنا8005 | B36: =IFERROR(VLOOKUP(A:A,constant!A:B,2,0),"") -> رمپنا | C36: =IFERROR(VLOOKUP(A:A,constant!A:C,3,0),"") -> اختيارف رمپنا-20000-1400/08/05 | D36: =IFERROR(VLOOKUP(A:A,constant!A:D,4,0),"") -> 20000 | E36: =IFERROR(VLOOKUP(A:A,moamelat!A:C,3,0),"") ->  | F36: =IFERROR(VLOOKUP(A:A,moamelat!A:D,4,0),"") ->  | G36: =IFERROR(VLOOKUP(A:A,moamelat!A:E,5,0),"") ->  | H36: =IFERROR(VLOOKUP(A:A,moamelat!A:F,6,0),"") ->  | I36: =IFERROR(VLOOKUP(A:A,moamelat!A:G,7,0),"") ->  | J36: =IFERROR(VLOOKUP(A:A,moamelat!A:H,8,0),"") ->  | K36: =IFERROR(VLOOKUP(A:A,moamelat!A:I,9,0),"") ->  | L36: =IFERROR(VLOOKUP(A:A,moamelat!A:J,10,0),"") ->  | M36: =IFERROR(VLOOKUP(A:A,moamelat!A:K,11,0),"") ->  | N36: =IFERROR(VLOOKUP(A:A,moamelat!A:L,12,0),"") ->  | O36: =IFERROR(VLOOKUP(A:A,moamelat!A:M,13,0),"") ->  | P36: =IFERROR(VLOOKUP(A:A,moamelat!A:N,14,0),"") ->  | Q36: =IFERROR(VLOOKUP(A:A,moamelat!A:O,15,0),"") ->  | R36: =IFERROR(VLOOKUP(A:A,moamelat!A:P,16,0),"") ->  | S36: =IFERROR(VLOOKUP(A:A,moamelat!A:Q,17,0),"") ->  | T36: =IFERROR(VLOOKUP(A:A,moamelat!A:R,18,0),"") ->  | U36: =IFERROR(VLOOKUP(A:A,moamelat!A:S,19,0),"") ->  | V36: =IFERROR(VLOOKUP(A:A,moamelat!A:T,20,0),"") ->  | W36: =VLOOKUP(A:A,moamelat!A:U,21,0) ->  | X36: =IFERROR(VLOOKUP(A:A,moamelat!A:V,22,0),"") ->  | Y36: =IFERROR(VLOOKUP(A:A,moamelat!A:W,23,0),"") -> 
A37: طپنا8006 | B37: =IFERROR(VLOOKUP(A:A,constant!A:B,2,0),"") -> رمپنا | C37: =IFERROR(VLOOKUP(A:A,constant!A:C,3,0),"") -> اختيارف رمپنا-24000-1400/08/05 | D37: =IFERROR(VLOOKUP(A:A,constant!A:D,4,0),"") -> 24000 | E37: =IFERROR(VLOOKUP(A:A,moamelat!A:C,3,0),"") ->  | F37: =IFERROR(VLOOKUP(A:A,moamelat!A:D,4,0),"") ->  | G37: =IFERROR(VLOOKUP(A:A,moamelat!A:E,5,0),"") ->  | H37: =IFERROR(VLOOKUP(A:A,moamelat!A:F,6,0),"") ->  | I37: =IFERROR(VLOOKUP(A:A,moamelat!A:G,7,0),"") ->  | J37: =IFERROR(VLOOKUP(A:A,moamelat!A:H,8,0),"") ->  | K37: =IFERROR(VLOOKUP(A:A,moamelat!A:I,9,0),"") ->  | L37: =IFERROR(VLOOKUP(A:A,moamelat!A:J,10,0),"") ->  | M37: =IFERROR(VLOOKUP(A:A,moamelat!A:K,11,0),"") ->  | N37: =IFERROR(VLOOKUP(A:A,moamelat!A:L,12,0),"") ->  | O37: =IFERROR(VLOOKUP(A:A,moamelat!A:M,13,0),"") ->  | P37: =IFERROR(VLOOKUP(A:A,moamelat!A:N,14,0),"") ->  | Q37: =IFERROR(VLOOKUP(A:A,moamelat!A:O,15,0),"") ->  | R37: =IFERROR(VLOOKUP(A:A,moamelat!A:P,16,0),"") ->  | S37: =IFERROR(VLOOKUP(A:A,moamelat!A:Q,17,0),"") ->  | T37: =IFERROR(VLOOKUP(A:A,moamelat!A:R,18,0),"") ->  | U37: =IFERROR(VLOOKUP(A:A,moamelat!A:S,19,0),"") ->  | V37: =IFERROR(VLOOKUP(A:A,moamelat!A:T,20,0),"") ->  | W37: =VLOOKUP(A:A,moamelat!A:U,21,0) ->  | X37: =IFERROR(VLOOKUP(A:A,moamelat!A:V,22,0),"") ->  | Y37: =IFERROR(VLOOKUP(A:A,moamelat!A:W,23,0),"") -> 
A38: طپنا8007 | B38: =IFERROR(VLOOKUP(A:A,constant!A:B,2,0),"") -> رمپنا | C38: =IFERROR(VLOOKUP(A:A,constant!A:C,3,0),"") -> اختيارف رمپنا-28000-1400/08/05 | D38: =IFERROR(VLOOKUP(A:A,constant!A:D,4,0),"") -> 28000 | E38: =IFERROR(VLOOKUP(A:A,moamelat!A:C,3,0),"") ->  | F38: =IFERROR(VLOOKUP(A:A,moamelat!A:D,4,0),"") ->  | G38: =IFERROR(VLOOKUP(A:A,moamelat!A:E,5,0),"") ->  | H38: =IFERROR(VLOOKUP(A:A,moamelat!A:F,6,0),"") ->  | I38: =IFERROR(VLOOKUP(A:A,moamelat!A:G,7,0),"") ->  | J38: =IFERROR(VLOOKUP(A:A,moamelat!A:H,8,0),"") ->  | K38: =IFERROR(VLOOKUP(A:A,moamelat!A:I,9,0),"") ->  | L38: =IFERROR(VLOOKUP(A:A,moamelat!A:J,10,0),"") ->  | M38: =IFERROR(VLOOKUP(A:A,moamelat!A:K,11,0),"") ->  | N38: =IFERROR(VLOOKUP(A:A,moamelat!A:L,12,0),"") ->  | O38: =IFERROR(VLOOKUP(A:A,moamelat!A:M,13,0),"") ->  | P38: =IFERROR(VLOOKUP(A:A,moamelat!A:N,14,0),"") ->  | Q38: =IFERROR(VLOOKUP(A:A,moamelat!A:O,15,0),"") ->  | R38: =IFERROR(VLOOKUP(A:A,moamelat!A:P,16,0),"") ->  | S38: =IFERROR(VLOOKUP(A:A,moamelat!A:Q,17,0),"") ->  | T38: =IFERROR(VLOOKUP(A:A,moamelat!A:R,18,0),"") ->  | U38: =IFERROR(VLOOKUP(A:A,moamelat!A:S,19,0),"") ->  | V38: =IFERROR(VLOOKUP(A:A,moamelat!A:T,20,0),"") ->  | W38: =VLOOKUP(A:A,moamelat!A:U,21,0) ->  | X38: =IFERROR(VLOOKUP(A:A,moamelat!A:V,22,0),"") ->  | Y38: =IFERROR(VLOOKUP(A:A,moamelat!A:W,23,0),"") -> 
A39: طپنا8008 | B39: =IFERROR(VLOOKUP(A:A,constant!A:B,2,0),"") -> رمپنا | C39: =IFERROR(VLOOKUP(A:A,constant!A:C,3,0),"") -> اختيارف رمپنا-32000-1400/08/05 | D39: =IFERROR(VLOOKUP(A:A,constant!A:D,4,0),"") -> 32000 | E39: =IFERROR(VLOOKUP(A:A,moamelat!A:C,3,0),"") ->  | F39: =IFERROR(VLOOKUP(A:A,moamelat!A:D,4,0),"") ->  | G39: =IFERROR(VLOOKUP(A:A,moamelat!A:E,5,0),"") ->  | H39: =IFERROR(VLOOKUP(A:A,moamelat!A:F,6,0),"") ->  | I39: =IFERROR(VLOOKUP(A:A,moamelat!A:G,7,0),"") ->  | J39: =IFERROR(VLOOKUP(A:A,moamelat!A:H,8,0),"") ->  | K39: =IFERROR(VLOOKUP(A:A,moamelat!A:I,9,0),"") ->  | L39: =IFERROR(VLOOKUP(A:A,moamelat!A:J,10,0),"") ->  | M39: =IFERROR(VLOOKUP(A:A,moamelat!A:K,11,0),"") ->  | N39: =IFERROR(VLOOKUP(A:A,moamelat!A:L,12,0),"") ->  | O39: =IFERROR(VLOOKUP(A:A,moamelat!A:M,13,0),"") ->  | P39: =IFERROR(VLOOKUP(A:A,moamelat!A:N,14,0),"") ->  | Q39: =IFERROR(VLOOKUP(A:A,moamelat!A:O,15,0),"") ->  | R39: =IFERROR(VLOOKUP(A:A,moamelat!A:P,16,0),"") ->  | S39: =IFERROR(VLOOKUP(A:A,moamelat!A:Q,17,0),"") ->  | T39: =IFERROR(VLOOKUP(A:A,moamelat!A:R,18,0),"") ->  | U39: =IFERROR(VLOOKUP(A:A,moamelat!A:S,19,0),"") ->  | V39: =IFERROR(VLOOKUP(A:A,moamelat!A:T,20,0),"") ->  | W39: =VLOOKUP(A:A,moamelat!A:U,21,0) ->  | X39: =IFERROR(VLOOKUP(A:A,moamelat!A:V,22,0),"") ->  | Y39: =IFERROR(VLOOKUP(A:A,moamelat!A:W,23,0),"") -> 
A40: طخود7072 | B40: =IFERROR(VLOOKUP(A:A,constant!A:B,2,0),"") -> خودرو | C40: =IFERROR(VLOOKUP(A:A,constant!A:C,3,0),"") -> اختيارف خودرو-1400-1400/07/07 | D40: =IFERROR(VLOOKUP(A:A,constant!A:D,4,0),"") -> 1400 | E40: =IFERROR(VLOOKUP(A:A,moamelat!A:C,3,0),"") ->  | F40: =IFERROR(VLOOKUP(A:A,moamelat!A:D,4,0),"") ->  | G40: =IFERROR(VLOOKUP(A:A,moamelat!A:E,5,0),"") ->  | H40: =IFERROR(VLOOKUP(A:A,moamelat!A:F,6,0),"") ->  | I40: =IFERROR(VLOOKUP(A:A,moamelat!A:G,7,0),"") ->  | J40: =IFERROR(VLOOKUP(A:A,moamelat!A:H,8,0),"") ->  | K40: =IFERROR(VLOOKUP(A:A,moamelat!A:I,9,0),"") ->  | L40: =IFERROR(VLOOKUP(A:A,moamelat!A:J,10,0),"") ->  | M40: =IFERROR(VLOOKUP(A:A,moamelat!A:K,11,0),"") ->  | N40: =IFERROR(VLOOKUP(A:A,moamelat!A:L,12,0),"") ->  | O40: =IFERROR(VLOOKUP(A:A,moamelat!A:M,13,0),"") ->  | P40: =IFERROR(VLOOKUP(A:A,moamelat!A:N,14,0),"") ->  | Q40: =IFERROR(VLOOKUP(A:A,moamelat!A:O,15,0),"") ->  | R40: =IFERROR(VLOOKUP(A:A,moamelat!A:P,16,0),"") ->  | S40: =IFERROR(VLOOKUP(A:A,moamelat!A:Q,17,0),"") ->  | T40: =IFERROR(VLOOKUP(A:A,moamelat!A:R,18,0),"") ->  | U40: =IFERROR(VLOOKUP(A:A,moamelat!A:S,19,0),"") ->  | V40: =IFERROR(VLOOKUP(A:A,moamelat!A:T,20,0),"") ->  | W40: =VLOOKUP(A:A,moamelat!A:U,21,0) ->  | X40: =IFERROR(VLOOKUP(A:A,moamelat!A:V,22,0),"") ->  | Y40: =IFERROR(VLOOKUP(A:A,moamelat!A:W,23,0),"") -> 
A41: طخود7073 | B41: =IFERROR(VLOOKUP(A:A,constant!A:B,2,0),"") -> خودرو | C41: =IFERROR(VLOOKUP(A:A,constant!A:C,3,0),"") -> اختيارف خودرو-1600-1400/07/07 | D41: =IFERROR(VLOOKUP(A:A,constant!A:D,4,0),"") -> 1600 | E41: =IFERROR(VLOOKUP(A:A,moamelat!A:C,3,0),"") ->  | F41: =IFERROR(VLOOKUP(A:A,moamelat!A:D,4,0),"") ->  | G41: =IFERROR(VLOOKUP(A:A,moamelat!A:E,5,0),"") ->  | H41: =IFERROR(VLOOKUP(A:A,moamelat!A:F,6,0),"") ->  | I41: =IFERROR(VLOOKUP(A:A,moamelat!A:G,7,0),"") ->  | J41: =IFERROR(VLOOKUP(A:A,moamelat!A:H,8,0),"") ->  | K41: =IFERROR(VLOOKUP(A:A,moamelat!A:I,9,0),"") ->  | L41: =IFERROR(VLOOKUP(A:A,moamelat!A:J,10,0),"") ->  | M41: =IFERROR(VLOOKUP(A:A,moamelat!A:K,11,0),"") ->  | N41: =IFERROR(VLOOKUP(A:A,moamelat!A:L,12,0),"") ->  | O41: =IFERROR(VLOOKUP(A:A,moamelat!A:M,13,0),"") ->  | P41: =IFERROR(VLOOKUP(A:A,moamelat!A:N,14,0),"") ->  | Q41: =IFERROR(VLOOKUP(A:A,moamelat!A:O,15,0),"") ->  | R41: =IFERROR(VLOOKUP(A:A,moamelat!A:P,16,0),"") ->  | S41: =IFERROR(VLOOKUP(A:A,moamelat!A:Q,17,0),"") ->  | T41: =IFERROR(VLOOKUP(A:A,moamelat!A:R,18,0),"") ->  | U41: =IFERROR(VLOOKUP(A:A,moamelat!A:S,19,0),"") ->  | V41: =IFERROR(VLOOKUP(A:A,moamelat!A:T,20,0),"") ->  | W41: =VLOOKUP(A:A,moamelat!A:U,21,0) ->  | X41: =IFERROR(VLOOKUP(A:A,moamelat!A:V,22,0),"") ->  | Y41: =IFERROR(VLOOKUP(A:A,moamelat!A:W,23,0),"") -> 
A42: طخود7074 | B42: =IFERROR(VLOOKUP(A:A,constant!A:B,2,0),"") -> خودرو | C42: =IFERROR(VLOOKUP(A:A,constant!A:C,3,0),"") -> اختيارف خودرو-1800-1400/07/07 | D42: =IFERROR(VLOOKUP(A:A,constant!A:D,4,0),"") -> 1800 | E42: =IFERROR(VLOOKUP(A:A,moamelat!A:C,3,0),"") -> 0 | F42: =IFERROR(VLOOKUP(A:A,moamelat!A:D,4,0),"") -> 0 | G42: =IFERROR(VLOOKUP(A:A,moamelat!A:E,5,0),"") -> 0 | H42: =IFERROR(VLOOKUP(A:A,moamelat!A:F,6,0),"") -> 1 | I42: =IFERROR(VLOOKUP(A:A,moamelat!A:G,7,0),"") -> 0 | J42: =IFERROR(VLOOKUP(A:A,moamelat!A:H,8,0),"") -> 1 | K42: =IFERROR(VLOOKUP(A:A,moamelat!A:I,9,0),"") -> 0 | L42: =IFERROR(VLOOKUP(A:A,moamelat!A:J,10,0),"") -> 0 | M42: =IFERROR(VLOOKUP(A:A,moamelat!A:K,11,0),"") -> 1 | N42: =IFERROR(VLOOKUP(A:A,moamelat!A:L,12,0),"") -> 0 | O42: =IFERROR(VLOOKUP(A:A,moamelat!A:M,13,0),"") -> 0 | P42: =IFERROR(VLOOKUP(A:A,moamelat!A:N,14,0),"") -> 0 | Q42: =IFERROR(VLOOKUP(A:A,moamelat!A:O,15,0),"") -> 0 | R42: =IFERROR(VLOOKUP(A:A,moamelat!A:P,16,0),"") -> 0 | S42: =IFERROR(VLOOKUP(A:A,moamelat!A:Q,17,0),"") -> 0 | T42: =IFERROR(VLOOKUP(A:A,moamelat!A:R,18,0),"") -> 1 | U42: =IFERROR(VLOOKUP(A:A,moamelat!A:S,19,0),"") -> 100 | V42: =IFERROR(VLOOKUP(A:A,moamelat!A:T,20,0),"") -> 1 | W42: =VLOOKUP(A:A,moamelat!A:U,21,0) -> 0 | X42: =IFERROR(VLOOKUP(A:A,moamelat!A:V,22,0),"") -> 0 | Y42: =IFERROR(VLOOKUP(A:A,moamelat!A:W,23,0),"") -> 0
A43: طخود7075 | B43: =IFERROR(VLOOKUP(A:A,constant!A:B,2,0),"") -> خودرو | C43: =IFERROR(VLOOKUP(A:A,constant!A:C,3,0),"") -> اختيارف خودرو-2000-1400/07/07 | D43: =IFERROR(VLOOKUP(A:A,constant!A:D,4,0),"") -> 2000 | E43: =IFERROR(VLOOKUP(A:A,moamelat!A:C,3,0),"") -> 0 | F43: =IFERROR(VLOOKUP(A:A,moamelat!A:D,4,0),"") -> 0 | G43: =IFERROR(VLOOKUP(A:A,moamelat!A:E,5,0),"") -> 0 | H43: =IFERROR(VLOOKUP(A:A,moamelat!A:F,6,0),"") -> 1 | I43: =IFERROR(VLOOKUP(A:A,moamelat!A:G,7,0),"") -> 0 | J43: =IFERROR(VLOOKUP(A:A,moamelat!A:H,8,0),"") -> 1 | K43: =IFERROR(VLOOKUP(A:A,moamelat!A:I,9,0),"") -> 0 | L43: =IFERROR(VLOOKUP(A:A,moamelat!A:J,10,0),"") -> 0 | M43: =IFERROR(VLOOKUP(A:A,moamelat!A:K,11,0),"") -> 1 | N43: =IFERROR(VLOOKUP(A:A,moamelat!A:L,12,0),"") -> 0 | O43: =IFERROR(VLOOKUP(A:A,moamelat!A:M,13,0),"") -> 0 | P43: =IFERROR(VLOOKUP(A:A,moamelat!A:N,14,0),"") -> 0 | Q43: =IFERROR(VLOOKUP(A:A,moamelat!A:O,15,0),"") -> 0 | R43: =IFERROR(VLOOKUP(A:A,moamelat!A:P,16,0),"") -> 0 | S43: =IFERROR(VLOOKUP(A:A,moamelat!A:Q,17,0),"") -> 0 | T43: =IFERROR(VLOOKUP(A:A,moamelat!A:R,18,0),"") -> 1 | U43: =IFERROR(VLOOKUP(A:A,moamelat!A:S,19,0),"") -> 100 | V43: =IFERROR(VLOOKUP(A:A,moamelat!A:T,20,0),"") -> 1 | W43: =VLOOKUP(A:A,moamelat!A:U,21,0) -> 0 | X43: =IFERROR(VLOOKUP(A:A,moamelat!A:V,22,0),"") -> 0 | Y43: =IFERROR(VLOOKUP(A:A,moamelat!A:W,23,0),"") -> 0
A44: طخود7076 | B44: =IFERROR(VLOOKUP(A:A,constant!A:B,2,0),"") -> خودرو | C44: =IFERROR(VLOOKUP(A:A,constant!A:C,3,0),"") -> اختيارف خودرو-2500-1400/07/07 | D44: =IFERROR(VLOOKUP(A:A,constant!A:D,4,0),"") -> 2500 | E44: =IFERROR(VLOOKUP(A:A,moamelat!A:C,3,0),"") ->  | F44: =IFERROR(VLOOKUP(A:A,moamelat!A:D,4,0),"") ->  | G44: =IFERROR(VLOOKUP(A:A,moamelat!A:E,5,0),"") ->  | H44: =IFERROR(VLOOKUP(A:A,moamelat!A:F,6,0),"") ->  | I44: =IFERROR(VLOOKUP(A:A,moamelat!A:G,7,0),"") ->  | J44: =IFERROR(VLOOKUP(A:A,moamelat!A:H,8,0),"") ->  | K44: =IFERROR(VLOOKUP(A:A,moamelat!A:I,9,0),"") ->  | L44: =IFERROR(VLOOKUP(A:A,moamelat!A:J,10,0),"") ->  | M44: =IFERROR(VLOOKUP(A:A,moamelat!A:K,11,0),"") ->  | N44: =IFERROR(VLOOKUP(A:A,moamelat!A:L,12,0),"") ->  | O44: =IFERROR(VLOOKUP(A:A,moamelat!A:M,13,0),"") ->  | P44: =IFERROR(VLOOKUP(A:A,moamelat!A:N,14,0),"") ->  | Q44: =IFERROR(VLOOKUP(A:A,moamelat!A:O,15,0),"") ->  | R44: =IFERROR(VLOOKUP(A:A,moamelat!A:P,16,0),"") ->  | S44: =IFERROR(VLOOKUP(A:A,moamelat!A:Q,17,0),"") ->  | T44: =IFERROR(VLOOKUP(A:A,moamelat!A:R,18,0),"") ->  | U44: =IFERROR(VLOOKUP(A:A,moamelat!A:S,19,0),"") ->  | V44: =IFERROR(VLOOKUP(A:A,moamelat!A:T,20,0),"") ->  | W44: =VLOOKUP(A:A,moamelat!A:U,21,0) ->  | X44: =IFERROR(VLOOKUP(A:A,moamelat!A:V,22,0),"") ->  | Y44: =IFERROR(VLOOKUP(A:A,moamelat!A:W,23,0),"") -> 
A45: طخود7077 | B45: =IFERROR(VLOOKUP(A:A,constant!A:B,2,0),"") -> خودرو | C45: =IFERROR(VLOOKUP(A:A,constant!A:C,3,0),"") -> اختيارف خودرو-3000-1400/07/07 | D45: =IFERROR(VLOOKUP(A:A,constant!A:D,4,0),"") -> 3000 | E45: =IFERROR(VLOOKUP(A:A,moamelat!A:C,3,0),"") ->  | F45: =IFERROR(VLOOKUP(A:A,moamelat!A:D,4,0),"") ->  | G45: =IFERROR(VLOOKUP(A:A,moamelat!A:E,5,0),"") ->  | H45: =IFERROR(VLOOKUP(A:A,moamelat!A:F,6,0),"") ->  | I45: =IFERROR(VLOOKUP(A:A,moamelat!A:G,7,0),"") ->  | J45: =IFERROR(VLOOKUP(A:A,moamelat!A:H,8,0),"") ->  | K45: =IFERROR(VLOOKUP(A:A,moamelat!A:I,9,0),"") ->  | L45: =IFERROR(VLOOKUP(A:A,moamelat!A:J,10,0),"") ->  | M45: =IFERROR(VLOOKUP(A:A,moamelat!A:K,11,0),"") ->  | N45: =IFERROR(VLOOKUP(A:A,moamelat!A:L,12,0),"") ->  | O45: =IFERROR(VLOOKUP(A:A,moamelat!A:M,13,0),"") ->  | P45: =IFERROR(VLOOKUP(A:A,moamelat!A:N,14,0),"") ->  | Q45: =IFERROR(VLOOKUP(A:A,moamelat!A:O,15,0),"") ->  | R45: =IFERROR(VLOOKUP(A:A,moamelat!A:P,16,0),"") ->  | S45: =IFERROR(VLOOKUP(A:A,moamelat!A:Q,17,0),"") ->  | T45: =IFERROR(VLOOKUP(A:A,moamelat!A:R,18,0),"") ->  | U45: =IFERROR(VLOOKUP(A:A,moamelat!A:S,19,0),"") ->  | V45: =IFERROR(VLOOKUP(A:A,moamelat!A:T,20,0),"") ->  | W45: =VLOOKUP(A:A,moamelat!A:U,21,0) ->  | X45: =IFERROR(VLOOKUP(A:A,moamelat!A:V,22,0),"") ->  | Y45: =IFERROR(VLOOKUP(A:A,moamelat!A:W,23,0),"") -> 
A46: طخود7078 | B46: =IFERROR(VLOOKUP(A:A,constant!A:B,2,0),"") -> خودرو | C46: =IFERROR(VLOOKUP(A:A,constant!A:C,3,0),"") -> اختيارف خودرو-3500-1400/07/07 | D46: =IFERROR(VLOOKUP(A:A,constant!A:D,4,0),"") -> 3500 | E46: =IFERROR(VLOOKUP(A:A,moamelat!A:C,3,0),"") ->  | F46: =IFERROR(VLOOKUP(A:A,moamelat!A:D,4,0),"") ->  | G46: =IFERROR(VLOOKUP(A:A,moamelat!A:E,5,0),"") ->  | H46: =IFERROR(VLOOKUP(A:A,moamelat!A:F,6,0),"") ->  | I46: =IFERROR(VLOOKUP(A:A,moamelat!A:G,7,0),"") ->  | J46: =IFERROR(VLOOKUP(A:A,moamelat!A:H,8,0),"") ->  | K46: =IFERROR(VLOOKUP(A:A,moamelat!A:I,9,0),"") ->  | L46: =IFERROR(VLOOKUP(A:A,moamelat!A:J,10,0),"") ->  | M46: =IFERROR(VLOOKUP(A:A,moamelat!A:K,11,0),"") ->  | N46: =IFERROR(VLOOKUP(A:A,moamelat!A:L,12,0),"") ->  | O46: =IFERROR(VLOOKUP(A:A,moamelat!A:M,13,0),"") ->  | P46: =IFERROR(VLOOKUP(A:A,moamelat!A:N,14,0),"") ->  | Q46: =IFERROR(VLOOKUP(A:A,moamelat!A:O,15,0),"") ->  | R46: =IFERROR(VLOOKUP(A:A,moamelat!A:P,16,0),"") ->  | S46: =IFERROR(VLOOKUP(A:A,moamelat!A:Q,17,0),"") ->  | T46: =IFERROR(VLOOKUP(A:A,moamelat!A:R,18,0),"") ->  | U46: =IFERROR(VLOOKUP(A:A,moamelat!A:S,19,0),"") ->  | V46: =IFERROR(VLOOKUP(A:A,moamelat!A:T,20,0),"") ->  | W46: =VLOOKUP(A:A,moamelat!A:U,21,0) ->  | X46: =IFERROR(VLOOKUP(A:A,moamelat!A:V,22,0),"") ->  | Y46: =IFERROR(VLOOKUP(A:A,moamelat!A:W,23,0),"") -> 
A47: طخود7079 | B47: =IFERROR(VLOOKUP(A:A,constant!A:B,2,0),"") -> خودرو | C47: =IFERROR(VLOOKUP(A:A,constant!A:C,3,0),"") -> اختيارف خودرو-4000-1400/07/07 | D47: =IFERROR(VLOOKUP(A:A,constant!A:D,4,0),"") -> 4000 | E47: =IFERROR(VLOOKUP(A:A,moamelat!A:C,3,0),"") ->  | F47: =IFERROR(VLOOKUP(A:A,moamelat!A:D,4,0),"") ->  | G47: =IFERROR(VLOOKUP(A:A,moamelat!A:E,5,0),"") ->  | H47: =IFERROR(VLOOKUP(A:A,moamelat!A:F,6,0),"") ->  | I47: =IFERROR(VLOOKUP(A:A,moamelat!A:G,7,0),"") ->  | J47: =IFERROR(VLOOKUP(A:A,moamelat!A:H,8,0),"") ->  | K47: =IFERROR(VLOOKUP(A:A,moamelat!A:I,9,0),"") ->  | L47: =IFERROR(VLOOKUP(A:A,moamelat!A:J,10,0),"") ->  | M47: =IFERROR(VLOOKUP(A:A,moamelat!A:K,11,0),"") ->  | N47: =IFERROR(VLOOKUP(A:A,moamelat!A:L,12,0),"") ->  | O47: =IFERROR(VLOOKUP(A:A,moamelat!A:M,13,0),"") ->  | P47: =IFERROR(VLOOKUP(A:A,moamelat!A:N,14,0),"") ->  | Q47: =IFERROR(VLOOKUP(A:A,moamelat!A:O,15,0),"") ->  | R47: =IFERROR(VLOOKUP(A:A,moamelat!A:P,16,0),"") ->  | S47: =IFERROR(VLOOKUP(A:A,moamelat!A:Q,17,0),"") ->  | T47: =IFERROR(VLOOKUP(A:A,moamelat!A:R,18,0),"") ->  | U47: =IFERROR(VLOOKUP(A:A,moamelat!A:S,19,0),"") ->  | V47: =IFERROR(VLOOKUP(A:A,moamelat!A:T,20,0),"") ->  | W47: =VLOOKUP(A:A,moamelat!A:U,21,0) ->  | X47: =IFERROR(VLOOKUP(A:A,moamelat!A:V,22,0),"") ->  | Y47: =IFERROR(VLOOKUP(A:A,moamelat!A:W,23,0),"") -> 
A48: طخود7080 | B48: =IFERROR(VLOOKUP(A:A,constant!A:B,2,0),"") -> خودرو | C48: =IFERROR(VLOOKUP(A:A,constant!A:C,3,0),"") -> اختيارف خودرو-4500-1400/07/07 | D48: =IFERROR(VLOOKUP(A:A,constant!A:D,4,0),"") -> 4500 | E48: =IFERROR(VLOOKUP(A:A,moamelat!A:C,3,0),"") ->  | F48: =IFERROR(VLOOKUP(A:A,moamelat!A:D,4,0),"") ->  | G48: =IFERROR(VLOOKUP(A:A,moamelat!A:E,5,0),"") ->  | H48: =IFERROR(VLOOKUP(A:A,moamelat!A:F,6,0),"") ->  | I48: =IFERROR(VLOOKUP(A:A,moamelat!A:G,7,0),"") ->  | J48: =IFERROR(VLOOKUP(A:A,moamelat!A:H,8,0),"") ->  | K48: =IFERROR(VLOOKUP(A:A,moamelat!A:I,9,0),"") ->  | L48: =IFERROR(VLOOKUP(A:A,moamelat!A:J,10,0),"") ->  | M48: =IFERROR(VLOOKUP(A:A,moamelat!A:K,11,0),"") ->  | N48: =IFERROR(VLOOKUP(A:A,moamelat!A:L,12,0),"") ->  | O48: =IFERROR(VLOOKUP(A:A,moamelat!A:M,13,0),"") ->  | P48: =IFERROR(VLOOKUP(A:A,moamelat!A:N,14,0),"") ->  | Q48: =IFERROR(VLOOKUP(A:A,moamelat!A:O,15,0),"") ->  | R48: =IFERROR(VLOOKUP(A:A,moamelat!A:P,16,0),"") ->  | S48: =IFERROR(VLOOKUP(A:A,moamelat!A:Q,17,0),"") ->  | T48: =IFERROR(VLOOKUP(A:A,moamelat!A:R,18,0),"") ->  | U48: =IFERROR(VLOOKUP(A:A,moamelat!A:S,19,0),"") ->  | V48: =IFERROR(VLOOKUP(A:A,moamelat!A:T,20,0),"") ->  | W48: =VLOOKUP(A:A,moamelat!A:U,21,0) ->  | X48: =IFERROR(VLOOKUP(A:A,moamelat!A:V,22,0),"") ->  | Y48: =IFERROR(VLOOKUP(A:A,moamelat!A:W,23,0),"") -> 
A49: طخوز7035 | B49: =IFERROR(VLOOKUP(A:A,constant!A:B,2,0),"") -> فخوز | C49: =IFERROR(VLOOKUP(A:A,constant!A:C,3,0),"") -> اختيارف فخوز-9000-1400/07/14 | D49: =IFERROR(VLOOKUP(A:A,constant!A:D,4,0),"") -> 9000 | E49: =IFERROR(VLOOKUP(A:A,moamelat!A:C,3,0),"") ->  | F49: =IFERROR(VLOOKUP(A:A,moamelat!A:D,4,0),"") ->  | G49: =IFERROR(VLOOKUP(A:A,moamelat!A:E,5,0),"") ->  | H49: =IFERROR(VLOOKUP(A:A,moamelat!A:F,6,0),"") ->  | I49: =IFERROR(VLOOKUP(A:A,moamelat!A:G,7,0),"") ->  | J49: =IFERROR(VLOOKUP(A:A,moamelat!A:H,8,0),"") ->  | K49: =IFERROR(VLOOKUP(A:A,moamelat!A:I,9,0),"") ->  | L49: =IFERROR(VLOOKUP(A:A,moamelat!A:J,10,0),"") ->  | M49: =IFERROR(VLOOKUP(A:A,moamelat!A:K,11,0),"") ->  | N49: =IFERROR(VLOOKUP(A:A,moamelat!A:L,12,0),"") ->  | O49: =IFERROR(VLOOKUP(A:A,moamelat!A:M,13,0),"") ->  | P49: =IFERROR(VLOOKUP(A:A,moamelat!A:N,14,0),"") ->  | Q49: =IFERROR(VLOOKUP(A:A,moamelat!A:O,15,0),"") ->  | R49: =IFERROR(VLOOKUP(A:A,moamelat!A:P,16,0),"") ->  | S49: =IFERROR(VLOOKUP(A:A,moamelat!A:Q,17,0),"") ->  | T49: =IFERROR(VLOOKUP(A:A,moamelat!A:R,18,0),"") ->  | U49: =IFERROR(VLOOKUP(A:A,moamelat!A:S,19,0),"") ->  | V49: =IFERROR(VLOOKUP(A:A,moamelat!A:T,20,0),"") ->  | W49: =VLOOKUP(A:A,moamelat!A:U,21,0) ->  | X49: =IFERROR(VLOOKUP(A:A,moamelat!A:V,22,0),"") ->  | Y49: =IFERROR(VLOOKUP(A:A,moamelat!A:W,23,0),"") -> 
A50: طخوز7036 | B50: =IFERROR(VLOOKUP(A:A,constant!A:B,2,0),"") -> فخوز | C50: =IFERROR(VLOOKUP(A:A,constant!A:C,3,0),"") -> اختيارف فخوز-10000-1400/07/14 | D50: =IFERROR(VLOOKUP(A:A,constant!A:D,4,0),"") -> 10000 | E50: =IFERROR(VLOOKUP(A:A,moamelat!A:C,3,0),"") ->  | F50: =IFERROR(VLOOKUP(A:A,moamelat!A:D,4,0),"") ->  | G50: =IFERROR(VLOOKUP(A:A,moamelat!A:E,5,0),"") ->  | H50: =IFERROR(VLOOKUP(A:A,moamelat!A:F,6,0),"") ->  | I50: =IFERROR(VLOOKUP(A:A,moamelat!A:G,7,0),"") ->  | J50: =IFERROR(VLOOKUP(A:A,moamelat!A:H,8,0),"") ->  | K50: =IFERROR(VLOOKUP(A:A,moamelat!A:I,9,0),"") ->  | L50: =IFERROR(VLOOKUP(A:A,moamelat!A:J,10,0),"") ->  | M50: =IFERROR(VLOOKUP(A:A,moamelat!A:K,11,0),"") ->  | N50: =IFERROR(VLOOKUP(A:A,moamelat!A:L,12,0),"") ->  | O50: =IFERROR(VLOOKUP(A:A,moamelat!A:M,13,0),"") ->  | P50: =IFERROR(VLOOKUP(A:A,moamelat!A:N,14,0),"") ->  | Q50: =IFERROR(VLOOKUP(A:A,moamelat!A:O,15,0),"") ->  | R50: =IFERROR(VLOOKUP(A:A,moamelat!A:P,16,0),"") ->  | S50: =IFERROR(VLOOKUP(A:A,moamelat!A:Q,17,0),"") ->  | T50: =IFERROR(VLOOKUP(A:A,moamelat!A:R,18,0),"") ->  | U50: =IFERROR(VLOOKUP(A:A,moamelat!A:S,19,0),"") ->  | V50: =IFERROR(VLOOKUP(A:A,moamelat!A:T,20,0),"") ->  | W50: =VLOOKUP(A:A,moamelat!A:U,21,0) ->  | X50: =IFERROR(VLOOKUP(A:A,moamelat!A:V,22,0),"") ->  | Y50: =IFERROR(VLOOKUP(A:A,moamelat!A:W,23,0),"") -> 
A51: طخوز7037 | B51: =IFERROR(VLOOKUP(A:A,constant!A:B,2,0),"") -> فخوز | C51: =IFERROR(VLOOKUP(A:A,constant!A:C,3,0),"") -> اختيارف فخوز-12000-1400/07/14 | D51: =IFERROR(VLOOKUP(A:A,constant!A:D,4,0),"") -> 12000 | E51: =IFERROR(VLOOKUP(A:A,moamelat!A:C,3,0),"") ->  | F51: =IFERROR(VLOOKUP(A:A,moamelat!A:D,4,0),"") ->  | G51: =IFERROR(VLOOKUP(A:A,moamelat!A:E,5,0),"") ->  | H51: =IFERROR(VLOOKUP(A:A,moamelat!A:F,6,0),"") ->  | I51: =IFERROR(VLOOKUP(A:A,moamelat!A:G,7,0),"") ->  | J51: =IFERROR(VLOOKUP(A:A,moamelat!A:H,8,0),"") ->  | K51: =IFERROR(VLOOKUP(A:A,moamelat!A:I,9,0),"") ->  | L51: =IFERROR(VLOOKUP(A:A,moamelat!A:J,10,0),"") ->  | M51: =IFERROR(VLOOKUP(A:A,moamelat!A:K,11,0),"") ->  | N51: =IFERROR(VLOOKUP(A:A,moamelat!A:L,12,0),"") ->  | O51: =IFERROR(VLOOKUP(A:A,moamelat!A:M,13,0),"") ->  | P51: =IFERROR(VLOOKUP(A:A,moamelat!A:N,14,0),"") ->  | Q51: =IFERROR(VLOOKUP(A:A,moamelat!A:O,15,0),"") ->  | R51: =IFERROR(VLOOKUP(A:A,moamelat!A:P,16,0),"") ->  | S51: =IFERROR(VLOOKUP(A:A,moamelat!A:Q,17,0),"") ->  | T51: =IFERROR(VLOOKUP(A:A,moamelat!A:R,18,0),"") ->  | U51: =IFERROR(VLOOKUP(A:A,moamelat!A:S,19,0),"") ->  | V51: =IFERROR(VLOOKUP(A:A,moamelat!A:T,20,0),"") ->  | W51: =VLOOKUP(A:A,moamelat!A:U,21,0) ->  | X51: =IFERROR(VLOOKUP(A:A,moamelat!A:V,22,0),"") ->  | Y51: =IFERROR(VLOOKUP(A:A,moamelat!A:W,23,0),"") -> 
A52: طخوز7038 | B52: =IFERROR(VLOOKUP(A:A,constant!A:B,2,0),"") -> فخوز | C52: =IFERROR(VLOOKUP(A:A,constant!A:C,3,0),"") -> اختيارف فخوز-14000-1400/07/14 | D52: =IFERROR(VLOOKUP(A:A,constant!A:D,4,0),"") -> 14000 | E52: =IFERROR(VLOOKUP(A:A,moamelat!A:C,3,0),"") ->  | F52: =IFERROR(VLOOKUP(A:A,moamelat!A:D,4,0),"") ->  | G52: =IFERROR(VLOOKUP(A:A,moamelat!A:E,5,0),"") ->  | H52: =IFERROR(VLOOKUP(A:A,moamelat!A:F,6,0),"") ->  | I52: =IFERROR(VLOOKUP(A:A,moamelat!A:G,7,0),"") ->  | J52: =IFERROR(VLOOKUP(A:A,moamelat!A:H,8,0),"") ->  | K52: =IFERROR(VLOOKUP(A:A,moamelat!A:I,9,0),"") ->  | L52: =IFERROR(VLOOKUP(A:A,moamelat!A:J,10,0),"") ->  | M52: =IFERROR(VLOOKUP(A:A,moamelat!A:K,11,0),"") ->  | N52: =IFERROR(VLOOKUP(A:A,moamelat!A:L,12,0),"") ->  | O52: =IFERROR(VLOOKUP(A:A,moamelat!A:M,13,0),"") ->  | P52: =IFERROR(VLOOKUP(A:A,moamelat!A:N,14,0),"") ->  | Q52: =IFERROR(VLOOKUP(A:A,moamelat!A:O,15,0),"") ->  | R52: =IFERROR(VLOOKUP(A:A,moamelat!A:P,16,0),"") ->  | S52: =IFERROR(VLOOKUP(A:A,moamelat!A:Q,17,0),"") ->  | T52: =IFERROR(VLOOKUP(A:A,moamelat!A:R,18,0),"") ->  | U52: =IFERROR(VLOOKUP(A:A,moamelat!A:S,19,0),"") ->  | V52: =IFERROR(VLOOKUP(A:A,moamelat!A:T,20,0),"") ->  | W52: =VLOOKUP(A:A,moamelat!A:U,21,0) ->  | X52: =IFERROR(VLOOKUP(A:A,moamelat!A:V,22,0),"") ->  | Y52: =IFERROR(VLOOKUP(A:A,moamelat!A:W,23,0),"") -> 
A53: طخوز7039 | B53: =IFERROR(VLOOKUP(A:A,constant!A:B,2,0),"") -> فخوز | C53: =IFERROR(VLOOKUP(A:A,constant!A:C,3,0),"") -> اختيارف فخوز-16000-1400/07/14 | D53: =IFERROR(VLOOKUP(A:A,constant!A:D,4,0),"") -> 16000 | E53: =IFERROR(VLOOKUP(A:A,moamelat!A:C,3,0),"") ->  | F53: =IFERROR(VLOOKUP(A:A,moamelat!A:D,4,0),"") ->  | G53: =IFERROR(VLOOKUP(A:A,moamelat!A:E,5,0),"") ->  | H53: =IFERROR(VLOOKUP(A:A,moamelat!A:F,6,0),"") ->  | I53: =IFERROR(VLOOKUP(A:A,moamelat!A:G,7,0),"") ->  | J53: =IFERROR(VLOOKUP(A:A,moamelat!A:H,8,0),"") ->  | K53: =IFERROR(VLOOKUP(A:A,moamelat!A:I,9,0),"") ->  | L53: =IFERROR(VLOOKUP(A:A,moamelat!A:J,10,0),"") ->  | M53: =IFERROR(VLOOKUP(A:A,moamelat!A:K,11,0),"") ->  | N53: =IFERROR(VLOOKUP(A:A,moamelat!A:L,12,0),"") ->  | O53: =IFERROR(VLOOKUP(A:A,moamelat!A:M,13,0),"") ->  | P53: =IFERROR(VLOOKUP(A:A,moamelat!A:N,14,0),"") ->  | Q53: =IFERROR(VLOOKUP(A:A,moamelat!A:O,15,0),"") ->  | R53: =IFERROR(VLOOKUP(A:A,moamelat!A:P,16,0),"") ->  | S53: =IFERROR(VLOOKUP(A:A,moamelat!A:Q,17,0),"") ->  | T53: =IFERROR(VLOOKUP(A:A,moamelat!A:R,18,0),"") ->  | U53: =IFERROR(VLOOKUP(A:A,moamelat!A:S,19,0),"") ->  | V53: =IFERROR(VLOOKUP(A:A,moamelat!A:T,20,0),"") ->  | W53: =VLOOKUP(A:A,moamelat!A:U,21,0) ->  | X53: =IFERROR(VLOOKUP(A:A,moamelat!A:V,22,0),"") ->  | Y53: =IFERROR(VLOOKUP(A:A,moamelat!A:W,23,0),"") -> 
A54: طخوز7040 | B54: =IFERROR(VLOOKUP(A:A,constant!A:B,2,0),"") -> فخوز | C54: =IFERROR(VLOOKUP(A:A,constant!A:C,3,0),"") -> اختيارف فخوز-18000-1400/07/14 | D54: =IFERROR(VLOOKUP(A:A,constant!A:D,4,0),"") -> 18000 | E54: =IFERROR(VLOOKUP(A:A,moamelat!A:C,3,0),"") ->  | F54: =IFERROR(VLOOKUP(A:A,moamelat!A:D,4,0),"") ->  | G54: =IFERROR(VLOOKUP(A:A,moamelat!A:E,5,0),"") ->  | H54: =IFERROR(VLOOKUP(A:A,moamelat!A:F,6,0),"") ->  | I54: =IFERROR(VLOOKUP(A:A,moamelat!A:G,7,0),"") ->  | J54: =IFERROR(VLOOKUP(A:A,moamelat!A:H,8,0),"") ->  | K54: =IFERROR(VLOOKUP(A:A,moamelat!A:I,9,0),"") ->  | L54: =IFERROR(VLOOKUP(A:A,moamelat!A:J,10,0),"") ->  | M54: =IFERROR(VLOOKUP(A:A,moamelat!A:K,11,0),"") ->  | N54: =IFERROR(VLOOKUP(A:A,moamelat!A:L,12,0),"") ->  | O54: =IFERROR(VLOOKUP(A:A,moamelat!A:M,13,0),"") ->  | P54: =IFERROR(VLOOKUP(A:A,moamelat!A:N,14,0),"") ->  | Q54: =IFERROR(VLOOKUP(A:A,moamelat!A:O,15,0),"") ->  | R54: =IFERROR(VLOOKUP(A:A,moamelat!A:P,16,0),"") ->  | S54: =IFERROR(VLOOKUP(A:A,moamelat!A:Q,17,0),"") ->  | T54: =IFERROR(VLOOKUP(A:A,moamelat!A:R,18,0),"") ->  | U54: =IFERROR(VLOOKUP(A:A,moamelat!A:S,19,0),"") ->  | V54: =IFERROR(VLOOKUP(A:A,moamelat!A:T,20,0),"") ->  | W54: =VLOOKUP(A:A,moamelat!A:U,21,0) ->  | X54: =IFERROR(VLOOKUP(A:A,moamelat!A:V,22,0),"") ->  | Y54: =IFERROR(VLOOKUP(A:A,moamelat!A:W,23,0),"") -> 
A55: طخوز7041 | B55: =IFERROR(VLOOKUP(A:A,constant!A:B,2,0),"") -> فخوز | C55: =IFERROR(VLOOKUP(A:A,constant!A:C,3,0),"") -> اختيارف فخوز-20000-1400/07/14 | D55: =IFERROR(VLOOKUP(A:A,constant!A:D,4,0),"") -> 20000 | E55: =IFERROR(VLOOKUP(A:A,moamelat!A:C,3,0),"") ->  | F55: =IFERROR(VLOOKUP(A:A,moamelat!A:D,4,0),"") ->  | G55: =IFERROR(VLOOKUP(A:A,moamelat!A:E,5,0),"") ->  | H55: =IFERROR(VLOOKUP(A:A,moamelat!A:F,6,0),"") ->  | I55: =IFERROR(VLOOKUP(A:A,moamelat!A:G,7,0),"") ->  | J55: =IFERROR(VLOOKUP(A:A,moamelat!A:H,8,0),"") ->  | K55: =IFERROR(VLOOKUP(A:A,moamelat!A:I,9,0),"") ->  | L55: =IFERROR(VLOOKUP(A:A,moamelat!A:J,10,0),"") ->  | M55: =IFERROR(VLOOKUP(A:A,moamelat!A:K,11,0),"") ->  | N55: =IFERROR(VLOOKUP(A:A,moamelat!A:L,12,0),"") ->  | O55: =IFERROR(VLOOKUP(A:A,moamelat!A:M,13,0),"") ->  | P55: =IFERROR(VLOOKUP(A:A,moamelat!A:N,14,0),"") ->  | Q55: =IFERROR(VLOOKUP(A:A,moamelat!A:O,15,0),"") ->  | R55: =IFERROR(VLOOKUP(A:A,moamelat!A:P,16,0),"") ->  | S55: =IFERROR(VLOOKUP(A:A,moamelat!A:Q,17,0),"") ->  | T55: =IFERROR(VLOOKUP(A:A,moamelat!A:R,18,0),"") ->  | U55: =IFERROR(VLOOKUP(A:A,moamelat!A:S,19,0),"") ->  | V55: =IFERROR(VLOOKUP(A:A,moamelat!A:T,20,0),"") ->  | W55: =VLOOKUP(A:A,moamelat!A:U,21,0) ->  | X55: =IFERROR(VLOOKUP(A:A,moamelat!A:V,22,0),"") ->  | Y55: =IFERROR(VLOOKUP(A:A,moamelat!A:W,23,0),"") -> 
A56: طخوز7042 | B56: =IFERROR(VLOOKUP(A:A,constant!A:B,2,0),"") -> فخوز | C56: =IFERROR(VLOOKUP(A:A,constant!A:C,3,0),"") -> اختيارف فخوز-24000-1400/07/14 | D56: =IFERROR(VLOOKUP(A:A,constant!A:D,4,0),"") -> 24000 | E56: =IFERROR(VLOOKUP(A:A,moamelat!A:C,3,0),"") ->  | F56: =IFERROR(VLOOKUP(A:A,moamelat!A:D,4,0),"") ->  | G56: =IFERROR(VLOOKUP(A:A,moamelat!A:E,5,0),"") ->  | H56: =IFERROR(VLOOKUP(A:A,moamelat!A:F,6,0),"") ->  | I56: =IFERROR(VLOOKUP(A:A,moamelat!A:G,7,0),"") ->  | J56: =IFERROR(VLOOKUP(A:A,moamelat!A:H,8,0),"") ->  | K56: =IFERROR(VLOOKUP(A:A,moamelat!A:I,9,0),"") ->  | L56: =IFERROR(VLOOKUP(A:A,moamelat!A:J,10,0),"") ->  | M56: =IFERROR(VLOOKUP(A:A,moamelat!A:K,11,0),"") ->  | N56: =IFERROR(VLOOKUP(A:A,moamelat!A:L,12,0),"") ->  | O56: =IFERROR(VLOOKUP(A:A,moamelat!A:M,13,0),"") ->  | P56: =IFERROR(VLOOKUP(A:A,moamelat!A:N,14,0),"") ->  | Q56: =IFERROR(VLOOKUP(A:A,moamelat!A:O,15,0),"") ->  | R56: =IFERROR(VLOOKUP(A:A,moamelat!A:P,16,0),"") ->  | S56: =IFERROR(VLOOKUP(A:A,moamelat!A:Q,17,0),"") ->  | T56: =IFERROR(VLOOKUP(A:A,moamelat!A:R,18,0),"") ->  | U56: =IFERROR(VLOOKUP(A:A,moamelat!A:S,19,0),"") ->  | V56: =IFERROR(VLOOKUP(A:A,moamelat!A:T,20,0),"") ->  | W56: =VLOOKUP(A:A,moamelat!A:U,21,0) ->  | X56: =IFERROR(VLOOKUP(A:A,moamelat!A:V,22,0),"") ->  | Y56: =IFERROR(VLOOKUP(A:A,moamelat!A:W,23,0),"") -> 
A57: طخوز7043 | B57: =IFERROR(VLOOKUP(A:A,constant!A:B,2,0),"") -> فخوز | C57: =IFERROR(VLOOKUP(A:A,constant!A:C,3,0),"") -> اختيارف فخوز-28000-1400/07/14 | D57: =IFERROR(VLOOKUP(A:A,constant!A:D,4,0),"") -> 28000 | E57: =IFERROR(VLOOKUP(A:A,moamelat!A:C,3,0),"") ->  | F57: =IFERROR(VLOOKUP(A:A,moamelat!A:D,4,0),"") ->  | G57: =IFERROR(VLOOKUP(A:A,moamelat!A:E,5,0),"") ->  | H57: =IFERROR(VLOOKUP(A:A,moamelat!A:F,6,0),"") ->  | I57: =IFERROR(VLOOKUP(A:A,moamelat!A:G,7,0),"") ->  | J57: =IFERROR(VLOOKUP(A:A,moamelat!A:H,8,0),"") ->  | K57: =IFERROR(VLOOKUP(A:A,moamelat!A:I,9,0),"") ->  | L57: =IFERROR(VLOOKUP(A:A,moamelat!A:J,10,0),"") ->  | M57: =IFERROR(VLOOKUP(A:A,moamelat!A:K,11,0),"") ->  | N57: =IFERROR(VLOOKUP(A:A,moamelat!A:L,12,0),"") ->  | O57: =IFERROR(VLOOKUP(A:A,moamelat!A:M,13,0),"") ->  | P57: =IFERROR(VLOOKUP(A:A,moamelat!A:N,14,0),"") ->  | Q57: =IFERROR(VLOOKUP(A:A,moamelat!A:O,15,0),"") ->  | R57: =IFERROR(VLOOKUP(A:A,moamelat!A:P,16,0),"") ->  | S57: =IFERROR(VLOOKUP(A:A,moamelat!A:Q,17,0),"") ->  | T57: =IFERROR(VLOOKUP(A:A,moamelat!A:R,18,0),"") ->  | U57: =IFERROR(VLOOKUP(A:A,moamelat!A:S,19,0),"") ->  | V57: =IFERROR(VLOOKUP(A:A,moamelat!A:T,20,0),"") ->  | W57: =VLOOKUP(A:A,moamelat!A:U,21,0) ->  | X57: =IFERROR(VLOOKUP(A:A,moamelat!A:V,22,0),"") ->  | Y57: =IFERROR(VLOOKUP(A:A,moamelat!A:W,23,0),"") -> 
A58: طسان7075 | B58: =IFERROR(VLOOKUP(A:A,constant!A:B,2,0),"") -> پارسان | C58: =IFERROR(VLOOKUP(A:A,constant!A:C,3,0),"") -> اختيارف پارسان-12000-1400/07/14 | D58: =IFERROR(VLOOKUP(A:A,constant!A:D,4,0),"") -> 12000 | E58: =IFERROR(VLOOKUP(A:A,moamelat!A:C,3,0),"") ->  | F58: =IFERROR(VLOOKUP(A:A,moamelat!A:D,4,0),"") ->  | G58: =IFERROR(VLOOKUP(A:A,moamelat!A:E,5,0),"") ->  | H58: =IFERROR(VLOOKUP(A:A,moamelat!A:F,6,0),"") ->  | I58: =IFERROR(VLOOKUP(A:A,moamelat!A:G,7,0),"") ->  | J58: =IFERROR(VLOOKUP(A:A,moamelat!A:H,8,0),"") ->  | K58: =IFERROR(VLOOKUP(A:A,moamelat!A:I,9,0),"") ->  | L58: =IFERROR(VLOOKUP(A:A,moamelat!A:J,10,0),"") ->  | M58: =IFERROR(VLOOKUP(A:A,moamelat!A:K,11,0),"") ->  | N58: =IFERROR(VLOOKUP(A:A,moamelat!A:L,12,0),"") ->  | O58: =IFERROR(VLOOKUP(A:A,moamelat!A:M,13,0),"") ->  | P58: =IFERROR(VLOOKUP(A:A,moamelat!A:N,14,0),"") ->  | Q58: =IFERROR(VLOOKUP(A:A,moamelat!A:O,15,0),"") ->  | R58: =IFERROR(VLOOKUP(A:A,moamelat!A:P,16,0),"") ->  | S58: =IFERROR(VLOOKUP(A:A,moamelat!A:Q,17,0),"") ->  | T58: =IFERROR(VLOOKUP(A:A,moamelat!A:R,18,0),"") ->  | U58: =IFERROR(VLOOKUP(A:A,moamelat!A:S,19,0),"") ->  | V58: =IFERROR(VLOOKUP(A:A,moamelat!A:T,20,0),"") ->  | W58: =VLOOKUP(A:A,moamelat!A:U,21,0) ->  | X58: =IFERROR(VLOOKUP(A:A,moamelat!A:V,22,0),"") ->  | Y58: =IFERROR(VLOOKUP(A:A,moamelat!A:W,23,0),"") -> 
A59: طسان7076 | B59: =IFERROR(VLOOKUP(A:A,constant!A:B,2,0),"") -> پارسان | C59: =IFERROR(VLOOKUP(A:A,constant!A:C,3,0),"") -> اختيارف پارسان-14000-1400/07/14 | D59: =IFERROR(VLOOKUP(A:A,constant!A:D,4,0),"") -> 14000 | E59: =IFERROR(VLOOKUP(A:A,moamelat!A:C,3,0),"") ->  | F59: =IFERROR(VLOOKUP(A:A,moamelat!A:D,4,0),"") ->  | G59: =IFERROR(VLOOKUP(A:A,moamelat!A:E,5,0),"") ->  | H59: =IFERROR(VLOOKUP(A:A,moamelat!A:F,6,0),"") ->  | I59: =IFERROR(VLOOKUP(A:A,moamelat!A:G,7,0),"") ->  | J59: =IFERROR(VLOOKUP(A:A,moamelat!A:H,8,0),"") ->  | K59: =IFERROR(VLOOKUP(A:A,moamelat!A:I,9,0),"") ->  | L59: =IFERROR(VLOOKUP(A:A,moamelat!A:J,10,0),"") ->  | M59: =IFERROR(VLOOKUP(A:A,moamelat!A:K,11,0),"") ->  | N59: =IFERROR(VLOOKUP(A:A,moamelat!A:L,12,0),"") ->  | O59: =IFERROR(VLOOKUP(A:A,moamelat!A:M,13,0),"") ->  | P59: =IFERROR(VLOOKUP(A:A,moamelat!A:N,14,0),"") ->  | Q59: =IFERROR(VLOOKUP(A:A,moamelat!A:O,15,0),"") ->  | R59: =IFERROR(VLOOKUP(A:A,moamelat!A:P,16,0),"") ->  | S59: =IFERROR(VLOOKUP(A:A,moamelat!A:Q,17,0),"") ->  | T59: =IFERROR(VLOOKUP(A:A,moamelat!A:R,18,0),"") ->  | U59: =IFERROR(VLOOKUP(A:A,moamelat!A:S,19,0),"") ->  | V59: =IFERROR(VLOOKUP(A:A,moamelat!A:T,20,0),"") ->  | W59: =VLOOKUP(A:A,moamelat!A:U,21,0) ->  | X59: =IFERROR(VLOOKUP(A:A,moamelat!A:V,22,0),"") ->  | Y59: =IFERROR(VLOOKUP(A:A,moamelat!A:W,23,0),"") -> 
A60: طسان7077 | B60: =IFERROR(VLOOKUP(A:A,constant!A:B,2,0),"") -> پارسان | C60: =IFERROR(VLOOKUP(A:A,constant!A:C,3,0),"") -> اختيارف پارسان-16000-1400/07/14 | D60: =IFERROR(VLOOKUP(A:A,constant!A:D,4,0),"") -> 16000 | E60: =IFERROR(VLOOKUP(A:A,moamelat!A:C,3,0),"") ->  | F60: =IFERROR(VLOOKUP(A:A,moamelat!A:D,4,0),"") ->  | G60: =IFERROR(VLOOKUP(A:A,moamelat!A:E,5,0),"") ->  | H60: =IFERROR(VLOOKUP(A:A,moamelat!A:F,6,0),"") ->  | I60: =IFERROR(VLOOKUP(A:A,moamelat!A:G,7,0),"") ->  | J60: =IFERROR(VLOOKUP(A:A,moamelat!A:H,8,0),"") ->  | K60: =IFERROR(VLOOKUP(A:A,moamelat!A:I,9,0),"") ->  | L60: =IFERROR(VLOOKUP(A:A,moamelat!A:J,10,0),"") ->  | M60: =IFERROR(VLOOKUP(A:A,moamelat!A:K,11,0),"") ->  | N60: =IFERROR(VLOOKUP(A:A,moamelat!A:L,12,0),"") ->  | O60: =IFERROR(VLOOKUP(A:A,moamelat!A:M,13,0),"") ->  | P60: =IFERROR(VLOOKUP(A:A,moamelat!A:N,14,0),"") ->  | Q60: =IFERROR(VLOOKUP(A:A,moamelat!A:O,15,0),"") ->  | R60: =IFERROR(VLOOKUP(A:A,moamelat!A:P,16,0),"") ->  | S60: =IFERROR(VLOOKUP(A:A,moamelat!A:Q,17,0),"") ->  | T60: =IFERROR(VLOOKUP(A:A,moamelat!A:R,18,0),"") ->  | U60: =IFERROR(VLOOKUP(A:A,moamelat!A:S,19,0),"") ->  | V60: =IFERROR(VLOOKUP(A:A,moamelat!A:T,20,0),"") ->  | W60: =VLOOKUP(A:A,moamelat!A:U,21,0) ->  | X60: =IFERROR(VLOOKUP(A:A,moamelat!A:V,22,0),"") ->  | Y60: =IFERROR(VLOOKUP(A:A,moamelat!A:W,23,0),"") -> 
A61: طسان7078 | B61: =IFERROR(VLOOKUP(A:A,constant!A:B,2,0),"") -> پارسان | C61: =IFERROR(VLOOKUP(A:A,constant!A:C,3,0),"") -> اختيارف پارسان-18000-1400/07/14 | D61: =IFERROR(VLOOKUP(A:A,constant!A:D,4,0),"") -> 18000 | E61: =IFERROR(VLOOKUP(A:A,moamelat!A:C,3,0),"") ->  | F61: =IFERROR(VLOOKUP(A:A,moamelat!A:D,4,0),"") ->  | G61: =IFERROR(VLOOKUP(A:A,moamelat!A:E,5,0),"") ->  | H61: =IFERROR(VLOOKUP(A:A,moamelat!A:F,6,0),"") ->  | I61: =IFERROR(VLOOKUP(A:A,moamelat!A:G,7,0),"") ->  | J61: =IFERROR(VLOOKUP(A:A,moamelat!A:H,8,0),"") ->  | K61: =IFERROR(VLOOKUP(A:A,moamelat!A:I,9,0),"") ->  | L61: =IFERROR(VLOOKUP(A:A,moamelat!A:J,10,0),"") ->  | M61: =IFERROR(VLOOKUP(A:A,moamelat!A:K,11,0),"") ->  | N61: =IFERROR(VLOOKUP(A:A,moamelat!A:L,12,0),"") ->  | O61: =IFERROR(VLOOKUP(A:A,moamelat!A:M,13,0),"") ->  | P61: =IFERROR(VLOOKUP(A:A,moamelat!A:N,14,0),"") ->  | Q61: =IFERROR(VLOOKUP(A:A,moamelat!A:O,15,0),"") ->  | R61: =IFERROR(VLOOKUP(A:A,moamelat!A:P,16,0),"") ->  | S61: =IFERROR(VLOOKUP(A:A,moamelat!A:Q,17,0),"") ->  | T61: =IFERROR(VLOOKUP(A:A,moamelat!A:R,18,0),"") ->  | U61: =IFERROR(VLOOKUP(A:A,moamelat!A:S,19,0),"") ->  | V61: =IFERROR(VLOOKUP(A:A,moamelat!A:T,20,0),"") ->  | W61: =VLOOKUP(A:A,moamelat!A:U,21,0) ->  | X61: =IFERROR(VLOOKUP(A:A,moamelat!A:V,22,0),"") ->  | Y61: =IFERROR(VLOOKUP(A:A,moamelat!A:W,23,0),"") -> 
A62: طسان7079 | B62: =IFERROR(VLOOKUP(A:A,constant!A:B,2,0),"") -> پارسان | C62: =IFERROR(VLOOKUP(A:A,constant!A:C,3,0),"") -> اختيارف پارسان-20000-1400/07/14 | D62: =IFERROR(VLOOKUP(A:A,constant!A:D,4,0),"") -> 20000 | E62: =IFERROR(VLOOKUP(A:A,moamelat!A:C,3,0),"") ->  | F62: =IFERROR(VLOOKUP(A:A,moamelat!A:D,4,0),"") ->  | G62: =IFERROR(VLOOKUP(A:A,moamelat!A:E,5,0),"") ->  | H62: =IFERROR(VLOOKUP(A:A,moamelat!A:F,6,0),"") ->  | I62: =IFERROR(VLOOKUP(A:A,moamelat!A:G,7,0),"") ->  | J62: =IFERROR(VLOOKUP(A:A,moamelat!A:H,8,0),"") ->  | K62: =IFERROR(VLOOKUP(A:A,moamelat!A:I,9,0),"") ->  | L62: =IFERROR(VLOOKUP(A:A,moamelat!A:J,10,0),"") ->  | M62: =IFERROR(VLOOKUP(A:A,moamelat!A:K,11,0),"") ->  | N62: =IFERROR(VLOOKUP(A:A,moamelat!A:L,12,0),"") ->  | O62: =IFERROR(VLOOKUP(A:A,moamelat!A:M,13,0),"") ->  | P62: =IFERROR(VLOOKUP(A:A,moamelat!A:N,14,0),"") ->  | Q62: =IFERROR(VLOOKUP(A:A,moamelat!A:O,15,0),"") ->  | R62: =IFERROR(VLOOKUP(A:A,moamelat!A:P,16,0),"") ->  | S62: =IFERROR(VLOOKUP(A:A,moamelat!A:Q,17,0),"") ->  | T62: =IFERROR(VLOOKUP(A:A,moamelat!A:R,18,0),"") ->  | U62: =IFERROR(VLOOKUP(A:A,moamelat!A:S,19,0),"") ->  | V62: =IFERROR(VLOOKUP(A:A,moamelat!A:T,20,0),"") ->  | W62: =VLOOKUP(A:A,moamelat!A:U,21,0) ->  | X62: =IFERROR(VLOOKUP(A:A,moamelat!A:V,22,0),"") ->  | Y62: =IFERROR(VLOOKUP(A:A,moamelat!A:W,23,0),"") -> 
A63: طسان7080 | B63: =IFERROR(VLOOKUP(A:A,constant!A:B,2,0),"") -> پارسان | C63: =IFERROR(VLOOKUP(A:A,constant!A:C,3,0),"") -> اختيارف پارسان-24000-1400/07/14 | D63: =IFERROR(VLOOKUP(A:A,constant!A:D,4,0),"") -> 24000 | E63: =IFERROR(VLOOKUP(A:A,moamelat!A:C,3,0),"") ->  | F63: =IFERROR(VLOOKUP(A:A,moamelat!A:D,4,0),"") ->  | G63: =IFERROR(VLOOKUP(A:A,moamelat!A:E,5,0),"") ->  | H63: =IFERROR(VLOOKUP(A:A,moamelat!A:F,6,0),"") ->  | I63: =IFERROR(VLOOKUP(A:A,moamelat!A:G,7,0),"") ->  | J63: =IFERROR(VLOOKUP(A:A,moamelat!A:H,8,0),"") ->  | K63: =IFERROR(VLOOKUP(A:A,moamelat!A:I,9,0),"") ->  | L63: =IFERROR(VLOOKUP(A:A,moamelat!A:J,10,0),"") ->  | M63: =IFERROR(VLOOKUP(A:A,moamelat!A:K,11,0),"") ->  | N63: =IFERROR(VLOOKUP(A:A,moamelat!A:L,12,0),"") ->  | O63: =IFERROR(VLOOKUP(A:A,moamelat!A:M,13,0),"") ->  | P63: =IFERROR(VLOOKUP(A:A,moamelat!A:N,14,0),"") ->  | Q63: =IFERROR(VLOOKUP(A:A,moamelat!A:O,15,0),"") ->  | R63: =IFERROR(VLOOKUP(A:A,moamelat!A:P,16,0),"") ->  | S63: =IFERROR(VLOOKUP(A:A,moamelat!A:Q,17,0),"") ->  | T63: =IFERROR(VLOOKUP(A:A,moamelat!A:R,18,0),"") ->  | U63: =IFERROR(VLOOKUP(A:A,moamelat!A:S,19,0),"") ->  | V63: =IFERROR(VLOOKUP(A:A,moamelat!A:T,20,0),"") ->  | W63: =VLOOKUP(A:A,moamelat!A:U,21,0) ->  | X63: =IFERROR(VLOOKUP(A:A,moamelat!A:V,22,0),"") ->  | Y63: =IFERROR(VLOOKUP(A:A,moamelat!A:W,23,0),"") -> 
A64: طسان7081 | B64: =IFERROR(VLOOKUP(A:A,constant!A:B,2,0),"") -> پارسان | C64: =IFERROR(VLOOKUP(A:A,constant!A:C,3,0),"") -> اختيارف پارسان-28000-1400/07/14 | D64: =IFERROR(VLOOKUP(A:A,constant!A:D,4,0),"") -> 28000 | E64: =IFERROR(VLOOKUP(A:A,moamelat!A:C,3,0),"") ->  | F64: =IFERROR(VLOOKUP(A:A,moamelat!A:D,4,0),"") ->  | G64: =IFERROR(VLOOKUP(A:A,moamelat!A:E,5,0),"") ->  | H64: =IFERROR(VLOOKUP(A:A,moamelat!A:F,6,0),"") ->  | I64: =IFERROR(VLOOKUP(A:A,moamelat!A:G,7,0),"") ->  | J64: =IFERROR(VLOOKUP(A:A,moamelat!A:H,8,0),"") ->  | K64: =IFERROR(VLOOKUP(A:A,moamelat!A:I,9,0),"") ->  | L64: =IFERROR(VLOOKUP(A:A,moamelat!A:J,10,0),"") ->  | M64: =IFERROR(VLOOKUP(A:A,moamelat!A:K,11,0),"") ->  | N64: =IFERROR(VLOOKUP(A:A,moamelat!A:L,12,0),"") ->  | O64: =IFERROR(VLOOKUP(A:A,moamelat!A:M,13,0),"") ->  | P64: =IFERROR(VLOOKUP(A:A,moamelat!A:N,14,0),"") ->  | Q64: =IFERROR(VLOOKUP(A:A,moamelat!A:O,15,0),"") ->  | R64: =IFERROR(VLOOKUP(A:A,moamelat!A:P,16,0),"") ->  | S64: =IFERROR(VLOOKUP(A:A,moamelat!A:Q,17,0),"") ->  | T64: =IFERROR(VLOOKUP(A:A,moamelat!A:R,18,0),"") ->  | U64: =IFERROR(VLOOKUP(A:A,moamelat!A:S,19,0),"") ->  | V64: =IFERROR(VLOOKUP(A:A,moamelat!A:T,20,0),"") ->  | W64: =VLOOKUP(A:A,moamelat!A:U,21,0) ->  | X64: =IFERROR(VLOOKUP(A:A,moamelat!A:V,22,0),"") ->  | Y64: =IFERROR(VLOOKUP(A:A,moamelat!A:W,23,0),"") -> 
A65: طسان7082 | B65: =IFERROR(VLOOKUP(A:A,constant!A:B,2,0),"") -> پارسان | C65: =IFERROR(VLOOKUP(A:A,constant!A:C,3,0),"") -> اختيارف پارسان-32000-1400/07/14 | D65: =IFERROR(VLOOKUP(A:A,constant!A:D,4,0),"") -> 32000 | E65: =IFERROR(VLOOKUP(A:A,moamelat!A:C,3,0),"") ->  | F65: =IFERROR(VLOOKUP(A:A,moamelat!A:D,4,0),"") ->  | G65: =IFERROR(VLOOKUP(A:A,moamelat!A:E,5,0),"") ->  | H65: =IFERROR(VLOOKUP(A:A,moamelat!A:F,6,0),"") ->  | I65: =IFERROR(VLOOKUP(A:A,moamelat!A:G,7,0),"") ->  | J65: =IFERROR(VLOOKUP(A:A,moamelat!A:H,8,0),"") ->  | K65: =IFERROR(VLOOKUP(A:A,moamelat!A:I,9,0),"") ->  | L65: =IFERROR(VLOOKUP(A:A,moamelat!A:J,10,0),"") ->  | M65: =IFERROR(VLOOKUP(A:A,moamelat!A:K,11,0),"") ->  | N65: =IFERROR(VLOOKUP(A:A,moamelat!A:L,12,0),"") ->  | O65: =IFERROR(VLOOKUP(A:A,moamelat!A:M,13,0),"") ->  | P65: =IFERROR(VLOOKUP(A:A,moamelat!A:N,14,0),"") ->  | Q65: =IFERROR(VLOOKUP(A:A,moamelat!A:O,15,0),"") ->  | R65: =IFERROR(VLOOKUP(A:A,moamelat!A:P,16,0),"") ->  | S65: =IFERROR(VLOOKUP(A:A,moamelat!A:Q,17,0),"") ->  | T65: =IFERROR(VLOOKUP(A:A,moamelat!A:R,18,0),"") ->  | U65: =IFERROR(VLOOKUP(A:A,moamelat!A:S,19,0),"") ->  | V65: =IFERROR(VLOOKUP(A:A,moamelat!A:T,20,0),"") ->  | W65: =VLOOKUP(A:A,moamelat!A:U,21,0) ->  | X65: =IFERROR(VLOOKUP(A:A,moamelat!A:V,22,0),"") ->  | Y65: =IFERROR(VLOOKUP(A:A,moamelat!A:W,23,0),"") -> 
A66: طسان7083 | B66: =IFERROR(VLOOKUP(A:A,constant!A:B,2,0),"") -> پارسان | C66: =IFERROR(VLOOKUP(A:A,constant!A:C,3,0),"") -> اختيارف پارسان-36000-1400/07/14 | D66: =IFERROR(VLOOKUP(A:A,constant!A:D,4,0),"") -> 36000 | E66: =IFERROR(VLOOKUP(A:A,moamelat!A:C,3,0),"") ->  | F66: =IFERROR(VLOOKUP(A:A,moamelat!A:D,4,0),"") ->  | G66: =IFERROR(VLOOKUP(A:A,moamelat!A:E,5,0),"") ->  | H66: =IFERROR(VLOOKUP(A:A,moamelat!A:F,6,0),"") ->  | I66: =IFERROR(VLOOKUP(A:A,moamelat!A:G,7,0),"") ->  | J66: =IFERROR(VLOOKUP(A:A,moamelat!A:H,8,0),"") ->  | K66: =IFERROR(VLOOKUP(A:A,moamelat!A:I,9,0),"") ->  | L66: =IFERROR(VLOOKUP(A:A,moamelat!A:J,10,0),"") ->  | M66: =IFERROR(VLOOKUP(A:A,moamelat!A:K,11,0),"") ->  | N66: =IFERROR(VLOOKUP(A:A,moamelat!A:L,12,0),"") ->  | O66: =IFERROR(VLOOKUP(A:A,moamelat!A:M,13,0),"") ->  | P66: =IFERROR(VLOOKUP(A:A,moamelat!A:N,14,0),"") ->  | Q66: =IFERROR(VLOOKUP(A:A,moamelat!A:O,15,0),"") ->  | R66: =IFERROR(VLOOKUP(A:A,moamelat!A:P,16,0),"") ->  | S66: =IFERROR(VLOOKUP(A:A,moamelat!A:Q,17,0),"") ->  | T66: =IFERROR(VLOOKUP(A:A,moamelat!A:R,18,0),"") ->  | U66: =IFERROR(VLOOKUP(A:A,moamelat!A:S,19,0),"") ->  | V66: =IFERROR(VLOOKUP(A:A,moamelat!A:T,20,0),"") ->  | W66: =VLOOKUP(A:A,moamelat!A:U,21,0) ->  | X66: =IFERROR(VLOOKUP(A:A,moamelat!A:V,22,0),"") ->  | Y66: =IFERROR(VLOOKUP(A:A,moamelat!A:W,23,0),"") -> 
A67: طپاس7026 | B67: =IFERROR(VLOOKUP(A:A,constant!A:B,2,0),"") -> وپارس | C67: =IFERROR(VLOOKUP(A:A,constant!A:C,3,0),"") -> اختيارف وپارس-1600-1400/07/28 | D67: =IFERROR(VLOOKUP(A:A,constant!A:D,4,0),"") -> 1600 | E67: =IFERROR(VLOOKUP(A:A,moamelat!A:C,3,0),"") ->  | F67: =IFERROR(VLOOKUP(A:A,moamelat!A:D,4,0),"") ->  | G67: =IFERROR(VLOOKUP(A:A,moamelat!A:E,5,0),"") ->  | H67: =IFERROR(VLOOKUP(A:A,moamelat!A:F,6,0),"") ->  | I67: =IFERROR(VLOOKUP(A:A,moamelat!A:G,7,0),"") ->  | J67: =IFERROR(VLOOKUP(A:A,moamelat!A:H,8,0),"") ->  | K67: =IFERROR(VLOOKUP(A:A,moamelat!A:I,9,0),"") ->  | L67: =IFERROR(VLOOKUP(A:A,moamelat!A:J,10,0),"") ->  | M67: =IFERROR(VLOOKUP(A:A,moamelat!A:K,11,0),"") ->  | N67: =IFERROR(VLOOKUP(A:A,moamelat!A:L,12,0),"") ->  | O67: =IFERROR(VLOOKUP(A:A,moamelat!A:M,13,0),"") ->  | P67: =IFERROR(VLOOKUP(A:A,moamelat!A:N,14,0),"") ->  | Q67: =IFERROR(VLOOKUP(A:A,moamelat!A:O,15,0),"") ->  | R67: =IFERROR(VLOOKUP(A:A,moamelat!A:P,16,0),"") ->  | S67: =IFERROR(VLOOKUP(A:A,moamelat!A:Q,17,0),"") ->  | T67: =IFERROR(VLOOKUP(A:A,moamelat!A:R,18,0),"") ->  | U67: =IFERROR(VLOOKUP(A:A,moamelat!A:S,19,0),"") ->  | V67: =IFERROR(VLOOKUP(A:A,moamelat!A:T,20,0),"") ->  | W67: =VLOOKUP(A:A,moamelat!A:U,21,0) ->  | X67: =IFERROR(VLOOKUP(A:A,moamelat!A:V,22,0),"") ->  | Y67: =IFERROR(VLOOKUP(A:A,moamelat!A:W,23,0),"") ->  | Z67: =IFERROR(IF(W67>0,A67,IF(E67>0,A67,"")),"") -> 
A68: طپاس7027 | B68: =IFERROR(VLOOKUP(A:A,constant!A:B,2,0),"") -> وپارس | C68: =IFERROR(VLOOKUP(A:A,constant!A:C,3,0),"") -> اختيارف وپارس-1800-1400/07/28 | D68: =IFERROR(VLOOKUP(A:A,constant!A:D,4,0),"") -> 1800 | E68: =IFERROR(VLOOKUP(A:A,moamelat!A:C,3,0),"") ->  | F68: =IFERROR(VLOOKUP(A:A,moamelat!A:D,4,0),"") ->  | G68: =IFERROR(VLOOKUP(A:A,moamelat!A:E,5,0),"") ->  | H68: =IFERROR(VLOOKUP(A:A,moamelat!A:F,6,0),"") ->  | I68: =IFERROR(VLOOKUP(A:A,moamelat!A:G,7,0),"") ->  | J68: =IFERROR(VLOOKUP(A:A,moamelat!A:H,8,0),"") ->  | K68: =IFERROR(VLOOKUP(A:A,moamelat!A:I,9,0),"") ->  | L68: =IFERROR(VLOOKUP(A:A,moamelat!A:J,10,0),"") ->  | M68: =IFERROR(VLOOKUP(A:A,moamelat!A:K,11,0),"") ->  | N68: =IFERROR(VLOOKUP(A:A,moamelat!A:L,12,0),"") ->  | O68: =IFERROR(VLOOKUP(A:A,moamelat!A:M,13,0),"") ->  | P68: =IFERROR(VLOOKUP(A:A,moamelat!A:N,14,0),"") ->  | Q68: =IFERROR(VLOOKUP(A:A,moamelat!A:O,15,0),"") ->  | R68: =IFERROR(VLOOKUP(A:A,moamelat!A:P,16,0),"") ->  | S68: =IFERROR(VLOOKUP(A:A,moamelat!A:Q,17,0),"") ->  | T68: =IFERROR(VLOOKUP(A:A,moamelat!A:R,18,0),"") ->  | U68: =IFERROR(VLOOKUP(A:A,moamelat!A:S,19,0),"") ->  | V68: =IFERROR(VLOOKUP(A:A,moamelat!A:T,20,0),"") ->  | W68: =VLOOKUP(A:A,moamelat!A:U,21,0) ->  | X68: =IFERROR(VLOOKUP(A:A,moamelat!A:V,22,0),"") ->  | Y68: =IFERROR(VLOOKUP(A:A,moamelat!A:W,23,0),"") -> 
A69: طپاس7028 | B69: =IFERROR(VLOOKUP(A:A,constant!A:B,2,0),"") -> وپارس | C69: =IFERROR(VLOOKUP(A:A,constant!A:C,3,0),"") -> اختيارف وپارس-2000-1400/07/28 | D69: =IFERROR(VLOOKUP(A:A,constant!A:D,4,0),"") -> 2000 | E69: =IFERROR(VLOOKUP(A:A,moamelat!A:C,3,0),"") ->  | F69: =IFERROR(VLOOKUP(A:A,moamelat!A:D,4,0),"") ->  | G69: =IFERROR(VLOOKUP(A:A,moamelat!A:E,5,0),"") ->  | H69: =IFERROR(VLOOKUP(A:A,moamelat!A:F,6,0),"") ->  | I69: =IFERROR(VLOOKUP(A:A,moamelat!A:G,7,0),"") ->  | J69: =IFERROR(VLOOKUP(A:A,moamelat!A:H,8,0),"") ->  | K69: =IFERROR(VLOOKUP(A:A,moamelat!A:I,9,0),"") ->  | L69: =IFERROR(VLOOKUP(A:A,moamelat!A:J,10,0),"") ->  | M69: =IFERROR(VLOOKUP(A:A,moamelat!A:K,11,0),"") ->  | N69: =IFERROR(VLOOKUP(A:A,moamelat!A:L,12,0),"") ->  | O69: =IFERROR(VLOOKUP(A:A,moamelat!A:M,13,0),"") ->  | P69: =IFERROR(VLOOKUP(A:A,moamelat!A:N,14,0),"") ->  | Q69: =IFERROR(VLOOKUP(A:A,moamelat!A:O,15,0),"") ->  | R69: =IFERROR(VLOOKUP(A:A,moamelat!A:P,16,0),"") ->  | S69: =IFERROR(VLOOKUP(A:A,moamelat!A:Q,17,0),"") ->  | T69: =IFERROR(VLOOKUP(A:A,moamelat!A:R,18,0),"") ->  | U69: =IFERROR(VLOOKUP(A:A,moamelat!A:S,19,0),"") ->  | V69: =IFERROR(VLOOKUP(A:A,moamelat!A:T,20,0),"") ->  | W69: =VLOOKUP(A:A,moamelat!A:U,21,0) ->  | X69: =IFERROR(VLOOKUP(A:A,moamelat!A:V,22,0),"") ->  | Y69: =IFERROR(VLOOKUP(A:A,moamelat!A:W,23,0),"") -> 
A70: طپاس7029 | B70: =IFERROR(VLOOKUP(A:A,constant!A:B,2,0),"") -> وپارس | C70: =IFERROR(VLOOKUP(A:A,constant!A:C,3,0),"") -> اختيارف وپارس-2500-1400/07/28 | D70: =IFERROR(VLOOKUP(A:A,constant!A:D,4,0),"") -> 2500 | E70: =IFERROR(VLOOKUP(A:A,moamelat!A:C,3,0),"") ->  | F70: =IFERROR(VLOOKUP(A:A,moamelat!A:D,4,0),"") ->  | G70: =IFERROR(VLOOKUP(A:A,moamelat!A:E,5,0),"") ->  | H70: =IFERROR(VLOOKUP(A:A,moamelat!A:F,6,0),"") ->  | I70: =IFERROR(VLOOKUP(A:A,moamelat!A:G,7,0),"") ->  | J70: =IFERROR(VLOOKUP(A:A,moamelat!A:H,8,0),"") ->  | K70: =IFERROR(VLOOKUP(A:A,moamelat!A:I,9,0),"") ->  | L70: =IFERROR(VLOOKUP(A:A,moamelat!A:J,10,0),"") ->  | M70: =IFERROR(VLOOKUP(A:A,moamelat!A:K,11,0),"") ->  | N70: =IFERROR(VLOOKUP(A:A,moamelat!A:L,12,0),"") ->  | O70: =IFERROR(VLOOKUP(A:A,moamelat!A:M,13,0),"") ->  | P70: =IFERROR(VLOOKUP(A:A,moamelat!A:N,14,0),"") ->  | Q70: =IFERROR(VLOOKUP(A:A,moamelat!A:O,15,0),"") ->  | R70: =IFERROR(VLOOKUP(A:A,moamelat!A:P,16,0),"") ->  | S70: =IFERROR(VLOOKUP(A:A,moamelat!A:Q,17,0),"") ->  | T70: =IFERROR(VLOOKUP(A:A,moamelat!A:R,18,0),"") ->  | U70: =IFERROR(VLOOKUP(A:A,moamelat!A:S,19,0),"") ->  | V70: =IFERROR(VLOOKUP(A:A,moamelat!A:T,20,0),"") ->  | W70: =VLOOKUP(A:A,moamelat!A:U,21,0) ->  | X70: =IFERROR(VLOOKUP(A:A,moamelat!A:V,22,0),"") ->  | Y70: =IFERROR(VLOOKUP(A:A,moamelat!A:W,23,0),"") -> 
A71: طپاس7030 | B71: =IFERROR(VLOOKUP(A:A,constant!A:B,2,0),"") -> وپارس | C71: =IFERROR(VLOOKUP(A:A,constant!A:C,3,0),"") -> اختيارف وپارس-3000-1400/07/28 | D71: =IFERROR(VLOOKUP(A:A,constant!A:D,4,0),"") -> 3000 | E71: =IFERROR(VLOOKUP(A:A,moamelat!A:C,3,0),"") ->  | F71: =IFERROR(VLOOKUP(A:A,moamelat!A:D,4,0),"") ->  | G71: =IFERROR(VLOOKUP(A:A,moamelat!A:E,5,0),"") ->  | H71: =IFERROR(VLOOKUP(A:A,moamelat!A:F,6,0),"") ->  | I71: =IFERROR(VLOOKUP(A:A,moamelat!A:G,7,0),"") ->  | J71: =IFERROR(VLOOKUP(A:A,moamelat!A:H,8,0),"") ->  | K71: =IFERROR(VLOOKUP(A:A,moamelat!A:I,9,0),"") ->  | L71: =IFERROR(VLOOKUP(A:A,moamelat!A:J,10,0),"") ->  | M71: =IFERROR(VLOOKUP(A:A,moamelat!A:K,11,0),"") ->  | N71: =IFERROR(VLOOKUP(A:A,moamelat!A:L,12,0),"") ->  | O71: =IFERROR(VLOOKUP(A:A,moamelat!A:M,13,0),"") ->  | P71: =IFERROR(VLOOKUP(A:A,moamelat!A:N,14,0),"") ->  | Q71: =IFERROR(VLOOKUP(A:A,moamelat!A:O,15,0),"") ->  | R71: =IFERROR(VLOOKUP(A:A,moamelat!A:P,16,0),"") ->  | S71: =IFERROR(VLOOKUP(A:A,moamelat!A:Q,17,0),"") ->  | T71: =IFERROR(VLOOKUP(A:A,moamelat!A:R,18,0),"") ->  | U71: =IFERROR(VLOOKUP(A:A,moamelat!A:S,19,0),"") ->  | V71: =IFERROR(VLOOKUP(A:A,moamelat!A:T,20,0),"") ->  | W71: =VLOOKUP(A:A,moamelat!A:U,21,0) ->  | X71: =IFERROR(VLOOKUP(A:A,moamelat!A:V,22,0),"") ->  | Y71: =IFERROR(VLOOKUP(A:A,moamelat!A:W,23,0),"") -> 
A72: طپاس7031 | B72: =IFERROR(VLOOKUP(A:A,constant!A:B,2,0),"") -> وپارس | C72: =IFERROR(VLOOKUP(A:A,constant!A:C,3,0),"") -> اختيارف وپارس-3500-1400/07/28 | D72: =IFERROR(VLOOKUP(A:A,constant!A:D,4,0),"") -> 3500 | E72: =IFERROR(VLOOKUP(A:A,moamelat!A:C,3,0),"") ->  | F72: =IFERROR(VLOOKUP(A:A,moamelat!A:D,4,0),"") ->  | G72: =IFERROR(VLOOKUP(A:A,moamelat!A:E,5,0),"") ->  | H72: =IFERROR(VLOOKUP(A:A,moamelat!A:F,6,0),"") ->  | I72: =IFERROR(VLOOKUP(A:A,moamelat!A:G,7,0),"") ->  | J72: =IFERROR(VLOOKUP(A:A,moamelat!A:H,8,0),"") ->  | K72: =IFERROR(VLOOKUP(A:A,moamelat!A:I,9,0),"") ->  | L72: =IFERROR(VLOOKUP(A:A,moamelat!A:J,10,0),"") ->  | M72: =IFERROR(VLOOKUP(A:A,moamelat!A:K,11,0),"") ->  | N72: =IFERROR(VLOOKUP(A:A,moamelat!A:L,12,0),"") ->  | O72: =IFERROR(VLOOKUP(A:A,moamelat!A:M,13,0),"") ->  | P72: =IFERROR(VLOOKUP(A:A,moamelat!A:N,14,0),"") ->  | Q72: =IFERROR(VLOOKUP(A:A,moamelat!A:O,15,0),"") ->  | R72: =IFERROR(VLOOKUP(A:A,moamelat!A:P,16,0),"") ->  | S72: =IFERROR(VLOOKUP(A:A,moamelat!A:Q,17,0),"") ->  | T72: =IFERROR(VLOOKUP(A:A,moamelat!A:R,18,0),"") ->  | U72: =IFERROR(VLOOKUP(A:A,moamelat!A:S,19,0),"") ->  | V72: =IFERROR(VLOOKUP(A:A,moamelat!A:T,20,0),"") ->  | W72: =VLOOKUP(A:A,moamelat!A:U,21,0) ->  | X72: =IFERROR(VLOOKUP(A:A,moamelat!A:V,22,0),"") ->  | Y72: =IFERROR(VLOOKUP(A:A,moamelat!A:W,23,0),"") -> 
A73: طپاس7032 | B73: =IFERROR(VLOOKUP(A:A,constant!A:B,2,0),"") -> وپارس | C73: =IFERROR(VLOOKUP(A:A,constant!A:C,3,0),"") -> اختيارف وپارس-4000-1400/07/28 | D73: =IFERROR(VLOOKUP(A:A,constant!A:D,4,0),"") -> 4000 | E73: =IFERROR(VLOOKUP(A:A,moamelat!A:C,3,0),"") ->  | F73: =IFERROR(VLOOKUP(A:A,moamelat!A:D,4,0),"") ->  | G73: =IFERROR(VLOOKUP(A:A,moamelat!A:E,5,0),"") ->  | H73: =IFERROR(VLOOKUP(A:A,moamelat!A:F,6,0),"") ->  | I73: =IFERROR(VLOOKUP(A:A,moamelat!A:G,7,0),"") ->  | J73: =IFERROR(VLOOKUP(A:A,moamelat!A:H,8,0),"") ->  | K73: =IFERROR(VLOOKUP(A:A,moamelat!A:I,9,0),"") ->  | L73: =IFERROR(VLOOKUP(A:A,moamelat!A:J,10,0),"") ->  | M73: =IFERROR(VLOOKUP(A:A,moamelat!A:K,11,0),"") ->  | N73: =IFERROR(VLOOKUP(A:A,moamelat!A:L,12,0),"") ->  | O73: =IFERROR(VLOOKUP(A:A,moamelat!A:M,13,0),"") ->  | P73: =IFERROR(VLOOKUP(A:A,moamelat!A:N,14,0),"") ->  | Q73: =IFERROR(VLOOKUP(A:A,moamelat!A:O,15,0),"") ->  | R73: =IFERROR(VLOOKUP(A:A,moamelat!A:P,16,0),"") ->  | S73: =IFERROR(VLOOKUP(A:A,moamelat!A:Q,17,0),"") ->  | T73: =IFERROR(VLOOKUP(A:A,moamelat!A:R,18,0),"") ->  | U73: =IFERROR(VLOOKUP(A:A,moamelat!A:S,19,0),"") ->  | V73: =IFERROR(VLOOKUP(A:A,moamelat!A:T,20,0),"") ->  | W73: =VLOOKUP(A:A,moamelat!A:U,21,0) ->  | X73: =IFERROR(VLOOKUP(A:A,moamelat!A:V,22,0),"") ->  | Y73: =IFERROR(VLOOKUP(A:A,moamelat!A:W,23,0),"") -> 
A74: طپاس7033 | B74: =IFERROR(VLOOKUP(A:A,constant!A:B,2,0),"") -> وپارس | C74: =IFERROR(VLOOKUP(A:A,constant!A:C,3,0),"") -> اختيارف وپارس-4500-1400/07/28 | D74: =IFERROR(VLOOKUP(A:A,constant!A:D,4,0),"") -> 4500 | E74: =IFERROR(VLOOKUP(A:A,moamelat!A:C,3,0),"") ->  | F74: =IFERROR(VLOOKUP(A:A,moamelat!A:D,4,0),"") ->  | G74: =IFERROR(VLOOKUP(A:A,moamelat!A:E,5,0),"") ->  | H74: =IFERROR(VLOOKUP(A:A,moamelat!A:F,6,0),"") ->  | I74: =IFERROR(VLOOKUP(A:A,moamelat!A:G,7,0),"") ->  | J74: =IFERROR(VLOOKUP(A:A,moamelat!A:H,8,0),"") ->  | K74: =IFERROR(VLOOKUP(A:A,moamelat!A:I,9,0),"") ->  | L74: =IFERROR(VLOOKUP(A:A,moamelat!A:J,10,0),"") ->  | M74: =IFERROR(VLOOKUP(A:A,moamelat!A:K,11,0),"") ->  | N74: =IFERROR(VLOOKUP(A:A,moamelat!A:L,12,0),"") ->  | O74: =IFERROR(VLOOKUP(A:A,moamelat!A:M,13,0),"") ->  | P74: =IFERROR(VLOOKUP(A:A,moamelat!A:N,14,0),"") ->  | Q74: =IFERROR(VLOOKUP(A:A,moamelat!A:O,15,0),"") ->  | R74: =IFERROR(VLOOKUP(A:A,moamelat!A:P,16,0),"") ->  | S74: =IFERROR(VLOOKUP(A:A,moamelat!A:Q,17,0),"") ->  | T74: =IFERROR(VLOOKUP(A:A,moamelat!A:R,18,0),"") ->  | U74: =IFERROR(VLOOKUP(A:A,moamelat!A:S,19,0),"") ->  | V74: =IFERROR(VLOOKUP(A:A,moamelat!A:T,20,0),"") ->  | W74: =VLOOKUP(A:A,moamelat!A:U,21,0) ->  | X74: =IFERROR(VLOOKUP(A:A,moamelat!A:V,22,0),"") ->  | Y74: =IFERROR(VLOOKUP(A:A,moamelat!A:W,23,0),"") -> 
A75: طپاس7034 | B75: =IFERROR(VLOOKUP(A:A,constant!A:B,2,0),"") -> وپارس | C75: =IFERROR(VLOOKUP(A:A,constant!A:C,3,0),"") -> اختيارف وپارس-5000-1400/07/28 | D75: =IFERROR(VLOOKUP(A:A,constant!A:D,4,0),"") -> 5000 | E75: =IFERROR(VLOOKUP(A:A,moamelat!A:C,3,0),"") ->  | F75: =IFERROR(VLOOKUP(A:A,moamelat!A:D,4,0),"") ->  | G75: =IFERROR(VLOOKUP(A:A,moamelat!A:E,5,0),"") ->  | H75: =IFERROR(VLOOKUP(A:A,moamelat!A:F,6,0),"") ->  | I75: =IFERROR(VLOOKUP(A:A,moamelat!A:G,7,0),"") ->  | J75: =IFERROR(VLOOKUP(A:A,moamelat!A:H,8,0),"") ->  | K75: =IFERROR(VLOOKUP(A:A,moamelat!A:I,9,0),"") ->  | L75: =IFERROR(VLOOKUP(A:A,moamelat!A:J,10,0),"") ->  | M75: =IFERROR(VLOOKUP(A:A,moamelat!A:K,11,0),"") ->  | N75: =IFERROR(VLOOKUP(A:A,moamelat!A:L,12,0),"") ->  | O75: =IFERROR(VLOOKUP(A:A,moamelat!A:M,13,0),"") ->  | P75: =IFERROR(VLOOKUP(A:A,moamelat!A:N,14,0),"") ->  | Q75: =IFERROR(VLOOKUP(A:A,moamelat!A:O,15,0),"") ->  | R75: =IFERROR(VLOOKUP(A:A,moamelat!A:P,16,0),"") ->  | S75: =IFERROR(VLOOKUP(A:A,moamelat!A:Q,17,0),"") ->  | T75: =IFERROR(VLOOKUP(A:A,moamelat!A:R,18,0),"") ->  | U75: =IFERROR(VLOOKUP(A:A,moamelat!A:S,19,0),"") ->  | V75: =IFERROR(VLOOKUP(A:A,moamelat!A:T,20,0),"") ->  | W75: =VLOOKUP(A:A,moamelat!A:U,21,0) ->  | X75: =IFERROR(VLOOKUP(A:A,moamelat!A:V,22,0),"") ->  | Y75: =IFERROR(VLOOKUP(A:A,moamelat!A:W,23,0),"") -> 
A76: طشنا8000 | B76: =IFERROR(VLOOKUP(A:A,constant!A:B,2,0),"") -> شپنا | C76: =IFERROR(VLOOKUP(A:A,constant!A:C,3,0),"") -> اختيارف شپنا-7000-1400/08/16 | D76: =IFERROR(VLOOKUP(A:A,constant!A:D,4,0),"") -> 7000 | E76: =IFERROR(VLOOKUP(A:A,moamelat!A:C,3,0),"") ->  | F76: =IFERROR(VLOOKUP(A:A,moamelat!A:D,4,0),"") ->  | G76: =IFERROR(VLOOKUP(A:A,moamelat!A:E,5,0),"") ->  | H76: =IFERROR(VLOOKUP(A:A,moamelat!A:F,6,0),"") ->  | I76: =IFERROR(VLOOKUP(A:A,moamelat!A:G,7,0),"") ->  | J76: =IFERROR(VLOOKUP(A:A,moamelat!A:H,8,0),"") ->  | K76: =IFERROR(VLOOKUP(A:A,moamelat!A:I,9,0),"") ->  | L76: =IFERROR(VLOOKUP(A:A,moamelat!A:J,10,0),"") ->  | M76: =IFERROR(VLOOKUP(A:A,moamelat!A:K,11,0),"") ->  | N76: =IFERROR(VLOOKUP(A:A,moamelat!A:L,12,0),"") ->  | O76: =IFERROR(VLOOKUP(A:A,moamelat!A:M,13,0),"") ->  | P76: =IFERROR(VLOOKUP(A:A,moamelat!A:N,14,0),"") ->  | Q76: =IFERROR(VLOOKUP(A:A,moamelat!A:O,15,0),"") ->  | R76: =IFERROR(VLOOKUP(A:A,moamelat!A:P,16,0),"") ->  | S76: =IFERROR(VLOOKUP(A:A,moamelat!A:Q,17,0),"") ->  | T76: =IFERROR(VLOOKUP(A:A,moamelat!A:R,18,0),"") ->  | U76: =IFERROR(VLOOKUP(A:A,moamelat!A:S,19,0),"") ->  | V76: =IFERROR(VLOOKUP(A:A,moamelat!A:T,20,0),"") ->  | W76: =VLOOKUP(A:A,moamelat!A:U,21,0) ->  | X76: =IFERROR(VLOOKUP(A:A,moamelat!A:V,22,0),"") ->  | Y76: =IFERROR(VLOOKUP(A:A,moamelat!A:W,23,0),"") -> 
A77: طشنا8001 | B77: =IFERROR(VLOOKUP(A:A,constant!A:B,2,0),"") -> شپنا | C77: =IFERROR(VLOOKUP(A:A,constant!A:C,3,0),"") -> اختيارف شپنا-8000-1400/08/16 | D77: =IFERROR(VLOOKUP(A:A,constant!A:D,4,0),"") -> 8000 | E77: =IFERROR(VLOOKUP(A:A,moamelat!A:C,3,0),"") ->  | F77: =IFERROR(VLOOKUP(A:A,moamelat!A:D,4,0),"") ->  | G77: =IFERROR(VLOOKUP(A:A,moamelat!A:E,5,0),"") ->  | H77: =IFERROR(VLOOKUP(A:A,moamelat!A:F,6,0),"") ->  | I77: =IFERROR(VLOOKUP(A:A,moamelat!A:G,7,0),"") ->  | J77: =IFERROR(VLOOKUP(A:A,moamelat!A:H,8,0),"") ->  | K77: =IFERROR(VLOOKUP(A:A,moamelat!A:I,9,0),"") ->  | L77: =IFERROR(VLOOKUP(A:A,moamelat!A:J,10,0),"") ->  | M77: =IFERROR(VLOOKUP(A:A,moamelat!A:K,11,0),"") ->  | N77: =IFERROR(VLOOKUP(A:A,moamelat!A:L,12,0),"") ->  | O77: =IFERROR(VLOOKUP(A:A,moamelat!A:M,13,0),"") ->  | P77: =IFERROR(VLOOKUP(A:A,moamelat!A:N,14,0),"") ->  | Q77: =IFERROR(VLOOKUP(A:A,moamelat!A:O,15,0),"") ->  | R77: =IFERROR(VLOOKUP(A:A,moamelat!A:P,16,0),"") ->  | S77: =IFERROR(VLOOKUP(A:A,moamelat!A:Q,17,0),"") ->  | T77: =IFERROR(VLOOKUP(A:A,moamelat!A:R,18,0),"") ->  | U77: =IFERROR(VLOOKUP(A:A,moamelat!A:S,19,0),"") ->  | V77: =IFERROR(VLOOKUP(A:A,moamelat!A:T,20,0),"") ->  | W77: =VLOOKUP(A:A,moamelat!A:U,21,0) ->  | X77: =IFERROR(VLOOKUP(A:A,moamelat!A:V,22,0),"") ->  | Y77: =IFERROR(VLOOKUP(A:A,moamelat!A:W,23,0),"") -> 
A78: طشنا8002 | B78: =IFERROR(VLOOKUP(A:A,constant!A:B,2,0),"") -> شپنا | C78: =IFERROR(VLOOKUP(A:A,constant!A:C,3,0),"") -> اختيارف شپنا-9000-1400/08/16 | D78: =IFERROR(VLOOKUP(A:A,constant!A:D,4,0),"") -> 9000 | E78: =IFERROR(VLOOKUP(A:A,moamelat!A:C,3,0),"") ->  | F78: =IFERROR(VLOOKUP(A:A,moamelat!A:D,4,0),"") ->  | G78: =IFERROR(VLOOKUP(A:A,moamelat!A:E,5,0),"") ->  | H78: =IFERROR(VLOOKUP(A:A,moamelat!A:F,6,0),"") ->  | I78: =IFERROR(VLOOKUP(A:A,moamelat!A:G,7,0),"") ->  | J78: =IFERROR(VLOOKUP(A:A,moamelat!A:H,8,0),"") ->  | K78: =IFERROR(VLOOKUP(A:A,moamelat!A:I,9,0),"") ->  | L78: =IFERROR(VLOOKUP(A:A,moamelat!A:J,10,0),"") ->  | M78: =IFERROR(VLOOKUP(A:A,moamelat!A:K,11,0),"") ->  | N78: =IFERROR(VLOOKUP(A:A,moamelat!A:L,12,0),"") ->  | O78: =IFERROR(VLOOKUP(A:A,moamelat!A:M,13,0),"") ->  | P78: =IFERROR(VLOOKUP(A:A,moamelat!A:N,14,0),"") ->  | Q78: =IFERROR(VLOOKUP(A:A,moamelat!A:O,15,0),"") ->  | R78: =IFERROR(VLOOKUP(A:A,moamelat!A:P,16,0),"") ->  | S78: =IFERROR(VLOOKUP(A:A,moamelat!A:Q,17,0),"") ->  | T78: =IFERROR(VLOOKUP(A:A,moamelat!A:R,18,0),"") ->  | U78: =IFERROR(VLOOKUP(A:A,moamelat!A:S,19,0),"") ->  | V78: =IFERROR(VLOOKUP(A:A,moamelat!A:T,20,0),"") ->  | W78: =VLOOKUP(A:A,moamelat!A:U,21,0) ->  | X78: =IFERROR(VLOOKUP(A:A,moamelat!A:V,22,0),"") ->  | Y78: =IFERROR(VLOOKUP(A:A,moamelat!A:W,23,0),"") -> 
A79: طشنا8003 | B79: =IFERROR(VLOOKUP(A:A,constant!A:B,2,0),"") -> شپنا | C79: =IFERROR(VLOOKUP(A:A,constant!A:C,3,0),"") -> اختيارف شپنا-10000-1400/08/16 | D79: =IFERROR(VLOOKUP(A:A,constant!A:D,4,0),"") -> 10000 | E79: =IFERROR(VLOOKUP(A:A,moamelat!A:C,3,0),"") ->  | F79: =IFERROR(VLOOKUP(A:A,moamelat!A:D,4,0),"") ->  | G79: =IFERROR(VLOOKUP(A:A,moamelat!A:E,5,0),"") ->  | H79: =IFERROR(VLOOKUP(A:A,moamelat!A:F,6,0),"") ->  | I79: =IFERROR(VLOOKUP(A:A,moamelat!A:G,7,0),"") ->  | J79: =IFERROR(VLOOKUP(A:A,moamelat!A:H,8,0),"") ->  | K79: =IFERROR(VLOOKUP(A:A,moamelat!A:I,9,0),"") ->  | L79: =IFERROR(VLOOKUP(A:A,moamelat!A:J,10,0),"") ->  | M79: =IFERROR(VLOOKUP(A:A,moamelat!A:K,11,0),"") ->  | N79: =IFERROR(VLOOKUP(A:A,moamelat!A:L,12,0),"") ->  | O79: =IFERROR(VLOOKUP(A:A,moamelat!A:M,13,0),"") ->  | P79: =IFERROR(VLOOKUP(A:A,moamelat!A:N,14,0),"") ->  | Q79: =IFERROR(VLOOKUP(A:A,moamelat!A:O,15,0),"") ->  | R79: =IFERROR(VLOOKUP(A:A,moamelat!A:P,16,0),"") ->  | S79: =IFERROR(VLOOKUP(A:A,moamelat!A:Q,17,0),"") ->  | T79: =IFERROR(VLOOKUP(A:A,moamelat!A:R,18,0),"") ->  | U79: =IFERROR(VLOOKUP(A:A,moamelat!A:S,19,0),"") ->  | V79: =IFERROR(VLOOKUP(A:A,moamelat!A:T,20,0),"") ->  | W79: =VLOOKUP(A:A,moamelat!A:U,21,0) ->  | X79: =IFERROR(VLOOKUP(A:A,moamelat!A:V,22,0),"") ->  | Y79: =IFERROR(VLOOKUP(A:A,moamelat!A:W,23,0),"") -> 
A80: طشنا8004 | B80: =IFERROR(VLOOKUP(A:A,constant!A:B,2,0),"") -> شپنا | C80: =IFERROR(VLOOKUP(A:A,constant!A:C,3,0),"") -> اختيارف شپنا-12000-1400/08/16 | D80: =IFERROR(VLOOKUP(A:A,constant!A:D,4,0),"") -> 12000 | E80: =IFERROR(VLOOKUP(A:A,moamelat!A:C,3,0),"") ->  | F80: =IFERROR(VLOOKUP(A:A,moamelat!A:D,4,0),"") ->  | G80: =IFERROR(VLOOKUP(A:A,moamelat!A:E,5,0),"") ->  | H80: =IFERROR(VLOOKUP(A:A,moamelat!A:F,6,0),"") ->  | I80: =IFERROR(VLOOKUP(A:A,moamelat!A:G,7,0),"") ->  | J80: =IFERROR(VLOOKUP(A:A,moamelat!A:H,8,0),"") ->  | K80: =IFERROR(VLOOKUP(A:A,moamelat!A:I,9,0),"") ->  | L80: =IFERROR(VLOOKUP(A:A,moamelat!A:J,10,0),"") ->  | M80: =IFERROR(VLOOKUP(A:A,moamelat!A:K,11,0),"") ->  | N80: =IFERROR(VLOOKUP(A:A,moamelat!A:L,12,0),"") ->  | O80: =IFERROR(VLOOKUP(A:A,moamelat!A:M,13,0),"") ->  | P80: =IFERROR(VLOOKUP(A:A,moamelat!A:N,14,0),"") ->  | Q80: =IFERROR(VLOOKUP(A:A,moamelat!A:O,15,0),"") ->  | R80: =IFERROR(VLOOKUP(A:A,moamelat!A:P,16,0),"") ->  | S80: =IFERROR(VLOOKUP(A:A,moamelat!A:Q,17,0),"") ->  | T80: =IFERROR(VLOOKUP(A:A,moamelat!A:R,18,0),"") ->  | U80: =IFERROR(VLOOKUP(A:A,moamelat!A:S,19,0),"") ->  | V80: =IFERROR(VLOOKUP(A:A,moamelat!A:T,20,0),"") ->  | W80: =VLOOKUP(A:A,moamelat!A:U,21,0) ->  | X80: =IFERROR(VLOOKUP(A:A,moamelat!A:V,22,0),"") ->  | Y80: =IFERROR(VLOOKUP(A:A,moamelat!A:W,23,0),"") -> 
A81: طشنا8005 | B81: =IFERROR(VLOOKUP(A:A,constant!A:B,2,0),"") -> شپنا | C81: =IFERROR(VLOOKUP(A:A,constant!A:C,3,0),"") -> اختيارف شپنا-14000-1400/08/16 | D81: =IFERROR(VLOOKUP(A:A,constant!A:D,4,0),"") -> 14000 | E81: =IFERROR(VLOOKUP(A:A,moamelat!A:C,3,0),"") ->  | F81: =IFERROR(VLOOKUP(A:A,moamelat!A:D,4,0),"") ->  | G81: =IFERROR(VLOOKUP(A:A,moamelat!A:E,5,0),"") ->  | H81: =IFERROR(VLOOKUP(A:A,moamelat!A:F,6,0),"") ->  | I81: =IFERROR(VLOOKUP(A:A,moamelat!A:G,7,0),"") ->  | J81: =IFERROR(VLOOKUP(A:A,moamelat!A:H,8,0),"") ->  | K81: =IFERROR(VLOOKUP(A:A,moamelat!A:I,9,0),"") ->  | L81: =IFERROR(VLOOKUP(A:A,moamelat!A:J,10,0),"") ->  | M81: =IFERROR(VLOOKUP(A:A,moamelat!A:K,11,0),"") ->  | N81: =IFERROR(VLOOKUP(A:A,moamelat!A:L,12,0),"") ->  | O81: =IFERROR(VLOOKUP(A:A,moamelat!A:M,13,0),"") ->  | P81: =IFERROR(VLOOKUP(A:A,moamelat!A:N,14,0),"") ->  | Q81: =IFERROR(VLOOKUP(A:A,moamelat!A:O,15,0),"") ->  | R81: =IFERROR(VLOOKUP(A:A,moamelat!A:P,16,0),"") ->  | S81: =IFERROR(VLOOKUP(A:A,moamelat!A:Q,17,0),"") ->  | T81: =IFERROR(VLOOKUP(A:A,moamelat!A:R,18,0),"") ->  | U81: =IFERROR(VLOOKUP(A:A,moamelat!A:S,19,0),"") ->  | V81: =IFERROR(VLOOKUP(A:A,moamelat!A:T,20,0),"") ->  | W81: =VLOOKUP(A:A,moamelat!A:U,21,0) ->  | X81: =IFERROR(VLOOKUP(A:A,moamelat!A:V,22,0),"") ->  | Y81: =IFERROR(VLOOKUP(A:A,moamelat!A:W,23,0),"") -> 
A82: طشنا8006 | B82: =IFERROR(VLOOKUP(A:A,constant!A:B,2,0),"") -> شپنا | C82: =IFERROR(VLOOKUP(A:A,constant!A:C,3,0),"") -> اختيارف شپنا-16000-1400/08/16 | D82: =IFERROR(VLOOKUP(A:A,constant!A:D,4,0),"") -> 16000 | E82: =IFERROR(VLOOKUP(A:A,moamelat!A:C,3,0),"") ->  | F82: =IFERROR(VLOOKUP(A:A,moamelat!A:D,4,0),"") ->  | G82: =IFERROR(VLOOKUP(A:A,moamelat!A:E,5,0),"") ->  | H82: =IFERROR(VLOOKUP(A:A,moamelat!A:F,6,0),"") ->  | I82: =IFERROR(VLOOKUP(A:A,moamelat!A:G,7,0),"") ->  | J82: =IFERROR(VLOOKUP(A:A,moamelat!A:H,8,0),"") ->  | K82: =IFERROR(VLOOKUP(A:A,moamelat!A:I,9,0),"") ->  | L82: =IFERROR(VLOOKUP(A:A,moamelat!A:J,10,0),"") ->  | M82: =IFERROR(VLOOKUP(A:A,moamelat!A:K,11,0),"") ->  | N82: =IFERROR(VLOOKUP(A:A,moamelat!A:L,12,0),"") ->  | O82: =IFERROR(VLOOKUP(A:A,moamelat!A:M,13,0),"") ->  | P82: =IFERROR(VLOOKUP(A:A,moamelat!A:N,14,0),"") ->  | Q82: =IFERROR(VLOOKUP(A:A,moamelat!A:O,15,0),"") ->  | R82: =IFERROR(VLOOKUP(A:A,moamelat!A:P,16,0),"") ->  | S82: =IFERROR(VLOOKUP(A:A,moamelat!A:Q,17,0),"") ->  | T82: =IFERROR(VLOOKUP(A:A,moamelat!A:R,18,0),"") ->  | U82: =IFERROR(VLOOKUP(A:A,moamelat!A:S,19,0),"") ->  | V82: =IFERROR(VLOOKUP(A:A,moamelat!A:T,20,0),"") ->  | W82: =VLOOKUP(A:A,moamelat!A:U,21,0) ->  | X82: =IFERROR(VLOOKUP(A:A,moamelat!A:V,22,0),"") ->  | Y82: =IFERROR(VLOOKUP(A:A,moamelat!A:W,23,0),"") -> 
A83: طشنا8007 | B83: =IFERROR(VLOOKUP(A:A,constant!A:B,2,0),"") -> شپنا | C83: =IFERROR(VLOOKUP(A:A,constant!A:C,3,0),"") -> اختيارف شپنا-18000-1400/08/16 | D83: =IFERROR(VLOOKUP(A:A,constant!A:D,4,0),"") -> 18000 | E83: =IFERROR(VLOOKUP(A:A,moamelat!A:C,3,0),"") ->  | F83: =IFERROR(VLOOKUP(A:A,moamelat!A:D,4,0),"") ->  | G83: =IFERROR(VLOOKUP(A:A,moamelat!A:E,5,0),"") ->  | H83: =IFERROR(VLOOKUP(A:A,moamelat!A:F,6,0),"") ->  | I83: =IFERROR(VLOOKUP(A:A,moamelat!A:G,7,0),"") ->  | J83: =IFERROR(VLOOKUP(A:A,moamelat!A:H,8,0),"") ->  | K83: =IFERROR(VLOOKUP(A:A,moamelat!A:I,9,0),"") ->  | L83: =IFERROR(VLOOKUP(A:A,moamelat!A:J,10,0),"") ->  | M83: =IFERROR(VLOOKUP(A:A,moamelat!A:K,11,0),"") ->  | N83: =IFERROR(VLOOKUP(A:A,moamelat!A:L,12,0),"") ->  | O83: =IFERROR(VLOOKUP(A:A,moamelat!A:M,13,0),"") ->  | P83: =IFERROR(VLOOKUP(A:A,moamelat!A:N,14,0),"") ->  | Q83: =IFERROR(VLOOKUP(A:A,moamelat!A:O,15,0),"") ->  | R83: =IFERROR(VLOOKUP(A:A,moamelat!A:P,16,0),"") ->  | S83: =IFERROR(VLOOKUP(A:A,moamelat!A:Q,17,0),"") ->  | T83: =IFERROR(VLOOKUP(A:A,moamelat!A:R,18,0),"") ->  | U83: =IFERROR(VLOOKUP(A:A,moamelat!A:S,19,0),"") ->  | V83: =IFERROR(VLOOKUP(A:A,moamelat!A:T,20,0),"") ->  | W83: =VLOOKUP(A:A,moamelat!A:U,21,0) ->  | X83: =IFERROR(VLOOKUP(A:A,moamelat!A:V,22,0),"") ->  | Y83: =IFERROR(VLOOKUP(A:A,moamelat!A:W,23,0),"") -> 
A84: طشنا8008 | B84: =IFERROR(VLOOKUP(A:A,constant!A:B,2,0),"") -> شپنا | C84: =IFERROR(VLOOKUP(A:A,constant!A:C,3,0),"") -> اختيارف شپنا-20000-1400/08/16 | D84: =IFERROR(VLOOKUP(A:A,constant!A:D,4,0),"") -> 20000 | E84: =IFERROR(VLOOKUP(A:A,moamelat!A:C,3,0),"") ->  | F84: =IFERROR(VLOOKUP(A:A,moamelat!A:D,4,0),"") ->  | G84: =IFERROR(VLOOKUP(A:A,moamelat!A:E,5,0),"") ->  | H84: =IFERROR(VLOOKUP(A:A,moamelat!A:F,6,0),"") ->  | I84: =IFERROR(VLOOKUP(A:A,moamelat!A:G,7,0),"") ->  | J84: =IFERROR(VLOOKUP(A:A,moamelat!A:H,8,0),"") ->  | K84: =IFERROR(VLOOKUP(A:A,moamelat!A:I,9,0),"") ->  | L84: =IFERROR(VLOOKUP(A:A,moamelat!A:J,10,0),"") ->  | M84: =IFERROR(VLOOKUP(A:A,moamelat!A:K,11,0),"") ->  | N84: =IFERROR(VLOOKUP(A:A,moamelat!A:L,12,0),"") ->  | O84: =IFERROR(VLOOKUP(A:A,moamelat!A:M,13,0),"") ->  | P84: =IFERROR(VLOOKUP(A:A,moamelat!A:N,14,0),"") ->  | Q84: =IFERROR(VLOOKUP(A:A,moamelat!A:O,15,0),"") ->  | R84: =IFERROR(VLOOKUP(A:A,moamelat!A:P,16,0),"") ->  | S84: =IFERROR(VLOOKUP(A:A,moamelat!A:Q,17,0),"") ->  | T84: =IFERROR(VLOOKUP(A:A,moamelat!A:R,18,0),"") ->  | U84: =IFERROR(VLOOKUP(A:A,moamelat!A:S,19,0),"") ->  | V84: =IFERROR(VLOOKUP(A:A,moamelat!A:T,20,0),"") ->  | W84: =VLOOKUP(A:A,moamelat!A:U,21,0) ->  | X84: =IFERROR(VLOOKUP(A:A,moamelat!A:V,22,0),"") ->  | Y84: =IFERROR(VLOOKUP(A:A,moamelat!A:W,23,0),"") -> 
A85: طپيك7039 | B85: =IFERROR(VLOOKUP(A:A,constant!A:B,2,0),"") -> تاپيكو | C85: =IFERROR(VLOOKUP(A:A,constant!A:C,3,0),"") -> اختيارف تاپيكو-7000-1400/07/18 | D85: =IFERROR(VLOOKUP(A:A,constant!A:D,4,0),"") -> 7000 | E85: =IFERROR(VLOOKUP(A:A,moamelat!A:C,3,0),"") ->  | F85: =IFERROR(VLOOKUP(A:A,moamelat!A:D,4,0),"") ->  | G85: =IFERROR(VLOOKUP(A:A,moamelat!A:E,5,0),"") ->  | H85: =IFERROR(VLOOKUP(A:A,moamelat!A:F,6,0),"") ->  | I85: =IFERROR(VLOOKUP(A:A,moamelat!A:G,7,0),"") ->  | J85: =IFERROR(VLOOKUP(A:A,moamelat!A:H,8,0),"") ->  | K85: =IFERROR(VLOOKUP(A:A,moamelat!A:I,9,0),"") ->  | L85: =IFERROR(VLOOKUP(A:A,moamelat!A:J,10,0),"") ->  | M85: =IFERROR(VLOOKUP(A:A,moamelat!A:K,11,0),"") ->  | N85: =IFERROR(VLOOKUP(A:A,moamelat!A:L,12,0),"") ->  | O85: =IFERROR(VLOOKUP(A:A,moamelat!A:M,13,0),"") ->  | P85: =IFERROR(VLOOKUP(A:A,moamelat!A:N,14,0),"") ->  | Q85: =IFERROR(VLOOKUP(A:A,moamelat!A:O,15,0),"") ->  | R85: =IFERROR(VLOOKUP(A:A,moamelat!A:P,16,0),"") ->  | S85: =IFERROR(VLOOKUP(A:A,moamelat!A:Q,17,0),"") ->  | T85: =IFERROR(VLOOKUP(A:A,moamelat!A:R,18,0),"") ->  | U85: =IFERROR(VLOOKUP(A:A,moamelat!A:S,19,0),"") ->  | V85: =IFERROR(VLOOKUP(A:A,moamelat!A:T,20,0),"") ->  | W85: =VLOOKUP(A:A,moamelat!A:U,21,0) ->  | X85: =IFERROR(VLOOKUP(A:A,moamelat!A:V,22,0),"") ->  | Y85: =IFERROR(VLOOKUP(A:A,moamelat!A:W,23,0),"") -> 
A86: طپيك7040 | B86: =IFERROR(VLOOKUP(A:A,constant!A:B,2,0),"") -> تاپيكو | C86: =IFERROR(VLOOKUP(A:A,constant!A:C,3,0),"") -> اختيارف تاپيكو-8000-1400/07/18 | D86: =IFERROR(VLOOKUP(A:A,constant!A:D,4,0),"") -> 8000 | E86: =IFERROR(VLOOKUP(A:A,moamelat!A:C,3,0),"") ->  | F86: =IFERROR(VLOOKUP(A:A,moamelat!A:D,4,0),"") ->  | G86: =IFERROR(VLOOKUP(A:A,moamelat!A:E,5,0),"") ->  | H86: =IFERROR(VLOOKUP(A:A,moamelat!A:F,6,0),"") ->  | I86: =IFERROR(VLOOKUP(A:A,moamelat!A:G,7,0),"") ->  | J86: =IFERROR(VLOOKUP(A:A,moamelat!A:H,8,0),"") ->  | K86: =IFERROR(VLOOKUP(A:A,moamelat!A:I,9,0),"") ->  | L86: =IFERROR(VLOOKUP(A:A,moamelat!A:J,10,0),"") ->  | M86: =IFERROR(VLOOKUP(A:A,moamelat!A:K,11,0),"") ->  | N86: =IFERROR(VLOOKUP(A:A,moamelat!A:L,12,0),"") ->  | O86: =IFERROR(VLOOKUP(A:A,moamelat!A:M,13,0),"") ->  | P86: =IFERROR(VLOOKUP(A:A,moamelat!A:N,14,0),"") ->  | Q86: =IFERROR(VLOOKUP(A:A,moamelat!A:O,15,0),"") ->  | R86: =IFERROR(VLOOKUP(A:A,moamelat!A:P,16,0),"") ->  | S86: =IFERROR(VLOOKUP(A:A,moamelat!A:Q,17,0),"") ->  | T86: =IFERROR(VLOOKUP(A:A,moamelat!A:R,18,0),"") ->  | U86: =IFERROR(VLOOKUP(A:A,moamelat!A:S,19,0),"") ->  | V86: =IFERROR(VLOOKUP(A:A,moamelat!A:T,20,0),"") ->  | W86: =VLOOKUP(A:A,moamelat!A:U,21,0) ->  | X86: =IFERROR(VLOOKUP(A:A,moamelat!A:V,22,0),"") ->  | Y86: =IFERROR(VLOOKUP(A:A,moamelat!A:W,23,0),"") -> 
A87: طپيك7041 | B87: =IFERROR(VLOOKUP(A:A,constant!A:B,2,0),"") -> تاپيكو | C87: =IFERROR(VLOOKUP(A:A,constant!A:C,3,0),"") -> اختيارف تاپيكو-9000-1400/07/18 | D87: =IFERROR(VLOOKUP(A:A,constant!A:D,4,0),"") -> 9000 | E87: =IFERROR(VLOOKUP(A:A,moamelat!A:C,3,0),"") ->  | F87: =IFERROR(VLOOKUP(A:A,moamelat!A:D,4,0),"") ->  | G87: =IFERROR(VLOOKUP(A:A,moamelat!A:E,5,0),"") ->  | H87: =IFERROR(VLOOKUP(A:A,moamelat!A:F,6,0),"") ->  | I87: =IFERROR(VLOOKUP(A:A,moamelat!A:G,7,0),"") ->  | J87: =IFERROR(VLOOKUP(A:A,moamelat!A:H,8,0),"") ->  | K87: =IFERROR(VLOOKUP(A:A,moamelat!A:I,9,0),"") ->  | L87: =IFERROR(VLOOKUP(A:A,moamelat!A:J,10,0),"") ->  | M87: =IFERROR(VLOOKUP(A:A,moamelat!A:K,11,0),"") ->  | N87: =IFERROR(VLOOKUP(A:A,moamelat!A:L,12,0),"") ->  | O87: =IFERROR(VLOOKUP(A:A,moamelat!A:M,13,0),"") ->  | P87: =IFERROR(VLOOKUP(A:A,moamelat!A:N,14,0),"") ->  | Q87: =IFERROR(VLOOKUP(A:A,moamelat!A:O,15,0),"") ->  | R87: =IFERROR(VLOOKUP(A:A,moamelat!A:P,16,0),"") ->  | S87: =IFERROR(VLOOKUP(A:A,moamelat!A:Q,17,0),"") ->  | T87: =IFERROR(VLOOKUP(A:A,moamelat!A:R,18,0),"") ->  | U87: =IFERROR(VLOOKUP(A:A,moamelat!A:S,19,0),"") ->  | V87: =IFERROR(VLOOKUP(A:A,moamelat!A:T,20,0),"") ->  | W87: =VLOOKUP(A:A,moamelat!A:U,21,0) ->  | X87: =IFERROR(VLOOKUP(A:A,moamelat!A:V,22,0),"") ->  | Y87: =IFERROR(VLOOKUP(A:A,moamelat!A:W,23,0),"") -> 
A88: طپيك7042 | B88: =IFERROR(VLOOKUP(A:A,constant!A:B,2,0),"") -> تاپيكو | C88: =IFERROR(VLOOKUP(A:A,constant!A:C,3,0),"") -> اختيارف تاپيكو-10000-1400/07/18 | D88: =IFERROR(VLOOKUP(A:A,constant!A:D,4,0),"") -> 10000 | E88: =IFERROR(VLOOKUP(A:A,moamelat!A:C,3,0),"") ->  | F88: =IFERROR(VLOOKUP(A:A,moamelat!A:D,4,0),"") ->  | G88: =IFERROR(VLOOKUP(A:A,moamelat!A:E,5,0),"") ->  | H88: =IFERROR(VLOOKUP(A:A,moamelat!A:F,6,0),"") ->  | I88: =IFERROR(VLOOKUP(A:A,moamelat!A:G,7,0),"") ->  | J88: =IFERROR(VLOOKUP(A:A,moamelat!A:H,8,0),"") ->  | K88: =IFERROR(VLOOKUP(A:A,moamelat!A:I,9,0),"") ->  | L88: =IFERROR(VLOOKUP(A:A,moamelat!A:J,10,0),"") ->  | M88: =IFERROR(VLOOKUP(A:A,moamelat!A:K,11,0),"") ->  | N88: =IFERROR(VLOOKUP(A:A,moamelat!A:L,12,0),"") ->  | O88: =IFERROR(VLOOKUP(A:A,moamelat!A:M,13,0),"") ->  | P88: =IFERROR(VLOOKUP(A:A,moamelat!A:N,14,0),"") ->  | Q88: =IFERROR(VLOOKUP(A:A,moamelat!A:O,15,0),"") ->  | R88: =IFERROR(VLOOKUP(A:A,moamelat!A:P,16,0),"") ->  | S88: =IFERROR(VLOOKUP(A:A,moamelat!A:Q,17,0),"") ->  | T88: =IFERROR(VLOOKUP(A:A,moamelat!A:R,18,0),"") ->  | U88: =IFERROR(VLOOKUP(A:A,moamelat!A:S,19,0),"") ->  | V88: =IFERROR(VLOOKUP(A:A,moamelat!A:T,20,0),"") ->  | W88: =VLOOKUP(A:A,moamelat!A:U,21,0) ->  | X88: =IFERROR(VLOOKUP(A:A,moamelat!A:V,22,0),"") ->  | Y88: =IFERROR(VLOOKUP(A:A,moamelat!A:W,23,0),"") -> 
A89: طپيك7043 | B89: =IFERROR(VLOOKUP(A:A,constant!A:B,2,0),"") -> تاپيكو | C89: =IFERROR(VLOOKUP(A:A,constant!A:C,3,0),"") -> اختيارف تاپيكو-12000-1400/07/18 | D89: =IFERROR(VLOOKUP(A:A,constant!A:D,4,0),"") -> 12000 | E89: =IFERROR(VLOOKUP(A:A,moamelat!A:C,3,0),"") ->  | F89: =IFERROR(VLOOKUP(A:A,moamelat!A:D,4,0),"") ->  | G89: =IFERROR(VLOOKUP(A:A,moamelat!A:E,5,0),"") ->  | H89: =IFERROR(VLOOKUP(A:A,moamelat!A:F,6,0),"") ->  | I89: =IFERROR(VLOOKUP(A:A,moamelat!A:G,7,0),"") ->  | J89: =IFERROR(VLOOKUP(A:A,moamelat!A:H,8,0),"") ->  | K89: =IFERROR(VLOOKUP(A:A,moamelat!A:I,9,0),"") ->  | L89: =IFERROR(VLOOKUP(A:A,moamelat!A:J,10,0),"") ->  | M89: =IFERROR(VLOOKUP(A:A,moamelat!A:K,11,0),"") ->  | N89: =IFERROR(VLOOKUP(A:A,moamelat!A:L,12,0),"") ->  | O89: =IFERROR(VLOOKUP(A:A,moamelat!A:M,13,0),"") ->  | P89: =IFERROR(VLOOKUP(A:A,moamelat!A:N,14,0),"") ->  | Q89: =IFERROR(VLOOKUP(A:A,moamelat!A:O,15,0),"") ->  | R89: =IFERROR(VLOOKUP(A:A,moamelat!A:P,16,0),"") ->  | S89: =IFERROR(VLOOKUP(A:A,moamelat!A:Q,17,0),"") ->  | T89: =IFERROR(VLOOKUP(A:A,moamelat!A:R,18,0),"") ->  | U89: =IFERROR(VLOOKUP(A:A,moamelat!A:S,19,0),"") ->  | V89: =IFERROR(VLOOKUP(A:A,moamelat!A:T,20,0),"") ->  | W89: =VLOOKUP(A:A,moamelat!A:U,21,0) ->  | X89: =IFERROR(VLOOKUP(A:A,moamelat!A:V,22,0),"") ->  | Y89: =IFERROR(VLOOKUP(A:A,moamelat!A:W,23,0),"") -> 
A90: طپيك7044 | B90: =IFERROR(VLOOKUP(A:A,constant!A:B,2,0),"") -> تاپيكو | C90: =IFERROR(VLOOKUP(A:A,constant!A:C,3,0),"") -> اختيارف تاپيكو-14000-1400/07/18 | D90: =IFERROR(VLOOKUP(A:A,constant!A:D,4,0),"") -> 14000 | E90: =IFERROR(VLOOKUP(A:A,moamelat!A:C,3,0),"") ->  | F90: =IFERROR(VLOOKUP(A:A,moamelat!A:D,4,0),"") ->  | G90: =IFERROR(VLOOKUP(A:A,moamelat!A:E,5,0),"") ->  | H90: =IFERROR(VLOOKUP(A:A,moamelat!A:F,6,0),"") ->  | I90: =IFERROR(VLOOKUP(A:A,moamelat!A:G,7,0),"") ->  | J90: =IFERROR(VLOOKUP(A:A,moamelat!A:H,8,0),"") ->  | K90: =IFERROR(VLOOKUP(A:A,moamelat!A:I,9,0),"") ->  | L90: =IFERROR(VLOOKUP(A:A,moamelat!A:J,10,0),"") ->  | M90: =IFERROR(VLOOKUP(A:A,moamelat!A:K,11,0),"") ->  | N90: =IFERROR(VLOOKUP(A:A,moamelat!A:L,12,0),"") ->  | O90: =IFERROR(VLOOKUP(A:A,moamelat!A:M,13,0),"") ->  | P90: =IFERROR(VLOOKUP(A:A,moamelat!A:N,14,0),"") ->  | Q90: =IFERROR(VLOOKUP(A:A,moamelat!A:O,15,0),"") ->  | R90: =IFERROR(VLOOKUP(A:A,moamelat!A:P,16,0),"") ->  | S90: =IFERROR(VLOOKUP(A:A,moamelat!A:Q,17,0),"") ->  | T90: =IFERROR(VLOOKUP(A:A,moamelat!A:R,18,0),"") ->  | U90: =IFERROR(VLOOKUP(A:A,moamelat!A:S,19,0),"") ->  | V90: =IFERROR(VLOOKUP(A:A,moamelat!A:T,20,0),"") ->  | W90: =VLOOKUP(A:A,moamelat!A:U,21,0) ->  | X90: =IFERROR(VLOOKUP(A:A,moamelat!A:V,22,0),"") ->  | Y90: =IFERROR(VLOOKUP(A:A,moamelat!A:W,23,0),"") -> 
A91: طپيك7045 | B91: =IFERROR(VLOOKUP(A:A,constant!A:B,2,0),"") -> تاپيكو | C91: =IFERROR(VLOOKUP(A:A,constant!A:C,3,0),"") -> اختيارف تاپيكو-16000-1400/07/18 | D91: =IFERROR(VLOOKUP(A:A,constant!A:D,4,0),"") -> 16000 | E91: =IFERROR(VLOOKUP(A:A,moamelat!A:C,3,0),"") ->  | F91: =IFERROR(VLOOKUP(A:A,moamelat!A:D,4,0),"") ->  | G91: =IFERROR(VLOOKUP(A:A,moamelat!A:E,5,0),"") ->  | H91: =IFERROR(VLOOKUP(A:A,moamelat!A:F,6,0),"") ->  | I91: =IFERROR(VLOOKUP(A:A,moamelat!A:G,7,0),"") ->  | J91: =IFERROR(VLOOKUP(A:A,moamelat!A:H,8,0),"") ->  | K91: =IFERROR(VLOOKUP(A:A,moamelat!A:I,9,0),"") ->  | L91: =IFERROR(VLOOKUP(A:A,moamelat!A:J,10,0),"") ->  | M91: =IFERROR(VLOOKUP(A:A,moamelat!A:K,11,0),"") ->  | N91: =IFERROR(VLOOKUP(A:A,moamelat!A:L,12,0),"") ->  | O91: =IFERROR(VLOOKUP(A:A,moamelat!A:M,13,0),"") ->  | P91: =IFERROR(VLOOKUP(A:A,moamelat!A:N,14,0),"") ->  | Q91: =IFERROR(VLOOKUP(A:A,moamelat!A:O,15,0),"") ->  | R91: =IFERROR(VLOOKUP(A:A,moamelat!A:P,16,0),"") ->  | S91: =IFERROR(VLOOKUP(A:A,moamelat!A:Q,17,0),"") ->  | T91: =IFERROR(VLOOKUP(A:A,moamelat!A:R,18,0),"") ->  | U91: =IFERROR(VLOOKUP(A:A,moamelat!A:S,19,0),"") ->  | V91: =IFERROR(VLOOKUP(A:A,moamelat!A:T,20,0),"") ->  | W91: =VLOOKUP(A:A,moamelat!A:U,21,0) ->  | X91: =IFERROR(VLOOKUP(A:A,moamelat!A:V,22,0),"") ->  | Y91: =IFERROR(VLOOKUP(A:A,moamelat!A:W,23,0),"") -> 
A92: طپيك7046 | B92: =IFERROR(VLOOKUP(A:A,constant!A:B,2,0),"") -> تاپيكو | C92: =IFERROR(VLOOKUP(A:A,constant!A:C,3,0),"") -> اختيارف تاپيكو-18000-1400/07/18 | D92: =IFERROR(VLOOKUP(A:A,constant!A:D,4,0),"") -> 18000 | E92: =IFERROR(VLOOKUP(A:A,moamelat!A:C,3,0),"") ->  | F92: =IFERROR(VLOOKUP(A:A,moamelat!A:D,4,0),"") ->  | G92: =IFERROR(VLOOKUP(A:A,moamelat!A:E,5,0),"") ->  | H92: =IFERROR(VLOOKUP(A:A,moamelat!A:F,6,0),"") ->  | I92: =IFERROR(VLOOKUP(A:A,moamelat!A:G,7,0),"") ->  | J92: =IFERROR(VLOOKUP(A:A,moamelat!A:H,8,0),"") ->  | K92: =IFERROR(VLOOKUP(A:A,moamelat!A:I,9,0),"") ->  | L92: =IFERROR(VLOOKUP(A:A,moamelat!A:J,10,0),"") ->  | M92: =IFERROR(VLOOKUP(A:A,moamelat!A:K,11,0),"") ->  | N92: =IFERROR(VLOOKUP(A:A,moamelat!A:L,12,0),"") ->  | O92: =IFERROR(VLOOKUP(A:A,moamelat!A:M,13,0),"") ->  | P92: =IFERROR(VLOOKUP(A:A,moamelat!A:N,14,0),"") ->  | Q92: =IFERROR(VLOOKUP(A:A,moamelat!A:O,15,0),"") ->  | R92: =IFERROR(VLOOKUP(A:A,moamelat!A:P,16,0),"") ->  | S92: =IFERROR(VLOOKUP(A:A,moamelat!A:Q,17,0),"") ->  | T92: =IFERROR(VLOOKUP(A:A,moamelat!A:R,18,0),"") ->  | U92: =IFERROR(VLOOKUP(A:A,moamelat!A:S,19,0),"") ->  | V92: =IFERROR(VLOOKUP(A:A,moamelat!A:T,20,0),"") ->  | W92: =VLOOKUP(A:A,moamelat!A:U,21,0) ->  | X92: =IFERROR(VLOOKUP(A:A,moamelat!A:V,22,0),"") ->  | Y92: =IFERROR(VLOOKUP(A:A,moamelat!A:W,23,0),"") -> 
A93: طپيك7047 | B93: =IFERROR(VLOOKUP(A:A,constant!A:B,2,0),"") -> تاپيكو | C93: =IFERROR(VLOOKUP(A:A,constant!A:C,3,0),"") -> اختيارف تاپيكو-20000-1400/07/18 | D93: =IFERROR(VLOOKUP(A:A,constant!A:D,4,0),"") -> 20000 | E93: =IFERROR(VLOOKUP(A:A,moamelat!A:C,3,0),"") ->  | F93: =IFERROR(VLOOKUP(A:A,moamelat!A:D,4,0),"") ->  | G93: =IFERROR(VLOOKUP(A:A,moamelat!A:E,5,0),"") ->  | H93: =IFERROR(VLOOKUP(A:A,moamelat!A:F,6,0),"") ->  | I93: =IFERROR(VLOOKUP(A:A,moamelat!A:G,7,0),"") ->  | J93: =IFERROR(VLOOKUP(A:A,moamelat!A:H,8,0),"") ->  | K93: =IFERROR(VLOOKUP(A:A,moamelat!A:I,9,0),"") ->  | L93: =IFERROR(VLOOKUP(A:A,moamelat!A:J,10,0),"") ->  | M93: =IFERROR(VLOOKUP(A:A,moamelat!A:K,11,0),"") ->  | N93: =IFERROR(VLOOKUP(A:A,moamelat!A:L,12,0),"") ->  | O93: =IFERROR(VLOOKUP(A:A,moamelat!A:M,13,0),"") ->  | P93: =IFERROR(VLOOKUP(A:A,moamelat!A:N,14,0),"") ->  | Q93: =IFERROR(VLOOKUP(A:A,moamelat!A:O,15,0),"") ->  | R93: =IFERROR(VLOOKUP(A:A,moamelat!A:P,16,0),"") ->  | S93: =IFERROR(VLOOKUP(A:A,moamelat!A:Q,17,0),"") ->  | T93: =IFERROR(VLOOKUP(A:A,moamelat!A:R,18,0),"") ->  | U93: =IFERROR(VLOOKUP(A:A,moamelat!A:S,19,0),"") ->  | V93: =IFERROR(VLOOKUP(A:A,moamelat!A:T,20,0),"") ->  | W93: =VLOOKUP(A:A,moamelat!A:U,21,0) ->  | X93: =IFERROR(VLOOKUP(A:A,moamelat!A:V,22,0),"") ->  | Y93: =IFERROR(VLOOKUP(A:A,moamelat!A:W,23,0),"") -> 
A94: طترا8055 | B94: =IFERROR(VLOOKUP(A:A,constant!A:B,2,0),"") -> شتران | C94: =IFERROR(VLOOKUP(A:A,constant!A:C,3,0),"") -> اختيارف شتران-5000-1400/08/09 | D94: =IFERROR(VLOOKUP(A:A,constant!A:D,4,0),"") -> 5000 | E94: =IFERROR(VLOOKUP(A:A,moamelat!A:C,3,0),"") ->  | F94: =IFERROR(VLOOKUP(A:A,moamelat!A:D,4,0),"") ->  | G94: =IFERROR(VLOOKUP(A:A,moamelat!A:E,5,0),"") ->  | H94: =IFERROR(VLOOKUP(A:A,moamelat!A:F,6,0),"") ->  | I94: =IFERROR(VLOOKUP(A:A,moamelat!A:G,7,0),"") ->  | J94: =IFERROR(VLOOKUP(A:A,moamelat!A:H,8,0),"") ->  | K94: =IFERROR(VLOOKUP(A:A,moamelat!A:I,9,0),"") ->  | L94: =IFERROR(VLOOKUP(A:A,moamelat!A:J,10,0),"") ->  | M94: =IFERROR(VLOOKUP(A:A,moamelat!A:K,11,0),"") ->  | N94: =IFERROR(VLOOKUP(A:A,moamelat!A:L,12,0),"") ->  | O94: =IFERROR(VLOOKUP(A:A,moamelat!A:M,13,0),"") ->  | P94: =IFERROR(VLOOKUP(A:A,moamelat!A:N,14,0),"") ->  | Q94: =IFERROR(VLOOKUP(A:A,moamelat!A:O,15,0),"") ->  | R94: =IFERROR(VLOOKUP(A:A,moamelat!A:P,16,0),"") ->  | S94: =IFERROR(VLOOKUP(A:A,moamelat!A:Q,17,0),"") ->  | T94: =IFERROR(VLOOKUP(A:A,moamelat!A:R,18,0),"") ->  | U94: =IFERROR(VLOOKUP(A:A,moamelat!A:S,19,0),"") ->  | V94: =IFERROR(VLOOKUP(A:A,moamelat!A:T,20,0),"") ->  | W94: =VLOOKUP(A:A,moamelat!A:U,21,0) ->  | X94: =IFERROR(VLOOKUP(A:A,moamelat!A:V,22,0),"") ->  | Y94: =IFERROR(VLOOKUP(A:A,moamelat!A:W,23,0),"") -> 
A95: طترا8056 | B95: =IFERROR(VLOOKUP(A:A,constant!A:B,2,0),"") -> شتران | C95: =IFERROR(VLOOKUP(A:A,constant!A:C,3,0),"") -> اختيارف شتران-6000-1400/08/09 | D95: =IFERROR(VLOOKUP(A:A,constant!A:D,4,0),"") -> 6000 | E95: =IFERROR(VLOOKUP(A:A,moamelat!A:C,3,0),"") ->  | F95: =IFERROR(VLOOKUP(A:A,moamelat!A:D,4,0),"") ->  | G95: =IFERROR(VLOOKUP(A:A,moamelat!A:E,5,0),"") ->  | H95: =IFERROR(VLOOKUP(A:A,moamelat!A:F,6,0),"") ->  | I95: =IFERROR(VLOOKUP(A:A,moamelat!A:G,7,0),"") ->  | J95: =IFERROR(VLOOKUP(A:A,moamelat!A:H,8,0),"") ->  | K95: =IFERROR(VLOOKUP(A:A,moamelat!A:I,9,0),"") ->  | L95: =IFERROR(VLOOKUP(A:A,moamelat!A:J,10,0),"") ->  | M95: =IFERROR(VLOOKUP(A:A,moamelat!A:K,11,0),"") ->  | N95: =IFERROR(VLOOKUP(A:A,moamelat!A:L,12,0),"") ->  | O95: =IFERROR(VLOOKUP(A:A,moamelat!A:M,13,0),"") ->  | P95: =IFERROR(VLOOKUP(A:A,moamelat!A:N,14,0),"") ->  | Q95: =IFERROR(VLOOKUP(A:A,moamelat!A:O,15,0),"") ->  | R95: =IFERROR(VLOOKUP(A:A,moamelat!A:P,16,0),"") ->  | S95: =IFERROR(VLOOKUP(A:A,moamelat!A:Q,17,0),"") ->  | T95: =IFERROR(VLOOKUP(A:A,moamelat!A:R,18,0),"") ->  | U95: =IFERROR(VLOOKUP(A:A,moamelat!A:S,19,0),"") ->  | V95: =IFERROR(VLOOKUP(A:A,moamelat!A:T,20,0),"") ->  | W95: =VLOOKUP(A:A,moamelat!A:U,21,0) ->  | X95: =IFERROR(VLOOKUP(A:A,moamelat!A:V,22,0),"") ->  | Y95: =IFERROR(VLOOKUP(A:A,moamelat!A:W,23,0),"") -> 
A96: طترا8057 | B96: =IFERROR(VLOOKUP(A:A,constant!A:B,2,0),"") -> شتران | C96: =IFERROR(VLOOKUP(A:A,constant!A:C,3,0),"") -> اختيارف شتران-7000-1400/08/09 | D96: =IFERROR(VLOOKUP(A:A,constant!A:D,4,0),"") -> 7000 | E96: =IFERROR(VLOOKUP(A:A,moamelat!A:C,3,0),"") ->  | F96: =IFERROR(VLOOKUP(A:A,moamelat!A:D,4,0),"") ->  | G96: =IFERROR(VLOOKUP(A:A,moamelat!A:E,5,0),"") ->  | H96: =IFERROR(VLOOKUP(A:A,moamelat!A:F,6,0),"") ->  | I96: =IFERROR(VLOOKUP(A:A,moamelat!A:G,7,0),"") ->  | J96: =IFERROR(VLOOKUP(A:A,moamelat!A:H,8,0),"") ->  | K96: =IFERROR(VLOOKUP(A:A,moamelat!A:I,9,0),"") ->  | L96: =IFERROR(VLOOKUP(A:A,moamelat!A:J,10,0),"") ->  | M96: =IFERROR(VLOOKUP(A:A,moamelat!A:K,11,0),"") ->  | N96: =IFERROR(VLOOKUP(A:A,moamelat!A:L,12,0),"") ->  | O96: =IFERROR(VLOOKUP(A:A,moamelat!A:M,13,0),"") ->  | P96: =IFERROR(VLOOKUP(A:A,moamelat!A:N,14,0),"") ->  | Q96: =IFERROR(VLOOKUP(A:A,moamelat!A:O,15,0),"") ->  | R96: =IFERROR(VLOOKUP(A:A,moamelat!A:P,16,0),"") ->  | S96: =IFERROR(VLOOKUP(A:A,moamelat!A:Q,17,0),"") ->  | T96: =IFERROR(VLOOKUP(A:A,moamelat!A:R,18,0),"") ->  | U96: =IFERROR(VLOOKUP(A:A,moamelat!A:S,19,0),"") ->  | V96: =IFERROR(VLOOKUP(A:A,moamelat!A:T,20,0),"") ->  | W96: =VLOOKUP(A:A,moamelat!A:U,21,0) ->  | X96: =IFERROR(VLOOKUP(A:A,moamelat!A:V,22,0),"") ->  | Y96: =IFERROR(VLOOKUP(A:A,moamelat!A:W,23,0),"") -> 
A97: طترا8058 | B97: =IFERROR(VLOOKUP(A:A,constant!A:B,2,0),"") -> شتران | C97: =IFERROR(VLOOKUP(A:A,constant!A:C,3,0),"") -> اختيارف شتران-8000-1400/08/09 | D97: =IFERROR(VLOOKUP(A:A,constant!A:D,4,0),"") -> 8000 | E97: =IFERROR(VLOOKUP(A:A,moamelat!A:C,3,0),"") ->  | F97: =IFERROR(VLOOKUP(A:A,moamelat!A:D,4,0),"") ->  | G97: =IFERROR(VLOOKUP(A:A,moamelat!A:E,5,0),"") ->  | H97: =IFERROR(VLOOKUP(A:A,moamelat!A:F,6,0),"") ->  | I97: =IFERROR(VLOOKUP(A:A,moamelat!A:G,7,0),"") ->  | J97: =IFERROR(VLOOKUP(A:A,moamelat!A:H,8,0),"") ->  | K97: =IFERROR(VLOOKUP(A:A,moamelat!A:I,9,0),"") ->  | L97: =IFERROR(VLOOKUP(A:A,moamelat!A:J,10,0),"") ->  | M97: =IFERROR(VLOOKUP(A:A,moamelat!A:K,11,0),"") ->  | N97: =IFERROR(VLOOKUP(A:A,moamelat!A:L,12,0),"") ->  | O97: =IFERROR(VLOOKUP(A:A,moamelat!A:M,13,0),"") ->  | P97: =IFERROR(VLOOKUP(A:A,moamelat!A:N,14,0),"") ->  | Q97: =IFERROR(VLOOKUP(A:A,moamelat!A:O,15,0),"") ->  | R97: =IFERROR(VLOOKUP(A:A,moamelat!A:P,16,0),"") ->  | S97: =IFERROR(VLOOKUP(A:A,moamelat!A:Q,17,0),"") ->  | T97: =IFERROR(VLOOKUP(A:A,moamelat!A:R,18,0),"") ->  | U97: =IFERROR(VLOOKUP(A:A,moamelat!A:S,19,0),"") ->  | V97: =IFERROR(VLOOKUP(A:A,moamelat!A:T,20,0),"") ->  | W97: =VLOOKUP(A:A,moamelat!A:U,21,0) ->  | X97: =IFERROR(VLOOKUP(A:A,moamelat!A:V,22,0),"") ->  | Y97: =IFERROR(VLOOKUP(A:A,moamelat!A:W,23,0),"") -> 
A98: طترا8059 | B98: =IFERROR(VLOOKUP(A:A,constant!A:B,2,0),"") -> شتران | C98: =IFERROR(VLOOKUP(A:A,constant!A:C,3,0),"") -> اختيارف شتران-9000-1400/08/09 | D98: =IFERROR(VLOOKUP(A:A,constant!A:D,4,0),"") -> 9000 | E98: =IFERROR(VLOOKUP(A:A,moamelat!A:C,3,0),"") ->  | F98: =IFERROR(VLOOKUP(A:A,moamelat!A:D,4,0),"") ->  | G98: =IFERROR(VLOOKUP(A:A,moamelat!A:E,5,0),"") ->  | H98: =IFERROR(VLOOKUP(A:A,moamelat!A:F,6,0),"") ->  | I98: =IFERROR(VLOOKUP(A:A,moamelat!A:G,7,0),"") ->  | J98: =IFERROR(VLOOKUP(A:A,moamelat!A:H,8,0),"") ->  | K98: =IFERROR(VLOOKUP(A:A,moamelat!A:I,9,0),"") ->  | L98: =IFERROR(VLOOKUP(A:A,moamelat!A:J,10,0),"") ->  | M98: =IFERROR(VLOOKUP(A:A,moamelat!A:K,11,0),"") ->  | N98: =IFERROR(VLOOKUP(A:A,moamelat!A:L,12,0),"") ->  | O98: =IFERROR(VLOOKUP(A:A,moamelat!A:M,13,0),"") ->  | P98: =IFERROR(VLOOKUP(A:A,moamelat!A:N,14,0),"") ->  | Q98: =IFERROR(VLOOKUP(A:A,moamelat!A:O,15,0),"") ->  | R98: =IFERROR(VLOOKUP(A:A,moamelat!A:P,16,0),"") ->  | S98: =IFERROR(VLOOKUP(A:A,moamelat!A:Q,17,0),"") ->  | T98: =IFERROR(VLOOKUP(A:A,moamelat!A:R,18,0),"") ->  | U98: =IFERROR(VLOOKUP(A:A,moamelat!A:S,19,0),"") ->  | V98: =IFERROR(VLOOKUP(A:A,moamelat!A:T,20,0),"") ->  | W98: =VLOOKUP(A:A,moamelat!A:U,21,0) ->  | X98: =IFERROR(VLOOKUP(A:A,moamelat!A:V,22,0),"") ->  | Y98: =IFERROR(VLOOKUP(A:A,moamelat!A:W,23,0),"") -> 
A99: طترا8060 | B99: =IFERROR(VLOOKUP(A:A,constant!A:B,2,0),"") -> شتران | C99: =IFERROR(VLOOKUP(A:A,constant!A:C,3,0),"") -> اختيارف شتران-10000-1400/08/09 | D99: =IFERROR(VLOOKUP(A:A,constant!A:D,4,0),"") -> 10000 | E99: =IFERROR(VLOOKUP(A:A,moamelat!A:C,3,0),"") ->  | F99: =IFERROR(VLOOKUP(A:A,moamelat!A:D,4,0),"") ->  | G99: =IFERROR(VLOOKUP(A:A,moamelat!A:E,5,0),"") ->  | H99: =IFERROR(VLOOKUP(A:A,moamelat!A:F,6,0),"") ->  | I99: =IFERROR(VLOOKUP(A:A,moamelat!A:G,7,0),"") ->  | J99: =IFERROR(VLOOKUP(A:A,moamelat!A:H,8,0),"") ->  | K99: =IFERROR(VLOOKUP(A:A,moamelat!A:I,9,0),"") ->  | L99: =IFERROR(VLOOKUP(A:A,moamelat!A:J,10,0),"") ->  | M99: =IFERROR(VLOOKUP(A:A,moamelat!A:K,11,0),"") ->  | N99: =IFERROR(VLOOKUP(A:A,moamelat!A:L,12,0),"") ->  | O99: =IFERROR(VLOOKUP(A:A,moamelat!A:M,13,0),"") ->  | P99: =IFERROR(VLOOKUP(A:A,moamelat!A:N,14,0),"") ->  | Q99: =IFERROR(VLOOKUP(A:A,moamelat!A:O,15,0),"") ->  | R99: =IFERROR(VLOOKUP(A:A,moamelat!A:P,16,0),"") ->  | S99: =IFERROR(VLOOKUP(A:A,moamelat!A:Q,17,0),"") ->  | T99: =IFERROR(VLOOKUP(A:A,moamelat!A:R,18,0),"") ->  | U99: =IFERROR(VLOOKUP(A:A,moamelat!A:S,19,0),"") ->  | V99: =IFERROR(VLOOKUP(A:A,moamelat!A:T,20,0),"") ->  | W99: =VLOOKUP(A:A,moamelat!A:U,21,0) ->  | X99: =IFERROR(VLOOKUP(A:A,moamelat!A:V,22,0),"") ->  | Y99: =IFERROR(VLOOKUP(A:A,moamelat!A:W,23,0),"") -> 
A100: طترا8061 | B100: =IFERROR(VLOOKUP(A:A,constant!A:B,2,0),"") -> شتران | C100: =IFERROR(VLOOKUP(A:A,constant!A:C,3,0),"") -> اختيارف شتران-12000-1400/08/09 | D100: =IFERROR(VLOOKUP(A:A,constant!A:D,4,0),"") -> 12000 | E100: =IFERROR(VLOOKUP(A:A,moamelat!A:C,3,0),"") ->  | F100: =IFERROR(VLOOKUP(A:A,moamelat!A:D,4,0),"") ->  | G100: =IFERROR(VLOOKUP(A:A,moamelat!A:E,5,0),"") ->  | H100: =IFERROR(VLOOKUP(A:A,moamelat!A:F,6,0),"") ->  | I100: =IFERROR(VLOOKUP(A:A,moamelat!A:G,7,0),"") ->  | J100: =IFERROR(VLOOKUP(A:A,moamelat!A:H,8,0),"") ->  | K100: =IFERROR(VLOOKUP(A:A,moamelat!A:I,9,0),"") ->  | L100: =IFERROR(VLOOKUP(A:A,moamelat!A:J,10,0),"") ->  | M100: =IFERROR(VLOOKUP(A:A,moamelat!A:K,11,0),"") ->  | N100: =IFERROR(VLOOKUP(A:A,moamelat!A:L,12,0),"") ->  | O100: =IFERROR(VLOOKUP(A:A,moamelat!A:M,13,0),"") ->  | P100: =IFERROR(VLOOKUP(A:A,moamelat!A:N,14,0),"") ->  | Q100: =IFERROR(VLOOKUP(A:A,moamelat!A:O,15,0),"") ->  | R100: =IFERROR(VLOOKUP(A:A,moamelat!A:P,16,0),"") ->  | S100: =IFERROR(VLOOKUP(A:A,moamelat!A:Q,17,0),"") ->  | T100: =IFERROR(VLOOKUP(A:A,moamelat!A:R,18,0),"") ->  | U100: =IFERROR(VLOOKUP(A:A,moamelat!A:S,19,0),"") ->  | V100: =IFERROR(VLOOKUP(A:A,moamelat!A:T,20,0),"") ->  | W100: =VLOOKUP(A:A,moamelat!A:U,21,0) ->  | X100: =IFERROR(VLOOKUP(A:A,moamelat!A:V,22,0),"") ->  | Y100: =IFERROR(VLOOKUP(A:A,moamelat!A:W,23,0),"") -> 
A101: طترا8062 | B101: =IFERROR(VLOOKUP(A:A,constant!A:B,2,0),"") -> شتران | C101: =IFERROR(VLOOKUP(A:A,constant!A:C,3,0),"") -> اختيارف شتران-14000-1400/08/09 | D101: =IFERROR(VLOOKUP(A:A,constant!A:D,4,0),"") -> 14000 | E101: =IFERROR(VLOOKUP(A:A,moamelat!A:C,3,0),"") ->  | F101: =IFERROR(VLOOKUP(A:A,moamelat!A:D,4,0),"") ->  | G101: =IFERROR(VLOOKUP(A:A,moamelat!A:E,5,0),"") ->  | H101: =IFERROR(VLOOKUP(A:A,moamelat!A:F,6,0),"") ->  | I101: =IFERROR(VLOOKUP(A:A,moamelat!A:G,7,0),"") ->  | J101: =IFERROR(VLOOKUP(A:A,moamelat!A:H,8,0),"") ->  | K101: =IFERROR(VLOOKUP(A:A,moamelat!A:I,9,0),"") ->  | L101: =IFERROR(VLOOKUP(A:A,moamelat!A:J,10,0),"") ->  | M101: =IFERROR(VLOOKUP(A:A,moamelat!A:K,11,0),"") ->  | N101: =IFERROR(VLOOKUP(A:A,moamelat!A:L,12,0),"") ->  | O101: =IFERROR(VLOOKUP(A:A,moamelat!A:M,13,0),"") ->  | P101: =IFERROR(VLOOKUP(A:A,moamelat!A:N,14,0),"") ->  | Q101: =IFERROR(VLOOKUP(A:A,moamelat!A:O,15,0),"") ->  | R101: =IFERROR(VLOOKUP(A:A,moamelat!A:P,16,0),"") ->  | S101: =IFERROR(VLOOKUP(A:A,moamelat!A:Q,17,0),"") ->  | T101: =IFERROR(VLOOKUP(A:A,moamelat!A:R,18,0),"") ->  | U101: =IFERROR(VLOOKUP(A:A,moamelat!A:S,19,0),"") ->  | V101: =IFERROR(VLOOKUP(A:A,moamelat!A:T,20,0),"") ->  | W101: =VLOOKUP(A:A,moamelat!A:U,21,0) ->  | X101: =IFERROR(VLOOKUP(A:A,moamelat!A:V,22,0),"") ->  | Y101: =IFERROR(VLOOKUP(A:A,moamelat!A:W,23,0),"") -> 
A102: طترا8063 | B102: =IFERROR(VLOOKUP(A:A,constant!A:B,2,0),"") -> شتران | C102: =IFERROR(VLOOKUP(A:A,constant!A:C,3,0),"") -> اختيارف شتران-16000-1400/08/09 | D102: =IFERROR(VLOOKUP(A:A,constant!A:D,4,0),"") -> 16000 | E102: =IFERROR(VLOOKUP(A:A,moamelat!A:C,3,0),"") ->  | F102: =IFERROR(VLOOKUP(A:A,moamelat!A:D,4,0),"") ->  | G102: =IFERROR(VLOOKUP(A:A,moamelat!A:E,5,0),"") ->  | H102: =IFERROR(VLOOKUP(A:A,moamelat!A:F,6,0),"") ->  | I102: =IFERROR(VLOOKUP(A:A,moamelat!A:G,7,0),"") ->  | J102: =IFERROR(VLOOKUP(A:A,moamelat!A:H,8,0),"") ->  | K102: =IFERROR(VLOOKUP(A:A,moamelat!A:I,9,0),"") ->  | L102: =IFERROR(VLOOKUP(A:A,moamelat!A:J,10,0),"") ->  | M102: =IFERROR(VLOOKUP(A:A,moamelat!A:K,11,0),"") ->  | N102: =IFERROR(VLOOKUP(A:A,moamelat!A:L,12,0),"") ->  | O102: =IFERROR(VLOOKUP(A:A,moamelat!A:M,13,0),"") ->  | P102: =IFERROR(VLOOKUP(A:A,moamelat!A:N,14,0),"") ->  | Q102: =IFERROR(VLOOKUP(A:A,moamelat!A:O,15,0),"") ->  | R102: =IFERROR(VLOOKUP(A:A,moamelat!A:P,16,0),"") ->  | S102: =IFERROR(VLOOKUP(A:A,moamelat!A:Q,17,0),"") ->  | T102: =IFERROR(VLOOKUP(A:A,moamelat!A:R,18,0),"") ->  | U102: =IFERROR(VLOOKUP(A:A,moamelat!A:S,19,0),"") ->  | V102: =IFERROR(VLOOKUP(A:A,moamelat!A:T,20,0),"") ->  | W102: =VLOOKUP(A:A,moamelat!A:U,21,0) ->  | X102: =IFERROR(VLOOKUP(A:A,moamelat!A:V,22,0),"") ->  | Y102: =IFERROR(VLOOKUP(A:A,moamelat!A:W,23,0),"") -> 
A103: طجار7037 | B103: =IFERROR(VLOOKUP(A:A,constant!A:B,2,0),"") -> وتجارت | C103: =IFERROR(VLOOKUP(A:A,constant!A:C,3,0),"") -> اختيارف وتجارت-1600-1400/07/21 | D103: =IFERROR(VLOOKUP(A:A,constant!A:D,4,0),"") -> 1600 | E103: =IFERROR(VLOOKUP(A:A,moamelat!A:C,3,0),"") ->  | F103: =IFERROR(VLOOKUP(A:A,moamelat!A:D,4,0),"") ->  | G103: =IFERROR(VLOOKUP(A:A,moamelat!A:E,5,0),"") ->  | H103: =IFERROR(VLOOKUP(A:A,moamelat!A:F,6,0),"") ->  | I103: =IFERROR(VLOOKUP(A:A,moamelat!A:G,7,0),"") ->  | J103: =IFERROR(VLOOKUP(A:A,moamelat!A:H,8,0),"") ->  | K103: =IFERROR(VLOOKUP(A:A,moamelat!A:I,9,0),"") ->  | L103: =IFERROR(VLOOKUP(A:A,moamelat!A:J,10,0),"") ->  | M103: =IFERROR(VLOOKUP(A:A,moamelat!A:K,11,0),"") ->  | N103: =IFERROR(VLOOKUP(A:A,moamelat!A:L,12,0),"") ->  | O103: =IFERROR(VLOOKUP(A:A,moamelat!A:M,13,0),"") ->  | P103: =IFERROR(VLOOKUP(A:A,moamelat!A:N,14,0),"") ->  | Q103: =IFERROR(VLOOKUP(A:A,moamelat!A:O,15,0),"") ->  | R103: =IFERROR(VLOOKUP(A:A,moamelat!A:P,16,0),"") ->  | S103: =IFERROR(VLOOKUP(A:A,moamelat!A:Q,17,0),"") ->  | T103: =IFERROR(VLOOKUP(A:A,moamelat!A:R,18,0),"") ->  | U103: =IFERROR(VLOOKUP(A:A,moamelat!A:S,19,0),"") ->  | V103: =IFERROR(VLOOKUP(A:A,moamelat!A:T,20,0),"") ->  | W103: =VLOOKUP(A:A,moamelat!A:U,21,0) ->  | X103: =IFERROR(VLOOKUP(A:A,moamelat!A:V,22,0),"") ->  | Y103: =IFERROR(VLOOKUP(A:A,moamelat!A:W,23,0),"") -> 
A104: طجار7038 | B104: =IFERROR(VLOOKUP(A:A,constant!A:B,2,0),"") -> وتجارت | C104: =IFERROR(VLOOKUP(A:A,constant!A:C,3,0),"") -> اختيارف وتجارت-1800-1400/07/21 | D104: =IFERROR(VLOOKUP(A:A,constant!A:D,4,0),"") -> 1800 | E104: =IFERROR(VLOOKUP(A:A,moamelat!A:C,3,0),"") ->  | F104: =IFERROR(VLOOKUP(A:A,moamelat!A:D,4,0),"") ->  | G104: =IFERROR(VLOOKUP(A:A,moamelat!A:E,5,0),"") ->  | H104: =IFERROR(VLOOKUP(A:A,moamelat!A:F,6,0),"") ->  | I104: =IFERROR(VLOOKUP(A:A,moamelat!A:G,7,0),"") ->  | J104: =IFERROR(VLOOKUP(A:A,moamelat!A:H,8,0),"") ->  | K104: =IFERROR(VLOOKUP(A:A,moamelat!A:I,9,0),"") ->  | L104: =IFERROR(VLOOKUP(A:A,moamelat!A:J,10,0),"") ->  | M104: =IFERROR(VLOOKUP(A:A,moamelat!A:K,11,0),"") ->  | N104: =IFERROR(VLOOKUP(A:A,moamelat!A:L,12,0),"") ->  | O104: =IFERROR(VLOOKUP(A:A,moamelat!A:M,13,0),"") ->  | P104: =IFERROR(VLOOKUP(A:A,moamelat!A:N,14,0),"") ->  | Q104: =IFERROR(VLOOKUP(A:A,moamelat!A:O,15,0),"") ->  | R104: =IFERROR(VLOOKUP(A:A,moamelat!A:P,16,0),"") ->  | S104: =IFERROR(VLOOKUP(A:A,moamelat!A:Q,17,0),"") ->  | T104: =IFERROR(VLOOKUP(A:A,moamelat!A:R,18,0),"") ->  | U104: =IFERROR(VLOOKUP(A:A,moamelat!A:S,19,0),"") ->  | V104: =IFERROR(VLOOKUP(A:A,moamelat!A:T,20,0),"") ->  | W104: =VLOOKUP(A:A,moamelat!A:U,21,0) ->  | X104: =IFERROR(VLOOKUP(A:A,moamelat!A:V,22,0),"") ->  | Y104: =IFERROR(VLOOKUP(A:A,moamelat!A:W,23,0),"") -> 
A105: طجار7039 | B105: =IFERROR(VLOOKUP(A:A,constant!A:B,2,0),"") -> وتجارت | C105: =IFERROR(VLOOKUP(A:A,constant!A:C,3,0),"") -> اختيارف وتجارت-2000-1400/07/21 | D105: =IFERROR(VLOOKUP(A:A,constant!A:D,4,0),"") -> 2000 | E105: =IFERROR(VLOOKUP(A:A,moamelat!A:C,3,0),"") ->  | F105: =IFERROR(VLOOKUP(A:A,moamelat!A:D,4,0),"") ->  | G105: =IFERROR(VLOOKUP(A:A,moamelat!A:E,5,0),"") ->  | H105: =IFERROR(VLOOKUP(A:A,moamelat!A:F,6,0),"") ->  | I105: =IFERROR(VLOOKUP(A:A,moamelat!A:G,7,0),"") ->  | J105: =IFERROR(VLOOKUP(A:A,moamelat!A:H,8,0),"") ->  | K105: =IFERROR(VLOOKUP(A:A,moamelat!A:I,9,0),"") ->  | L105: =IFERROR(VLOOKUP(A:A,moamelat!A:J,10,0),"") ->  | M105: =IFERROR(VLOOKUP(A:A,moamelat!A:K,11,0),"") ->  | N105: =IFERROR(VLOOKUP(A:A,moamelat!A:L,12,0),"") ->  | O105: =IFERROR(VLOOKUP(A:A,moamelat!A:M,13,0),"") ->  | P105: =IFERROR(VLOOKUP(A:A,moamelat!A:N,14,0),"") ->  | Q105: =IFERROR(VLOOKUP(A:A,moamelat!A:O,15,0),"") ->  | R105: =IFERROR(VLOOKUP(A:A,moamelat!A:P,16,0),"") ->  | S105: =IFERROR(VLOOKUP(A:A,moamelat!A:Q,17,0),"") ->  | T105: =IFERROR(VLOOKUP(A:A,moamelat!A:R,18,0),"") ->  | U105: =IFERROR(VLOOKUP(A:A,moamelat!A:S,19,0),"") ->  | V105: =IFERROR(VLOOKUP(A:A,moamelat!A:T,20,0),"") ->  | W105: =VLOOKUP(A:A,moamelat!A:U,21,0) ->  | X105: =IFERROR(VLOOKUP(A:A,moamelat!A:V,22,0),"") ->  | Y105: =IFERROR(VLOOKUP(A:A,moamelat!A:W,23,0),"") -> 
A106: طجار7040 | B106: =IFERROR(VLOOKUP(A:A,constant!A:B,2,0),"") -> وتجارت | C106: =IFERROR(VLOOKUP(A:A,constant!A:C,3,0),"") -> اختيارف وتجارت-2500-1400/07/21 | D106: =IFERROR(VLOOKUP(A:A,constant!A:D,4,0),"") -> 2500 | E106: =IFERROR(VLOOKUP(A:A,moamelat!A:C,3,0),"") ->  | F106: =IFERROR(VLOOKUP(A:A,moamelat!A:D,4,0),"") ->  | G106: =IFERROR(VLOOKUP(A:A,moamelat!A:E,5,0),"") ->  | H106: =IFERROR(VLOOKUP(A:A,moamelat!A:F,6,0),"") ->  | I106: =IFERROR(VLOOKUP(A:A,moamelat!A:G,7,0),"") ->  | J106: =IFERROR(VLOOKUP(A:A,moamelat!A:H,8,0),"") ->  | K106: =IFERROR(VLOOKUP(A:A,moamelat!A:I,9,0),"") ->  | L106: =IFERROR(VLOOKUP(A:A,moamelat!A:J,10,0),"") ->  | M106: =IFERROR(VLOOKUP(A:A,moamelat!A:K,11,0),"") ->  | N106: =IFERROR(VLOOKUP(A:A,moamelat!A:L,12,0),"") ->  | O106: =IFERROR(VLOOKUP(A:A,moamelat!A:M,13,0),"") ->  | P106: =IFERROR(VLOOKUP(A:A,moamelat!A:N,14,0),"") ->  | Q106: =IFERROR(VLOOKUP(A:A,moamelat!A:O,15,0),"") ->  | R106: =IFERROR(VLOOKUP(A:A,moamelat!A:P,16,0),"") ->  | S106: =IFERROR(VLOOKUP(A:A,moamelat!A:Q,17,0),"") ->  | T106: =IFERROR(VLOOKUP(A:A,moamelat!A:R,18,0),"") ->  | U106: =IFERROR(VLOOKUP(A:A,moamelat!A:S,19,0),"") ->  | V106: =IFERROR(VLOOKUP(A:A,moamelat!A:T,20,0),"") ->  | W106: =VLOOKUP(A:A,moamelat!A:U,21,0) ->  | X106: =IFERROR(VLOOKUP(A:A,moamelat!A:V,22,0),"") ->  | Y106: =IFERROR(VLOOKUP(A:A,moamelat!A:W,23,0),"") -> 
